Workbook

Sheet INTRO
C1: Cette version sera utilisée par les pays endémiques à la Loase
B2: Formulaire de Rapport Commun v.3.1 (L)
B4: Le but de ce formulaire de rapport commun - disponible sous forme de fichier Excel - est de mettre à disposition des autorités sanitaires nationales et des gestionnaires de données un outil standardisé qui réponde aux défis, facilite l'intégration et par conséquent contribue à améliorer la gestion de programme. Ce formulaire tend à standardiser le rapport de résultats des programmes nationaux, améliore la disponibilité et la coordination des données de chimioprévention à travers les Bureaux des Régions de l'Organisation mondiale de la Santé. Les autorités nationales sont priées de compléter ce formulaire et de le soumettre à l'Organisation mondiale de la Santé avant le 15 août de l'année en cours pour rapporter les données des activités de chimioprévention mises en oeuvre l'année précédente.
B6: Structure de l'application (feuilles de travail) :
B8: INTRO | C8: Cette feuille contient des instructions pour compléter le formulaire de rapport commun et des informations sur le statut de la chimioprévention pour les maladies d'endémie du pays.
B9: COUNTRY_INFO | C9: Cette feuille contient des informations sur la structure administrative du pays, la population par groupe d'âge, le statut d'endémicité pour chaque maladie, la population devant être traitée par chimioprévention, les interventions prévues et les interventions mises en oeuvre.
B10: MDA1, MDA2, MDA3, T1, T2 et T3 | C10: Ces feuilles contiennent des informations sur l'endémicité des districts ciblés pour le traitement aux médicaments spécifiques pour la chimioprévention, les plans de traitement, et le nombre de personnes traitées par groupe d'âge.
B11: DISTRICT | C11: Cette feuille contient un résumé sur les personnes traitées, par maladie, au niveau de mise en oeuvre. Si les données par genre (sexe) sont disponibles, merci de les saisir.
B12: SUMMARY | C12: Cette feuille contient un résumé sur les personnes traitées, par maladie et par type d'intervention de chimioprévention. Avant de générer le rapport (exécuter macro), veuillez sélectionner la maladie pour laquelle vous souhaitez un rapport. Veuillez suivre le même processus pour générer les divers rapports. Cette feuille doit être imprimée et soumise comme formulaire de rapport commun (voir les instructions pour la soumission du formulaire sous la feuille SUMMARY).
B14: Instructions pour la saisie des données
B16: La plupart des cellules des feuilles de travail mentionnées ci-dessus contiennent des formules calculées automatiquement en fonction du protocole de traitement recommandé par l'OMS pour chaque maladie. Voir : http://www.who.int/neglected_diseases/preventive_chemotherapy/pct_manual/en/index.html
B18: Veuillez entrer vos données dans les cellules en fonction de leur code de couleur :
C20: Blanc - la cellule n'est pas protégée. Veuillez entrer la valeur de l'indicateur demandé.
C22: Jaune - la cellule est protégée et inclut le nom de l'indicateur. Aucune entrée de données requise.
C24: Orange - la cellule n'est pas protégée et contient un menu déroulant. Veuillez sélectionner la valeur dans le menu déroulant.
C27: Vert - la cellule n'est pas protégée et contient des formules. Veuillez changer la valeur indiquée uniquement si vos données sont différentes de celles calculées automatiquement.
C30: Bleu - la cellule est protégée et contient des formules. Aucune entrée de données requise.
B32: Données pays
B34: PAYS | E34: Chad
B36: Année de rapport des données | E36: 2021
B38: Le pays est-il endémique à la filariose lymphatique (FL) ? | E38: Endémique
B40: Le pays est-il endémique à l'onchocercose (ONCHO) ? | E40: Endémique
B42: Le pays est-il endémique aux géohelminthiases (STH) ? | E42: Endémique
B44: Le pays est-il endémique à la schistosomiase (SCH) ? | E44: Endémique
B46: Combien d'unités administratives compte le pays ? | E46: 130
B47: Si les données démographiques par groupe d'âge ne sont pas disponibles au second niveau administratif, veuillez entrer la proportion (%) de population, par groupe d'âge, du pays. Si les données sont disponibles, veuillez laisser les cellules vierges.
B48: 1-4 ans | C48: Enfants d'âge pré-scolaire (EAPréS) | E48: 0.165
B49: 5-14 ans | C49: Enfants d'âge scolaire (EAS) | E49: 0.3035
B50: 15 ans et plus | C50: Adultes | E50: 0.4945

Sheet COUNTRY_INFO
A1: INFORMATIONS PAYS
A2: Structure administrative, population par groupe d'âge, statut d'endémicité, interventions planifiées et interventions mises en oeuvre
A4: TOTAL | D4: =SUM(D$9:D$1000) -> 17467241 | E4: =SUM(E$9:E$1000) -> 2882101 | F4: =SUM(F$9:F$1000) -> 5301303 | G4: =SUM(G$9:G$1000) -> 8637550 | M4: =SUM(M$9:M$1000) -> 5394895 | N4: =SUM(N$9:N$1000) -> 6089228 | O4: =SUM(O$9:O$1000) -> 575546 | P4: =SUM(P$9:P$1000) -> 4145301.99
A6: Structure administrative du pays | D6: Population | H6: Endémicité | M6: Population nécessitant la CP | Q6: Nombre de tournées de traitement prévues pour l'année | U6: Mise en oeuvre de la chimioprévention | AD6: mda1 | AE6: mda3 | AF6: t1 | AG6: t2
A7: Pays | B7: Région/Département | C7: District | D7: Total | E7: EAPréS | F7: EAS | G7: Adultes | H7: FL | I7: Oncho | J7: STH | K7: SCH | L7: Loa | M7: FL | N7: Oncho | O7: STH | P7: SCH | Q7: FL | R7: Oncho | S7: STH | T7: SCH | U7: TOURNEE 1 | V7: TOURNEE 2 | Y7: IU_ID | Z7: IU_Name | AA7: Parent_IU_ID | AB7: Parent_IU_Name | AC7: x | AD7: x | AE7: x | AF7: x | AG7: x | AH7: x | AI7: x | AJ7: x | AK7: x | AL7: x | AM7: x | AN7: x | AO7: x | AP7: x | AQ7: x | AR7: x | AS7: x | AT7: x | AU7: x | AV7: x | AW7: x | AX7: x | AY7: x | AZ7: x | BA7: x | BB7: x | BC7: x
A9: =IF(INTRO!$E$34<>0,INTRO!$E$34,"") -> Chad | B9: Bahr El Gazel | C9: Chadra | D9: 100917 | E9: =IF(INTRO!$E$48="","",ROUND($D9*INTRO!$E$48,0)) -> 16651 | F9: =IF(INTRO!$E$49="","",ROUND($D9*INTRO!$E$49,0)) -> 30628 | G9: =IF(INTRO!$E$50="","",ROUND($D9*INTRO!$E$50,0)) -> 49903 | H9: 0 | I9: 0 | J9: 2 | K9: 2 | M9: =IF(INTRO!$E$38="Endémique", IF($H9>0, IF($H9=4,"Inconnu", IF($H9=99,"Interrompu", $D9)), 0),"Non requis") -> 0 | N9: =IF(INTRO!$E$40="Endémique", IF($I9>0, IF($I9=4,"Inconnu",IF($I9=99,"Interrompu", $D9)), 0),"Non requis") -> 0 | O9: =IF(INTRO!$E$42="Endémique", IF(AND($J9>1,$J9<5), IF($J9=4, "Inconnu", E9+F9), 0),"Non requis") -> 47279 | P9: =IF(INTRO!$E$44="Endémique", IF(AND($K9>0,$K9<5), IF($K9=4,"Inconnu", IF($K9=1, $F9*0.33, IF($K9=2, $F9*0.5+$G9*0.2, SUM(F9:G9)))), 0),"Non requis") -> 25294.6 | Q9: 0 | R9: 0 | S9: 0 | T9: 0 | Y9: 10660 | Z9: Chadra | AD9: ='MDA1'!K9 -> 0 | AE9: ='MDA3'!O9 -> 0 | AF9: ='T1'!M9 -> 0 | AG9: ='T2'!K9 -> 0 | AJ9: =_xlfn.XLOOKUP($Y9,[1]COUNTRY_INFO!$W$9:$W$131,[1]COUNTRY_INFO!K$9:K$131) -> 2
A10: =IF(INTRO!$E$34<>0,INTRO!$E$34,"") -> Chad | B10: Bahr El Gazel | C10: Michemire | D10: 48440 | E10: =IF(INTRO!$E$48="","",ROUND($D10*INTRO!$E$48,0)) -> 7993 | F10: =IF(INTRO!$E$49="","",ROUND($D10*INTRO!$E$49,0)) -> 14702 | G10: =IF(INTRO!$E$50="","",ROUND($D10*INTRO!$E$50,0)) -> 23954 | H10: 0 | I10: 0 | J10: 1 | K10: 2 | M10: =IF(INTRO!$E$38="Endémique", IF($H10>0, IF($H10=4,"Inconnu", IF($H10=99,"Interrompu", $D10)), 0),"Non requis") -> 0 | N10: =IF(INTRO!$E$40="Endémique", IF($I10>0, IF($I10=4,"Inconnu",IF($I10=99,"Interrompu", $D10)), 0),"Non requis") -> 0 | O10: =IF(INTRO!$E$42="Endémique", IF(AND($J10>1,$J10<5), IF($J10=4, "Inconnu", E10+F10), 0),"Non requis") -> 0 | P10: =IF(INTRO!$E$44="Endémique", IF(AND($K10>0,$K10<5), IF($K10=4,"Inconnu", IF($K10=1, $F10*0.33, IF($K10=2, $F10*0.5+$G10*0.2, SUM(F10:G10)))), 0),"Non requis") -> 12141.8 | Q10: 0 | R10: 0 | S10: 0 | T10: 0 | Y10: 10670 | Z10: Michemire | AD10: ='MDA1'!K10 -> 0 | AE10: ='MDA3'!O10 -> 0 | AF10: ='T1'!M10 -> 0 | AG10: ='T2'!K10 -> 0 | AJ10: =_xlfn.XLOOKUP($Y10,[1]COUNTRY_INFO!$W$9:$W$131,[1]COUNTRY_INFO!K$9:K$131) -> 2
A11: =IF(INTRO!$E$34<>0,INTRO!$E$34,"") -> Chad | B11: Bahr El Gazel | C11: Moussoro | D11: 201835 | E11: =IF(INTRO!$E$48="","",ROUND($D11*INTRO!$E$48,0)) -> 33303 | F11: =IF(INTRO!$E$49="","",ROUND($D11*INTRO!$E$49,0)) -> 61257 | G11: =IF(INTRO!$E$50="","",ROUND($D11*INTRO!$E$50,0)) -> 99807 | H11: 0 | I11: 0 | J11: 1 | K11: 2 | M11: =IF(INTRO!$E$38="Endémique", IF($H11>0, IF($H11=4,"Inconnu", IF($H11=99,"Interrompu", $D11)), 0),"Non requis") -> 0 | N11: =IF(INTRO!$E$40="Endémique", IF($I11>0, IF($I11=4,"Inconnu",IF($I11=99,"Interrompu", $D11)), 0),"Non requis") -> 0 | O11: =IF(INTRO!$E$42="Endémique", IF(AND($J11>1,$J11<5), IF($J11=4, "Inconnu", E11+F11), 0),"Non requis") -> 0 | P11: =IF(INTRO!$E$44="Endémique", IF(AND($K11>0,$K11<5), IF($K11=4,"Inconnu", IF($K11=1, $F11*0.33, IF($K11=2, $F11*0.5+$G11*0.2, SUM(F11:G11)))), 0),"Non requis") -> 50589.9 | Q11: 0 | R11: 0 | S11: 0 | T11: 0 | Y11: 10661 | Z11: Moussoro | AD11: ='MDA1'!K11 -> 0 | AE11: ='MDA3'!O11 -> 0 | AF11: ='T1'!M11 -> 0 | AG11: ='T2'!K11 -> 0 | AJ11: =_xlfn.XLOOKUP($Y11,[1]COUNTRY_INFO!$W$9:$W$131,[1]COUNTRY_INFO!K$9:K$131) -> 2
A12: =IF(INTRO!$E$34<>0,INTRO!$E$34,"") -> Chad | B12: Bahr El Gazel | C12: Salal | D12: 52477 | E12: =IF(INTRO!$E$48="","",ROUND($D12*INTRO!$E$48,0)) -> 8659 | F12: =IF(INTRO!$E$49="","",ROUND($D12*INTRO!$E$49,0)) -> 15927 | G12: =IF(INTRO!$E$50="","",ROUND($D12*INTRO!$E$50,0)) -> 25950 | H12: 0 | I12: 0 | J12: 1 | K12: 2 | M12: =IF(INTRO!$E$38="Endémique", IF($H12>0, IF($H12=4,"Inconnu", IF($H12=99,"Interrompu", $D12)), 0),"Non requis") -> 0 | N12: =IF(INTRO!$E$40="Endémique", IF($I12>0, IF($I12=4,"Inconnu",IF($I12=99,"Interrompu", $D12)), 0),"Non requis") -> 0 | O12: =IF(INTRO!$E$42="Endémique", IF(AND($J12>1,$J12<5), IF($J12=4, "Inconnu", E12+F12), 0),"Non requis") -> 0 | P12: =IF(INTRO!$E$44="Endémique", IF(AND($K12>0,$K12<5), IF($K12=4,"Inconnu", IF($K12=1, $F12*0.33, IF($K12=2, $F12*0.5+$G12*0.2, SUM(F12:G12)))), 0),"Non requis") -> 13153.5 | Q12: 0 | R12: 0 | S12: 0 | T12: 0 | Y12: 10711 | Z12: Salal | AD12: ='MDA1'!K12 -> 0 | AE12: ='MDA3'!O12 -> 0 | AF12: ='T1'!M12 -> 0 | AG12: ='T2'!K12 -> 0 | AJ12: =_xlfn.XLOOKUP($Y12,[1]COUNTRY_INFO!$W$9:$W$131,[1]COUNTRY_INFO!K$9:K$131) -> 2
A13: =IF(INTRO!$E$34<>0,INTRO!$E$34,"") -> Chad | B13: Batha | C13: Alifa | D13: 114962 | E13: =IF(INTRO!$E$48="","",ROUND($D13*INTRO!$E$48,0)) -> 18969 | F13: =IF(INTRO!$E$49="","",ROUND($D13*INTRO!$E$49,0)) -> 34891 | G13: =IF(INTRO!$E$50="","",ROUND($D13*INTRO!$E$50,0)) -> 56849 | H13: 0 | I13: 0 | J13: 0 | K13: 2 | M13: =IF(INTRO!$E$38="Endémique", IF($H13>0, IF($H13=4,"Inconnu", IF($H13=99,"Interrompu", $D13)), 0),"Non requis") -> 0 | N13: =IF(INTRO!$E$40="Endémique", IF($I13>0, IF($I13=4,"Inconnu",IF($I13=99,"Interrompu", $D13)), 0),"Non requis") -> 0 | O13: =IF(INTRO!$E$42="Endémique", IF(AND($J13>1,$J13<5), IF($J13=4, "Inconnu", E13+F13), 0),"Non requis") -> 0 | P13: =IF(INTRO!$E$44="Endémique", IF(AND($K13>0,$K13<5), IF($K13=4,"Inconnu", IF($K13=1, $F13*0.33, IF($K13=2, $F13*0.5+$G13*0.2, SUM(F13:G13)))), 0),"Non requis") -> 28815.3 | Q13: 0 | R13: 0 | S13: 0 | T13: 0 | Y13: 10739 | Z13: Alifa | AD13: ='MDA1'!K13 -> 0 | AE13: ='MDA3'!O13 -> 0 | AF13: ='T1'!M13 -> 0 | AG13: ='T2'!K13 -> 0 | AJ13: =_xlfn.XLOOKUP($Y13,[1]COUNTRY_INFO!$W$9:$W$131,[1]COUNTRY_INFO!K$9:K$131) -> 2
A14: =IF(INTRO!$E$34<>0,INTRO!$E$34,"") -> Chad | B14: Batha | C14: Assinet | D14: 91970 | E14: =IF(INTRO!$E$48="","",ROUND($D14*INTRO!$E$48,0)) -> 15175 | F14: =IF(INTRO!$E$49="","",ROUND($D14*INTRO!$E$49,0)) -> 27913 | G14: =IF(INTRO!$E$50="","",ROUND($D14*INTRO!$E$50,0)) -> 45479 | H14: 0 | I14: 0 | J14: 0 | K14: 2 | M14: =IF(INTRO!$E$38="Endémique", IF($H14>0, IF($H14=4,"Inconnu", IF($H14=99,"Interrompu", $D14)), 0),"Non requis") -> 0 | N14: =IF(INTRO!$E$40="Endémique", IF($I14>0, IF($I14=4,"Inconnu",IF($I14=99,"Interrompu", $D14)), 0),"Non requis") -> 0 | O14: =IF(INTRO!$E$42="Endémique", IF(AND($J14>1,$J14<5), IF($J14=4, "Inconnu", E14+F14), 0),"Non requis") -> 0 | P14: =IF(INTRO!$E$44="Endémique", IF(AND($K14>0,$K14<5), IF($K14=4,"Inconnu", IF($K14=1, $F14*0.33, IF($K14=2, $F14*0.5+$G14*0.2, SUM(F14:G14)))), 0),"Non requis") -> 23052.3 | Q14: 0 | R14: 0 | S14: 0 | T14: 0 | Y14: 10745 | Z14: Assinet | AD14: ='MDA1'!K14 -> 0 | AE14: ='MDA3'!O14 -> 0 | AF14: ='T1'!M14 -> 0 | AG14: ='T2'!K14 -> 0 | AJ14: =_xlfn.XLOOKUP($Y14,[1]COUNTRY_INFO!$W$9:$W$131,[1]COUNTRY_INFO!K$9:K$131) -> 2
A15: =IF(INTRO!$E$34<>0,INTRO!$E$34,"") -> Chad | B15: Batha | C15: Ati | D15: 59780 | E15: =IF(INTRO!$E$48="","",ROUND($D15*INTRO!$E$48,0)) -> 9864 | F15: =IF(INTRO!$E$49="","",ROUND($D15*INTRO!$E$49,0)) -> 18143 | G15: =IF(INTRO!$E$50="","",ROUND($D15*INTRO!$E$50,0)) -> 29561 | H15: 0 | I15: 0 | J15: 0 | K15: 2 | M15: =IF(INTRO!$E$38="Endémique", IF($H15>0, IF($H15=4,"Inconnu", IF($H15=99,"Interrompu", $D15)), 0),"Non requis") -> 0 | N15: =IF(INTRO!$E$40="Endémique", IF($I15>0, IF($I15=4,"Inconnu",IF($I15=99,"Interrompu", $D15)), 0),"Non requis") -> 0 | O15: =IF(INTRO!$E$42="Endémique", IF(AND($J15>1,$J15<5), IF($J15=4, "Inconnu", E15+F15), 0),"Non requis") -> 0 | P15: =IF(INTRO!$E$44="Endémique", IF(AND($K15>0,$K15<5), IF($K15=4,"Inconnu", IF($K15=1, $F15*0.33, IF($K15=2, $F15*0.5+$G15*0.2, SUM(F15:G15)))), 0),"Non requis") -> 14983.7 | Q15: 0 | R15: 0 | S15: 0 | T15: 0 | Y15: 10662 | Z15: Ati | AD15: ='MDA1'!K15 -> 0 | AE15: ='MDA3'!O15 -> 0 | AF15: ='T1'!M15 -> 0 | AG15: ='T2'!K15 -> 0 | AJ15: =_xlfn.XLOOKUP($Y15,[1]COUNTRY_INFO!$W$9:$W$131,[1]COUNTRY_INFO!K$9:K$131) -> 2
A16: =IF(INTRO!$E$34<>0,INTRO!$E$34,"") -> Chad | B16: Batha | C16: Djedda | D16: 53803 | E16: =IF(INTRO!$E$48="","",ROUND($D16*INTRO!$E$48,0)) -> 8877 | F16: =IF(INTRO!$E$49="","",ROUND($D16*INTRO!$E$49,0)) -> 16329 | G16: =IF(INTRO!$E$50="","",ROUND($D16*INTRO!$E$50,0)) -> 26606 | H16: 0 | I16: 0 | J16: 0 | K16: 2 | M16: =IF(INTRO!$E$38="Endémique", IF($H16>0, IF($H16=4,"Inconnu", IF($H16=99,"Interrompu", $D16)), 0),"Non requis") -> 0 | N16: =IF(INTRO!$E$40="Endémique", IF($I16>0, IF($I16=4,"Inconnu",IF($I16=99,"Interrompu", $D16)), 0),"Non requis") -> 0 | O16: =IF(INTRO!$E$42="Endémique", IF(AND($J16>1,$J16<5), IF($J16=4, "Inconnu", E16+F16), 0),"Non requis") -> 0 | P16: =IF(INTRO!$E$44="Endémique", IF(AND($K16>0,$K16<5), IF($K16=4,"Inconnu", IF($K16=1, $F16*0.33, IF($K16=2, $F16*0.5+$G16*0.2, SUM(F16:G16)))), 0),"Non requis") -> 13485.7 | Q16: 0 | R16: 0 | S16: 0 | T16: 0 | Y16: 10761 | Z16: Djedda | AD16: ='MDA1'!K16 -> 0 | AE16: ='MDA3'!O16 -> 0 | AF16: ='T1'!M16 -> 0 | AG16: ='T2'!K16 -> 0 | AJ16: =_xlfn.XLOOKUP($Y16,[1]COUNTRY_INFO!$W$9:$W$131,[1]COUNTRY_INFO!K$9:K$131) -> 2
A17: =IF(INTRO!$E$34<>0,INTRO!$E$34,"") -> Chad | B17: Batha | C17: Koundjourou | D17: 85685 | E17: =IF(INTRO!$E$48="","",ROUND($D17*INTRO!$E$48,0)) -> 14138 | F17: =IF(INTRO!$E$49="","",ROUND($D17*INTRO!$E$49,0)) -> 26005 | G17: =IF(INTRO!$E$50="","",ROUND($D17*INTRO!$E$50,0)) -> 42371 | H17: 0 | I17: 0 | J17: 0 | K17: 2 | M17: =IF(INTRO!$E$38="Endémique", IF($H17>0, IF($H17=4,"Inconnu", IF($H17=99,"Interrompu", $D17)), 0),"Non requis") -> 0 | N17: =IF(INTRO!$E$40="Endémique", IF($I17>0, IF($I17=4,"Inconnu",IF($I17=99,"Interrompu", $D17)), 0),"Non requis") -> 0 | O17: =IF(INTRO!$E$42="Endémique", IF(AND($J17>1,$J17<5), IF($J17=4, "Inconnu", E17+F17), 0),"Non requis") -> 0 | P17: =IF(INTRO!$E$44="Endémique", IF(AND($K17>0,$K17<5), IF($K17=4,"Inconnu", IF($K17=1, $F17*0.33, IF($K17=2, $F17*0.5+$G17*0.2, SUM(F17:G17)))), 0),"Non requis") -> 21476.7 | Q17: 0 | R17: 0 | S17: 0 | T17: 0 | Y17: 10762 | Z17: Koundjourou | AD17: ='MDA1'!K17 -> 0 | AE17: ='MDA3'!O17 -> 0 | AF17: ='T1'!M17 -> 0 | AG17: ='T2'!K17 -> 0 | AJ17: =_xlfn.XLOOKUP($Y17,[1]COUNTRY_INFO!$W$9:$W$131,[1]COUNTRY_INFO!K$9:K$131) -> 2
A18: =IF(INTRO!$E$34<>0,INTRO!$E$34,"") -> Chad | B18: Batha | C18: Oum-Hadjer | D18: 183940 | E18: =IF(INTRO!$E$48="","",ROUND($D18*INTRO!$E$48,0)) -> 30350 | F18: =IF(INTRO!$E$49="","",ROUND($D18*INTRO!$E$49,0)) -> 55826 | G18: =IF(INTRO!$E$50="","",ROUND($D18*INTRO!$E$50,0)) -> 90958 | H18: 0 | I18: 0 | J18: 0 | K18: 2 | M18: =IF(INTRO!$E$38="Endémique", IF($H18>0, IF($H18=4,"Inconnu", IF($H18=99,"Interrompu", $D18)), 0),"Non requis") -> 0 | N18: =IF(INTRO!$E$40="Endémique", IF($I18>0, IF($I18=4,"Inconnu",IF($I18=99,"Interrompu", $D18)), 0),"Non requis") -> 0 | O18: =IF(INTRO!$E$42="Endémique", IF(AND($J18>1,$J18<5), IF($J18=4, "Inconnu", E18+F18), 0),"Non requis") -> 0 | P18: =IF(INTRO!$E$44="Endémique", IF(AND($K18>0,$K18<5), IF($K18=4,"Inconnu", IF($K18=1, $F18*0.33, IF($K18=2, $F18*0.5+$G18*0.2, SUM(F18:G18)))), 0),"Non requis") -> 46104.6 | Q18: 0 | R18: 0 | S18: 0 | T18: 0 | Y18: 10663 | Z18: Oum-Hadjer | AD18: ='MDA1'!K18 -> 0 | AE18: ='MDA3'!O18 -> 0 | AF18: ='T1'!M18 -> 0 | AG18: ='T2'!K18 -> 0 | AJ18: =_xlfn.XLOOKUP($Y18,[1]COUNTRY_INFO!$W$9:$W$131,[1]COUNTRY_INFO!K$9:K$131) -> 2
A19: =IF(INTRO!$E$34<>0,INTRO!$E$34,"") -> Chad | B19: Batha | C19: Yao | D19: 176277 | E19: =IF(INTRO!$E$48="","",ROUND($D19*INTRO!$E$48,0)) -> 29086 | F19: =IF(INTRO!$E$49="","",ROUND($D19*INTRO!$E$49,0)) -> 53500 | G19: =IF(INTRO!$E$50="","",ROUND($D19*INTRO!$E$50,0)) -> 87169 | H19: 0 | I19: 0 | J19: 1 | K19: 2 | M19: =IF(INTRO!$E$38="Endémique", IF($H19>0, IF($H19=4,"Inconnu", IF($H19=99,"Interrompu", $D19)), 0),"Non requis") -> 0 | N19: =IF(INTRO!$E$40="Endémique", IF($I19>0, IF($I19=4,"Inconnu",IF($I19=99,"Interrompu", $D19)), 0),"Non requis") -> 0 | O19: =IF(INTRO!$E$42="Endémique", IF(AND($J19>1,$J19<5), IF($J19=4, "Inconnu", E19+F19), 0),"Non requis") -> 0 | P19: =IF(INTRO!$E$44="Endémique", IF(AND($K19>0,$K19<5), IF($K19=4,"Inconnu", IF($K19=1, $F19*0.33, IF($K19=2, $F19*0.5+$G19*0.2, SUM(F19:G19)))), 0),"Non requis") -> 44183.8 | Q19: 0 | R19: 0 | S19: 0 | T19: 0 | Y19: 10664 | Z19: Yao | AD19: ='MDA1'!K19 -> 0 | AE19: ='MDA3'!O19 -> 0 | AF19: ='T1'!M19 -> 0 | AG19: ='T2'!K19 -> 0 | AJ19: =_xlfn.XLOOKUP($Y19,[1]COUNTRY_INFO!$W$9:$W$131,[1]COUNTRY_INFO!K$9:K$131) -> 2
A20: =IF(INTRO!$E$34<>0,INTRO!$E$34,"") -> Chad | B20: Borkou | C20: Faya | D20: 45058 | E20: =IF(INTRO!$E$48="","",ROUND($D20*INTRO!$E$48,0)) -> 7435 | F20: =IF(INTRO!$E$49="","",ROUND($D20*INTRO!$E$49,0)) -> 13675 | G20: =IF(INTRO!$E$50="","",ROUND($D20*INTRO!$E$50,0)) -> 22281 | H20: 0 | I20: 0 | J20: 1 | K20: 1 | M20: =IF(INTRO!$E$38="Endémique", IF($H20>0, IF($H20=4,"Inconnu", IF($H20=99,"Interrompu", $D20)), 0),"Non requis") -> 0 | N20: =IF(INTRO!$E$40="Endémique", IF($I20>0, IF($I20=4,"Inconnu",IF($I20=99,"Interrompu", $D20)), 0),"Non requis") -> 0 | O20: =IF(INTRO!$E$42="Endémique", IF(AND($J20>1,$J20<5), IF($J20=4, "Inconnu", E20+F20), 0),"Non requis") -> 0 | P20: =IF(INTRO!$E$44="Endémique", IF(AND($K20>0,$K20<5), IF($K20=4,"Inconnu", IF($K20=1, $F20*0.33, IF($K20=2, $F20*0.5+$G20*0.2, SUM(F20:G20)))), 0),"Non requis") -> 4512.75 | Q20: 0 | R20: 0 | S20: 0 | T20: 0 | Y20: 10666 | Z20: Faya | AD20: ='MDA1'!K20 -> 0 | AE20: ='MDA3'!O20 -> 0 | AF20: ='T1'!M20 -> 0 | AG20: ='T2'!K20 -> 0 | AJ20: =_xlfn.XLOOKUP($Y20,[1]COUNTRY_INFO!$W$9:$W$131,[1]COUNTRY_INFO!K$9:K$131) -> 1
A21: =IF(INTRO!$E$34<>0,INTRO!$E$34,"") -> Chad | B21: Borkou | C21: Kirdimi | D21: 39647 | E21: =IF(INTRO!$E$48="","",ROUND($D21*INTRO!$E$48,0)) -> 6542 | F21: =IF(INTRO!$E$49="","",ROUND($D21*INTRO!$E$49,0)) -> 12033 | G21: =IF(INTRO!$E$50="","",ROUND($D21*INTRO!$E$50,0)) -> 19605 | H21: 0 | I21: 0 | J21: 1 | K21: 1 | M21: =IF(INTRO!$E$38="Endémique", IF($H21>0, IF($H21=4,"Inconnu", IF($H21=99,"Interrompu", $D21)), 0),"Non requis") -> 0 | N21: =IF(INTRO!$E$40="Endémique", IF($I21>0, IF($I21=4,"Inconnu",IF($I21=99,"Interrompu", $D21)), 0),"Non requis") -> 0 | O21: =IF(INTRO!$E$42="Endémique", IF(AND($J21>1,$J21<5), IF($J21=4, "Inconnu", E21+F21), 0),"Non requis") -> 0 | P21: =IF(INTRO!$E$44="Endémique", IF(AND($K21>0,$K21<5), IF($K21=4,"Inconnu", IF($K21=1, $F21*0.33, IF($K21=2, $F21*0.5+$G21*0.2, SUM(F21:G21)))), 0),"Non requis") -> 3970.89 | Q21: 0 | R21: 0 | S21: 0 | T21: 0 | Y21: 10746 | Z21: Kirdimi | AD21: ='MDA1'!K21 -> 0 | AE21: ='MDA3'!O21 -> 0 | AF21: ='T1'!M21 -> 0 | AG21: ='T2'!K21 -> 0 | AJ21: =_xlfn.XLOOKUP($Y21,[1]COUNTRY_INFO!$W$9:$W$131,[1]COUNTRY_INFO!K$9:K$131) -> 1
A22: =IF(INTRO!$E$34<>0,INTRO!$E$34,"") -> Chad | B22: Borkou | C22: Kouba Olanga | D22: 56149 | E22: =IF(INTRO!$E$48="","",ROUND($D22*INTRO!$E$48,0)) -> 9265 | F22: =IF(INTRO!$E$49="","",ROUND($D22*INTRO!$E$49,0)) -> 17041 | G22: =IF(INTRO!$E$50="","",ROUND($D22*INTRO!$E$50,0)) -> 27766 | H22: 0 | I22: 0 | J22: 1 | K22: 1 | M22: =IF(INTRO!$E$38="Endémique", IF($H22>0, IF($H22=4,"Inconnu", IF($H22=99,"Interrompu", $D22)), 0),"Non requis") -> 0 | N22: =IF(INTRO!$E$40="Endémique", IF($I22>0, IF($I22=4,"Inconnu",IF($I22=99,"Interrompu", $D22)), 0),"Non requis") -> 0 | O22: =IF(INTRO!$E$42="Endémique", IF(AND($J22>1,$J22<5), IF($J22=4, "Inconnu", E22+F22), 0),"Non requis") -> 0 | P22: =IF(INTRO!$E$44="Endémique", IF(AND($K22>0,$K22<5), IF($K22=4,"Inconnu", IF($K22=1, $F22*0.33, IF($K22=2, $F22*0.5+$G22*0.2, SUM(F22:G22)))), 0),"Non requis") -> 5623.53 | Q22: 0 | R22: 0 | S22: 0 | T22: 0 | Y22: 10783 | Z22: Kouba Olanga | AA22: 10666 | AB22: Faya | AD22: ='MDA1'!K22 -> 0 | AE22: ='MDA3'!O22 -> 0 | AF22: ='T1'!M22 -> 0 | AG22: ='T2'!K22 -> 0
A23: =IF(INTRO!$E$34<>0,INTRO!$E$34,"") -> Chad | B23: Chari Baguirmi | C23: Ba-Illi | D23: 101023 | E23: =IF(INTRO!$E$48="","",ROUND($D23*INTRO!$E$48,0)) -> 16669 | F23: =IF(INTRO!$E$49="","",ROUND($D23*INTRO!$E$49,0)) -> 30660 | G23: =IF(INTRO!$E$50="","",ROUND($D23*INTRO!$E$50,0)) -> 49956 | H23: 0 | I23: 4 | J23: 1 | K23: 2 | M23: =IF(INTRO!$E$38="Endémique", IF($H23>0, IF($H23=4,"Inconnu", IF($H23=99,"Interrompu", $D23)), 0),"Non requis") -> 0 | N23: =IF(INTRO!$E$40="Endémique", IF($I23>0, IF($I23=4,"Inconnu",IF($I23=99,"Interrompu", $D23)), 0),"Non requis") -> Inconnu | O23: =IF(INTRO!$E$42="Endémique", IF(AND($J23>1,$J23<5), IF($J23=4, "Inconnu", E23+F23), 0),"Non requis") -> 0 | P23: =IF(INTRO!$E$44="Endémique", IF(AND($K23>0,$K23<5), IF($K23=4,"Inconnu", IF($K23=1, $F23*0.33, IF($K23=2, $F23*0.5+$G23*0.2, SUM(F23:G23)))), 0),"Non requis") -> 25321.2 | Q23: 0 | R23: 0 | S23: 0 | T23: 0 | Y23: 10667 | Z23: Ba-Illi | AD23: ='MDA1'!K23 -> 0 | AE23: ='MDA3'!O23 -> 0 | AF23: ='T1'!M23 -> 0 | AG23: ='T2'!K23 -> 0 | AJ23: =_xlfn.XLOOKUP($Y23,[1]COUNTRY_INFO!$W$9:$W$131,[1]COUNTRY_INFO!K$9:K$131) -> 2
A24: =IF(INTRO!$E$34<>0,INTRO!$E$34,"") -> Chad | B24: Chari Baguirmi | C24: Bousso | D24: 161738 | E24: =IF(INTRO!$E$48="","",ROUND($D24*INTRO!$E$48,0)) -> 26687 | F24: =IF(INTRO!$E$49="","",ROUND($D24*INTRO!$E$49,0)) -> 49087 | G24: =IF(INTRO!$E$50="","",ROUND($D24*INTRO!$E$50,0)) -> 79979 | H24: 0 | I24: 4 | J24: 1 | K24: 2 | M24: =IF(INTRO!$E$38="Endémique", IF($H24>0, IF($H24=4,"Inconnu", IF($H24=99,"Interrompu", $D24)), 0),"Non requis") -> 0 | N24: =IF(INTRO!$E$40="Endémique", IF($I24>0, IF($I24=4,"Inconnu",IF($I24=99,"Interrompu", $D24)), 0),"Non requis") -> Inconnu | O24: =IF(INTRO!$E$42="Endémique", IF(AND($J24>1,$J24<5), IF($J24=4, "Inconnu", E24+F24), 0),"Non requis") -> 0 | P24: =IF(INTRO!$E$44="Endémique", IF(AND($K24>0,$K24<5), IF($K24=4,"Inconnu", IF($K24=1, $F24*0.33, IF($K24=2, $F24*0.5+$G24*0.2, SUM(F24:G24)))), 0),"Non requis") -> 40539.3 | Q24: 0 | R24: 0 | S24: 0 | T24: 0 | Y24: 10668 | Z24: Bousso | AD24: ='MDA1'!K24 -> 0 | AE24: ='MDA3'!O24 -> 0 | AF24: ='T1'!M24 -> 0 | AG24: ='T2'!K24 -> 0 | AJ24: =_xlfn.XLOOKUP($Y24,[1]COUNTRY_INFO!$W$9:$W$131,[1]COUNTRY_INFO!K$9:K$131) -> 2
A25: =IF(INTRO!$E$34<>0,INTRO!$E$34,"") -> Chad | B25: Chari Baguirmi | C25: Dourbali | D25: 174454 | E25: =IF(INTRO!$E$48="","",ROUND($D25*INTRO!$E$48,0)) -> 28785 | F25: =IF(INTRO!$E$49="","",ROUND($D25*INTRO!$E$49,0)) -> 52947 | G25: =IF(INTRO!$E$50="","",ROUND($D25*INTRO!$E$50,0)) -> 86268 | H25: 0 | I25: 4 | J25: 1 | K25: 2 | M25: =IF(INTRO!$E$38="Endémique", IF($H25>0, IF($H25=4,"Inconnu", IF($H25=99,"Interrompu", $D25)), 0),"Non requis") -> 0 | N25: =IF(INTRO!$E$40="Endémique", IF($I25>0, IF($I25=4,"Inconnu",IF($I25=99,"Interrompu", $D25)), 0),"Non requis") -> Inconnu | O25: =IF(INTRO!$E$42="Endémique", IF(AND($J25>1,$J25<5), IF($J25=4, "Inconnu", E25+F25), 0),"Non requis") -> 0 | P25: =IF(INTRO!$E$44="Endémique", IF(AND($K25>0,$K25<5), IF($K25=4,"Inconnu", IF($K25=1, $F25*0.33, IF($K25=2, $F25*0.5+$G25*0.2, SUM(F25:G25)))), 0),"Non requis") -> 43727.1 | Q25: 0 | R25: 0 | S25: 0 | T25: 0 | Y25: 10669 | Z25: Dourbali | AD25: ='MDA1'!K25 -> 0 | AE25: ='MDA3'!O25 -> 0 | AF25: ='T1'!M25 -> 0 | AG25: ='T2'!K25 -> 0 | AJ25: =_xlfn.XLOOKUP($Y25,[1]COUNTRY_INFO!$W$9:$W$131,[1]COUNTRY_INFO!K$9:K$131) -> 2
A26: =IF(INTRO!$E$34<>0,INTRO!$E$34,"") -> Chad | B26: Chari Baguirmi | C26: Koulno | D26: 277745 | E26: =IF(INTRO!$E$48="","",ROUND($D26*INTRO!$E$48,0)) -> 45828 | F26: =IF(INTRO!$E$49="","",ROUND($D26*INTRO!$E$49,0)) -> 84296 | G26: =IF(INTRO!$E$50="","",ROUND($D26*INTRO!$E$50,0)) -> 137345 | H26: 0 | I26: 4 | J26: 1 | K26: 2 | M26: =IF(INTRO!$E$38="Endémique", IF($H26>0, IF($H26=4,"Inconnu", IF($H26=99,"Interrompu", $D26)), 0),"Non requis") -> 0 | N26: =IF(INTRO!$E$40="Endémique", IF($I26>0, IF($I26=4,"Inconnu",IF($I26=99,"Interrompu", $D26)), 0),"Non requis") -> Inconnu | O26: =IF(INTRO!$E$42="Endémique", IF(AND($J26>1,$J26<5), IF($J26=4, "Inconnu", E26+F26), 0),"Non requis") -> 0 | P26: =IF(INTRO!$E$44="Endémique", IF(AND($K26>0,$K26<5), IF($K26=4,"Inconnu", IF($K26=1, $F26*0.33, IF($K26=2, $F26*0.5+$G26*0.2, SUM(F26:G26)))), 0),"Non requis") -> 69617 | Q26: 0 | R26: 0 | S26: 0 | T26: 0 | Y26: 10747 | Z26: Koulno | AD26: ='MDA1'!K26 -> 0 | AE26: ='MDA3'!O26 -> 0 | AF26: ='T1'!M26 -> 0 | AG26: ='T2'!K26 -> 0 | AJ26: =_xlfn.XLOOKUP($Y26,[1]COUNTRY_INFO!$W$9:$W$131,[1]COUNTRY_INFO!K$9:K$131) -> 2
A27: =IF(INTRO!$E$34<>0,INTRO!$E$34,"") -> Chad | B27: Chari Baguirmi | C27: Mandélia | D27: 151996 | E27: =IF(INTRO!$E$48="","",ROUND($D27*INTRO!$E$48,0)) -> 25079 | F27: =IF(INTRO!$E$49="","",ROUND($D27*INTRO!$E$49,0)) -> 46131 | G27: =IF(INTRO!$E$50="","",ROUND($D27*INTRO!$E$50,0)) -> 75162 | H27: 0 | I27: 4 | J27: 1 | K27: 2 | M27: =IF(INTRO!$E$38="Endémique", IF($H27>0, IF($H27=4,"Inconnu", IF($H27=99,"Interrompu", $D27)), 0),"Non requis") -> 0 | N27: =IF(INTRO!$E$40="Endémique", IF($I27>0, IF($I27=4,"Inconnu",IF($I27=99,"Interrompu", $D27)), 0),"Non requis") -> Inconnu | O27: =IF(INTRO!$E$42="Endémique", IF(AND($J27>1,$J27<5), IF($J27=4, "Inconnu", E27+F27), 0),"Non requis") -> 0 | P27: =IF(INTRO!$E$44="Endémique", IF(AND($K27>0,$K27<5), IF($K27=4,"Inconnu", IF($K27=1, $F27*0.33, IF($K27=2, $F27*0.5+$G27*0.2, SUM(F27:G27)))), 0),"Non requis") -> 38097.9 | Q27: 0 | R27: 0 | S27: 0 | T27: 0 | Y27: 10671 | Z27: Mandélia | AD27: ='MDA1'!K27 -> 0 | AE27: ='MDA3'!O27 -> 0 | AF27: ='T1'!M27 -> 0 | AG27: ='T2'!K27 -> 0 | AJ27: =_xlfn.XLOOKUP($Y27,[1]COUNTRY_INFO!$W$9:$W$131,[1]COUNTRY_INFO!K$9:K$131) -> 2
A28: =IF(INTRO!$E$34<>0,INTRO!$E$34,"") -> Chad | B28: Chari Baguirmi | C28: Massenya | D28: 152823 | E28: =IF(INTRO!$E$48="","",ROUND($D28*INTRO!$E$48,0)) -> 25216 | F28: =IF(INTRO!$E$49="","",ROUND($D28*INTRO!$E$49,0)) -> 46382 | G28: =IF(INTRO!$E$50="","",ROUND($D28*INTRO!$E$50,0)) -> 75571 | H28: 0 | I28: 4 | J28: 1 | K28: 2 | M28: =IF(INTRO!$E$38="Endémique", IF($H28>0, IF($H28=4,"Inconnu", IF($H28=99,"Interrompu", $D28)), 0),"Non requis") -> 0 | N28: =IF(INTRO!$E$40="Endémique", IF($I28>0, IF($I28=4,"Inconnu",IF($I28=99,"Interrompu", $D28)), 0),"Non requis") -> Inconnu | O28: =IF(INTRO!$E$42="Endémique", IF(AND($J28>1,$J28<5), IF($J28=4, "Inconnu", E28+F28), 0),"Non requis") -> 0 | P28: =IF(INTRO!$E$44="Endémique", IF(AND($K28>0,$K28<5), IF($K28=4,"Inconnu", IF($K28=1, $F28*0.33, IF($K28=2, $F28*0.5+$G28*0.2, SUM(F28:G28)))), 0),"Non requis") -> 38305.2 | Q28: 0 | R28: 0 | S28: 0 | T28: 0 | Y28: 10672 | Z28: Massenya | AD28: ='MDA1'!K28 -> 0 | AE28: ='MDA3'!O28 -> 0 | AF28: ='T1'!M28 -> 0 | AG28: ='T2'!K28 -> 0 | AJ28: =_xlfn.XLOOKUP($Y28,[1]COUNTRY_INFO!$W$9:$W$131,[1]COUNTRY_INFO!K$9:K$131) -> 2
A29: =IF(INTRO!$E$34<>0,INTRO!$E$34,"") -> Chad | B29: Ennedi Est | C29: Amdjarass | D29: 100909 | E29: =IF(INTRO!$E$48="","",ROUND($D29*INTRO!$E$48,0)) -> 16650 | F29: =IF(INTRO!$E$49="","",ROUND($D29*INTRO!$E$49,0)) -> 30626 | G29: =IF(INTRO!$E$50="","",ROUND($D29*INTRO!$E$50,0)) -> 49900 | H29: 0 | I29: 0 | J29: 1 | K29: 0 | M29: =IF(INTRO!$E$38="Endémique", IF($H29>0, IF($H29=4,"Inconnu", IF($H29=99,"Interrompu", $D29)), 0),"Non requis") -> 0 | N29: =IF(INTRO!$E$40="Endémique", IF($I29>0, IF($I29=4,"Inconnu",IF($I29=99,"Interrompu", $D29)), 0),"Non requis") -> 0 | O29: =IF(INTRO!$E$42="Endémique", IF(AND($J29>1,$J29<5), IF($J29=4, "Inconnu", E29+F29), 0),"Non requis") -> 0 | P29: =IF(INTRO!$E$44="Endémique", IF(AND($K29>0,$K29<5), IF($K29=4,"Inconnu", IF($K29=1, $F29*0.33, IF($K29=2, $F29*0.5+$G29*0.2, SUM(F29:G29)))), 0),"Non requis") -> 0 | Q29: 0 | R29: 0 | S29: 0 | T29: 0 | Y29: 10675 | Z29: Amdjarass | AD29: ='MDA1'!K29 -> 0 | AE29: ='MDA3'!O29 -> 0 | AF29: ='T1'!M29 -> 0 | AG29: ='T2'!K29 -> 0 | AJ29: =_xlfn.XLOOKUP($Y29,[1]COUNTRY_INFO!$W$9:$W$131,[1]COUNTRY_INFO!K$9:K$131) -> 0
A30: =IF(INTRO!$E$34<>0,INTRO!$E$34,"") -> Chad | B30: Ennedi Est | C30: Bahaï | D30: 43758 | E30: =IF(INTRO!$E$48="","",ROUND($D30*INTRO!$E$48,0)) -> 7220 | F30: =IF(INTRO!$E$49="","",ROUND($D30*INTRO!$E$49,0)) -> 13281 | G30: =IF(INTRO!$E$50="","",ROUND($D30*INTRO!$E$50,0)) -> 21638 | H30: 0 | I30: 0 | J30: 1 | K30: 0 | M30: =IF(INTRO!$E$38="Endémique", IF($H30>0, IF($H30=4,"Inconnu", IF($H30=99,"Interrompu", $D30)), 0),"Non requis") -> 0 | N30: =IF(INTRO!$E$40="Endémique", IF($I30>0, IF($I30=4,"Inconnu",IF($I30=99,"Interrompu", $D30)), 0),"Non requis") -> 0 | O30: =IF(INTRO!$E$42="Endémique", IF(AND($J30>1,$J30<5), IF($J30=4, "Inconnu", E30+F30), 0),"Non requis") -> 0 | P30: =IF(INTRO!$E$44="Endémique", IF(AND($K30>0,$K30<5), IF($K30=4,"Inconnu", IF($K30=1, $F30*0.33, IF($K30=2, $F30*0.5+$G30*0.2, SUM(F30:G30)))), 0),"Non requis") -> 0 | Q30: 0 | R30: 0 | S30: 0 | T30: 0 | Y30: 10676 | Z30: Bahaï | AD30: ='MDA1'!K30 -> 0 | AE30: ='MDA3'!O30 -> 0 | AF30: ='T1'!M30 -> 0 | AG30: ='T2'!K30 -> 0 | AJ30: =_xlfn.XLOOKUP($Y30,[1]COUNTRY_INFO!$W$9:$W$131,[1]COUNTRY_INFO!K$9:K$131) -> 0
A31: =IF(INTRO!$E$34<>0,INTRO!$E$34,"") -> Chad | B31: Ennedi Est | C31: Kaoura | D31: 35945 | E31: =IF(INTRO!$E$48="","",ROUND($D31*INTRO!$E$48,0)) -> 5931 | F31: =IF(INTRO!$E$49="","",ROUND($D31*INTRO!$E$49,0)) -> 10909 | G31: =IF(INTRO!$E$50="","",ROUND($D31*INTRO!$E$50,0)) -> 17775 | H31: 0 | I31: 0 | J31: 1 | K31: 1 | M31: =IF(INTRO!$E$38="Endémique", IF($H31>0, IF($H31=4,"Inconnu", IF($H31=99,"Interrompu", $D31)), 0),"Non requis") -> 0 | N31: =IF(INTRO!$E$40="Endémique", IF($I31>0, IF($I31=4,"Inconnu",IF($I31=99,"Interrompu", $D31)), 0),"Non requis") -> 0 | O31: =IF(INTRO!$E$42="Endémique", IF(AND($J31>1,$J31<5), IF($J31=4, "Inconnu", E31+F31), 0),"Non requis") -> 0 | P31: =IF(INTRO!$E$44="Endémique", IF(AND($K31>0,$K31<5), IF($K31=4,"Inconnu", IF($K31=1, $F31*0.33, IF($K31=2, $F31*0.5+$G31*0.2, SUM(F31:G31)))), 0),"Non requis") -> 3599.97 | Q31: 0 | R31: 0 | S31: 0 | T31: 0 | Y31: 10678 | Z31: Kaoura | AD31: ='MDA1'!K31 -> 0 | AE31: ='MDA3'!O31 -> 0 | AF31: ='T1'!M31 -> 0 | AG31: ='T2'!K31 -> 0 | AJ31: =_xlfn.XLOOKUP($Y31,[1]COUNTRY_INFO!$W$9:$W$131,[1]COUNTRY_INFO!K$9:K$131) -> 1
A32: =IF(INTRO!$E$34<>0,INTRO!$E$34,"") -> Chad | B32: Ennedi Est | C32: Mourdi | D32: 13065 | E32: =IF(INTRO!$E$48="","",ROUND($D32*INTRO!$E$48,0)) -> 2156 | F32: =IF(INTRO!$E$49="","",ROUND($D32*INTRO!$E$49,0)) -> 3965 | G32: =IF(INTRO!$E$50="","",ROUND($D32*INTRO!$E$50,0)) -> 6461 | H32: 0 | I32: 0 | J32: 1 | K32: 1 | M32: =IF(INTRO!$E$38="Endémique", IF($H32>0, IF($H32=4,"Inconnu", IF($H32=99,"Interrompu", $D32)), 0),"Non requis") -> 0 | N32: =IF(INTRO!$E$40="Endémique", IF($I32>0, IF($I32=4,"Inconnu",IF($I32=99,"Interrompu", $D32)), 0),"Non requis") -> 0 | O32: =IF(INTRO!$E$42="Endémique", IF(AND($J32>1,$J32<5), IF($J32=4, "Inconnu", E32+F32), 0),"Non requis") -> 0 | P32: =IF(INTRO!$E$44="Endémique", IF(AND($K32>0,$K32<5), IF($K32=4,"Inconnu", IF($K32=1, $F32*0.33, IF($K32=2, $F32*0.5+$G32*0.2, SUM(F32:G32)))), 0),"Non requis") -> 1308.45 | Q32: 0 | R32: 0 | S32: 0 | T32: 0 | Y32: 10784 | Z32: Mourdi | AA32: 10678 | AB32: Kaoura | AD32: ='MDA1'!K32 -> 0 | AE32: ='MDA3'!O32 -> 0 | AF32: ='T1'!M32 -> 0 | AG32: ='T2'!K32 -> 0
A33: =IF(INTRO!$E$34<>0,INTRO!$E$34,"") -> Chad | B33: Ennedi Ouest | C33: Fada | D33: 25611 | E33: =IF(INTRO!$E$48="","",ROUND($D33*INTRO!$E$48,0)) -> 4226 | F33: =IF(INTRO!$E$49="","",ROUND($D33*INTRO!$E$49,0)) -> 7773 | G33: =IF(INTRO!$E$50="","",ROUND($D33*INTRO!$E$50,0)) -> 12665 | H33: 0 | I33: 0 | J33: 1 | K33: 1 | M33: =IF(INTRO!$E$38="Endémique", IF($H33>0, IF($H33=4,"Inconnu", IF($H33=99,"Interrompu", $D33)), 0),"Non requis") -> 0 | N33: =IF(INTRO!$E$40="Endémique", IF($I33>0, IF($I33=4,"Inconnu",IF($I33=99,"Interrompu", $D33)), 0),"Non requis") -> 0 | O33: =IF(INTRO!$E$42="Endémique", IF(AND($J33>1,$J33<5), IF($J33=4, "Inconnu", E33+F33), 0),"Non requis") -> 0 | P33: =IF(INTRO!$E$44="Endémique", IF(AND($K33>0,$K33<5), IF($K33=4,"Inconnu", IF($K33=1, $F33*0.33, IF($K33=2, $F33*0.5+$G33*0.2, SUM(F33:G33)))), 0),"Non requis") -> 2565.09 | Q33: 0 | R33: 0 | S33: 0 | T33: 0 | Y33: 10665 | Z33: Fada | AD33: ='MDA1'!K33 -> 0 | AE33: ='MDA3'!O33 -> 0 | AF33: ='T1'!M33 -> 0 | AG33: ='T2'!K33 -> 0 | AJ33: =_xlfn.XLOOKUP($Y33,[1]COUNTRY_INFO!$W$9:$W$131,[1]COUNTRY_INFO!K$9:K$131) -> 1
A34: =IF(INTRO!$E$34<>0,INTRO!$E$34,"") -> Chad | B34: Ennedi Ouest | C34: Kalaït | D34: 33441 | E34: =IF(INTRO!$E$48="","",ROUND($D34*INTRO!$E$48,0)) -> 5518 | F34: =IF(INTRO!$E$49="","",ROUND($D34*INTRO!$E$49,0)) -> 10149 | G34: =IF(INTRO!$E$50="","",ROUND($D34*INTRO!$E$50,0)) -> 16537 | H34: 0 | I34: 0 | J34: 1 | K34: 1 | M34: =IF(INTRO!$E$38="Endémique", IF($H34>0, IF($H34=4,"Inconnu", IF($H34=99,"Interrompu", $D34)), 0),"Non requis") -> 0 | N34: =IF(INTRO!$E$40="Endémique", IF($I34>0, IF($I34=4,"Inconnu",IF($I34=99,"Interrompu", $D34)), 0),"Non requis") -> 0 | O34: =IF(INTRO!$E$42="Endémique", IF(AND($J34>1,$J34<5), IF($J34=4, "Inconnu", E34+F34), 0),"Non requis") -> 0 | P34: =IF(INTRO!$E$44="Endémique", IF(AND($K34>0,$K34<5), IF($K34=4,"Inconnu", IF($K34=1, $F34*0.33, IF($K34=2, $F34*0.5+$G34*0.2, SUM(F34:G34)))), 0),"Non requis") -> 3349.17 | Q34: 0 | R34: 0 | S34: 0 | T34: 0 | Y34: 10677 | Z34: Kalaït | AD34: ='MDA1'!K34 -> 0 | AE34: ='MDA3'!O34 -> 0 | AF34: ='T1'!M34 -> 0 | AG34: ='T2'!K34 -> 0 | AJ34: =_xlfn.XLOOKUP($Y34,[1]COUNTRY_INFO!$W$9:$W$131,[1]COUNTRY_INFO!K$9:K$131) -> 1
A35: =IF(INTRO!$E$34<>0,INTRO!$E$34,"") -> Chad | B35: Ennedi Ouest | C35: Ounianga Kebbir | D35: 31298 | E35: =IF(INTRO!$E$48="","",ROUND($D35*INTRO!$E$48,0)) -> 5164 | F35: =IF(INTRO!$E$49="","",ROUND($D35*INTRO!$E$49,0)) -> 9499 | G35: =IF(INTRO!$E$50="","",ROUND($D35*INTRO!$E$50,0)) -> 15477 | H35: 0 | I35: 0 | J35: 1 | K35: 1 | M35: =IF(INTRO!$E$38="Endémique", IF($H35>0, IF($H35=4,"Inconnu", IF($H35=99,"Interrompu", $D35)), 0),"Non requis") -> 0 | N35: =IF(INTRO!$E$40="Endémique", IF($I35>0, IF($I35=4,"Inconnu",IF($I35=99,"Interrompu", $D35)), 0),"Non requis") -> 0 | O35: =IF(INTRO!$E$42="Endémique", IF(AND($J35>1,$J35<5), IF($J35=4, "Inconnu", E35+F35), 0),"Non requis") -> 0 | P35: =IF(INTRO!$E$44="Endémique", IF(AND($K35>0,$K35<5), IF($K35=4,"Inconnu", IF($K35=1, $F35*0.33, IF($K35=2, $F35*0.5+$G35*0.2, SUM(F35:G35)))), 0),"Non requis") -> 3134.67 | Q35: 0 | R35: 0 | S35: 0 | T35: 0 | Y35: 10785 | Z35: Ounianga Kebbir | AA35: 10665 | AB35: Fada | AD35: ='MDA1'!K35 -> 0 | AE35: ='MDA3'!O35 -> 0 | AF35: ='T1'!M35 -> 0 | AG35: ='T2'!K35 -> 0
A36: =IF(INTRO!$E$34<>0,INTRO!$E$34,"") -> Chad | B36: Guéra | C36: Barou | D36: 70350 | E36: =IF(INTRO!$E$48="","",ROUND($D36*INTRO!$E$48,0)) -> 11608 | F36: =IF(INTRO!$E$49="","",ROUND($D36*INTRO!$E$49,0)) -> 21351 | G36: =IF(INTRO!$E$50="","",ROUND($D36*INTRO!$E$50,0)) -> 34788 | H36: 0 | I36: 4 | J36: 0 | K36: 2 | M36: =IF(INTRO!$E$38="Endémique", IF($H36>0, IF($H36=4,"Inconnu", IF($H36=99,"Interrompu", $D36)), 0),"Non requis") -> 0 | N36: =IF(INTRO!$E$40="Endémique", IF($I36>0, IF($I36=4,"Inconnu",IF($I36=99,"Interrompu", $D36)), 0),"Non requis") -> Inconnu | O36: =IF(INTRO!$E$42="Endémique", IF(AND($J36>1,$J36<5), IF($J36=4, "Inconnu", E36+F36), 0),"Non requis") -> 0 | P36: =IF(INTRO!$E$44="Endémique", IF(AND($K36>0,$K36<5), IF($K36=4,"Inconnu", IF($K36=1, $F36*0.33, IF($K36=2, $F36*0.5+$G36*0.2, SUM(F36:G36)))), 0),"Non requis") -> 17633.1 | Q36: 0 | R36: 0 | S36: 0 | T36: 0 | Y36: 10763 | Z36: Barou | AD36: ='MDA1'!K36 -> 0 | AE36: ='MDA3'!O36 -> 0 | AF36: ='T1'!M36 -> 0 | AG36: ='T2'!K36 -> 0 | AJ36: =_xlfn.XLOOKUP($Y36,[1]COUNTRY_INFO!$W$9:$W$131,[1]COUNTRY_INFO!K$9:K$131) -> 2
A37: =IF(INTRO!$E$34<>0,INTRO!$E$34,"") -> Chad | B37: Guéra | C37: Bitkine | D37: 262714 | E37: =IF(INTRO!$E$48="","",ROUND($D37*INTRO!$E$48,0)) -> 43348 | F37: =IF(INTRO!$E$49="","",ROUND($D37*INTRO!$E$49,0)) -> 79734 | G37: =IF(INTRO!$E$50="","",ROUND($D37*INTRO!$E$50,0)) -> 129912 | H37: 0 | I37: 4 | J37: 1 | K37: 2 | M37: =IF(INTRO!$E$38="Endémique", IF($H37>0, IF($H37=4,"Inconnu", IF($H37=99,"Interrompu", $D37)), 0),"Non requis") -> 0 | N37: =IF(INTRO!$E$40="Endémique", IF($I37>0, IF($I37=4,"Inconnu",IF($I37=99,"Interrompu", $D37)), 0),"Non requis") -> Inconnu | O37: =IF(INTRO!$E$42="Endémique", IF(AND($J37>1,$J37<5), IF($J37=4, "Inconnu", E37+F37), 0),"Non requis") -> 0 | P37: =IF(INTRO!$E$44="Endémique", IF(AND($K37>0,$K37<5), IF($K37=4,"Inconnu", IF($K37=1, $F37*0.33, IF($K37=2, $F37*0.5+$G37*0.2, SUM(F37:G37)))), 0),"Non requis") -> 65849.4 | Q37: 0 | R37: 0 | S37: 0 | T37: 0 | Y37: 10679 | Z37: Bitkine | AD37: ='MDA1'!K37 -> 0 | AE37: ='MDA3'!O37 -> 0 | AF37: ='T1'!M37 -> 0 | AG37: ='T2'!K37 -> 0 | AJ37: =_xlfn.XLOOKUP($Y37,[1]COUNTRY_INFO!$W$9:$W$131,[1]COUNTRY_INFO!K$9:K$131) -> 2
A38: =IF(INTRO!$E$34<>0,INTRO!$E$34,"") -> Chad | B38: Guéra | C38: Mangalmé | D38: 148916 | E38: =IF(INTRO!$E$48="","",ROUND($D38*INTRO!$E$48,0)) -> 24571 | F38: =IF(INTRO!$E$49="","",ROUND($D38*INTRO!$E$49,0)) -> 45196 | G38: =IF(INTRO!$E$50="","",ROUND($D38*INTRO!$E$50,0)) -> 73639 | H38: 0 | I38: 4 | J38: 0 | K38: 2 | M38: =IF(INTRO!$E$38="Endémique", IF($H38>0, IF($H38=4,"Inconnu", IF($H38=99,"Interrompu", $D38)), 0),"Non requis") -> 0 | N38: =IF(INTRO!$E$40="Endémique", IF($I38>0, IF($I38=4,"Inconnu",IF($I38=99,"Interrompu", $D38)), 0),"Non requis") -> Inconnu | O38: =IF(INTRO!$E$42="Endémique", IF(AND($J38>1,$J38<5), IF($J38=4, "Inconnu", E38+F38), 0),"Non requis") -> 0 | P38: =IF(INTRO!$E$44="Endémique", IF(AND($K38>0,$K38<5), IF($K38=4,"Inconnu", IF($K38=1, $F38*0.33, IF($K38=2, $F38*0.5+$G38*0.2, SUM(F38:G38)))), 0),"Non requis") -> 37325.8 | Q38: 0 | R38: 0 | S38: 0 | T38: 0 | Y38: 10680 | Z38: Mangalmé | AD38: ='MDA1'!K38 -> 0 | AE38: ='MDA3'!O38 -> 0 | AF38: ='T1'!M38 -> 0 | AG38: ='T2'!K38 -> 0 | AJ38: =_xlfn.XLOOKUP($Y38,[1]COUNTRY_INFO!$W$9:$W$131,[1]COUNTRY_INFO!K$9:K$131) -> 2
A39: =IF(INTRO!$E$34<>0,INTRO!$E$34,"") -> Chad | B39: Guéra | C39: Melfi | D39: 162512 | E39: =IF(INTRO!$E$48="","",ROUND($D39*INTRO!$E$48,0)) -> 26814 | F39: =IF(INTRO!$E$49="","",ROUND($D39*INTRO!$E$49,0)) -> 49322 | G39: =IF(INTRO!$E$50="","",ROUND($D39*INTRO!$E$50,0)) -> 80362 | H39: 0 | I39: 4 | J39: 1 | K39: 2 | M39: =IF(INTRO!$E$38="Endémique", IF($H39>0, IF($H39=4,"Inconnu", IF($H39=99,"Interrompu", $D39)), 0),"Non requis") -> 0 | N39: =IF(INTRO!$E$40="Endémique", IF($I39>0, IF($I39=4,"Inconnu",IF($I39=99,"Interrompu", $D39)), 0),"Non requis") -> Inconnu | O39: =IF(INTRO!$E$42="Endémique", IF(AND($J39>1,$J39<5), IF($J39=4, "Inconnu", E39+F39), 0),"Non requis") -> 0 | P39: =IF(INTRO!$E$44="Endémique", IF(AND($K39>0,$K39<5), IF($K39=4,"Inconnu", IF($K39=1, $F39*0.33, IF($K39=2, $F39*0.5+$G39*0.2, SUM(F39:G39)))), 0),"Non requis") -> 40733.4 | Q39: 0 | R39: 0 | S39: 0 | T39: 0 | Y39: 10681 | Z39: Melfi | AD39: ='MDA1'!K39 -> 0 | AE39: ='MDA3'!O39 -> 0 | AF39: ='T1'!M39 -> 0 | AG39: ='T2'!K39 -> 0 | AJ39: =_xlfn.XLOOKUP($Y39,[1]COUNTRY_INFO!$W$9:$W$131,[1]COUNTRY_INFO!K$9:K$131) -> 2
A40: =IF(INTRO!$E$34<>0,INTRO!$E$34,"") -> Chad | B40: Guéra | C40: Mongo | D40: 200228 | E40: =IF(INTRO!$E$48="","",ROUND($D40*INTRO!$E$48,0)) -> 33038 | F40: =IF(INTRO!$E$49="","",ROUND($D40*INTRO!$E$49,0)) -> 60769 | G40: =IF(INTRO!$E$50="","",ROUND($D40*INTRO!$E$50,0)) -> 99013 | H40: 0 | I40: 4 | J40: 0 | K40: 2 | M40: =IF(INTRO!$E$38="Endémique", IF($H40>0, IF($H40=4,"Inconnu", IF($H40=99,"Interrompu", $D40)), 0),"Non requis") -> 0 | N40: =IF(INTRO!$E$40="Endémique", IF($I40>0, IF($I40=4,"Inconnu",IF($I40=99,"Interrompu", $D40)), 0),"Non requis") -> Inconnu | O40: =IF(INTRO!$E$42="Endémique", IF(AND($J40>1,$J40<5), IF($J40=4, "Inconnu", E40+F40), 0),"Non requis") -> 0 | P40: =IF(INTRO!$E$44="Endémique", IF(AND($K40>0,$K40<5), IF($K40=4,"Inconnu", IF($K40=1, $F40*0.33, IF($K40=2, $F40*0.5+$G40*0.2, SUM(F40:G40)))), 0),"Non requis") -> 50187.1 | Q40: 0 | R40: 0 | S40: 0 | T40: 0 | Y40: 10682 | Z40: Mongo | AD40: ='MDA1'!K40 -> 0 | AE40: ='MDA3'!O40 -> 0 | AF40: ='T1'!M40 -> 0 | AG40: ='T2'!K40 -> 0 | AJ40: =_xlfn.XLOOKUP($Y40,[1]COUNTRY_INFO!$W$9:$W$131,[1]COUNTRY_INFO!K$9:K$131) -> 2
A41: =IF(INTRO!$E$34<>0,INTRO!$E$34,"") -> Chad | B41: Hadjer Lamis | C41: Bokoro | D41: 254489 | E41: =IF(INTRO!$E$48="","",ROUND($D41*INTRO!$E$48,0)) -> 41991 | F41: =IF(INTRO!$E$49="","",ROUND($D41*INTRO!$E$49,0)) -> 77237 | G41: =IF(INTRO!$E$50="","",ROUND($D41*INTRO!$E$50,0)) -> 125845 | H41: 0 | I41: 0 | J41: 1 | K41: 3 | M41: =IF(INTRO!$E$38="Endémique", IF($H41>0, IF($H41=4,"Inconnu", IF($H41=99,"Interrompu", $D41)), 0),"Non requis") -> 0 | N41: =IF(INTRO!$E$40="Endémique", IF($I41>0, IF($I41=4,"Inconnu",IF($I41=99,"Interrompu", $D41)), 0),"Non requis") -> 0 | O41: =IF(INTRO!$E$42="Endémique", IF(AND($J41>1,$J41<5), IF($J41=4, "Inconnu", E41+F41), 0),"Non requis") -> 0 | P41: =IF(INTRO!$E$44="Endémique", IF(AND($K41>0,$K41<5), IF($K41=4,"Inconnu", IF($K41=1, $F41*0.33, IF($K41=2, $F41*0.5+$G41*0.2, SUM(F41:G41)))), 0),"Non requis") -> 203082 | Q41: 0 | R41: 0 | S41: 0 | T41: 0 | Y41: 10683 | Z41: Bokoro | AD41: ='MDA1'!K41 -> 0 | AE41: ='MDA3'!O41 -> 0 | AF41: ='T1'!M41 -> 0 | AG41: ='T2'!K41 -> 0 | AJ41: =_xlfn.XLOOKUP($Y41,[1]COUNTRY_INFO!$W$9:$W$131,[1]COUNTRY_INFO!K$9:K$131) -> 3
A42: =IF(INTRO!$E$34<>0,INTRO!$E$34,"") -> Chad | B42: Hadjer Lamis | C42: Gama | D42: 103972 | E42: =IF(INTRO!$E$48="","",ROUND($D42*INTRO!$E$48,0)) -> 17155 | F42: =IF(INTRO!$E$49="","",ROUND($D42*INTRO!$E$49,0)) -> 31556 | G42: =IF(INTRO!$E$50="","",ROUND($D42*INTRO!$E$50,0)) -> 51414 | H42: 0 | I42: 0 | J42: 1 | K42: 3 | M42: =IF(INTRO!$E$38="Endémique", IF($H42>0, IF($H42=4,"Inconnu", IF($H42=99,"Interrompu", $D42)), 0),"Non requis") -> 0 | N42: =IF(INTRO!$E$40="Endémique", IF($I42>0, IF($I42=4,"Inconnu",IF($I42=99,"Interrompu", $D42)), 0),"Non requis") -> 0 | O42: =IF(INTRO!$E$42="Endémique", IF(AND($J42>1,$J42<5), IF($J42=4, "Inconnu", E42+F42), 0),"Non requis") -> 0 | P42: =IF(INTRO!$E$44="Endémique", IF(AND($K42>0,$K42<5), IF($K42=4,"Inconnu", IF($K42=1, $F42*0.33, IF($K42=2, $F42*0.5+$G42*0.2, SUM(F42:G42)))), 0),"Non requis") -> 82970 | Q42: 0 | R42: 0 | S42: 0 | T42: 0 | Y42: 10748 | Z42: Gama | AD42: ='MDA1'!K42 -> 0 | AE42: ='MDA3'!O42 -> 0 | AF42: ='T1'!M42 -> 0 | AG42: ='T2'!K42 -> 0 | AJ42: =_xlfn.XLOOKUP($Y42,[1]COUNTRY_INFO!$W$9:$W$131,[1]COUNTRY_INFO!K$9:K$131) -> 3
A43: =IF(INTRO!$E$34<>0,INTRO!$E$34,"") -> Chad | B43: Hadjar Lamis | C43: Karal | D43: 102854 | E43: =IF(INTRO!$E$48="","",ROUND($D43*INTRO!$E$48,0)) -> 16971 | F43: =IF(INTRO!$E$49="","",ROUND($D43*INTRO!$E$49,0)) -> 31216 | G43: =IF(INTRO!$E$50="","",ROUND($D43*INTRO!$E$50,0)) -> 50861 | H43: 0 | I43: 0 | J43: 1 | K43: 2 | M43: =IF(INTRO!$E$38="Endémique", IF($H43>0, IF($H43=4,"Inconnu", IF($H43=99,"Interrompu", $D43)), 0),"Non requis") -> 0 | N43: =IF(INTRO!$E$40="Endémique", IF($I43>0, IF($I43=4,"Inconnu",IF($I43=99,"Interrompu", $D43)), 0),"Non requis") -> 0 | O43: =IF(INTRO!$E$42="Endémique", IF(AND($J43>1,$J43<5), IF($J43=4, "Inconnu", E43+F43), 0),"Non requis") -> 0 | P43: =IF(INTRO!$E$44="Endémique", IF(AND($K43>0,$K43<5), IF($K43=4,"Inconnu", IF($K43=1, $F43*0.33, IF($K43=2, $F43*0.5+$G43*0.2, SUM(F43:G43)))), 0),"Non requis") -> 25780.2 | Q43: 0 | R43: 0 | S43: 0 | T43: 0 | Y43: 10786 | Z43: Karal | AA43: 10685 | AB43: Massaguet | AD43: ='MDA1'!K43 -> 0 | AE43: ='MDA3'!O43 -> 0 | AF43: ='T1'!M43 -> 0 | AG43: ='T2'!K43 -> 0
A44: =IF(INTRO!$E$34<>0,INTRO!$E$34,"") -> Chad | B44: Hadjer Lamis | C44: Mani | D44: 153648 | E44: =IF(INTRO!$E$48="","",ROUND($D44*INTRO!$E$48,0)) -> 25352 | F44: =IF(INTRO!$E$49="","",ROUND($D44*INTRO!$E$49,0)) -> 46632 | G44: =IF(INTRO!$E$50="","",ROUND($D44*INTRO!$E$50,0)) -> 75979 | H44: 0 | I44: 0 | J44: 1 | K44: 2 | M44: =IF(INTRO!$E$38="Endémique", IF($H44>0, IF($H44=4,"Inconnu", IF($H44=99,"Interrompu", $D44)), 0),"Non requis") -> 0 | N44: =IF(INTRO!$E$40="Endémique", IF($I44>0, IF($I44=4,"Inconnu",IF($I44=99,"Interrompu", $D44)), 0),"Non requis") -> 0 | O44: =IF(INTRO!$E$42="Endémique", IF(AND($J44>1,$J44<5), IF($J44=4, "Inconnu", E44+F44), 0),"Non requis") -> 0 | P44: =IF(INTRO!$E$44="Endémique", IF(AND($K44>0,$K44<5), IF($K44=4,"Inconnu", IF($K44=1, $F44*0.33, IF($K44=2, $F44*0.5+$G44*0.2, SUM(F44:G44)))), 0),"Non requis") -> 38511.8 | Q44: 0 | R44: 0 | S44: 0 | T44: 0 | Y44: 10684 | Z44: Mani | AD44: ='MDA1'!K44 -> 0 | AE44: ='MDA3'!O44 -> 0 | AF44: ='T1'!M44 -> 0 | AG44: ='T2'!K44 -> 0 | AJ44: =_xlfn.XLOOKUP($Y44,[1]COUNTRY_INFO!$W$9:$W$131,[1]COUNTRY_INFO!K$9:K$131) -> 2
A45: =IF(INTRO!$E$34<>0,INTRO!$E$34,"") -> Chad | B45: Hadjer Lamis | C45: Massaguet | D45: 143781 | E45: =IF(INTRO!$E$48="","",ROUND($D45*INTRO!$E$48,0)) -> 23724 | F45: =IF(INTRO!$E$49="","",ROUND($D45*INTRO!$E$49,0)) -> 43638 | G45: =IF(INTRO!$E$50="","",ROUND($D45*INTRO!$E$50,0)) -> 71100 | H45: 0 | I45: 0 | J45: 1 | K45: 2 | M45: =IF(INTRO!$E$38="Endémique", IF($H45>0, IF($H45=4,"Inconnu", IF($H45=99,"Interrompu", $D45)), 0),"Non requis") -> 0 | N45: =IF(INTRO!$E$40="Endémique", IF($I45>0, IF($I45=4,"Inconnu",IF($I45=99,"Interrompu", $D45)), 0),"Non requis") -> 0 | O45: =IF(INTRO!$E$42="Endémique", IF(AND($J45>1,$J45<5), IF($J45=4, "Inconnu", E45+F45), 0),"Non requis") -> 0 | P45: =IF(INTRO!$E$44="Endémique", IF(AND($K45>0,$K45<5), IF($K45=4,"Inconnu", IF($K45=1, $F45*0.33, IF($K45=2, $F45*0.5+$G45*0.2, SUM(F45:G45)))), 0),"Non requis") -> 36039 | Q45: 0 | R45: 0 | S45: 0 | T45: 0 | Y45: 10685 | Z45: Massaguet | AD45: ='MDA1'!K45 -> 0 | AE45: ='MDA3'!O45 -> 0 | AF45: ='T1'!M45 -> 0 | AG45: ='T2'!K45 -> 0 | AJ45: =_xlfn.XLOOKUP($Y45,[1]COUNTRY_INFO!$W$9:$W$131,[1]COUNTRY_INFO!K$9:K$131) -> 2
A46: =IF(INTRO!$E$34<>0,INTRO!$E$34,"") -> Chad | B46: Hadjer Lamis | C46: Massakory | D46: 295531 | E46: =IF(INTRO!$E$48="","",ROUND($D46*INTRO!$E$48,0)) -> 48763 | F46: =IF(INTRO!$E$49="","",ROUND($D46*INTRO!$E$49,0)) -> 89694 | G46: =IF(INTRO!$E$50="","",ROUND($D46*INTRO!$E$50,0)) -> 146140 | H46: 0 | I46: 0 | J46: 1 | K46: 2 | M46: =IF(INTRO!$E$38="Endémique", IF($H46>0, IF($H46=4,"Inconnu", IF($H46=99,"Interrompu", $D46)), 0),"Non requis") -> 0 | N46: =IF(INTRO!$E$40="Endémique", IF($I46>0, IF($I46=4,"Inconnu",IF($I46=99,"Interrompu", $D46)), 0),"Non requis") -> 0 | O46: =IF(INTRO!$E$42="Endémique", IF(AND($J46>1,$J46<5), IF($J46=4, "Inconnu", E46+F46), 0),"Non requis") -> 0 | P46: =IF(INTRO!$E$44="Endémique", IF(AND($K46>0,$K46<5), IF($K46=4,"Inconnu", IF($K46=1, $F46*0.33, IF($K46=2, $F46*0.5+$G46*0.2, SUM(F46:G46)))), 0),"Non requis") -> 74075 | Q46: 0 | R46: 0 | S46: 0 | T46: 0 | Y46: 10686 | Z46: Massakory | AD46: ='MDA1'!K46 -> 0 | AE46: ='MDA3'!O46 -> 0 | AF46: ='T1'!M46 -> 0 | AG46: ='T2'!K46 -> 0 | AJ46: =_xlfn.XLOOKUP($Y46,[1]COUNTRY_INFO!$W$9:$W$131,[1]COUNTRY_INFO!K$9:K$131) -> 2
A47: =IF(INTRO!$E$34<>0,INTRO!$E$34,"") -> Chad | B47: Kanem | C47: Amdoback | D47: 25217 | E47: =IF(INTRO!$E$48="","",ROUND($D47*INTRO!$E$48,0)) -> 4161 | F47: =IF(INTRO!$E$49="","",ROUND($D47*INTRO!$E$49,0)) -> 7653 | G47: =IF(INTRO!$E$50="","",ROUND($D47*INTRO!$E$50,0)) -> 12470 | H47: 0 | I47: 0 | J47: 0 | K47: 0 | M47: =IF(INTRO!$E$38="Endémique", IF($H47>0, IF($H47=4,"Inconnu", IF($H47=99,"Interrompu", $D47)), 0),"Non requis") -> 0 | N47: =IF(INTRO!$E$40="Endémique", IF($I47>0, IF($I47=4,"Inconnu",IF($I47=99,"Interrompu", $D47)), 0),"Non requis") -> 0 | O47: =IF(INTRO!$E$42="Endémique", IF(AND($J47>1,$J47<5), IF($J47=4, "Inconnu", E47+F47), 0),"Non requis") -> 0 | P47: =IF(INTRO!$E$44="Endémique", IF(AND($K47>0,$K47<5), IF($K47=4,"Inconnu", IF($K47=1, $F47*0.33, IF($K47=2, $F47*0.5+$G47*0.2, SUM(F47:G47)))), 0),"Non requis") -> 0 | Q47: 0 | R47: 0 | S47: 0 | T47: 0 | Y47: 10787 | Z47: Amdoback | AA47: 10690 | AB47: Rig-Rig | AD47: ='MDA1'!K47 -> 0 | AE47: ='MDA3'!O47 -> 0 | AF47: ='T1'!M47 -> 0 | AG47: ='T2'!K47 -> 0
A48: =IF(INTRO!$E$34<>0,INTRO!$E$34,"") -> Chad | B48: Kanem | C48: Kekedina | D48: 25647 | E48: =IF(INTRO!$E$48="","",ROUND($D48*INTRO!$E$48,0)) -> 4232 | F48: =IF(INTRO!$E$49="","",ROUND($D48*INTRO!$E$49,0)) -> 7784 | G48: =IF(INTRO!$E$50="","",ROUND($D48*INTRO!$E$50,0)) -> 12682 | H48: 0 | I48: 0 | J48: 1 | K48: 1 | M48: =IF(INTRO!$E$38="Endémique", IF($H48>0, IF($H48=4,"Inconnu", IF($H48=99,"Interrompu", $D48)), 0),"Non requis") -> 0 | N48: =IF(INTRO!$E$40="Endémique", IF($I48>0, IF($I48=4,"Inconnu",IF($I48=99,"Interrompu", $D48)), 0),"Non requis") -> 0 | O48: =IF(INTRO!$E$42="Endémique", IF(AND($J48>1,$J48<5), IF($J48=4, "Inconnu", E48+F48), 0),"Non requis") -> 0 | P48: =IF(INTRO!$E$44="Endémique", IF(AND($K48>0,$K48<5), IF($K48=4,"Inconnu", IF($K48=1, $F48*0.33, IF($K48=2, $F48*0.5+$G48*0.2, SUM(F48:G48)))), 0),"Non requis") -> 2568.72 | Q48: 0 | R48: 0 | S48: 0 | T48: 0 | Y48: 10788 | Z48: Kekedina | AA48: 10687 | AB48: Mao | AD48: ='MDA1'!K48 -> 0 | AE48: ='MDA3'!O48 -> 0 | AF48: ='T1'!M48 -> 0 | AG48: ='T2'!K48 -> 0
A49: =IF(INTRO!$E$34<>0,INTRO!$E$34,"") -> Chad | B49: Kanem | C49: Mao | D49: 196604 | E49: =IF(INTRO!$E$48="","",ROUND($D49*INTRO!$E$48,0)) -> 32440 | F49: =IF(INTRO!$E$49="","",ROUND($D49*INTRO!$E$49,0)) -> 59669 | G49: =IF(INTRO!$E$50="","",ROUND($D49*INTRO!$E$50,0)) -> 97221 | H49: 0 | I49: 0 | J49: 1 | K49: 1 | M49: =IF(INTRO!$E$38="Endémique", IF($H49>0, IF($H49=4,"Inconnu", IF($H49=99,"Interrompu", $D49)), 0),"Non requis") -> 0 | N49: =IF(INTRO!$E$40="Endémique", IF($I49>0, IF($I49=4,"Inconnu",IF($I49=99,"Interrompu", $D49)), 0),"Non requis") -> 0 | O49: =IF(INTRO!$E$42="Endémique", IF(AND($J49>1,$J49<5), IF($J49=4, "Inconnu", E49+F49), 0),"Non requis") -> 0 | P49: =IF(INTRO!$E$44="Endémique", IF(AND($K49>0,$K49<5), IF($K49=4,"Inconnu", IF($K49=1, $F49*0.33, IF($K49=2, $F49*0.5+$G49*0.2, SUM(F49:G49)))), 0),"Non requis") -> 19690.77 | Q49: 0 | R49: 0 | S49: 0 | T49: 0 | Y49: 10687 | Z49: Mao | AD49: ='MDA1'!K49 -> 0 | AE49: ='MDA3'!O49 -> 0 | AF49: ='T1'!M49 -> 0 | AG49: ='T2'!K49 -> 0 | AJ49: =_xlfn.XLOOKUP($Y49,[1]COUNTRY_INFO!$W$9:$W$131,[1]COUNTRY_INFO!K$9:K$131) -> 1
A50: =IF(INTRO!$E$34<>0,INTRO!$E$34,"") -> Chad | B50: Kanem | C50: Mondo | D50: 140033 | E50: =IF(INTRO!$E$48="","",ROUND($D50*INTRO!$E$48,0)) -> 23105 | F50: =IF(INTRO!$E$49="","",ROUND($D50*INTRO!$E$49,0)) -> 42500 | G50: =IF(INTRO!$E$50="","",ROUND($D50*INTRO!$E$50,0)) -> 69246 | H50: 0 | I50: 0 | J50: 0 | K50: 1 | M50: =IF(INTRO!$E$38="Endémique", IF($H50>0, IF($H50=4,"Inconnu", IF($H50=99,"Interrompu", $D50)), 0),"Non requis") -> 0 | N50: =IF(INTRO!$E$40="Endémique", IF($I50>0, IF($I50=4,"Inconnu",IF($I50=99,"Interrompu", $D50)), 0),"Non requis") -> 0 | O50: =IF(INTRO!$E$42="Endémique", IF(AND($J50>1,$J50<5), IF($J50=4, "Inconnu", E50+F50), 0),"Non requis") -> 0 | P50: =IF(INTRO!$E$44="Endémique", IF(AND($K50>0,$K50<5), IF($K50=4,"Inconnu", IF($K50=1, $F50*0.33, IF($K50=2, $F50*0.5+$G50*0.2, SUM(F50:G50)))), 0),"Non requis") -> 14025 | Q50: 0 | R50: 0 | S50: 0 | T50: 0 | Y50: 10688 | Z50: Mondo | AD50: ='MDA1'!K50 -> 0 | AE50: ='MDA3'!O50 -> 0 | AF50: ='T1'!M50 -> 0 | AG50: ='T2'!K50 -> 0 | AJ50: =_xlfn.XLOOKUP($Y50,[1]COUNTRY_INFO!$W$9:$W$131,[1]COUNTRY_INFO!K$9:K$131) -> 1
A51: =IF(INTRO!$E$34<>0,INTRO!$E$34,"") -> Chad | B51: Kanem | C51: Nokou | D51: 93307 | E51: =IF(INTRO!$E$48="","",ROUND($D51*INTRO!$E$48,0)) -> 15396 | F51: =IF(INTRO!$E$49="","",ROUND($D51*INTRO!$E$49,0)) -> 28319 | G51: =IF(INTRO!$E$50="","",ROUND($D51*INTRO!$E$50,0)) -> 46140 | H51: 0 | I51: 0 | J51: 0 | K51: 0 | M51: =IF(INTRO!$E$38="Endémique", IF($H51>0, IF($H51=4,"Inconnu", IF($H51=99,"Interrompu", $D51)), 0),"Non requis") -> 0 | N51: =IF(INTRO!$E$40="Endémique", IF($I51>0, IF($I51=4,"Inconnu",IF($I51=99,"Interrompu", $D51)), 0),"Non requis") -> 0 | O51: =IF(INTRO!$E$42="Endémique", IF(AND($J51>1,$J51<5), IF($J51=4, "Inconnu", E51+F51), 0),"Non requis") -> 0 | P51: =IF(INTRO!$E$44="Endémique", IF(AND($K51>0,$K51<5), IF($K51=4,"Inconnu", IF($K51=1, $F51*0.33, IF($K51=2, $F51*0.5+$G51*0.2, SUM(F51:G51)))), 0),"Non requis") -> 0 | Q51: 0 | R51: 0 | S51: 0 | T51: 0 | Y51: 10689 | Z51: Nokou | AD51: ='MDA1'!K51 -> 0 | AE51: ='MDA3'!O51 -> 0 | AF51: ='T1'!M51 -> 0 | AG51: ='T2'!K51 -> 0 | AJ51: =_xlfn.XLOOKUP($Y51,[1]COUNTRY_INFO!$W$9:$W$131,[1]COUNTRY_INFO!K$9:K$131) -> 0
A52: =IF(INTRO!$E$34<>0,INTRO!$E$34,"") -> Chad | B52: Kanem | C52: Ntiona | D52: 55278 | E52: =IF(INTRO!$E$48="","",ROUND($D52*INTRO!$E$48,0)) -> 9121 | F52: =IF(INTRO!$E$49="","",ROUND($D52*INTRO!$E$49,0)) -> 16777 | G52: =IF(INTRO!$E$50="","",ROUND($D52*INTRO!$E$50,0)) -> 27335 | H52: 0 | I52: 0 | J52: 1 | K52: 1 | M52: =IF(INTRO!$E$38="Endémique", IF($H52>0, IF($H52=4,"Inconnu", IF($H52=99,"Interrompu", $D52)), 0),"Non requis") -> 0 | N52: =IF(INTRO!$E$40="Endémique", IF($I52>0, IF($I52=4,"Inconnu",IF($I52=99,"Interrompu", $D52)), 0),"Non requis") -> 0 | O52: =IF(INTRO!$E$42="Endémique", IF(AND($J52>1,$J52<5), IF($J52=4, "Inconnu", E52+F52), 0),"Non requis") -> 0 | P52: =IF(INTRO!$E$44="Endémique", IF(AND($K52>0,$K52<5), IF($K52=4,"Inconnu", IF($K52=1, $F52*0.33, IF($K52=2, $F52*0.5+$G52*0.2, SUM(F52:G52)))), 0),"Non requis") -> 5536.41 | Q52: 0 | R52: 0 | S52: 0 | T52: 0 | Y52: 10764 | Z52: Ntiona | AD52: ='MDA1'!K52 -> 0 | AE52: ='MDA3'!O52 -> 0 | AF52: ='T1'!M52 -> 0 | AG52: ='T2'!K52 -> 0 | AJ52: =_xlfn.XLOOKUP($Y52,[1]COUNTRY_INFO!$W$9:$W$131,[1]COUNTRY_INFO!K$9:K$131) -> 1
A53: =IF(INTRO!$E$34<>0,INTRO!$E$34,"") -> Chad | B53: Kanem | C53: Rig-Rig | D53: 66913 | E53: =IF(INTRO!$E$48="","",ROUND($D53*INTRO!$E$48,0)) -> 11041 | F53: =IF(INTRO!$E$49="","",ROUND($D53*INTRO!$E$49,0)) -> 20308 | G53: =IF(INTRO!$E$50="","",ROUND($D53*INTRO!$E$50,0)) -> 33088 | H53: 0 | I53: 0 | J53: 0 | K53: 0 | M53: =IF(INTRO!$E$38="Endémique", IF($H53>0, IF($H53=4,"Inconnu", IF($H53=99,"Interrompu", $D53)), 0),"Non requis") -> 0 | N53: =IF(INTRO!$E$40="Endémique", IF($I53>0, IF($I53=4,"Inconnu",IF($I53=99,"Interrompu", $D53)), 0),"Non requis") -> 0 | O53: =IF(INTRO!$E$42="Endémique", IF(AND($J53>1,$J53<5), IF($J53=4, "Inconnu", E53+F53), 0),"Non requis") -> 0 | P53: =IF(INTRO!$E$44="Endémique", IF(AND($K53>0,$K53<5), IF($K53=4,"Inconnu", IF($K53=1, $F53*0.33, IF($K53=2, $F53*0.5+$G53*0.2, SUM(F53:G53)))), 0),"Non requis") -> 0 | Q53: 0 | R53: 0 | S53: 0 | T53: 0 | Y53: 10690 | Z53: Rig-Rig | AD53: ='MDA1'!K53 -> 0 | AE53: ='MDA3'!O53 -> 0 | AF53: ='T1'!M53 -> 0 | AG53: ='T2'!K53 -> 0 | AJ53: =_xlfn.XLOOKUP($Y53,[1]COUNTRY_INFO!$W$9:$W$131,[1]COUNTRY_INFO!K$9:K$131) -> 0
A54: =IF(INTRO!$E$34<>0,INTRO!$E$34,"") -> Chad | B54: Lac | C54: Bagassola | D54: 93750 | E54: =IF(INTRO!$E$48="","",ROUND($D54*INTRO!$E$48,0)) -> 15469 | F54: =IF(INTRO!$E$49="","",ROUND($D54*INTRO!$E$49,0)) -> 28453 | G54: =IF(INTRO!$E$50="","",ROUND($D54*INTRO!$E$50,0)) -> 46359 | H54: 0 | I54: 0 | J54: 1 | K54: 2 | M54: =IF(INTRO!$E$38="Endémique", IF($H54>0, IF($H54=4,"Inconnu", IF($H54=99,"Interrompu", $D54)), 0),"Non requis") -> 0 | N54: =IF(INTRO!$E$40="Endémique", IF($I54>0, IF($I54=4,"Inconnu",IF($I54=99,"Interrompu", $D54)), 0),"Non requis") -> 0 | O54: =IF(INTRO!$E$42="Endémique", IF(AND($J54>1,$J54<5), IF($J54=4, "Inconnu", E54+F54), 0),"Non requis") -> 0 | P54: =IF(INTRO!$E$44="Endémique", IF(AND($K54>0,$K54<5), IF($K54=4,"Inconnu", IF($K54=1, $F54*0.33, IF($K54=2, $F54*0.5+$G54*0.2, SUM(F54:G54)))), 0),"Non requis") -> 23498.3 | Q54: 0 | R54: 0 | S54: 0 | T54: 0 | Y54: 10691 | Z54: Bagassola | AD54: ='MDA1'!K54 -> 0 | AE54: ='MDA3'!O54 -> 0 | AF54: ='T1'!M54 -> 0 | AG54: ='T2'!K54 -> 0 | AJ54: =_xlfn.XLOOKUP($Y54,[1]COUNTRY_INFO!$W$9:$W$131,[1]COUNTRY_INFO!K$9:K$131) -> 2
A55: =IF(INTRO!$E$34<>0,INTRO!$E$34,"") -> Chad | B55: Lac | C55: Bol | D55: 194922 | E55: =IF(INTRO!$E$48="","",ROUND($D55*INTRO!$E$48,0)) -> 32162 | F55: =IF(INTRO!$E$49="","",ROUND($D55*INTRO!$E$49,0)) -> 59159 | G55: =IF(INTRO!$E$50="","",ROUND($D55*INTRO!$E$50,0)) -> 96389 | H55: 0 | I55: 0 | J55: 1 | K55: 2 | M55: =IF(INTRO!$E$38="Endémique", IF($H55>0, IF($H55=4,"Inconnu", IF($H55=99,"Interrompu", $D55)), 0),"Non requis") -> 0 | N55: =IF(INTRO!$E$40="Endémique", IF($I55>0, IF($I55=4,"Inconnu",IF($I55=99,"Interrompu", $D55)), 0),"Non requis") -> 0 | O55: =IF(INTRO!$E$42="Endémique", IF(AND($J55>1,$J55<5), IF($J55=4, "Inconnu", E55+F55), 0),"Non requis") -> 0 | P55: =IF(INTRO!$E$44="Endémique", IF(AND($K55>0,$K55<5), IF($K55=4,"Inconnu", IF($K55=1, $F55*0.33, IF($K55=2, $F55*0.5+$G55*0.2, SUM(F55:G55)))), 0),"Non requis") -> 48857.3 | Q55: 0 | R55: 0 | S55: 0 | T55: 0 | Y55: 10692 | Z55: Bol | AD55: ='MDA1'!K55 -> 0 | AE55: ='MDA3'!O55 -> 0 | AF55: ='T1'!M55 -> 0 | AG55: ='T2'!K55 -> 0 | AJ55: =_xlfn.XLOOKUP($Y55,[1]COUNTRY_INFO!$W$9:$W$131,[1]COUNTRY_INFO!K$9:K$131) -> 2
A56: =IF(INTRO!$E$34<>0,INTRO!$E$34,"") -> Chad | B56: Lac | C56: Isserom | D56: 67274 | E56: =IF(INTRO!$E$48="","",ROUND($D56*INTRO!$E$48,0)) -> 11100 | F56: =IF(INTRO!$E$49="","",ROUND($D56*INTRO!$E$49,0)) -> 20418 | G56: =IF(INTRO!$E$50="","",ROUND($D56*INTRO!$E$50,0)) -> 33267 | H56: 0 | I56: 0 | J56: 1 | K56: 1 | M56: =IF(INTRO!$E$38="Endémique", IF($H56>0, IF($H56=4,"Inconnu", IF($H56=99,"Interrompu", $D56)), 0),"Non requis") -> 0 | N56: =IF(INTRO!$E$40="Endémique", IF($I56>0, IF($I56=4,"Inconnu",IF($I56=99,"Interrompu", $D56)), 0),"Non requis") -> 0 | O56: =IF(INTRO!$E$42="Endémique", IF(AND($J56>1,$J56<5), IF($J56=4, "Inconnu", E56+F56), 0),"Non requis") -> 0 | P56: =IF(INTRO!$E$44="Endémique", IF(AND($K56>0,$K56<5), IF($K56=4,"Inconnu", IF($K56=1, $F56*0.33, IF($K56=2, $F56*0.5+$G56*0.2, SUM(F56:G56)))), 0),"Non requis") -> 6737.94 | Q56: 0 | R56: 0 | S56: 0 | T56: 0 | Y56: 10749 | Z56: Isserom | AD56: ='MDA1'!K56 -> 0 | AE56: ='MDA3'!O56 -> 0 | AF56: ='T1'!M56 -> 0 | AG56: ='T2'!K56 -> 0 | AJ56: =_xlfn.XLOOKUP($Y56,[1]COUNTRY_INFO!$W$9:$W$131,[1]COUNTRY_INFO!K$9:K$131) -> 1
A57: =IF(INTRO!$E$34<>0,INTRO!$E$34,"") -> Chad | B57: Lac | C57: Kouloudia | D57: 81739 | E57: =IF(INTRO!$E$48="","",ROUND($D57*INTRO!$E$48,0)) -> 13487 | F57: =IF(INTRO!$E$49="","",ROUND($D57*INTRO!$E$49,0)) -> 24808 | G57: =IF(INTRO!$E$50="","",ROUND($D57*INTRO!$E$50,0)) -> 40420 | H57: 0 | I57: 0 | J57: 1 | K57: 2 | M57: =IF(INTRO!$E$38="Endémique", IF($H57>0, IF($H57=4,"Inconnu", IF($H57=99,"Interrompu", $D57)), 0),"Non requis") -> 0 | N57: =IF(INTRO!$E$40="Endémique", IF($I57>0, IF($I57=4,"Inconnu",IF($I57=99,"Interrompu", $D57)), 0),"Non requis") -> 0 | O57: =IF(INTRO!$E$42="Endémique", IF(AND($J57>1,$J57<5), IF($J57=4, "Inconnu", E57+F57), 0),"Non requis") -> 0 | P57: =IF(INTRO!$E$44="Endémique", IF(AND($K57>0,$K57<5), IF($K57=4,"Inconnu", IF($K57=1, $F57*0.33, IF($K57=2, $F57*0.5+$G57*0.2, SUM(F57:G57)))), 0),"Non requis") -> 20488 | Q57: 0 | R57: 0 | S57: 0 | T57: 0 | Y57: 10693 | Z57: Kouloudia | AD57: ='MDA1'!K57 -> 0 | AE57: ='MDA3'!O57 -> 0 | AF57: ='T1'!M57 -> 0 | AG57: ='T2'!K57 -> 0 | AJ57: =_xlfn.XLOOKUP($Y57,[1]COUNTRY_INFO!$W$9:$W$131,[1]COUNTRY_INFO!K$9:K$131) -> 2
A58: =IF(INTRO!$E$34<>0,INTRO!$E$34,"") -> Chad | B58: Lac | C58: Liwa | D58: 61063 | E58: =IF(INTRO!$E$48="","",ROUND($D58*INTRO!$E$48,0)) -> 10075 | F58: =IF(INTRO!$E$49="","",ROUND($D58*INTRO!$E$49,0)) -> 18533 | G58: =IF(INTRO!$E$50="","",ROUND($D58*INTRO!$E$50,0)) -> 30196 | H58: 0 | I58: 0 | J58: 1 | K58: 1 | M58: =IF(INTRO!$E$38="Endémique", IF($H58>0, IF($H58=4,"Inconnu", IF($H58=99,"Interrompu", $D58)), 0),"Non requis") -> 0 | N58: =IF(INTRO!$E$40="Endémique", IF($I58>0, IF($I58=4,"Inconnu",IF($I58=99,"Interrompu", $D58)), 0),"Non requis") -> 0 | O58: =IF(INTRO!$E$42="Endémique", IF(AND($J58>1,$J58<5), IF($J58=4, "Inconnu", E58+F58), 0),"Non requis") -> 0 | P58: =IF(INTRO!$E$44="Endémique", IF(AND($K58>0,$K58<5), IF($K58=4,"Inconnu", IF($K58=1, $F58*0.33, IF($K58=2, $F58*0.5+$G58*0.2, SUM(F58:G58)))), 0),"Non requis") -> 6115.89 | Q58: 0 | R58: 0 | S58: 0 | T58: 0 | Y58: 10694 | Z58: Liwa | AD58: ='MDA1'!K58 -> 0 | AE58: ='MDA3'!O58 -> 0 | AF58: ='T1'!M58 -> 0 | AG58: ='T2'!K58 -> 0 | AJ58: =_xlfn.XLOOKUP($Y58,[1]COUNTRY_INFO!$W$9:$W$131,[1]COUNTRY_INFO!K$9:K$131) -> 1
A59: =IF(INTRO!$E$34<>0,INTRO!$E$34,"") -> Chad | B59: Lac | C59: Ngouri | D59: 181890 | E59: =IF(INTRO!$E$48="","",ROUND($D59*INTRO!$E$48,0)) -> 30012 | F59: =IF(INTRO!$E$49="","",ROUND($D59*INTRO!$E$49,0)) -> 55204 | G59: =IF(INTRO!$E$50="","",ROUND($D59*INTRO!$E$50,0)) -> 89945 | H59: 0 | I59: 0 | J59: 1 | K59: 1 | M59: =IF(INTRO!$E$38="Endémique", IF($H59>0, IF($H59=4,"Inconnu", IF($H59=99,"Interrompu", $D59)), 0),"Non requis") -> 0 | N59: =IF(INTRO!$E$40="Endémique", IF($I59>0, IF($I59=4,"Inconnu",IF($I59=99,"Interrompu", $D59)), 0),"Non requis") -> 0 | O59: =IF(INTRO!$E$42="Endémique", IF(AND($J59>1,$J59<5), IF($J59=4, "Inconnu", E59+F59), 0),"Non requis") -> 0 | P59: =IF(INTRO!$E$44="Endémique", IF(AND($K59>0,$K59<5), IF($K59=4,"Inconnu", IF($K59=1, $F59*0.33, IF($K59=2, $F59*0.5+$G59*0.2, SUM(F59:G59)))), 0),"Non requis") -> 18217.32 | Q59: 0 | R59: 0 | S59: 0 | T59: 0 | Y59: 10695 | Z59: Ngouri | AD59: ='MDA1'!K59 -> 0 | AE59: ='MDA3'!O59 -> 0 | AF59: ='T1'!M59 -> 0 | AG59: ='T2'!K59 -> 0 | AJ59: =_xlfn.XLOOKUP($Y59,[1]COUNTRY_INFO!$W$9:$W$131,[1]COUNTRY_INFO!K$9:K$131) -> 1
A60: =IF(INTRO!$E$34<>0,INTRO!$E$34,"") -> Chad | B60: Logone Occidental | C60: Benamar | D60: 141400 | E60: =IF(INTRO!$E$48="","",ROUND($D60*INTRO!$E$48,0)) -> 23331 | F60: =IF(INTRO!$E$49="","",ROUND($D60*INTRO!$E$49,0)) -> 42915 | G60: =IF(INTRO!$E$50="","",ROUND($D60*INTRO!$E$50,0)) -> 69922 | H60: 1 | I60: 1 | J60: 1 | K60: 2 | M60: =IF(INTRO!$E$38="Endémique", IF($H60>0, IF($H60=4,"Inconnu", IF($H60=99,"Interrompu", $D60)), 0),"Non requis") -> 141400 | N60: =IF(INTRO!$E$40="Endémique", IF($I60>0, IF($I60=4,"Inconnu",IF($I60=99,"Interrompu", $D60)), 0),"Non requis") -> 141400 | O60: =IF(INTRO!$E$42="Endémique", IF(AND($J60>1,$J60<5), IF($J60=4, "Inconnu", E60+F60), 0),"Non requis") -> 0 | P60: =IF(INTRO!$E$44="Endémique", IF(AND($K60>0,$K60<5), IF($K60=4,"Inconnu", IF($K60=1, $F60*0.33, IF($K60=2, $F60*0.5+$G60*0.2, SUM(F60:G60)))), 0),"Non requis") -> 35441.9 | Q60: 1 | R60: 1 | S60: 0 | T60: 1 | U60: MDA1 (IVM+ALB) | V60: T2 (PZQ) | Y60: 10765 | Z60: Benamar | AD60: ='MDA1'!K60 -> 41927 | AE60: ='MDA3'!O60 -> 0 | AF60: ='T1'!M60 -> 0 | AG60: ='T2'!K60 -> 40312 | AJ60: =_xlfn.XLOOKUP($Y60,[1]COUNTRY_INFO!$W$9:$W$131,[1]COUNTRY_INFO!K$9:K$131) -> 2
A61: =IF(INTRO!$E$34<>0,INTRO!$E$34,"") -> Chad | B61: Logone Occidental | C61: Benoye | D61: 257775 | E61: =IF(INTRO!$E$48="","",ROUND($D61*INTRO!$E$48,0)) -> 42533 | F61: =IF(INTRO!$E$49="","",ROUND($D61*INTRO!$E$49,0)) -> 78235 | G61: =IF(INTRO!$E$50="","",ROUND($D61*INTRO!$E$50,0)) -> 127470 | H61: 1 | I61: 0 | J61: 1 | K61: 2 | M61: =IF(INTRO!$E$38="Endémique", IF($H61>0, IF($H61=4,"Inconnu", IF($H61=99,"Interrompu", $D61)), 0),"Non requis") -> 257775 | N61: =IF(INTRO!$E$40="Endémique", IF($I61>0, IF($I61=4,"Inconnu",IF($I61=99,"Interrompu", $D61)), 0),"Non requis") -> 0 | O61: =IF(INTRO!$E$42="Endémique", IF(AND($J61>1,$J61<5), IF($J61=4, "Inconnu", E61+F61), 0),"Non requis") -> 0 | P61: =IF(INTRO!$E$44="Endémique", IF(AND($K61>0,$K61<5), IF($K61=4,"Inconnu", IF($K61=1, $F61*0.33, IF($K61=2, $F61*0.5+$G61*0.2, SUM(F61:G61)))), 0),"Non requis") -> 64611.5 | Q61: 1 | R61: 0 | S61: 0 | T61: 1 | U61: MDA1 (IVM+ALB) | V61: T2 (PZQ) | Y61: 10696 | Z61: Benoye | AD61: ='MDA1'!K61 -> 78235 | AE61: ='MDA3'!O61 -> 0 | AF61: ='T1'!M61 -> 0 | AG61: ='T2'!K61 -> 74322 | AJ61: =_xlfn.XLOOKUP($Y61,[1]COUNTRY_INFO!$W$9:$W$131,[1]COUNTRY_INFO!K$9:K$131) -> 2
A62: =IF(INTRO!$E$34<>0,INTRO!$E$34,"") -> Chad | B62: Logone Occidental | C62: Laokassy | D62: 204860 | E62: =IF(INTRO!$E$48="","",ROUND($D62*INTRO!$E$48,0)) -> 33802 | F62: =IF(INTRO!$E$49="","",ROUND($D62*INTRO!$E$49,0)) -> 62175 | G62: =IF(INTRO!$E$50="","",ROUND($D62*INTRO!$E$50,0)) -> 101303 | H62: 1 | I62: 1 | J62: 1 | K62: 2 | M62: =IF(INTRO!$E$38="Endémique", IF($H62>0, IF($H62=4,"Inconnu", IF($H62=99,"Interrompu", $D62)), 0),"Non requis") -> 204860 | N62: =IF(INTRO!$E$40="Endémique", IF($I62>0, IF($I62=4,"Inconnu",IF($I62=99,"Interrompu", $D62)), 0),"Non requis") -> 204860 | O62: =IF(INTRO!$E$42="Endémique", IF(AND($J62>1,$J62<5), IF($J62=4, "Inconnu", E62+F62), 0),"Non requis") -> 0 | P62: =IF(INTRO!$E$44="Endémique", IF(AND($K62>0,$K62<5), IF($K62=4,"Inconnu", IF($K62=1, $F62*0.33, IF($K62=2, $F62*0.5+$G62*0.2, SUM(F62:G62)))), 0),"Non requis") -> 51348.1 | Q62: 1 | R62: 1 | S62: 0 | T62: 1 | U62: MDA1 (IVM+ALB) | V62: T2 (PZQ) | Y62: 10697 | Z62: Laokassy | AD62: ='MDA1'!K62 -> 59642 | AE62: ='MDA3'!O62 -> 0 | AF62: ='T1'!M62 -> 0 | AG62: ='T2'!K62 -> 60123 | AJ62: =_xlfn.XLOOKUP($Y62,[1]COUNTRY_INFO!$W$9:$W$131,[1]COUNTRY_INFO!K$9:K$131) -> 2
A63: =IF(INTRO!$E$34<>0,INTRO!$E$34,"") -> Chad | B63: Logone Occidental | C63: Moundou | D63: 342222 | E63: =IF(INTRO!$E$48="","",ROUND($D63*INTRO!$E$48,0)) -> 56467 | F63: =IF(INTRO!$E$49="","",ROUND($D63*INTRO!$E$49,0)) -> 103864 | G63: =IF(INTRO!$E$50="","",ROUND($D63*INTRO!$E$50,0)) -> 169229 | H63: 1 | I63: 1 | J63: 1 | K63: 1 | M63: =IF(INTRO!$E$38="Endémique", IF($H63>0, IF($H63=4,"Inconnu", IF($H63=99,"Interrompu", $D63)), 0),"Non requis") -> 342222 | N63: =IF(INTRO!$E$40="Endémique", IF($I63>0, IF($I63=4,"Inconnu",IF($I63=99,"Interrompu", $D63)), 0),"Non requis") -> 342222 | O63: =IF(INTRO!$E$42="Endémique", IF(AND($J63>1,$J63<5), IF($J63=4, "Inconnu", E63+F63), 0),"Non requis") -> 0 | P63: =IF(INTRO!$E$44="Endémique", IF(AND($K63>0,$K63<5), IF($K63=4,"Inconnu", IF($K63=1, $F63*0.33, IF($K63=2, $F63*0.5+$G63*0.2, SUM(F63:G63)))), 0),"Non requis") -> 34275.12 | Q63: 1 | R63: 1 | S63: 0 | T63: 1 | U63: MDA1 (IVM+ALB) | V63: T2 (PZQ) | Y63: 10698 | Z63: Moundou | AD63: ='MDA1'!K63 -> 107884 | AE63: ='MDA3'!O63 -> 0 | AF63: ='T1'!M63 -> 0 | AG63: ='T2'!K63 -> 24887 | AJ63: =_xlfn.XLOOKUP($Y63,[1]COUNTRY_INFO!$W$9:$W$131,[1]COUNTRY_INFO!K$9:K$131) -> 1
A64: =IF(INTRO!$E$34<>0,INTRO!$E$34,"") -> Chad | B64: Logone Orientlal | C64: Baibokoum | D64: 90514 | E64: =IF(INTRO!$E$48="","",ROUND($D64*INTRO!$E$48,0)) -> 14935 | F64: =IF(INTRO!$E$49="","",ROUND($D64*INTRO!$E$49,0)) -> 27471 | G64: =IF(INTRO!$E$50="","",ROUND($D64*INTRO!$E$50,0)) -> 44759 | H64: 1 | I64: 1 | J64: 1 | K64: 2 | M64: =IF(INTRO!$E$38="Endémique", IF($H64>0, IF($H64=4,"Inconnu", IF($H64=99,"Interrompu", $D64)), 0),"Non requis") -> 90514 | N64: =IF(INTRO!$E$40="Endémique", IF($I64>0, IF($I64=4,"Inconnu",IF($I64=99,"Interrompu", $D64)), 0),"Non requis") -> 90514 | O64: =IF(INTRO!$E$42="Endémique", IF(AND($J64>1,$J64<5), IF($J64=4, "Inconnu", E64+F64), 0),"Non requis") -> 0 | P64: =IF(INTRO!$E$44="Endémique", IF(AND($K64>0,$K64<5), IF($K64=4,"Inconnu", IF($K64=1, $F64*0.33, IF($K64=2, $F64*0.5+$G64*0.2, SUM(F64:G64)))), 0),"Non requis") -> 22687.3 | Q64: 1 | R64: 1 | S64: 0 | T64: 1 | U64: MDA1 (IVM+ALB) | V64: T2 (PZQ) | Y64: 10766 | Z64: Baibokoum | AD64: ='MDA1'!K64 -> 22531 | AE64: ='MDA3'!O64 -> 0 | AF64: ='T1'!M64 -> 0 | AG64: ='T2'!K64 -> 20996 | AJ64: =_xlfn.XLOOKUP($Y64,[1]COUNTRY_INFO!$W$9:$W$131,[1]COUNTRY_INFO!K$9:K$131) -> 2
A65: =IF(INTRO!$E$34<>0,INTRO!$E$34,"") -> Chad | B65: Logone Orientlal | C65: Bebedja | D65: 189395 | E65: =IF(INTRO!$E$48="","",ROUND($D65*INTRO!$E$48,0)) -> 31250 | F65: =IF(INTRO!$E$49="","",ROUND($D65*INTRO!$E$49,0)) -> 57481 | G65: =IF(INTRO!$E$50="","",ROUND($D65*INTRO!$E$50,0)) -> 93656 | H65: 1 | I65: 1 | J65: 1 | K65: 2 | M65: =IF(INTRO!$E$38="Endémique", IF($H65>0, IF($H65=4,"Inconnu", IF($H65=99,"Interrompu", $D65)), 0),"Non requis") -> 189395 | N65: =IF(INTRO!$E$40="Endémique", IF($I65>0, IF($I65=4,"Inconnu",IF($I65=99,"Interrompu", $D65)), 0),"Non requis") -> 189395 | O65: =IF(INTRO!$E$42="Endémique", IF(AND($J65>1,$J65<5), IF($J65=4, "Inconnu", E65+F65), 0),"Non requis") -> 0 | P65: =IF(INTRO!$E$44="Endémique", IF(AND($K65>0,$K65<5), IF($K65=4,"Inconnu", IF($K65=1, $F65*0.33, IF($K65=2, $F65*0.5+$G65*0.2, SUM(F65:G65)))), 0),"Non requis") -> 47471.7 | Q65: 1 | R65: 1 | S65: 0 | T65: 1 | U65: MDA1 (IVM+ALB) | V65: T2 (PZQ) | Y65: 10699 | Z65: Bebedja | AD65: ='MDA1'!K65 -> 56156 | AE65: ='MDA3'!O65 -> 0 | AF65: ='T1'!M65 -> 0 | AG65: ='T2'!K65 -> 54395 | AJ65: =_xlfn.XLOOKUP($Y65,[1]COUNTRY_INFO!$W$9:$W$131,[1]COUNTRY_INFO!K$9:K$131) -> 2
A66: =IF(INTRO!$E$34<>0,INTRO!$E$34,"") -> Chad | B66: Logone Orientlal | C66: Beboto | D66: 103640 | E66: =IF(INTRO!$E$48="","",ROUND($D66*INTRO!$E$48,0)) -> 17101 | F66: =IF(INTRO!$E$49="","",ROUND($D66*INTRO!$E$49,0)) -> 31455 | G66: =IF(INTRO!$E$50="","",ROUND($D66*INTRO!$E$50,0)) -> 51250 | H66: 1 | I66: 1 | J66: 1 | K66: 2 | M66: =IF(INTRO!$E$38="Endémique", IF($H66>0, IF($H66=4,"Inconnu", IF($H66=99,"Interrompu", $D66)), 0),"Non requis") -> 103640 | N66: =IF(INTRO!$E$40="Endémique", IF($I66>0, IF($I66=4,"Inconnu",IF($I66=99,"Interrompu", $D66)), 0),"Non requis") -> 103640 | O66: =IF(INTRO!$E$42="Endémique", IF(AND($J66>1,$J66<5), IF($J66=4, "Inconnu", E66+F66), 0),"Non requis") -> 0 | P66: =IF(INTRO!$E$44="Endémique", IF(AND($K66>0,$K66<5), IF($K66=4,"Inconnu", IF($K66=1, $F66*0.33, IF($K66=2, $F66*0.5+$G66*0.2, SUM(F66:G66)))), 0),"Non requis") -> 25977.5 | Q66: 1 | R66: 1 | S66: 0 | T66: 1 | U66: MDA1 (IVM+ALB) | V66: T2 (PZQ) | Y66: 10700 | Z66: Beboto | AD66: ='MDA1'!K66 -> 30441 | AE66: ='MDA3'!O66 -> 0 | AF66: ='T1'!M66 -> 0 | AG66: ='T2'!K66 -> 19679 | AJ66: =_xlfn.XLOOKUP($Y66,[1]COUNTRY_INFO!$W$9:$W$131,[1]COUNTRY_INFO!K$9:K$131) -> 2
A67: =IF(INTRO!$E$34<>0,INTRO!$E$34,"") -> Chad | B67: Logone Orientlal | C67: Bessao | D67: 182938 | E67: =IF(INTRO!$E$48="","",ROUND($D67*INTRO!$E$48,0)) -> 30185 | F67: =IF(INTRO!$E$49="","",ROUND($D67*INTRO!$E$49,0)) -> 55522 | G67: =IF(INTRO!$E$50="","",ROUND($D67*INTRO!$E$50,0)) -> 90463 | H67: 1 | I67: 1 | J67: 1 | K67: 2 | M67: =IF(INTRO!$E$38="Endémique", IF($H67>0, IF($H67=4,"Inconnu", IF($H67=99,"Interrompu", $D67)), 0),"Non requis") -> 182938 | N67: =IF(INTRO!$E$40="Endémique", IF($I67>0, IF($I67=4,"Inconnu",IF($I67=99,"Interrompu", $D67)), 0),"Non requis") -> 182938 | O67: =IF(INTRO!$E$42="Endémique", IF(AND($J67>1,$J67<5), IF($J67=4, "Inconnu", E67+F67), 0),"Non requis") -> 0 | P67: =IF(INTRO!$E$44="Endémique", IF(AND($K67>0,$K67<5), IF($K67=4,"Inconnu", IF($K67=1, $F67*0.33, IF($K67=2, $F67*0.5+$G67*0.2, SUM(F67:G67)))), 0),"Non requis") -> 45853.6 | Q67: 1 | R67: 1 | S67: 0 | T67: 1 | U67: MDA1 (IVM+ALB) | V67: T2 (PZQ) | Y67: 10701 | Z67: Bessao | AD67: ='MDA1'!K67 -> 55518 | AE67: ='MDA3'!O67 -> 0 | AF67: ='T1'!M67 -> 0 | AG67: ='T2'!K67 -> 54990 | AJ67: =_xlfn.XLOOKUP($Y67,[1]COUNTRY_INFO!$W$9:$W$131,[1]COUNTRY_INFO!K$9:K$131) -> 2
A68: =IF(INTRO!$E$34<>0,INTRO!$E$34,"") -> Chad | B68: Logone Orientlal | C68: Bodo | D68: 157517 | E68: =IF(INTRO!$E$48="","",ROUND($D68*INTRO!$E$48,0)) -> 25990 | F68: =IF(INTRO!$E$49="","",ROUND($D68*INTRO!$E$49,0)) -> 47806 | G68: =IF(INTRO!$E$50="","",ROUND($D68*INTRO!$E$50,0)) -> 77892 | H68: 1 | I68: 0 | J68: 1 | K68: 2 | M68: =IF(INTRO!$E$38="Endémique", IF($H68>0, IF($H68=4,"Inconnu", IF($H68=99,"Interrompu", $D68)), 0),"Non requis") -> 157517 | N68: =IF(INTRO!$E$40="Endémique", IF($I68>0, IF($I68=4,"Inconnu",IF($I68=99,"Interrompu", $D68)), 0),"Non requis") -> 0 | O68: =IF(INTRO!$E$42="Endémique", IF(AND($J68>1,$J68<5), IF($J68=4, "Inconnu", E68+F68), 0),"Non requis") -> 0 | P68: =IF(INTRO!$E$44="Endémique", IF(AND($K68>0,$K68<5), IF($K68=4,"Inconnu", IF($K68=1, $F68*0.33, IF($K68=2, $F68*0.5+$G68*0.2, SUM(F68:G68)))), 0),"Non requis") -> 39481.4 | Q68: 1 | R68: 0 | S68: 0 | T68: 1 | U68: MDA1 (IVM+ALB) | V68: T2 (PZQ) | Y68: 10702 | Z68: Bodo | AD68: ='MDA1'!K68 -> 46257 | AE68: ='MDA3'!O68 -> 0 | AF68: ='T1'!M68 -> 0 | AG68: ='T2'!K68 -> 42680 | AJ68: =_xlfn.XLOOKUP($Y68,[1]COUNTRY_INFO!$W$9:$W$131,[1]COUNTRY_INFO!K$9:K$131) -> 2
A69: =IF(INTRO!$E$34<>0,INTRO!$E$34,"") -> Chad | B69: Logone Orientlal | C69: Doba | D69: 230080 | E69: =IF(INTRO!$E$48="","",ROUND($D69*INTRO!$E$48,0)) -> 37963 | F69: =IF(INTRO!$E$49="","",ROUND($D69*INTRO!$E$49,0)) -> 69829 | G69: =IF(INTRO!$E$50="","",ROUND($D69*INTRO!$E$50,0)) -> 113775 | H69: 1 | I69: 1 | J69: 1 | K69: 1 | M69: =IF(INTRO!$E$38="Endémique", IF($H69>0, IF($H69=4,"Inconnu", IF($H69=99,"Interrompu", $D69)), 0),"Non requis") -> 230080 | N69: =IF(INTRO!$E$40="Endémique", IF($I69>0, IF($I69=4,"Inconnu",IF($I69=99,"Interrompu", $D69)), 0),"Non requis") -> 230080 | O69: =IF(INTRO!$E$42="Endémique", IF(AND($J69>1,$J69<5), IF($J69=4, "Inconnu", E69+F69), 0),"Non requis") -> 0 | P69: =IF(INTRO!$E$44="Endémique", IF(AND($K69>0,$K69<5), IF($K69=4,"Inconnu", IF($K69=1, $F69*0.33, IF($K69=2, $F69*0.5+$G69*0.2, SUM(F69:G69)))), 0),"Non requis") -> 23043.57 | Q69: 1 | R69: 1 | S69: 0 | T69: 1 | U69: MDA1 (IVM+ALB) | V69: T2 (PZQ) | Y69: 10703 | Z69: Doba | AD69: ='MDA1'!K69 -> 68241 | AE69: ='MDA3'!O69 -> 0 | AF69: ='T1'!M69 -> 0 | AG69: ='T2'!K69 -> 66417 | AJ69: =_xlfn.XLOOKUP($Y69,[1]COUNTRY_INFO!$W$9:$W$131,[1]COUNTRY_INFO!K$9:K$131) -> 1
A70: =IF(INTRO!$E$34<>0,INTRO!$E$34,"") -> Chad | B70: Logone Orientlal | C70: DONIA | D70: 88245 | E70: =IF(INTRO!$E$48="","",ROUND($D70*INTRO!$E$48,0)) -> 14560 | F70: =IF(INTRO!$E$49="","",ROUND($D70*INTRO!$E$49,0)) -> 26782 | G70: =IF(INTRO!$E$50="","",ROUND($D70*INTRO!$E$50,0)) -> 43637 | H70: 1 | I70: 1 | J70: 1 | K70: 2 | M70: =IF(INTRO!$E$38="Endémique", IF($H70>0, IF($H70=4,"Inconnu", IF($H70=99,"Interrompu", $D70)), 0),"Non requis") -> 88245 | N70: =IF(INTRO!$E$40="Endémique", IF($I70>0, IF($I70=4,"Inconnu",IF($I70=99,"Interrompu", $D70)), 0),"Non requis") -> 88245 | O70: =IF(INTRO!$E$42="Endémique", IF(AND($J70>1,$J70<5), IF($J70=4, "Inconnu", E70+F70), 0),"Non requis") -> 0 | P70: =IF(INTRO!$E$44="Endémique", IF(AND($K70>0,$K70<5), IF($K70=4,"Inconnu", IF($K70=1, $F70*0.33, IF($K70=2, $F70*0.5+$G70*0.2, SUM(F70:G70)))), 0),"Non requis") -> 22118.4 | Q70: 1 | R70: 1 | S70: 0 | T70: 1 | U70: MDA1 (IVM+ALB) | V70: T2 (PZQ) | Y70: 10767 | Z70: DONIA | AD70: ='MDA1'!K70 -> 26796 | AE70: ='MDA3'!O70 -> 0 | AF70: ='T1'!M70 -> 0 | AG70: ='T2'!K70 -> 25782 | AJ70: =_xlfn.XLOOKUP($Y70,[1]COUNTRY_INFO!$W$9:$W$131,[1]COUNTRY_INFO!K$9:K$131) -> 2
A71: =IF(INTRO!$E$34<>0,INTRO!$E$34,"") -> Chad | B71: Logone Orientlal | C71: Goré | D71: 169285 | E71: =IF(INTRO!$E$48="","",ROUND($D71*INTRO!$E$48,0)) -> 27932 | F71: =IF(INTRO!$E$49="","",ROUND($D71*INTRO!$E$49,0)) -> 51378 | G71: =IF(INTRO!$E$50="","",ROUND($D71*INTRO!$E$50,0)) -> 83711 | H71: 1 | I71: 1 | J71: 1 | K71: 2 | M71: =IF(INTRO!$E$38="Endémique", IF($H71>0, IF($H71=4,"Inconnu", IF($H71=99,"Interrompu", $D71)), 0),"Non requis") -> 169285 | N71: =IF(INTRO!$E$40="Endémique", IF($I71>0, IF($I71=4,"Inconnu",IF($I71=99,"Interrompu", $D71)), 0),"Non requis") -> 169285 | O71: =IF(INTRO!$E$42="Endémique", IF(AND($J71>1,$J71<5), IF($J71=4, "Inconnu", E71+F71), 0),"Non requis") -> 0 | P71: =IF(INTRO!$E$44="Endémique", IF(AND($K71>0,$K71<5), IF($K71=4,"Inconnu", IF($K71=1, $F71*0.33, IF($K71=2, $F71*0.5+$G71*0.2, SUM(F71:G71)))), 0),"Non requis") -> 42431.2 | Q71: 1 | R71: 1 | S71: 0 | T71: 1 | U71: MDA1 (IVM+ALB) | V71: T2 (PZQ) | Y71: 10704 | Z71: Goré | AD71: ='MDA1'!K71 -> 51226 | AE71: ='MDA3'!O71 -> 0 | AF71: ='T1'!M71 -> 0 | AG71: ='T2'!K71 -> 46232 | AJ71: =_xlfn.XLOOKUP($Y71,[1]COUNTRY_INFO!$W$9:$W$131,[1]COUNTRY_INFO!K$9:K$131) -> 2
A72: =IF(INTRO!$E$34<>0,INTRO!$E$34,"") -> Chad | B72: Logone Orientlal | C72: Kara | D72: 65754 | E72: =IF(INTRO!$E$48="","",ROUND($D72*INTRO!$E$48,0)) -> 10849 | F72: =IF(INTRO!$E$49="","",ROUND($D72*INTRO!$E$49,0)) -> 19956 | G72: =IF(INTRO!$E$50="","",ROUND($D72*INTRO!$E$50,0)) -> 32515 | H72: 1 | I72: 1 | J72: 1 | K72: 1 | M72: =IF(INTRO!$E$38="Endémique", IF($H72>0, IF($H72=4,"Inconnu", IF($H72=99,"Interrompu", $D72)), 0),"Non requis") -> 65754 | N72: =IF(INTRO!$E$40="Endémique", IF($I72>0, IF($I72=4,"Inconnu",IF($I72=99,"Interrompu", $D72)), 0),"Non requis") -> 65754 | O72: =IF(INTRO!$E$42="Endémique", IF(AND($J72>1,$J72<5), IF($J72=4, "Inconnu", E72+F72), 0),"Non requis") -> 0 | P72: =IF(INTRO!$E$44="Endémique", IF(AND($K72>0,$K72<5), IF($K72=4,"Inconnu", IF($K72=1, $F72*0.33, IF($K72=2, $F72*0.5+$G72*0.2, SUM(F72:G72)))), 0),"Non requis") -> 6585.48 | Q72: 1 | R72: 1 | S72: 0 | T72: 1 | U72: MDA1 (IVM+ALB) | V72: T2 (PZQ) | Y72: 10768 | Z72: Kara | AD72: ='MDA1'!K72 -> 18712 | AE72: ='MDA3'!O72 -> 0 | AF72: ='T1'!M72 -> 0 | AG72: ='T2'!K72 -> 17544 | AJ72: =_xlfn.XLOOKUP($Y72,[1]COUNTRY_INFO!$W$9:$W$131,[1]COUNTRY_INFO!K$9:K$131) -> 1
A73: =IF(INTRO!$E$34<>0,INTRO!$E$34,"") -> Chad | B73: Logone Orientlal | C73: Larmanaye | D73: 84376 | E73: =IF(INTRO!$E$48="","",ROUND($D73*INTRO!$E$48,0)) -> 13922 | F73: =IF(INTRO!$E$49="","",ROUND($D73*INTRO!$E$49,0)) -> 25608 | G73: =IF(INTRO!$E$50="","",ROUND($D73*INTRO!$E$50,0)) -> 41724 | H73: 1 | I73: 1 | J73: 2 | K73: 2 | M73: =IF(INTRO!$E$38="Endémique", IF($H73>0, IF($H73=4,"Inconnu", IF($H73=99,"Interrompu", $D73)), 0),"Non requis") -> 84376 | N73: =IF(INTRO!$E$40="Endémique", IF($I73>0, IF($I73=4,"Inconnu",IF($I73=99,"Interrompu", $D73)), 0),"Non requis") -> 84376 | O73: =IF(INTRO!$E$42="Endémique", IF(AND($J73>1,$J73<5), IF($J73=4, "Inconnu", E73+F73), 0),"Non requis") -> 39530 | P73: =IF(INTRO!$E$44="Endémique", IF(AND($K73>0,$K73<5), IF($K73=4,"Inconnu", IF($K73=1, $F73*0.33, IF($K73=2, $F73*0.5+$G73*0.2, SUM(F73:G73)))), 0),"Non requis") -> 21148.8 | Q73: 1 | R73: 1 | S73: 1 | T73: 1 | U73: MDA1 (IVM+ALB) | V73: T2 (PZQ) | Y73: 10705 | Z73: Larmanaye | AD73: ='MDA1'!K73 -> 20707 | AE73: ='MDA3'!O73 -> 0 | AF73: ='T1'!M73 -> 0 | AG73: ='T2'!K73 -> 24651 | AJ73: =_xlfn.XLOOKUP($Y73,[1]COUNTRY_INFO!$W$9:$W$131,[1]COUNTRY_INFO!K$9:K$131) -> 2
A74: =IF(INTRO!$E$34<>0,INTRO!$E$34,"") -> Chad | B74: Mandoul | C74: Bedaya | D74: 109137 | E74: =IF(INTRO!$E$48="","",ROUND($D74*INTRO!$E$48,0)) -> 18008 | F74: =IF(INTRO!$E$49="","",ROUND($D74*INTRO!$E$49,0)) -> 33123 | G74: =IF(INTRO!$E$50="","",ROUND($D74*INTRO!$E$50,0)) -> 53968 | H74: 1 | I74: 1 | J74: 1 | K74: 1 | M74: =IF(INTRO!$E$38="Endémique", IF($H74>0, IF($H74=4,"Inconnu", IF($H74=99,"Interrompu", $D74)), 0),"Non requis") -> 109137 | N74: =IF(INTRO!$E$40="Endémique", IF($I74>0, IF($I74=4,"Inconnu",IF($I74=99,"Interrompu", $D74)), 0),"Non requis") -> 109137 | O74: =IF(INTRO!$E$42="Endémique", IF(AND($J74>1,$J74<5), IF($J74=4, "Inconnu", E74+F74), 0),"Non requis") -> 0 | P74: =IF(INTRO!$E$44="Endémique", IF(AND($K74>0,$K74<5), IF($K74=4,"Inconnu", IF($K74=1, $F74*0.33, IF($K74=2, $F74*0.5+$G74*0.2, SUM(F74:G74)))), 0),"Non requis") -> 10930.59 | Q74: 1 | R74: 1 | S74: 0 | T74: 0 | U74: MDA1 (IVM+ALB) | Y74: 10769 | Z74: Bedaya | AD74: ='MDA1'!K74 -> 32568 | AE74: ='MDA3'!O74 -> 0 | AF74: ='T1'!M74 -> 0 | AG74: ='T2'!K74 -> 32114 | AJ74: =_xlfn.XLOOKUP($Y74,[1]COUNTRY_INFO!$W$9:$W$131,[1]COUNTRY_INFO!K$9:K$131) -> 1
A75: =IF(INTRO!$E$34<>0,INTRO!$E$34,"") -> Chad | B75: Mandoul | C75: Bedjondo | D75: 127111 | E75: =IF(INTRO!$E$48="","",ROUND($D75*INTRO!$E$48,0)) -> 20973 | F75: =IF(INTRO!$E$49="","",ROUND($D75*INTRO!$E$49,0)) -> 38578 | G75: =IF(INTRO!$E$50="","",ROUND($D75*INTRO!$E$50,0)) -> 62856 | H75: 0 | I75: 1 | J75: 0 | K75: 1 | M75: =IF(INTRO!$E$38="Endémique", IF($H75>0, IF($H75=4,"Inconnu", IF($H75=99,"Interrompu", $D75)), 0),"Non requis") -> 0 | N75: =IF(INTRO!$E$40="Endémique", IF($I75>0, IF($I75=4,"Inconnu",IF($I75=99,"Interrompu", $D75)), 0),"Non requis") -> 127111 | O75: =IF(INTRO!$E$42="Endémique", IF(AND($J75>1,$J75<5), IF($J75=4, "Inconnu", E75+F75), 0),"Non requis") -> 0 | P75: =IF(INTRO!$E$44="Endémique", IF(AND($K75>0,$K75<5), IF($K75=4,"Inconnu", IF($K75=1, $F75*0.33, IF($K75=2, $F75*0.5+$G75*0.2, SUM(F75:G75)))), 0),"Non requis") -> 12730.74 | Q75: 0 | R75: 1 | S75: 0 | T75: 0 | U75: MDA3 (IVM) | Y75: 10706 | Z75: Bedjondo | AD75: ='MDA1'!K75 -> 0 | AE75: ='MDA3'!O75 -> 38671 | AF75: ='T1'!M75 -> 0 | AG75: ='T2'!K75 -> 0 | AJ75: =_xlfn.XLOOKUP($Y75,[1]COUNTRY_INFO!$W$9:$W$131,[1]COUNTRY_INFO!K$9:K$131) -> 1
A76: =IF(INTRO!$E$34<>0,INTRO!$E$34,"") -> Chad | B76: Mandoul | C76: Bekourou | D76: 92789 | E76: =IF(INTRO!$E$48="","",ROUND($D76*INTRO!$E$48,0)) -> 15310 | F76: =IF(INTRO!$E$49="","",ROUND($D76*INTRO!$E$49,0)) -> 28161 | G76: =IF(INTRO!$E$50="","",ROUND($D76*INTRO!$E$50,0)) -> 45884 | H76: 0 | I76: 1 | J76: 0 | K76: 0 | M76: =IF(INTRO!$E$38="Endémique", IF($H76>0, IF($H76=4,"Inconnu", IF($H76=99,"Interrompu", $D76)), 0),"Non requis") -> 0 | N76: =IF(INTRO!$E$40="Endémique", IF($I76>0, IF($I76=4,"Inconnu",IF($I76=99,"Interrompu", $D76)), 0),"Non requis") -> 92789 | O76: =IF(INTRO!$E$42="Endémique", IF(AND($J76>1,$J76<5), IF($J76=4, "Inconnu", E76+F76), 0),"Non requis") -> 0 | P76: =IF(INTRO!$E$44="Endémique", IF(AND($K76>0,$K76<5), IF($K76=4,"Inconnu", IF($K76=1, $F76*0.33, IF($K76=2, $F76*0.5+$G76*0.2, SUM(F76:G76)))), 0),"Non requis") -> 0 | Q76: 0 | R76: 1 | S76: 0 | T76: 0 | U76: MDA3 (IVM) | Y76: 10770 | Z76: Bekourou | AD76: ='MDA1'!K76 -> 0 | AE76: ='MDA3'!O76 -> 28411 | AF76: ='T1'!M76 -> 0 | AG76: ='T2'!K76 -> 0 | AJ76: =_xlfn.XLOOKUP($Y76,[1]COUNTRY_INFO!$W$9:$W$131,[1]COUNTRY_INFO!K$9:K$131) -> 0
A77: =IF(INTRO!$E$34<>0,INTRO!$E$34,"") -> Chad | B77: Mandoul | C77: Bouna | D77: 109137 | E77: =IF(INTRO!$E$48="","",ROUND($D77*INTRO!$E$48,0)) -> 18008 | F77: =IF(INTRO!$E$49="","",ROUND($D77*INTRO!$E$49,0)) -> 33123 | G77: =IF(INTRO!$E$50="","",ROUND($D77*INTRO!$E$50,0)) -> 53968 | H77: 0 | I77: 1 | J77: 1 | K77: 0 | M77: =IF(INTRO!$E$38="Endémique", IF($H77>0, IF($H77=4,"Inconnu", IF($H77=99,"Interrompu", $D77)), 0),"Non requis") -> 0 | N77: =IF(INTRO!$E$40="Endémique", IF($I77>0, IF($I77=4,"Inconnu",IF($I77=99,"Interrompu", $D77)), 0),"Non requis") -> 109137 | O77: =IF(INTRO!$E$42="Endémique", IF(AND($J77>1,$J77<5), IF($J77=4, "Inconnu", E77+F77), 0),"Non requis") -> 0 | P77: =IF(INTRO!$E$44="Endémique", IF(AND($K77>0,$K77<5), IF($K77=4,"Inconnu", IF($K77=1, $F77*0.33, IF($K77=2, $F77*0.5+$G77*0.2, SUM(F77:G77)))), 0),"Non requis") -> 0 | Q77: 0 | R77: 1 | S77: 0 | T77: 0 | U77: MDA3 (IVM) | Y77: 10707 | Z77: Bouna | AD77: ='MDA1'!K77 -> 0 | AE77: ='MDA3'!O77 -> 32363 | AF77: ='T1'!M77 -> 0 | AG77: ='T2'!K77 -> 0 | AJ77: =_xlfn.XLOOKUP($Y77,[1]COUNTRY_INFO!$W$9:$W$131,[1]COUNTRY_INFO!K$9:K$131) -> 0
A78: =IF(INTRO!$E$34<>0,INTRO!$E$34,"") -> Chad | B78: Mandoul | C78: Goundi | D78: 207903 | E78: =IF(INTRO!$E$48="","",ROUND($D78*INTRO!$E$48,0)) -> 34304 | F78: =IF(INTRO!$E$49="","",ROUND($D78*INTRO!$E$49,0)) -> 63099 | G78: =IF(INTRO!$E$50="","",ROUND($D78*INTRO!$E$50,0)) -> 102808 | H78: 0 | I78: 0 | J78: 1 | K78: 1 | M78: =IF(INTRO!$E$38="Endémique", IF($H78>0, IF($H78=4,"Inconnu", IF($H78=99,"Interrompu", $D78)), 0),"Non requis") -> 0 | N78: =IF(INTRO!$E$40="Endémique", IF($I78>0, IF($I78=4,"Inconnu",IF($I78=99,"Interrompu", $D78)), 0),"Non requis") -> 0 | O78: =IF(INTRO!$E$42="Endémique", IF(AND($J78>1,$J78<5), IF($J78=4, "Inconnu", E78+F78), 0),"Non requis") -> 0 | P78: =IF(INTRO!$E$44="Endémique", IF(AND($K78>0,$K78<5), IF($K78=4,"Inconnu", IF($K78=1, $F78*0.33, IF($K78=2, $F78*0.5+$G78*0.2, SUM(F78:G78)))), 0),"Non requis") -> 20822.67 | Q78: 0 | R78: 0 | S78: 0 | T78: 0 | Y78: 10708 | Z78: Goundi | AD78: ='MDA1'!K78 -> 0 | AE78: ='MDA3'!O78 -> 0 | AF78: ='T1'!M78 -> 0 | AG78: ='T2'!K78 -> 0 | AJ78: =_xlfn.XLOOKUP($Y78,[1]COUNTRY_INFO!$W$9:$W$131,[1]COUNTRY_INFO!K$9:K$131) -> 1
A79: =IF(INTRO!$E$34<>0,INTRO!$E$34,"") -> Chad | B79: Mandoul | C79: Koumra | D79: 246432 | E79: =IF(INTRO!$E$48="","",ROUND($D79*INTRO!$E$48,0)) -> 40661 | F79: =IF(INTRO!$E$49="","",ROUND($D79*INTRO!$E$49,0)) -> 74792 | G79: =IF(INTRO!$E$50="","",ROUND($D79*INTRO!$E$50,0)) -> 121861 | H79: 1 | I79: 1 | J79: 1 | K79: 1 | M79: =IF(INTRO!$E$38="Endémique", IF($H79>0, IF($H79=4,"Inconnu", IF($H79=99,"Interrompu", $D79)), 0),"Non requis") -> 246432 | N79: =IF(INTRO!$E$40="Endémique", IF($I79>0, IF($I79=4,"Inconnu",IF($I79=99,"Interrompu", $D79)), 0),"Non requis") -> 246432 | O79: =IF(INTRO!$E$42="Endémique", IF(AND($J79>1,$J79<5), IF($J79=4, "Inconnu", E79+F79), 0),"Non requis") -> 0 | P79: =IF(INTRO!$E$44="Endémique", IF(AND($K79>0,$K79<5), IF($K79=4,"Inconnu", IF($K79=1, $F79*0.33, IF($K79=2, $F79*0.5+$G79*0.2, SUM(F79:G79)))), 0),"Non requis") -> 24681.36 | Q79: 1 | R79: 1 | S79: 0 | T79: 0 | U79: MDA1 (IVM+ALB) | Y79: 10709 | Z79: Koumra | AD79: ='MDA1'!K79 -> 72166 | AE79: ='MDA3'!O79 -> 0 | AF79: ='T1'!M79 -> 0 | AG79: ='T2'!K79 -> 0 | AJ79: =_xlfn.XLOOKUP($Y79,[1]COUNTRY_INFO!$W$9:$W$131,[1]COUNTRY_INFO!K$9:K$131) -> 1
A80: =IF(INTRO!$E$34<>0,INTRO!$E$34,"") -> Chad | B80: Mandoul | C80: Moissala | D80: 206127 | E80: =IF(INTRO!$E$48="","",ROUND($D80*INTRO!$E$48,0)) -> 34011 | F80: =IF(INTRO!$E$49="","",ROUND($D80*INTRO!$E$49,0)) -> 62560 | G80: =IF(INTRO!$E$50="","",ROUND($D80*INTRO!$E$50,0)) -> 101930 | H80: 0 | I80: 1 | J80: 0 | K80: 0 | M80: =IF(INTRO!$E$38="Endémique", IF($H80>0, IF($H80=4,"Inconnu", IF($H80=99,"Interrompu", $D80)), 0),"Non requis") -> 0 | N80: =IF(INTRO!$E$40="Endémique", IF($I80>0, IF($I80=4,"Inconnu",IF($I80=99,"Interrompu", $D80)), 0),"Non requis") -> 206127 | O80: =IF(INTRO!$E$42="Endémique", IF(AND($J80>1,$J80<5), IF($J80=4, "Inconnu", E80+F80), 0),"Non requis") -> 0 | P80: =IF(INTRO!$E$44="Endémique", IF(AND($K80>0,$K80<5), IF($K80=4,"Inconnu", IF($K80=1, $F80*0.33, IF($K80=2, $F80*0.5+$G80*0.2, SUM(F80:G80)))), 0),"Non requis") -> 0 | Q80: 0 | R80: 1 | S80: 0 | T80: 0 | U80: MDA3 (IVM) | Y80: 10710 | Z80: Moissala | AD80: ='MDA1'!K80 -> 0 | AE80: ='MDA3'!O80 -> 42496 | AF80: ='T1'!M80 -> 0 | AG80: ='T2'!K80 -> 0 | AJ80: =_xlfn.XLOOKUP($Y80,[1]COUNTRY_INFO!$W$9:$W$131,[1]COUNTRY_INFO!K$9:K$131) -> 0
A81: =IF(INTRO!$E$34<>0,INTRO!$E$34,"") -> Chad | B81: Mayo Kebbi Est | C81: Bongor | D81: 166884 | E81: =IF(INTRO!$E$48="","",ROUND($D81*INTRO!$E$48,0)) -> 27536 | F81: =IF(INTRO!$E$49="","",ROUND($D81*INTRO!$E$49,0)) -> 50649 | G81: =IF(INTRO!$E$50="","",ROUND($D81*INTRO!$E$50,0)) -> 82524 | H81: 0 | I81: 0 | J81: 1 | K81: 2 | M81: =IF(INTRO!$E$38="Endémique", IF($H81>0, IF($H81=4,"Inconnu", IF($H81=99,"Interrompu", $D81)), 0),"Non requis") -> 0 | N81: =IF(INTRO!$E$40="Endémique", IF($I81>0, IF($I81=4,"Inconnu",IF($I81=99,"Interrompu", $D81)), 0),"Non requis") -> 0 | O81: =IF(INTRO!$E$42="Endémique", IF(AND($J81>1,$J81<5), IF($J81=4, "Inconnu", E81+F81), 0),"Non requis") -> 0 | P81: =IF(INTRO!$E$44="Endémique", IF(AND($K81>0,$K81<5), IF($K81=4,"Inconnu", IF($K81=1, $F81*0.33, IF($K81=2, $F81*0.5+$G81*0.2, SUM(F81:G81)))), 0),"Non requis") -> 41829.3 | Q81: 0 | R81: 0 | S81: 1 | T81: 1 | V81: T1 (PZQ+ALB/MBD) | Y81: 10753 | Z81: Bongor | AD81: ='MDA1'!K81 -> 0 | AE81: ='MDA3'!O81 -> 0 | AF81: ='T1'!M81 -> 59802 | AG81: ='T2'!K81 -> 0 | AJ81: =_xlfn.XLOOKUP($Y81,[1]COUNTRY_INFO!$W$9:$W$131,[1]COUNTRY_INFO!K$9:K$131) -> 2
A82: =IF(INTRO!$E$34<>0,INTRO!$E$34,"") -> Chad | B82: Mayo Kebbi Est | C82: Fianga | D82: 151549 | E82: =IF(INTRO!$E$48="","",ROUND($D82*INTRO!$E$48,0)) -> 25006 | F82: =IF(INTRO!$E$49="","",ROUND($D82*INTRO!$E$49,0)) -> 45995 | G82: =IF(INTRO!$E$50="","",ROUND($D82*INTRO!$E$50,0)) -> 74941 | H82: 0 | I82: 1 | J82: 1 | K82: 3 | M82: =IF(INTRO!$E$38="Endémique", IF($H82>0, IF($H82=4,"Inconnu", IF($H82=99,"Interrompu", $D82)), 0),"Non requis") -> 0 | N82: =IF(INTRO!$E$40="Endémique", IF($I82>0, IF($I82=4,"Inconnu",IF($I82=99,"Interrompu", $D82)), 0),"Non requis") -> 151549 | O82: =IF(INTRO!$E$42="Endémique", IF(AND($J82>1,$J82<5), IF($J82=4, "Inconnu", E82+F82), 0),"Non requis") -> 0 | P82: =IF(INTRO!$E$44="Endémique", IF(AND($K82>0,$K82<5), IF($K82=4,"Inconnu", IF($K82=1, $F82*0.33, IF($K82=2, $F82*0.5+$G82*0.2, SUM(F82:G82)))), 0),"Non requis") -> 120936 | Q82: 0 | R82: 1 | S82: 1 | T82: 1 | U82: MDA3 (IVM) | V82: T1 (PZQ+ALB/MBD) | Y82: 10712 | Z82: Fianga | AD82: ='MDA1'!K82 -> 0 | AE82: ='MDA3'!O82 -> 45002 | AF82: ='T1'!M82 -> 45826 | AG82: ='T2'!K82 -> 0 | AJ82: =_xlfn.XLOOKUP($Y82,[1]COUNTRY_INFO!$W$9:$W$131,[1]COUNTRY_INFO!K$9:K$131) -> 3
A83: =IF(INTRO!$E$34<>0,INTRO!$E$34,"") -> Chad | B83: Mayo Kebbi Est | C83: Gounou Gaya | D83: 129724 | E83: =IF(INTRO!$E$48="","",ROUND($D83*INTRO!$E$48,0)) -> 21404 | F83: =IF(INTRO!$E$49="","",ROUND($D83*INTRO!$E$49,0)) -> 39371 | G83: =IF(INTRO!$E$50="","",ROUND($D83*INTRO!$E$50,0)) -> 64149 | H83: 0 | I83: 1 | J83: 2 | K83: 2 | M83: =IF(INTRO!$E$38="Endémique", IF($H83>0, IF($H83=4,"Inconnu", IF($H83=99,"Interrompu", $D83)), 0),"Non requis") -> 0 | N83: =IF(INTRO!$E$40="Endémique", IF($I83>0, IF($I83=4,"Inconnu",IF($I83=99,"Interrompu", $D83)), 0),"Non requis") -> 129724 | O83: =IF(INTRO!$E$42="Endémique", IF(AND($J83>1,$J83<5), IF($J83=4, "Inconnu", E83+F83), 0),"Non requis") -> 60775 | P83: =IF(INTRO!$E$44="Endémique", IF(AND($K83>0,$K83<5), IF($K83=4,"Inconnu", IF($K83=1, $F83*0.33, IF($K83=2, $F83*0.5+$G83*0.2, SUM(F83:G83)))), 0),"Non requis") -> 32515.3 | Q83: 0 | R83: 1 | S83: 1 | T83: 1 | U83: MDA3 (IVM) | V83: T1 (PZQ+ALB/MBD) | Y83: 10713 | Z83: Gounou Gaya | AD83: ='MDA1'!K83 -> 0 | AE83: ='MDA3'!O83 -> 38742 | AF83: ='T1'!M83 -> 37459 | AG83: ='T2'!K83 -> 0 | AJ83: =_xlfn.XLOOKUP($Y83,[1]COUNTRY_INFO!$W$9:$W$131,[1]COUNTRY_INFO!K$9:K$131) -> 2
A84: =IF(INTRO!$E$34<>0,INTRO!$E$34,"") -> Chad | B84: Mayo Kebbi Est | C84: Guelinding | D84: 91501 | E84: =IF(INTRO!$E$48="","",ROUND($D84*INTRO!$E$48,0)) -> 15098 | F84: =IF(INTRO!$E$49="","",ROUND($D84*INTRO!$E$49,0)) -> 27771 | G84: =IF(INTRO!$E$50="","",ROUND($D84*INTRO!$E$50,0)) -> 45247 | H84: 1 | I84: 0 | J84: 1 | K84: 1 | M84: =IF(INTRO!$E$38="Endémique", IF($H84>0, IF($H84=4,"Inconnu", IF($H84=99,"Interrompu", $D84)), 0),"Non requis") -> 91501 | N84: =IF(INTRO!$E$40="Endémique", IF($I84>0, IF($I84=4,"Inconnu",IF($I84=99,"Interrompu", $D84)), 0),"Non requis") -> 0 | O84: =IF(INTRO!$E$42="Endémique", IF(AND($J84>1,$J84<5), IF($J84=4, "Inconnu", E84+F84), 0),"Non requis") -> 0 | P84: =IF(INTRO!$E$44="Endémique", IF(AND($K84>0,$K84<5), IF($K84=4,"Inconnu", IF($K84=1, $F84*0.33, IF($K84=2, $F84*0.5+$G84*0.2, SUM(F84:G84)))), 0),"Non requis") -> 9164.43 | Q84: 1 | R84: 0 | S84: 0 | T84: 1 | U84: MDA1 (IVM+ALB) | V84: T2 (PZQ) | Y84: 10714 | Z84: Guelinding | AD84: ='MDA1'!K84 -> 27121 | AE84: ='MDA3'!O84 -> 0 | AF84: ='T1'!M84 -> 27633 | AG84: ='T2'!K84 -> 29328 | AJ84: =_xlfn.XLOOKUP($Y84,[1]COUNTRY_INFO!$W$9:$W$131,[1]COUNTRY_INFO!K$9:K$131) -> 1
A85: =IF(INTRO!$E$34<>0,INTRO!$E$34,"") -> Chad | B85: Mayo Kebbi Est | C85: Moulkou | D85: 127507 | E85: =IF(INTRO!$E$48="","",ROUND($D85*INTRO!$E$48,0)) -> 21039 | F85: =IF(INTRO!$E$49="","",ROUND($D85*INTRO!$E$49,0)) -> 38698 | G85: =IF(INTRO!$E$50="","",ROUND($D85*INTRO!$E$50,0)) -> 63052 | H85: 1 | I85: 0 | J85: 1 | K85: 1 | M85: =IF(INTRO!$E$38="Endémique", IF($H85>0, IF($H85=4,"Inconnu", IF($H85=99,"Interrompu", $D85)), 0),"Non requis") -> 127507 | N85: =IF(INTRO!$E$40="Endémique", IF($I85>0, IF($I85=4,"Inconnu",IF($I85=99,"Interrompu", $D85)), 0),"Non requis") -> 0 | O85: =IF(INTRO!$E$42="Endémique", IF(AND($J85>1,$J85<5), IF($J85=4, "Inconnu", E85+F85), 0),"Non requis") -> 0 | P85: =IF(INTRO!$E$44="Endémique", IF(AND($K85>0,$K85<5), IF($K85=4,"Inconnu", IF($K85=1, $F85*0.33, IF($K85=2, $F85*0.5+$G85*0.2, SUM(F85:G85)))), 0),"Non requis") -> 12770.34 | Q85: 1 | R85: 0 | S85: 0 | T85: 1 | U85: MDA1 (IVM+ALB) | V85: T2 (PZQ) | Y85: 10750 | Z85: Moulkou | AD85: ='MDA1'!K85 -> 37687 | AE85: ='MDA3'!O85 -> 0 | AF85: ='T1'!M85 -> 0 | AG85: ='T2'!K85 -> 37442 | AJ85: =_xlfn.XLOOKUP($Y85,[1]COUNTRY_INFO!$W$9:$W$131,[1]COUNTRY_INFO!K$9:K$131) -> 1
A86: =IF(INTRO!$E$34<>0,INTRO!$E$34,"") -> Chad | B86: Mayo Kebbi Est | C86: Pont Carol | D86: 84909 | E86: =IF(INTRO!$E$48="","",ROUND($D86*INTRO!$E$48,0)) -> 14010 | F86: =IF(INTRO!$E$49="","",ROUND($D86*INTRO!$E$49,0)) -> 25770 | G86: =IF(INTRO!$E$50="","",ROUND($D86*INTRO!$E$50,0)) -> 41988 | H86: 0 | I86: 1 | J86: 2 | K86: 2 | M86: =IF(INTRO!$E$38="Endémique", IF($H86>0, IF($H86=4,"Inconnu", IF($H86=99,"Interrompu", $D86)), 0),"Non requis") -> 0 | N86: =IF(INTRO!$E$40="Endémique", IF($I86>0, IF($I86=4,"Inconnu",IF($I86=99,"Interrompu", $D86)), 0),"Non requis") -> 84909 | O86: =IF(INTRO!$E$42="Endémique", IF(AND($J86>1,$J86<5), IF($J86=4, "Inconnu", E86+F86), 0),"Non requis") -> 39780 | P86: =IF(INTRO!$E$44="Endémique", IF(AND($K86>0,$K86<5), IF($K86=4,"Inconnu", IF($K86=1, $F86*0.33, IF($K86=2, $F86*0.5+$G86*0.2, SUM(F86:G86)))), 0),"Non requis") -> 21282.6 | Q86: 0 | R86: 1 | S86: 1 | T86: 1 | U86: MDA3 (IVM) | V86: T1 (PZQ+ALB/MBD) | Y86: 10751 | Z86: Pont Carol | AD86: ='MDA1'!K86 -> 0 | AE86: ='MDA3'!O86 -> 24567 | AF86: ='T1'!M86 -> 22618 | AG86: ='T2'!K86 -> 0 | AJ86: =_xlfn.XLOOKUP($Y86,[1]COUNTRY_INFO!$W$9:$W$131,[1]COUNTRY_INFO!K$9:K$131) -> 2
A87: =IF(INTRO!$E$34<>0,INTRO!$E$34,"") -> Chad | B87: Mayo Kebbi Est | C87: Youé | D87: 69238 | E87: =IF(INTRO!$E$48="","",ROUND($D87*INTRO!$E$48,0)) -> 11424 | F87: =IF(INTRO!$E$49="","",ROUND($D87*INTRO!$E$49,0)) -> 21014 | G87: =IF(INTRO!$E$50="","",ROUND($D87*INTRO!$E$50,0)) -> 34238 | H87: 0 | I87: 1 | J87: 1 | K87: 3 | M87: =IF(INTRO!$E$38="Endémique", IF($H87>0, IF($H87=4,"Inconnu", IF($H87=99,"Interrompu", $D87)), 0),"Non requis") -> 0 | N87: =IF(INTRO!$E$40="Endémique", IF($I87>0, IF($I87=4,"Inconnu",IF($I87=99,"Interrompu", $D87)), 0),"Non requis") -> 69238 | O87: =IF(INTRO!$E$42="Endémique", IF(AND($J87>1,$J87<5), IF($J87=4, "Inconnu", E87+F87), 0),"Non requis") -> 0 | P87: =IF(INTRO!$E$44="Endémique", IF(AND($K87>0,$K87<5), IF($K87=4,"Inconnu", IF($K87=1, $F87*0.33, IF($K87=2, $F87*0.5+$G87*0.2, SUM(F87:G87)))), 0),"Non requis") -> 55252 | Q87: 0 | R87: 1 | S87: 1 | T87: 1 | U87: MDA3 (IVM) | V87: T1 (PZQ+ALB/MBD) | Y87: 10752 | Z87: Youé | AD87: ='MDA1'!K87 -> 0 | AE87: ='MDA3'!O87 -> 21026 | AF87: ='T1'!M87 -> 20334 | AG87: ='T2'!K87 -> 0 | AJ87: =_xlfn.XLOOKUP($Y87,[1]COUNTRY_INFO!$W$9:$W$131,[1]COUNTRY_INFO!K$9:K$131) -> 3
A88: =IF(INTRO!$E$34<>0,INTRO!$E$34,"") -> Chad | B88: Mayo Kebbi Ouest | C88: Binder | D88: 83559 | E88: =IF(INTRO!$E$48="","",ROUND($D88*INTRO!$E$48,0)) -> 13787 | F88: =IF(INTRO!$E$49="","",ROUND($D88*INTRO!$E$49,0)) -> 25360 | G88: =IF(INTRO!$E$50="","",ROUND($D88*INTRO!$E$50,0)) -> 41320 | H88: 0 | I88: 1 | J88: 1 | K88: 3 | M88: =IF(INTRO!$E$38="Endémique", IF($H88>0, IF($H88=4,"Inconnu", IF($H88=99,"Interrompu", $D88)), 0),"Non requis") -> 0 | N88: =IF(INTRO!$E$40="Endémique", IF($I88>0, IF($I88=4,"Inconnu",IF($I88=99,"Interrompu", $D88)), 0),"Non requis") -> 83559 | O88: =IF(INTRO!$E$42="Endémique", IF(AND($J88>1,$J88<5), IF($J88=4, "Inconnu", E88+F88), 0),"Non requis") -> 0 | P88: =IF(INTRO!$E$44="Endémique", IF(AND($K88>0,$K88<5), IF($K88=4,"Inconnu", IF($K88=1, $F88*0.33, IF($K88=2, $F88*0.5+$G88*0.2, SUM(F88:G88)))), 0),"Non requis") -> 66680 | Q88: 0 | R88: 1 | S88: 1 | T88: 1 | U88: MDA3 (IVM) | V88: T1 (PZQ+ALB/MBD) | Y88: 10754 | Z88: Binder | AD88: ='MDA1'!K88 -> 0 | AE88: ='MDA3'!O88 -> 23939 | AF88: ='T1'!M88 -> 23641 | AG88: ='T2'!K88 -> 0 | AJ88: =_xlfn.XLOOKUP($Y88,[1]COUNTRY_INFO!$W$9:$W$131,[1]COUNTRY_INFO!K$9:K$131) -> 3
A89: =IF(INTRO!$E$34<>0,INTRO!$E$34,"") -> Chad | B89: Mayo Kebbi Ouest | C89: Gagal | D89: 151331 | E89: =IF(INTRO!$E$48="","",ROUND($D89*INTRO!$E$48,0)) -> 24970 | F89: =IF(INTRO!$E$49="","",ROUND($D89*INTRO!$E$49,0)) -> 45929 | G89: =IF(INTRO!$E$50="","",ROUND($D89*INTRO!$E$50,0)) -> 74833 | H89: 0 | I89: 1 | J89: 1 | K89: 2 | M89: =IF(INTRO!$E$38="Endémique", IF($H89>0, IF($H89=4,"Inconnu", IF($H89=99,"Interrompu", $D89)), 0),"Non requis") -> 0 | N89: =IF(INTRO!$E$40="Endémique", IF($I89>0, IF($I89=4,"Inconnu",IF($I89=99,"Interrompu", $D89)), 0),"Non requis") -> 151331 | O89: =IF(INTRO!$E$42="Endémique", IF(AND($J89>1,$J89<5), IF($J89=4, "Inconnu", E89+F89), 0),"Non requis") -> 0 | P89: =IF(INTRO!$E$44="Endémique", IF(AND($K89>0,$K89<5), IF($K89=4,"Inconnu", IF($K89=1, $F89*0.33, IF($K89=2, $F89*0.5+$G89*0.2, SUM(F89:G89)))), 0),"Non requis") -> 37931.1 | Q89: 0 | R89: 1 | S89: 1 | T89: 1 | U89: MDA3 (IVM) | V89: T1 (PZQ+ALB/MBD) | Y89: 10755 | Z89: Gagal | AD89: ='MDA1'!K89 -> 0 | AE89: ='MDA3'!O89 -> 44699 | AF89: ='T1'!M89 -> 44873 | AG89: ='T2'!K89 -> 0 | AJ89: =_xlfn.XLOOKUP($Y89,[1]COUNTRY_INFO!$W$9:$W$131,[1]COUNTRY_INFO!K$9:K$131) -> 2
A90: =IF(INTRO!$E$34<>0,INTRO!$E$34,"") -> Chad | B90: Mayo Kebbi Ouest | C90: Guegou | D90: 42177 | E90: =IF(INTRO!$E$48="","",ROUND($D90*INTRO!$E$48,0)) -> 6959 | F90: =IF(INTRO!$E$49="","",ROUND($D90*INTRO!$E$49,0)) -> 12801 | G90: =IF(INTRO!$E$50="","",ROUND($D90*INTRO!$E$50,0)) -> 20857 | H90: 0 | I90: 1 | J90: 1 | K90: 3 | M90: =IF(INTRO!$E$38="Endémique", IF($H90>0, IF($H90=4,"Inconnu", IF($H90=99,"Interrompu", $D90)), 0),"Non requis") -> 0 | N90: =IF(INTRO!$E$40="Endémique", IF($I90>0, IF($I90=4,"Inconnu",IF($I90=99,"Interrompu", $D90)), 0),"Non requis") -> 42177 | O90: =IF(INTRO!$E$42="Endémique", IF(AND($J90>1,$J90<5), IF($J90=4, "Inconnu", E90+F90), 0),"Non requis") -> 0 | P90: =IF(INTRO!$E$44="Endémique", IF(AND($K90>0,$K90<5), IF($K90=4,"Inconnu", IF($K90=1, $F90*0.33, IF($K90=2, $F90*0.5+$G90*0.2, SUM(F90:G90)))), 0),"Non requis") -> 33658 | Q90: 0 | R90: 1 | S90: 1 | T90: 1 | U90: MDA3 (IVM) | V90: T1 (PZQ+ALB/MBD) | Y90: 10771 | Z90: Guegou | AD90: ='MDA1'!K90 -> 0 | AE90: ='MDA3'!O90 -> 11812 | AF90: ='T1'!M90 -> 10546 | AG90: ='T2'!K90 -> 0 | AJ90: =_xlfn.XLOOKUP($Y90,[1]COUNTRY_INFO!$W$9:$W$131,[1]COUNTRY_INFO!K$9:K$131) -> 3
A91: =IF(INTRO!$E$34<>0,INTRO!$E$34,"") -> Chad | B91: Mayo Kebbi Ouest | C91: GUELO | D91: 53228 | E91: =IF(INTRO!$E$48="","",ROUND($D91*INTRO!$E$48,0)) -> 8783 | F91: =IF(INTRO!$E$49="","",ROUND($D91*INTRO!$E$49,0)) -> 16155 | G91: =IF(INTRO!$E$50="","",ROUND($D91*INTRO!$E$50,0)) -> 26321 | H91: 0 | I91: 1 | J91: 1 | K91: 3 | M91: =IF(INTRO!$E$38="Endémique", IF($H91>0, IF($H91=4,"Inconnu", IF($H91=99,"Interrompu", $D91)), 0),"Non requis") -> 0 | N91: =IF(INTRO!$E$40="Endémique", IF($I91>0, IF($I91=4,"Inconnu",IF($I91=99,"Interrompu", $D91)), 0),"Non requis") -> 53228 | O91: =IF(INTRO!$E$42="Endémique", IF(AND($J91>1,$J91<5), IF($J91=4, "Inconnu", E91+F91), 0),"Non requis") -> 0 | P91: =IF(INTRO!$E$44="Endémique", IF(AND($K91>0,$K91<5), IF($K91=4,"Inconnu", IF($K91=1, $F91*0.33, IF($K91=2, $F91*0.5+$G91*0.2, SUM(F91:G91)))), 0),"Non requis") -> 42476 | Q91: 0 | R91: 1 | S91: 1 | T91: 1 | U91: MDA3 (IVM) | V91: T1 (PZQ+ALB/MBD) | Y91: 10772 | Z91: GUELO | AD91: ='MDA1'!K91 -> 0 | AE91: ='MDA3'!O91 -> 15897 | AF91: ='T1'!M91 -> 15897 | AG91: ='T2'!K91 -> 0 | AJ91: =_xlfn.XLOOKUP($Y91,[1]COUNTRY_INFO!$W$9:$W$131,[1]COUNTRY_INFO!K$9:K$131) -> 3
A92: =IF(INTRO!$E$34<>0,INTRO!$E$34,"") -> Chad | B92: Mayo Kebbi Ouest | C92: Lagon | D92: 84587 | E92: =IF(INTRO!$E$48="","",ROUND($D92*INTRO!$E$48,0)) -> 13957 | F92: =IF(INTRO!$E$49="","",ROUND($D92*INTRO!$E$49,0)) -> 25672 | G92: =IF(INTRO!$E$50="","",ROUND($D92*INTRO!$E$50,0)) -> 41828 | H92: 0 | I92: 1 | J92: 1 | K92: 3 | M92: =IF(INTRO!$E$38="Endémique", IF($H92>0, IF($H92=4,"Inconnu", IF($H92=99,"Interrompu", $D92)), 0),"Non requis") -> 0 | N92: =IF(INTRO!$E$40="Endémique", IF($I92>0, IF($I92=4,"Inconnu",IF($I92=99,"Interrompu", $D92)), 0),"Non requis") -> 84587 | O92: =IF(INTRO!$E$42="Endémique", IF(AND($J92>1,$J92<5), IF($J92=4, "Inconnu", E92+F92), 0),"Non requis") -> 0 | P92: =IF(INTRO!$E$44="Endémique", IF(AND($K92>0,$K92<5), IF($K92=4,"Inconnu", IF($K92=1, $F92*0.33, IF($K92=2, $F92*0.5+$G92*0.2, SUM(F92:G92)))), 0),"Non requis") -> 67500 | Q92: 0 | R92: 1 | S92: 1 | T92: 1 | U92: MDA3 (IVM) | V92: T1 (PZQ+ALB/MBD) | Y92: 10756 | Z92: Lagon | AD92: ='MDA1'!K92 -> 0 | AE92: ='MDA3'!O92 -> 21536 | AF92: ='T1'!M92 -> 25009 | AG92: ='T2'!K92 -> 0 | AJ92: =_xlfn.XLOOKUP($Y92,[1]COUNTRY_INFO!$W$9:$W$131,[1]COUNTRY_INFO!K$9:K$131) -> 3
A93: =IF(INTRO!$E$34<>0,INTRO!$E$34,"") -> Chad | B93: Mayo Kebbi Ouest | C93: Lamé | D93: 90302 | E93: =IF(INTRO!$E$48="","",ROUND($D93*INTRO!$E$48,0)) -> 14900 | F93: =IF(INTRO!$E$49="","",ROUND($D93*INTRO!$E$49,0)) -> 27407 | G93: =IF(INTRO!$E$50="","",ROUND($D93*INTRO!$E$50,0)) -> 44654 | H93: 0 | I93: 1 | J93: 1 | K93: 2 | M93: =IF(INTRO!$E$38="Endémique", IF($H93>0, IF($H93=4,"Inconnu", IF($H93=99,"Interrompu", $D93)), 0),"Non requis") -> 0 | N93: =IF(INTRO!$E$40="Endémique", IF($I93>0, IF($I93=4,"Inconnu",IF($I93=99,"Interrompu", $D93)), 0),"Non requis") -> 90302 | O93: =IF(INTRO!$E$42="Endémique", IF(AND($J93>1,$J93<5), IF($J93=4, "Inconnu", E93+F93), 0),"Non requis") -> 0 | P93: =IF(INTRO!$E$44="Endémique", IF(AND($K93>0,$K93<5), IF($K93=4,"Inconnu", IF($K93=1, $F93*0.33, IF($K93=2, $F93*0.5+$G93*0.2, SUM(F93:G93)))), 0),"Non requis") -> 22634.3 | Q93: 0 | R93: 1 | S93: 1 | T93: 1 | U93: MDA3 (IVM) | V93: T1 (PZQ+ALB/MBD) | Y93: 10757 | Z93: Lamé | AD93: ='MDA1'!K93 -> 0 | AE93: ='MDA3'!O93 -> 21866 | AF93: ='T1'!M93 -> 26888 | AG93: ='T2'!K93 -> 0 | AJ93: =_xlfn.XLOOKUP($Y93,[1]COUNTRY_INFO!$W$9:$W$131,[1]COUNTRY_INFO!K$9:K$131) -> 2
A94: =IF(INTRO!$E$34<>0,INTRO!$E$34,"") -> Chad | B94: Mayo Kebbi Ouest | C94: Lere | D94: 152611 | E94: =IF(INTRO!$E$48="","",ROUND($D94*INTRO!$E$48,0)) -> 25181 | F94: =IF(INTRO!$E$49="","",ROUND($D94*INTRO!$E$49,0)) -> 46317 | G94: =IF(INTRO!$E$50="","",ROUND($D94*INTRO!$E$50,0)) -> 75466 | H94: 0 | I94: 1 | J94: 1 | K94: 3 | M94: =IF(INTRO!$E$38="Endémique", IF($H94>0, IF($H94=4,"Inconnu", IF($H94=99,"Interrompu", $D94)), 0),"Non requis") -> 0 | N94: =IF(INTRO!$E$40="Endémique", IF($I94>0, IF($I94=4,"Inconnu",IF($I94=99,"Interrompu", $D94)), 0),"Non requis") -> 152611 | O94: =IF(INTRO!$E$42="Endémique", IF(AND($J94>1,$J94<5), IF($J94=4, "Inconnu", E94+F94), 0),"Non requis") -> 0 | P94: =IF(INTRO!$E$44="Endémique", IF(AND($K94>0,$K94<5), IF($K94=4,"Inconnu", IF($K94=1, $F94*0.33, IF($K94=2, $F94*0.5+$G94*0.2, SUM(F94:G94)))), 0),"Non requis") -> 121783 | Q94: 0 | R94: 1 | S94: 1 | T94: 1 | U94: MDA3 (IVM) | V94: T1 (PZQ+ALB/MBD) | Y94: 10715 | Z94: Lere | AD94: ='MDA1'!K94 -> 0 | AE94: ='MDA3'!O94 -> 46003 | AF94: ='T1'!M94 -> 46321 | AG94: ='T2'!K94 -> 0 | AJ94: =_xlfn.XLOOKUP($Y94,[1]COUNTRY_INFO!$W$9:$W$131,[1]COUNTRY_INFO!K$9:K$131) -> 3
A95: =IF(INTRO!$E$34<>0,INTRO!$E$34,"") -> Chad | B95: Mayo Kebbi Ouest | C95: Pala | D95: 140792 | E95: =IF(INTRO!$E$48="","",ROUND($D95*INTRO!$E$48,0)) -> 23231 | F95: =IF(INTRO!$E$49="","",ROUND($D95*INTRO!$E$49,0)) -> 42730 | G95: =IF(INTRO!$E$50="","",ROUND($D95*INTRO!$E$50,0)) -> 69622 | H95: 0 | I95: 1 | J95: 1 | K95: 2 | M95: =IF(INTRO!$E$38="Endémique", IF($H95>0, IF($H95=4,"Inconnu", IF($H95=99,"Interrompu", $D95)), 0),"Non requis") -> 0 | N95: =IF(INTRO!$E$40="Endémique", IF($I95>0, IF($I95=4,"Inconnu",IF($I95=99,"Interrompu", $D95)), 0),"Non requis") -> 140792 | O95: =IF(INTRO!$E$42="Endémique", IF(AND($J95>1,$J95<5), IF($J95=4, "Inconnu", E95+F95), 0),"Non requis") -> 0 | P95: =IF(INTRO!$E$44="Endémique", IF(AND($K95>0,$K95<5), IF($K95=4,"Inconnu", IF($K95=1, $F95*0.33, IF($K95=2, $F95*0.5+$G95*0.2, SUM(F95:G95)))), 0),"Non requis") -> 35289.4 | Q95: 0 | R95: 1 | S95: 1 | T95: 1 | U95: MDA3 (IVM) | V95: T1 (PZQ+ALB/MBD) | Y95: 10716 | Z95: Pala | AD95: ='MDA1'!K95 -> 0 | AE95: ='MDA3'!O95 -> 42009 | AF95: ='T1'!M95 -> 42006 | AG95: ='T2'!K95 -> 0 | AJ95: =_xlfn.XLOOKUP($Y95,[1]COUNTRY_INFO!$W$9:$W$131,[1]COUNTRY_INFO!K$9:K$131) -> 2
A96: =IF(INTRO!$E$34<>0,INTRO!$E$34,"") -> Chad | B96: Mayo Kebbi Ouest | C96: Torrock | D96: 84873 | E96: =IF(INTRO!$E$48="","",ROUND($D96*INTRO!$E$48,0)) -> 14004 | F96: =IF(INTRO!$E$49="","",ROUND($D96*INTRO!$E$49,0)) -> 25759 | G96: =IF(INTRO!$E$50="","",ROUND($D96*INTRO!$E$50,0)) -> 41970 | H96: 0 | I96: 1 | J96: 1 | K96: 2 | M96: =IF(INTRO!$E$38="Endémique", IF($H96>0, IF($H96=4,"Inconnu", IF($H96=99,"Interrompu", $D96)), 0),"Non requis") -> 0 | N96: =IF(INTRO!$E$40="Endémique", IF($I96>0, IF($I96=4,"Inconnu",IF($I96=99,"Interrompu", $D96)), 0),"Non requis") -> 84873 | O96: =IF(INTRO!$E$42="Endémique", IF(AND($J96>1,$J96<5), IF($J96=4, "Inconnu", E96+F96), 0),"Non requis") -> 0 | P96: =IF(INTRO!$E$44="Endémique", IF(AND($K96>0,$K96<5), IF($K96=4,"Inconnu", IF($K96=1, $F96*0.33, IF($K96=2, $F96*0.5+$G96*0.2, SUM(F96:G96)))), 0),"Non requis") -> 21273.5 | Q96: 0 | R96: 1 | S96: 1 | T96: 1 | U96: MDA3 (IVM) | V96: T1 (PZQ+ALB/MBD) | Y96: 10758 | Z96: Torrock | AD96: ='MDA1'!K96 -> 0 | AE96: ='MDA3'!O96 -> 24066 | AF96: ='T1'!M96 -> 22416 | AG96: ='T2'!K96 -> 0 | AJ96: =_xlfn.XLOOKUP($Y96,[1]COUNTRY_INFO!$W$9:$W$131,[1]COUNTRY_INFO!K$9:K$131) -> 2
A97: =IF(INTRO!$E$34<>0,INTRO!$E$34,"") -> Chad | B97: Moyen Chari | C97: Balimba | D97: 85188 | E97: =IF(INTRO!$E$48="","",ROUND($D97*INTRO!$E$48,0)) -> 14056 | F97: =IF(INTRO!$E$49="","",ROUND($D97*INTRO!$E$49,0)) -> 25855 | G97: =IF(INTRO!$E$50="","",ROUND($D97*INTRO!$E$50,0)) -> 42125 | H97: 1 | I97: 1 | J97: 2 | K97: 2 | M97: =IF(INTRO!$E$38="Endémique", IF($H97>0, IF($H97=4,"Inconnu", IF($H97=99,"Interrompu", $D97)), 0),"Non requis") -> 85188 | N97: =IF(INTRO!$E$40="Endémique", IF($I97>0, IF($I97=4,"Inconnu",IF($I97=99,"Interrompu", $D97)), 0),"Non requis") -> 85188 | O97: =IF(INTRO!$E$42="Endémique", IF(AND($J97>1,$J97<5), IF($J97=4, "Inconnu", E97+F97), 0),"Non requis") -> 39911 | P97: =IF(INTRO!$E$44="Endémique", IF(AND($K97>0,$K97<5), IF($K97=4,"Inconnu", IF($K97=1, $F97*0.33, IF($K97=2, $F97*0.5+$G97*0.2, SUM(F97:G97)))), 0),"Non requis") -> 21352.5 | Q97: 1 | R97: 1 | S97: 1 | T97: 1 | U97: MDA1 (IVM+ALB) | V97: T2 (PZQ) | Y97: 10780 | Z97: Balimba | AD97: ='MDA1'!K97 -> 25144 | AE97: ='MDA3'!O97 -> 0 | AF97: ='T1'!M97 -> 0 | AG97: ='T2'!K97 -> 25741 | AJ97: =_xlfn.XLOOKUP($Y97,[1]COUNTRY_INFO!$W$9:$W$131,[1]COUNTRY_INFO!K$9:K$131) -> 2
A98: =IF(INTRO!$E$34<>0,INTRO!$E$34,"") -> Chad | B98: Moyen Chari | C98: Biobe Singako | D98: 91962 | E98: =IF(INTRO!$E$48="","",ROUND($D98*INTRO!$E$48,0)) -> 15174 | F98: =IF(INTRO!$E$49="","",ROUND($D98*INTRO!$E$49,0)) -> 27910 | G98: =IF(INTRO!$E$50="","",ROUND($D98*INTRO!$E$50,0)) -> 45475 | H98: 1 | I98: 1 | J98: 1 | K98: 2 | M98: =IF(INTRO!$E$38="Endémique", IF($H98>0, IF($H98=4,"Inconnu", IF($H98=99,"Interrompu", $D98)), 0),"Non requis") -> 91962 | N98: =IF(INTRO!$E$40="Endémique", IF($I98>0, IF($I98=4,"Inconnu",IF($I98=99,"Interrompu", $D98)), 0),"Non requis") -> 91962 | O98: =IF(INTRO!$E$42="Endémique", IF(AND($J98>1,$J98<5), IF($J98=4, "Inconnu", E98+F98), 0),"Non requis") -> 0 | P98: =IF(INTRO!$E$44="Endémique", IF(AND($K98>0,$K98<5), IF($K98=4,"Inconnu", IF($K98=1, $F98*0.33, IF($K98=2, $F98*0.5+$G98*0.2, SUM(F98:G98)))), 0),"Non requis") -> 23050 | Q98: 1 | R98: 1 | S98: 0 | T98: 1 | U98: MDA1 (IVM+ALB) | V98: T2 (PZQ) | Y98: 10717 | Z98: Biobe Singako | AD98: ='MDA1'!K98 -> 27769 | AE98: ='MDA3'!O98 -> 0 | AF98: ='T1'!M98 -> 0 | AG98: ='T2'!K98 -> 26008 | AJ98: =_xlfn.XLOOKUP($Y98,[1]COUNTRY_INFO!$W$9:$W$131,[1]COUNTRY_INFO!K$9:K$131) -> 2
A99: =IF(INTRO!$E$34<>0,INTRO!$E$34,"") -> Chad | B99: Moyen Chari | C99: Danamadji | D99: 201723 | E99: =IF(INTRO!$E$48="","",ROUND($D99*INTRO!$E$48,0)) -> 33284 | F99: =IF(INTRO!$E$49="","",ROUND($D99*INTRO!$E$49,0)) -> 61223 | G99: =IF(INTRO!$E$50="","",ROUND($D99*INTRO!$E$50,0)) -> 99752 | H99: 1 | I99: 1 | J99: 1 | K99: 1 | M99: =IF(INTRO!$E$38="Endémique", IF($H99>0, IF($H99=4,"Inconnu", IF($H99=99,"Interrompu", $D99)), 0),"Non requis") -> 201723 | N99: =IF(INTRO!$E$40="Endémique", IF($I99>0, IF($I99=4,"Inconnu",IF($I99=99,"Interrompu", $D99)), 0),"Non requis") -> 201723 | O99: =IF(INTRO!$E$42="Endémique", IF(AND($J99>1,$J99<5), IF($J99=4, "Inconnu", E99+F99), 0),"Non requis") -> 0 | P99: =IF(INTRO!$E$44="Endémique", IF(AND($K99>0,$K99<5), IF($K99=4,"Inconnu", IF($K99=1, $F99*0.33, IF($K99=2, $F99*0.5+$G99*0.2, SUM(F99:G99)))), 0),"Non requis") -> 20203.59 | Q99: 1 | R99: 1 | S99: 0 | T99: 1 | U99: MDA1 (IVM+ALB) | V99: T2 (PZQ) | Y99: 10718 | Z99: Danamadji | AD99: ='MDA1'!K99 -> 52230 | AE99: ='MDA3'!O99 -> 0 | AF99: ='T1'!M99 -> 0 | AG99: ='T2'!K99 -> 60235 | AJ99: =_xlfn.XLOOKUP($Y99,[1]COUNTRY_INFO!$W$9:$W$131,[1]COUNTRY_INFO!K$9:K$131) -> 1
A100: =IF(INTRO!$E$34<>0,INTRO!$E$34,"") -> Chad | B100: Moyen Chari | C100: Korbol | D100: 151799 | E100: =IF(INTRO!$E$48="","",ROUND($D100*INTRO!$E$48,0)) -> 25047 | F100: =IF(INTRO!$E$49="","",ROUND($D100*INTRO!$E$49,0)) -> 46071 | G100: =IF(INTRO!$E$50="","",ROUND($D100*INTRO!$E$50,0)) -> 75065 | H100: 1 | I100: 1 | J100: 2 | K100: 2 | M100: =IF(INTRO!$E$38="Endémique", IF($H100>0, IF($H100=4,"Inconnu", IF($H100=99,"Interrompu", $D100)), 0),"Non requis") -> 151799 | N100: =IF(INTRO!$E$40="Endémique", IF($I100>0, IF($I100=4,"Inconnu",IF($I100=99,"Interrompu", $D100)), 0),"Non requis") -> 151799 | O100: =IF(INTRO!$E$42="Endémique", IF(AND($J100>1,$J100<5), IF($J100=4, "Inconnu", E100+F100), 0),"Non requis") -> 71118 | P100: =IF(INTRO!$E$44="Endémique", IF(AND($K100>0,$K100<5), IF($K100=4,"Inconnu", IF($K100=1, $F100*0.33, IF($K100=2, $F100*0.5+$G100*0.2, SUM(F100:G100)))), 0),"Non requis") -> 38048.5 | Q100: 1 | R100: 1 | S100: 1 | T100: 1 | U100: MDA1 (IVM+ALB) | V100: T2 (PZQ) | Y100: 10773 | Z100: Korbol | AD100: ='MDA1'!K100 -> 43161 | AE100: ='MDA3'!O100 -> 0 | AF100: ='T1'!M100 -> 0 | AG100: ='T2'!K100 -> 45632 | AJ100: =_xlfn.XLOOKUP($Y100,[1]COUNTRY_INFO!$W$9:$W$131,[1]COUNTRY_INFO!K$9:K$131) -> 2
A101: =IF(INTRO!$E$34<>0,INTRO!$E$34,"") -> Chad | B101: Moyen Chari | C101: Koumogo | D101: 107813 | E101: =IF(INTRO!$E$48="","",ROUND($D101*INTRO!$E$48,0)) -> 17789 | F101: =IF(INTRO!$E$49="","",ROUND($D101*INTRO!$E$49,0)) -> 32721 | G101: =IF(INTRO!$E$50="","",ROUND($D101*INTRO!$E$50,0)) -> 53314 | H101: 1 | I101: 1 | J101: 1 | K101: 2 | M101: =IF(INTRO!$E$38="Endémique", IF($H101>0, IF($H101=4,"Inconnu", IF($H101=99,"Interrompu", $D101)), 0),"Non requis") -> 107813 | N101: =IF(INTRO!$E$40="Endémique", IF($I101>0, IF($I101=4,"Inconnu",IF($I101=99,"Interrompu", $D101)), 0),"Non requis") -> 107813 | O101: =IF(INTRO!$E$42="Endémique", IF(AND($J101>1,$J101<5), IF($J101=4, "Inconnu", E101+F101), 0),"Non requis") -> 0 | P101: =IF(INTRO!$E$44="Endémique", IF(AND($K101>0,$K101<5), IF($K101=4,"Inconnu", IF($K101=1, $F101*0.33, IF($K101=2, $F101*0.5+$G101*0.2, SUM(F101:G101)))), 0),"Non requis") -> 27023.3 | Q101: 1 | R101: 1 | S101: 0 | T101: 1 | U101: MDA1 (IVM+ALB) | V101: T2 (PZQ) | Y101: 10781 | Z101: Koumogo | AD101: ='MDA1'!K101 -> 32009 | AE101: ='MDA3'!O101 -> 0 | AF101: ='T1'!M101 -> 0 | AG101: ='T2'!K101 -> 31004 | AJ101: =_xlfn.XLOOKUP($Y101,[1]COUNTRY_INFO!$W$9:$W$131,[1]COUNTRY_INFO!K$9:K$131) -> 2
A102: =IF(INTRO!$E$34<>0,INTRO!$E$34,"") -> Chad | B102: Moyen Chari | C102: Kyabe | D102: 124364 | E102: =IF(INTRO!$E$48="","",ROUND($D102*INTRO!$E$48,0)) -> 20520 | F102: =IF(INTRO!$E$49="","",ROUND($D102*INTRO!$E$49,0)) -> 37744 | G102: =IF(INTRO!$E$50="","",ROUND($D102*INTRO!$E$50,0)) -> 61498 | H102: 1 | I102: 1 | J102: 1 | K102: 2 | M102: =IF(INTRO!$E$38="Endémique", IF($H102>0, IF($H102=4,"Inconnu", IF($H102=99,"Interrompu", $D102)), 0),"Non requis") -> 124364 | N102: =IF(INTRO!$E$40="Endémique", IF($I102>0, IF($I102=4,"Inconnu",IF($I102=99,"Interrompu", $D102)), 0),"Non requis") -> 124364 | O102: =IF(INTRO!$E$42="Endémique", IF(AND($J102>1,$J102<5), IF($J102=4, "Inconnu", E102+F102), 0),"Non requis") -> 0 | P102: =IF(INTRO!$E$44="Endémique", IF(AND($K102>0,$K102<5), IF($K102=4,"Inconnu", IF($K102=1, $F102*0.33, IF($K102=2, $F102*0.5+$G102*0.2, SUM(F102:G102)))), 0),"Non requis") -> 31171.6 | Q102: 1 | R102: 1 | S102: 0 | T102: 1 | U102: MDA1 (IVM+ALB) | V102: T2 (PZQ) | Y102: 10719 | Z102: Kyabe | AD102: ='MDA1'!K102 -> 37416 | AE102: ='MDA3'!O102 -> 0 | AF102: ='T1'!M102 -> 0 | AG102: ='T2'!K102 -> 37142 | AJ102: =_xlfn.XLOOKUP($Y102,[1]COUNTRY_INFO!$W$9:$W$131,[1]COUNTRY_INFO!K$9:K$131) -> 2
A103: =IF(INTRO!$E$34<>0,INTRO!$E$34,"") -> Chad | B103: Moyen Chari | C103: Maro | D103: 267483 | E103: =IF(INTRO!$E$48="","",ROUND($D103*INTRO!$E$48,0)) -> 44135 | F103: =IF(INTRO!$E$49="","",ROUND($D103*INTRO!$E$49,0)) -> 81181 | G103: =IF(INTRO!$E$50="","",ROUND($D103*INTRO!$E$50,0)) -> 132270 | H103: 1 | I103: 1 | J103: 1 | K103: 1 | M103: =IF(INTRO!$E$38="Endémique", IF($H103>0, IF($H103=4,"Inconnu", IF($H103=99,"Interrompu", $D103)), 0),"Non requis") -> 267483 | N103: =IF(INTRO!$E$40="Endémique", IF($I103>0, IF($I103=4,"Inconnu",IF($I103=99,"Interrompu", $D103)), 0),"Non requis") -> 267483 | O103: =IF(INTRO!$E$42="Endémique", IF(AND($J103>1,$J103<5), IF($J103=4, "Inconnu", E103+F103), 0),"Non requis") -> 0 | P103: =IF(INTRO!$E$44="Endémique", IF(AND($K103>0,$K103<5), IF($K103=4,"Inconnu", IF($K103=1, $F103*0.33, IF($K103=2, $F103*0.5+$G103*0.2, SUM(F103:G103)))), 0),"Non requis") -> 26789.73 | Q103: 1 | R103: 1 | S103: 0 | T103: 1 | U103: MDA1 (IVM+ALB) | V103: T2 (PZQ) | Y103: 10774 | Z103: Maro | AD103: ='MDA1'!K103 -> 78444 | AE103: ='MDA3'!O103 -> 0 | AF103: ='T1'!M103 -> 0 | AG103: ='T2'!K103 -> 80023 | AJ103: =_xlfn.XLOOKUP($Y103,[1]COUNTRY_INFO!$W$9:$W$131,[1]COUNTRY_INFO!K$9:K$131) -> 1
A104: =IF(INTRO!$E$34<>0,INTRO!$E$34,"") -> Chad | B104: Moyen Chari | C104: Sarh | D104: 204196 | E104: =IF(INTRO!$E$48="","",ROUND($D104*INTRO!$E$48,0)) -> 33692 | F104: =IF(INTRO!$E$49="","",ROUND($D104*INTRO!$E$49,0)) -> 61973 | G104: =IF(INTRO!$E$50="","",ROUND($D104*INTRO!$E$50,0)) -> 100975 | H104: 1 | I104: 1 | J104: 2 | K104: 2 | M104: =IF(INTRO!$E$38="Endémique", IF($H104>0, IF($H104=4,"Inconnu", IF($H104=99,"Interrompu", $D104)), 0),"Non requis") -> 204196 | N104: =IF(INTRO!$E$40="Endémique", IF($I104>0, IF($I104=4,"Inconnu",IF($I104=99,"Interrompu", $D104)), 0),"Non requis") -> 204196 | O104: =IF(INTRO!$E$42="Endémique", IF(AND($J104>1,$J104<5), IF($J104=4, "Inconnu", E104+F104), 0),"Non requis") -> 95665 | P104: =IF(INTRO!$E$44="Endémique", IF(AND($K104>0,$K104<5), IF($K104=4,"Inconnu", IF($K104=1, $F104*0.33, IF($K104=2, $F104*0.5+$G104*0.2, SUM(F104:G104)))), 0),"Non requis") -> 51181.5 | Q104: 1 | R104: 1 | S104: 1 | T104: 1 | U104: MDA1 (IVM+ALB) | V104: T2 (PZQ) | Y104: 10720 | Z104: Sarh | AD104: ='MDA1'!K104 -> 57361 | AE104: ='MDA3'!O104 -> 0 | AF104: ='T1'!M104 -> 0 | AG104: ='T2'!K104 -> 60087 | AJ104: =_xlfn.XLOOKUP($Y104,[1]COUNTRY_INFO!$W$9:$W$131,[1]COUNTRY_INFO!K$9:K$131) -> 2
A105: =IF(INTRO!$E$34<>0,INTRO!$E$34,"") -> Chad | B105: N'Djaména | C105: N'Djaména Centre | D105: 475469 | E105: =IF(INTRO!$E$48="","",ROUND($D105*INTRO!$E$48,0)) -> 78452 | F105: =IF(INTRO!$E$49="","",ROUND($D105*INTRO!$E$49,0)) -> 144305 | G105: =IF(INTRO!$E$50="","",ROUND($D105*INTRO!$E$50,0)) -> 235119 | H105: 0 | I105: 0 | J105: 1 | K105: 1 | M105: =IF(INTRO!$E$38="Endémique", IF($H105>0, IF($H105=4,"Inconnu", IF($H105=99,"Interrompu", $D105)), 0),"Non requis") -> 0 | N105: =IF(INTRO!$E$40="Endémique", IF($I105>0, IF($I105=4,"Inconnu",IF($I105=99,"Interrompu", $D105)), 0),"Non requis") -> 0 | O105: =IF(INTRO!$E$42="Endémique", IF(AND($J105>1,$J105<5), IF($J105=4, "Inconnu", E105+F105), 0),"Non requis") -> 0 | P105: =IF(INTRO!$E$44="Endémique", IF(AND($K105>0,$K105<5), IF($K105=4,"Inconnu", IF($K105=1, $F105*0.33, IF($K105=2, $F105*0.5+$G105*0.2, SUM(F105:G105)))), 0),"Non requis") -> 47620.65 | Q105: 0 | R105: 0 | S105: 0 | T105: 0 | Y105: 10721 | Z105: N'Djaména Centre | AD105: ='MDA1'!K105 -> 0 | AE105: ='MDA3'!O105 -> 0 | AF105: ='T1'!M105 -> 0 | AG105: ='T2'!K105 -> 0 | AJ105: =_xlfn.XLOOKUP($Y105,[1]COUNTRY_INFO!$W$9:$W$131,[1]COUNTRY_INFO!K$9:K$131) -> 1
A106: =IF(INTRO!$E$34<>0,INTRO!$E$34,"") -> Chad | B106: N'Djaména | C106: N'Djaména Est | D106: 174362 | E106: =IF(INTRO!$E$48="","",ROUND($D106*INTRO!$E$48,0)) -> 28770 | F106: =IF(INTRO!$E$49="","",ROUND($D106*INTRO!$E$49,0)) -> 52919 | G106: =IF(INTRO!$E$50="","",ROUND($D106*INTRO!$E$50,0)) -> 86222 | H106: 0 | I106: 0 | J106: 0 | K106: 1 | M106: =IF(INTRO!$E$38="Endémique", IF($H106>0, IF($H106=4,"Inconnu", IF($H106=99,"Interrompu", $D106)), 0),"Non requis") -> 0 | N106: =IF(INTRO!$E$40="Endémique", IF($I106>0, IF($I106=4,"Inconnu",IF($I106=99,"Interrompu", $D106)), 0),"Non requis") -> 0 | O106: =IF(INTRO!$E$42="Endémique", IF(AND($J106>1,$J106<5), IF($J106=4, "Inconnu", E106+F106), 0),"Non requis") -> 0 | P106: =IF(INTRO!$E$44="Endémique", IF(AND($K106>0,$K106<5), IF($K106=4,"Inconnu", IF($K106=1, $F106*0.33, IF($K106=2, $F106*0.5+$G106*0.2, SUM(F106:G106)))), 0),"Non requis") -> 17463.27 | Q106: 0 | R106: 0 | S106: 0 | T106: 0 | Y106: 10722 | Z106: N'Djaména Est | AD106: ='MDA1'!K106 -> 0 | AE106: ='MDA3'!O106 -> 0 | AF106: ='T1'!M106 -> 0 | AG106: ='T2'!K106 -> 0 | AJ106: =_xlfn.XLOOKUP($Y106,[1]COUNTRY_INFO!$W$9:$W$131,[1]COUNTRY_INFO!K$9:K$131) -> 1
A107: =IF(INTRO!$E$34<>0,INTRO!$E$34,"") -> Chad | B107: N'Djaména | C107: N'Djaména Nord | D107: 168990 | E107: =IF(INTRO!$E$48="","",ROUND($D107*INTRO!$E$48,0)) -> 27883 | F107: =IF(INTRO!$E$49="","",ROUND($D107*INTRO!$E$49,0)) -> 51288 | G107: =IF(INTRO!$E$50="","",ROUND($D107*INTRO!$E$50,0)) -> 83566 | H107: 0 | I107: 0 | J107: 0 | K107: 1 | M107: =IF(INTRO!$E$38="Endémique", IF($H107>0, IF($H107=4,"Inconnu", IF($H107=99,"Interrompu", $D107)), 0),"Non requis") -> 0 | N107: =IF(INTRO!$E$40="Endémique", IF($I107>0, IF($I107=4,"Inconnu",IF($I107=99,"Interrompu", $D107)), 0),"Non requis") -> 0 | O107: =IF(INTRO!$E$42="Endémique", IF(AND($J107>1,$J107<5), IF($J107=4, "Inconnu", E107+F107), 0),"Non requis") -> 0 | P107: =IF(INTRO!$E$44="Endémique", IF(AND($K107>0,$K107<5), IF($K107=4,"Inconnu", IF($K107=1, $F107*0.33, IF($K107=2, $F107*0.5+$G107*0.2, SUM(F107:G107)))), 0),"Non requis") -> 16925.04 | Q107: 0 | R107: 0 | S107: 0 | T107: 0 | Y107: 10723 | Z107: N'Djaména Nord | AD107: ='MDA1'!K107 -> 0 | AE107: ='MDA3'!O107 -> 0 | AF107: ='T1'!M107 -> 0 | AG107: ='T2'!K107 -> 0 | AJ107: =_xlfn.XLOOKUP($Y107,[1]COUNTRY_INFO!$W$9:$W$131,[1]COUNTRY_INFO!K$9:K$131) -> 1
A108: =IF(INTRO!$E$34<>0,INTRO!$E$34,"") -> Chad | B108: N'Djaména | C108: N'Djaména Sud | D108: 445906 | E108: =IF(INTRO!$E$48="","",ROUND($D108*INTRO!$E$48,0)) -> 73574 | F108: =IF(INTRO!$E$49="","",ROUND($D108*INTRO!$E$49,0)) -> 135332 | G108: =IF(INTRO!$E$50="","",ROUND($D108*INTRO!$E$50,0)) -> 220501 | H108: 0 | I108: 0 | J108: 1 | K108: 1 | M108: =IF(INTRO!$E$38="Endémique", IF($H108>0, IF($H108=4,"Inconnu", IF($H108=99,"Interrompu", $D108)), 0),"Non requis") -> 0 | N108: =IF(INTRO!$E$40="Endémique", IF($I108>0, IF($I108=4,"Inconnu",IF($I108=99,"Interrompu", $D108)), 0),"Non requis") -> 0 | O108: =IF(INTRO!$E$42="Endémique", IF(AND($J108>1,$J108<5), IF($J108=4, "Inconnu", E108+F108), 0),"Non requis") -> 0 | P108: =IF(INTRO!$E$44="Endémique", IF(AND($K108>0,$K108<5), IF($K108=4,"Inconnu", IF($K108=1, $F108*0.33, IF($K108=2, $F108*0.5+$G108*0.2, SUM(F108:G108)))), 0),"Non requis") -> 44659.56 | Q108: 0 | R108: 0 | S108: 0 | T108: 0 | Y108: 10724 | Z108: N'Djaména Sud | AD108: ='MDA1'!K108 -> 0 | AE108: ='MDA3'!O108 -> 0 | AF108: ='T1'!M108 -> 0 | AG108: ='T2'!K108 -> 0 | AJ108: =_xlfn.XLOOKUP($Y108,[1]COUNTRY_INFO!$W$9:$W$131,[1]COUNTRY_INFO!K$9:K$131) -> 1
A109: =IF(INTRO!$E$34<>0,INTRO!$E$34,"") -> Chad | B109: N'Djamena | C109: 9eme Arrondissement | D109: 158939 | E109: =IF(INTRO!$E$48="","",ROUND($D109*INTRO!$E$48,0)) -> 26225 | F109: =IF(INTRO!$E$49="","",ROUND($D109*INTRO!$E$49,0)) -> 48238 | G109: =IF(INTRO!$E$50="","",ROUND($D109*INTRO!$E$50,0)) -> 78595 | H109: 0 | I109: 0 | J109: 1 | K109: 1 | M109: =IF(INTRO!$E$38="Endémique", IF($H109>0, IF($H109=4,"Inconnu", IF($H109=99,"Interrompu", $D109)), 0),"Non requis") -> 0 | N109: =IF(INTRO!$E$40="Endémique", IF($I109>0, IF($I109=4,"Inconnu",IF($I109=99,"Interrompu", $D109)), 0),"Non requis") -> 0 | O109: =IF(INTRO!$E$42="Endémique", IF(AND($J109>1,$J109<5), IF($J109=4, "Inconnu", E109+F109), 0),"Non requis") -> 0 | P109: =IF(INTRO!$E$44="Endémique", IF(AND($K109>0,$K109<5), IF($K109=4,"Inconnu", IF($K109=1, $F109*0.33, IF($K109=2, $F109*0.5+$G109*0.2, SUM(F109:G109)))), 0),"Non requis") -> 15918.54 | Q109: 0 | R109: 0 | S109: 0 | T109: 0 | Y109: 10789 | Z109: 9eme Arrondissement | AA109: 10724 | AB109: N'Djaména Sud | AD109: ='MDA1'!K109 -> 0 | AE109: ='MDA3'!O109 -> 0 | AF109: ='T1'!M109 -> 0 | AG109: ='T2'!K109 -> 0
A110: =IF(INTRO!$E$34<>0,INTRO!$E$34,"") -> Chad | B110: Ouaddai | C110: Abdi | D110: 167704 | E110: =IF(INTRO!$E$48="","",ROUND($D110*INTRO!$E$48,0)) -> 27671 | F110: =IF(INTRO!$E$49="","",ROUND($D110*INTRO!$E$49,0)) -> 50898 | G110: =IF(INTRO!$E$50="","",ROUND($D110*INTRO!$E$50,0)) -> 82930 | H110: 0 | I110: 0 | J110: 1 | K110: 2 | M110: =IF(INTRO!$E$38="Endémique", IF($H110>0, IF($H110=4,"Inconnu", IF($H110=99,"Interrompu", $D110)), 0),"Non requis") -> 0 | N110: =IF(INTRO!$E$40="Endémique", IF($I110>0, IF($I110=4,"Inconnu",IF($I110=99,"Interrompu", $D110)), 0),"Non requis") -> 0 | O110: =IF(INTRO!$E$42="Endémique", IF(AND($J110>1,$J110<5), IF($J110=4, "Inconnu", E110+F110), 0),"Non requis") -> 0 | P110: =IF(INTRO!$E$44="Endémique", IF(AND($K110>0,$K110<5), IF($K110=4,"Inconnu", IF($K110=1, $F110*0.33, IF($K110=2, $F110*0.5+$G110*0.2, SUM(F110:G110)))), 0),"Non requis") -> 42035 | Q110: 0 | R110: 0 | S110: 0 | T110: 0 | Y110: 10727 | Z110: Abdi | AD110: ='MDA1'!K110 -> 0 | AE110: ='MDA3'!O110 -> 0 | AF110: ='T1'!M110 -> 0 | AG110: ='T2'!K110 -> 0 | AJ110: =_xlfn.XLOOKUP($Y110,[1]COUNTRY_INFO!$W$9:$W$131,[1]COUNTRY_INFO!K$9:K$131) -> 2
A111: =IF(INTRO!$E$34<>0,INTRO!$E$34,"") -> Chad | B111: Ouaddai | C111: Abeche | D111: 378382 | E111: =IF(INTRO!$E$48="","",ROUND($D111*INTRO!$E$48,0)) -> 62433 | F111: =IF(INTRO!$E$49="","",ROUND($D111*INTRO!$E$49,0)) -> 114839 | G111: =IF(INTRO!$E$50="","",ROUND($D111*INTRO!$E$50,0)) -> 187110 | H111: 0 | I111: 0 | J111: 1 | K111: 2 | M111: =IF(INTRO!$E$38="Endémique", IF($H111>0, IF($H111=4,"Inconnu", IF($H111=99,"Interrompu", $D111)), 0),"Non requis") -> 0 | N111: =IF(INTRO!$E$40="Endémique", IF($I111>0, IF($I111=4,"Inconnu",IF($I111=99,"Interrompu", $D111)), 0),"Non requis") -> 0 | O111: =IF(INTRO!$E$42="Endémique", IF(AND($J111>1,$J111<5), IF($J111=4, "Inconnu", E111+F111), 0),"Non requis") -> 0 | P111: =IF(INTRO!$E$44="Endémique", IF(AND($K111>0,$K111<5), IF($K111=4,"Inconnu", IF($K111=1, $F111*0.33, IF($K111=2, $F111*0.5+$G111*0.2, SUM(F111:G111)))), 0),"Non requis") -> 94841.5 | Q111: 0 | R111: 0 | S111: 0 | T111: 0 | Y111: 10728 | Z111: Abeche | AD111: ='MDA1'!K111 -> 0 | AE111: ='MDA3'!O111 -> 0 | AF111: ='T1'!M111 -> 0 | AG111: ='T2'!K111 -> 0 | AJ111: =_xlfn.XLOOKUP($Y111,[1]COUNTRY_INFO!$W$9:$W$131,[1]COUNTRY_INFO!K$9:K$131) -> 2
A112: =IF(INTRO!$E$34<>0,INTRO!$E$34,"") -> Chad | B112: Ouaddai | C112: Abougoudam | D112: 137285 | E112: =IF(INTRO!$E$48="","",ROUND($D112*INTRO!$E$48,0)) -> 22652 | F112: =IF(INTRO!$E$49="","",ROUND($D112*INTRO!$E$49,0)) -> 41666 | G112: =IF(INTRO!$E$50="","",ROUND($D112*INTRO!$E$50,0)) -> 67887 | H112: 0 | I112: 0 | J112: 0 | K112: 2 | M112: =IF(INTRO!$E$38="Endémique", IF($H112>0, IF($H112=4,"Inconnu", IF($H112=99,"Interrompu", $D112)), 0),"Non requis") -> 0 | N112: =IF(INTRO!$E$40="Endémique", IF($I112>0, IF($I112=4,"Inconnu",IF($I112=99,"Interrompu", $D112)), 0),"Non requis") -> 0 | O112: =IF(INTRO!$E$42="Endémique", IF(AND($J112>1,$J112<5), IF($J112=4, "Inconnu", E112+F112), 0),"Non requis") -> 0 | P112: =IF(INTRO!$E$44="Endémique", IF(AND($K112>0,$K112<5), IF($K112=4,"Inconnu", IF($K112=1, $F112*0.33, IF($K112=2, $F112*0.5+$G112*0.2, SUM(F112:G112)))), 0),"Non requis") -> 34410.4 | Q112: 0 | R112: 0 | S112: 0 | T112: 0 | Y112: 10729 | Z112: Abougoudam | AD112: ='MDA1'!K112 -> 0 | AE112: ='MDA3'!O112 -> 0 | AF112: ='T1'!M112 -> 0 | AG112: ='T2'!K112 -> 0 | AJ112: =_xlfn.XLOOKUP($Y112,[1]COUNTRY_INFO!$W$9:$W$131,[1]COUNTRY_INFO!K$9:K$131) -> 2
A113: =IF(INTRO!$E$34<>0,INTRO!$E$34,"") -> Chad | B113: Ouaddai | C113: Adré | D113: 448183 | E113: =IF(INTRO!$E$48="","",ROUND($D113*INTRO!$E$48,0)) -> 73950 | F113: =IF(INTRO!$E$49="","",ROUND($D113*INTRO!$E$49,0)) -> 136024 | G113: =IF(INTRO!$E$50="","",ROUND($D113*INTRO!$E$50,0)) -> 221626 | H113: 0 | I113: 0 | J113: 1 | K113: 2 | M113: =IF(INTRO!$E$38="Endémique", IF($H113>0, IF($H113=4,"Inconnu", IF($H113=99,"Interrompu", $D113)), 0),"Non requis") -> 0 | N113: =IF(INTRO!$E$40="Endémique", IF($I113>0, IF($I113=4,"Inconnu",IF($I113=99,"Interrompu", $D113)), 0),"Non requis") -> 0 | O113: =IF(INTRO!$E$42="Endémique", IF(AND($J113>1,$J113<5), IF($J113=4, "Inconnu", E113+F113), 0),"Non requis") -> 0 | P113: =IF(INTRO!$E$44="Endémique", IF(AND($K113>0,$K113<5), IF($K113=4,"Inconnu", IF($K113=1, $F113*0.33, IF($K113=2, $F113*0.5+$G113*0.2, SUM(F113:G113)))), 0),"Non requis") -> 112337.2 | Q113: 0 | R113: 0 | S113: 0 | T113: 0 | Y113: 10730 | Z113: Adré | AD113: ='MDA1'!K113 -> 0 | AE113: ='MDA3'!O113 -> 0 | AF113: ='T1'!M113 -> 0 | AG113: ='T2'!K113 -> 0 | AJ113: =_xlfn.XLOOKUP($Y113,[1]COUNTRY_INFO!$W$9:$W$131,[1]COUNTRY_INFO!K$9:K$131) -> 2
A114: =IF(INTRO!$E$34<>0,INTRO!$E$34,"") -> Chad | B114: Salamat | C114: Aboudeia | D114: 101486 | E114: =IF(INTRO!$E$48="","",ROUND($D114*INTRO!$E$48,0)) -> 16745 | F114: =IF(INTRO!$E$49="","",ROUND($D114*INTRO!$E$49,0)) -> 30801 | G114: =IF(INTRO!$E$50="","",ROUND($D114*INTRO!$E$50,0)) -> 50185 | H114: 0 | I114: 4 | J114: 2 | K114: 3 | M114: =IF(INTRO!$E$38="Endémique", IF($H114>0, IF($H114=4,"Inconnu", IF($H114=99,"Interrompu", $D114)), 0),"Non requis") -> 0 | N114: =IF(INTRO!$E$40="Endémique", IF($I114>0, IF($I114=4,"Inconnu",IF($I114=99,"Interrompu", $D114)), 0),"Non requis") -> Inconnu | O114: =IF(INTRO!$E$42="Endémique", IF(AND($J114>1,$J114<5), IF($J114=4, "Inconnu", E114+F114), 0),"Non requis") -> 47546 | P114: =IF(INTRO!$E$44="Endémique", IF(AND($K114>0,$K114<5), IF($K114=4,"Inconnu", IF($K114=1, $F114*0.33, IF($K114=2, $F114*0.5+$G114*0.2, SUM(F114:G114)))), 0),"Non requis") -> 80986 | Q114: 0 | R114: 0 | S114: 0 | T114: 0 | Y114: 10731 | Z114: Aboudeia | AD114: ='MDA1'!K114 -> 0 | AE114: ='MDA3'!O114 -> 0 | AF114: ='T1'!M114 -> 0 | AG114: ='T2'!K114 -> 0 | AJ114: =_xlfn.XLOOKUP($Y114,[1]COUNTRY_INFO!$W$9:$W$131,[1]COUNTRY_INFO!K$9:K$131) -> 3
A115: =IF(INTRO!$E$34<>0,INTRO!$E$34,"") -> Chad | B115: Salamat | C115: Am-Timan | D115: 285894 | E115: =IF(INTRO!$E$48="","",ROUND($D115*INTRO!$E$48,0)) -> 47173 | F115: =IF(INTRO!$E$49="","",ROUND($D115*INTRO!$E$49,0)) -> 86769 | G115: =IF(INTRO!$E$50="","",ROUND($D115*INTRO!$E$50,0)) -> 141375 | H115: 0 | I115: 4 | J115: 2 | K115: 1 | M115: =IF(INTRO!$E$38="Endémique", IF($H115>0, IF($H115=4,"Inconnu", IF($H115=99,"Interrompu", $D115)), 0),"Non requis") -> 0 | N115: =IF(INTRO!$E$40="Endémique", IF($I115>0, IF($I115=4,"Inconnu",IF($I115=99,"Interrompu", $D115)), 0),"Non requis") -> Inconnu | O115: =IF(INTRO!$E$42="Endémique", IF(AND($J115>1,$J115<5), IF($J115=4, "Inconnu", E115+F115), 0),"Non requis") -> 133942 | P115: =IF(INTRO!$E$44="Endémique", IF(AND($K115>0,$K115<5), IF($K115=4,"Inconnu", IF($K115=1, $F115*0.33, IF($K115=2, $F115*0.5+$G115*0.2, SUM(F115:G115)))), 0),"Non requis") -> 28633.77 | Q115: 0 | R115: 0 | S115: 0 | T115: 0 | Y115: 10732 | Z115: Am-Timan | AD115: ='MDA1'!K115 -> 0 | AE115: ='MDA3'!O115 -> 0 | AF115: ='T1'!M115 -> 0 | AG115: ='T2'!K115 -> 0 | AJ115: =_xlfn.XLOOKUP($Y115,[1]COUNTRY_INFO!$W$9:$W$131,[1]COUNTRY_INFO!K$9:K$131) -> 1
A116: =IF(INTRO!$E$34<>0,INTRO!$E$34,"") -> Chad | B116: Salamat | C116: Haraze | D116: 86949 | E116: =IF(INTRO!$E$48="","",ROUND($D116*INTRO!$E$48,0)) -> 14347 | F116: =IF(INTRO!$E$49="","",ROUND($D116*INTRO!$E$49,0)) -> 26389 | G116: =IF(INTRO!$E$50="","",ROUND($D116*INTRO!$E$50,0)) -> 42996 | H116: 0 | I116: 4 | J116: 1 | K116: 2 | M116: =IF(INTRO!$E$38="Endémique", IF($H116>0, IF($H116=4,"Inconnu", IF($H116=99,"Interrompu", $D116)), 0),"Non requis") -> 0 | N116: =IF(INTRO!$E$40="Endémique", IF($I116>0, IF($I116=4,"Inconnu",IF($I116=99,"Interrompu", $D116)), 0),"Non requis") -> Inconnu | O116: =IF(INTRO!$E$42="Endémique", IF(AND($J116>1,$J116<5), IF($J116=4, "Inconnu", E116+F116), 0),"Non requis") -> 0 | P116: =IF(INTRO!$E$44="Endémique", IF(AND($K116>0,$K116<5), IF($K116=4,"Inconnu", IF($K116=1, $F116*0.33, IF($K116=2, $F116*0.5+$G116*0.2, SUM(F116:G116)))), 0),"Non requis") -> 21793.7 | Q116: 0 | R116: 0 | S116: 0 | T116: 0 | Y116: 10733 | Z116: Haraze | AD116: ='MDA1'!K116 -> 0 | AE116: ='MDA3'!O116 -> 0 | AF116: ='T1'!M116 -> 0 | AG116: ='T2'!K116 -> 0 | AJ116: =_xlfn.XLOOKUP($Y116,[1]COUNTRY_INFO!$W$9:$W$131,[1]COUNTRY_INFO!K$9:K$131) -> 2
A117: =IF(INTRO!$E$34<>0,INTRO!$E$34,"") -> Chad | B117: Sila | C117: Am-dam | D117: 5350 | E117: =IF(INTRO!$E$48="","",ROUND($D117*INTRO!$E$48,0)) -> 883 | F117: =IF(INTRO!$E$49="","",ROUND($D117*INTRO!$E$49,0)) -> 1624 | G117: =IF(INTRO!$E$50="","",ROUND($D117*INTRO!$E$50,0)) -> 2646 | H117: 0 | I117: 4 | J117: 0 | K117: 2 | M117: =IF(INTRO!$E$38="Endémique", IF($H117>0, IF($H117=4,"Inconnu", IF($H117=99,"Interrompu", $D117)), 0),"Non requis") -> 0 | N117: =IF(INTRO!$E$40="Endémique", IF($I117>0, IF($I117=4,"Inconnu",IF($I117=99,"Interrompu", $D117)), 0),"Non requis") -> Inconnu | O117: =IF(INTRO!$E$42="Endémique", IF(AND($J117>1,$J117<5), IF($J117=4, "Inconnu", E117+F117), 0),"Non requis") -> 0 | P117: =IF(INTRO!$E$44="Endémique", IF(AND($K117>0,$K117<5), IF($K117=4,"Inconnu", IF($K117=1, $F117*0.33, IF($K117=2, $F117*0.5+$G117*0.2, SUM(F117:G117)))), 0),"Non requis") -> 1341.2 | Q117: 0 | R117: 0 | S117: 0 | T117: 0 | Y117: 10725 | Z117: Am-dam | AD117: ='MDA1'!K117 -> 0 | AE117: ='MDA3'!O117 -> 0 | AF117: ='T1'!M117 -> 0 | AG117: ='T2'!K117 -> 0 | AJ117: =_xlfn.XLOOKUP($Y117,[1]COUNTRY_INFO!$W$9:$W$131,[1]COUNTRY_INFO!K$9:K$131) -> 2
A118: =IF(INTRO!$E$34<>0,INTRO!$E$34,"") -> Chad | B118: Sila | C118: Goz-beida | D118: 261905 | E118: =IF(INTRO!$E$48="","",ROUND($D118*INTRO!$E$48,0)) -> 43214 | F118: =IF(INTRO!$E$49="","",ROUND($D118*INTRO!$E$49,0)) -> 79488 | G118: =IF(INTRO!$E$50="","",ROUND($D118*INTRO!$E$50,0)) -> 129512 | H118: 0 | I118: 4 | J118: 1 | K118: 2 | M118: =IF(INTRO!$E$38="Endémique", IF($H118>0, IF($H118=4,"Inconnu", IF($H118=99,"Interrompu", $D118)), 0),"Non requis") -> 0 | N118: =IF(INTRO!$E$40="Endémique", IF($I118>0, IF($I118=4,"Inconnu",IF($I118=99,"Interrompu", $D118)), 0),"Non requis") -> Inconnu | O118: =IF(INTRO!$E$42="Endémique", IF(AND($J118>1,$J118<5), IF($J118=4, "Inconnu", E118+F118), 0),"Non requis") -> 0 | P118: =IF(INTRO!$E$44="Endémique", IF(AND($K118>0,$K118<5), IF($K118=4,"Inconnu", IF($K118=1, $F118*0.33, IF($K118=2, $F118*0.5+$G118*0.2, SUM(F118:G118)))), 0),"Non requis") -> 65646.4 | Q118: 0 | R118: 0 | S118: 0 | T118: 0 | Y118: 10726 | Z118: Goz-beida | AD118: ='MDA1'!K118 -> 0 | AE118: ='MDA3'!O118 -> 0 | AF118: ='T1'!M118 -> 0 | AG118: ='T2'!K118 -> 0 | AJ118: =_xlfn.XLOOKUP($Y118,[1]COUNTRY_INFO!$W$9:$W$131,[1]COUNTRY_INFO!K$9:K$131) -> 2
A119: =IF(INTRO!$E$34<>0,INTRO!$E$34,"") -> Chad | B119: Sila | C119: Koukou | D119: 82142 | E119: =IF(INTRO!$E$48="","",ROUND($D119*INTRO!$E$48,0)) -> 13553 | F119: =IF(INTRO!$E$49="","",ROUND($D119*INTRO!$E$49,0)) -> 24930 | G119: =IF(INTRO!$E$50="","",ROUND($D119*INTRO!$E$50,0)) -> 40619 | H119: 0 | I119: 4 | J119: 1 | K119: 2 | M119: =IF(INTRO!$E$38="Endémique", IF($H119>0, IF($H119=4,"Inconnu", IF($H119=99,"Interrompu", $D119)), 0),"Non requis") -> 0 | N119: =IF(INTRO!$E$40="Endémique", IF($I119>0, IF($I119=4,"Inconnu",IF($I119=99,"Interrompu", $D119)), 0),"Non requis") -> Inconnu | O119: =IF(INTRO!$E$42="Endémique", IF(AND($J119>1,$J119<5), IF($J119=4, "Inconnu", E119+F119), 0),"Non requis") -> 0 | P119: =IF(INTRO!$E$44="Endémique", IF(AND($K119>0,$K119<5), IF($K119=4,"Inconnu", IF($K119=1, $F119*0.33, IF($K119=2, $F119*0.5+$G119*0.2, SUM(F119:G119)))), 0),"Non requis") -> 20588.8 | Q119: 0 | R119: 0 | S119: 0 | T119: 0 | Y119: 10673 | Z119: Koukou | AD119: ='MDA1'!K119 -> 0 | AE119: ='MDA3'!O119 -> 0 | AF119: ='T1'!M119 -> 0 | AG119: ='T2'!K119 -> 0 | AJ119: =_xlfn.XLOOKUP($Y119,[1]COUNTRY_INFO!$W$9:$W$131,[1]COUNTRY_INFO!K$9:K$131) -> 2
A120: =IF(INTRO!$E$34<>0,INTRO!$E$34,"") -> Chad | B120: Sila | C120: Tissi | D120: 139684 | E120: =IF(INTRO!$E$48="","",ROUND($D120*INTRO!$E$48,0)) -> 23048 | F120: =IF(INTRO!$E$49="","",ROUND($D120*INTRO!$E$49,0)) -> 42394 | G120: =IF(INTRO!$E$50="","",ROUND($D120*INTRO!$E$50,0)) -> 69074 | H120: 0 | I120: 4 | J120: 4 | K120: 4 | M120: =IF(INTRO!$E$38="Endémique", IF($H120>0, IF($H120=4,"Inconnu", IF($H120=99,"Interrompu", $D120)), 0),"Non requis") -> 0 | N120: =IF(INTRO!$E$40="Endémique", IF($I120>0, IF($I120=4,"Inconnu",IF($I120=99,"Interrompu", $D120)), 0),"Non requis") -> Inconnu | O120: =IF(INTRO!$E$42="Endémique", IF(AND($J120>1,$J120<5), IF($J120=4, "Inconnu", E120+F120), 0),"Non requis") -> Inconnu | P120: =IF(INTRO!$E$44="Endémique", IF(AND($K120>0,$K120<5), IF($K120=4,"Inconnu", IF($K120=1, $F120*0.33, IF($K120=2, $F120*0.5+$G120*0.2, SUM(F120:G120)))), 0),"Non requis") -> Inconnu | Q120: 0 | R120: 0 | S120: 0 | T120: 0 | Y120: 10674 | Z120: Tissi | AD120: ='MDA1'!K120 -> 0 | AE120: ='MDA3'!O120 -> 0 | AF120: ='T1'!M120 -> 0 | AG120: ='T2'!K120 -> 0 | AJ120: =_xlfn.XLOOKUP($Y120,[1]COUNTRY_INFO!$W$9:$W$131,[1]COUNTRY_INFO!K$9:K$131) -> 4
A121: =IF(INTRO!$E$34<>0,INTRO!$E$34,"") -> Chad | B121: Tandjile | C121: Batchoro | D121: 101599 | E121: =IF(INTRO!$E$48="","",ROUND($D121*INTRO!$E$48,0)) -> 16764 | F121: =IF(INTRO!$E$49="","",ROUND($D121*INTRO!$E$49,0)) -> 30835 | G121: =IF(INTRO!$E$50="","",ROUND($D121*INTRO!$E$50,0)) -> 50241 | H121: 1 | I121: 1 | J121: 1 | K121: 2 | M121: =IF(INTRO!$E$38="Endémique", IF($H121>0, IF($H121=4,"Inconnu", IF($H121=99,"Interrompu", $D121)), 0),"Non requis") -> 101599 | N121: =IF(INTRO!$E$40="Endémique", IF($I121>0, IF($I121=4,"Inconnu",IF($I121=99,"Interrompu", $D121)), 0),"Non requis") -> 101599 | O121: =IF(INTRO!$E$42="Endémique", IF(AND($J121>1,$J121<5), IF($J121=4, "Inconnu", E121+F121), 0),"Non requis") -> 0 | P121: =IF(INTRO!$E$44="Endémique", IF(AND($K121>0,$K121<5), IF($K121=4,"Inconnu", IF($K121=1, $F121*0.33, IF($K121=2, $F121*0.5+$G121*0.2, SUM(F121:G121)))), 0),"Non requis") -> 25465.7 | Q121: 1 | R121: 1 | S121: 0 | T121: 1 | U121: MDA1 (IVM+ALB) | V121: T2 (PZQ) | Y121: 10775 | Z121: Batchoro | AD121: ='MDA1'!K121 -> 29389 | AE121: ='MDA3'!O121 -> 0 | AF121: ='T1'!M121 -> 0 | AG121: ='T2'!K121 -> 28874 | AJ121: =_xlfn.XLOOKUP($Y121,[1]COUNTRY_INFO!$W$9:$W$131,[1]COUNTRY_INFO!K$9:K$131) -> 2
A122: =IF(INTRO!$E$34<>0,INTRO!$E$34,"") -> Chad | B122: Tandjile | C122: Bere | D122: 178762 | E122: =IF(INTRO!$E$48="","",ROUND($D122*INTRO!$E$48,0)) -> 29496 | F122: =IF(INTRO!$E$49="","",ROUND($D122*INTRO!$E$49,0)) -> 54254 | G122: =IF(INTRO!$E$50="","",ROUND($D122*INTRO!$E$50,0)) -> 88398 | H122: 1 | I122: 1 | J122: 1 | K122: 3 | M122: =IF(INTRO!$E$38="Endémique", IF($H122>0, IF($H122=4,"Inconnu", IF($H122=99,"Interrompu", $D122)), 0),"Non requis") -> 178762 | N122: =IF(INTRO!$E$40="Endémique", IF($I122>0, IF($I122=4,"Inconnu",IF($I122=99,"Interrompu", $D122)), 0),"Non requis") -> 178762 | O122: =IF(INTRO!$E$42="Endémique", IF(AND($J122>1,$J122<5), IF($J122=4, "Inconnu", E122+F122), 0),"Non requis") -> 0 | P122: =IF(INTRO!$E$44="Endémique", IF(AND($K122>0,$K122<5), IF($K122=4,"Inconnu", IF($K122=1, $F122*0.33, IF($K122=2, $F122*0.5+$G122*0.2, SUM(F122:G122)))), 0),"Non requis") -> 142652 | Q122: 1 | R122: 1 | S122: 0 | T122: 1 | U122: MDA1 (IVM+ALB) | V122: T2 (PZQ) | Y122: 10734 | Z122: Bere | AD122: ='MDA1'!K122 -> 46136 | AE122: ='MDA3'!O122 -> 0 | AF122: ='T1'!M122 -> 0 | AG122: ='T2'!K122 -> 53211 | AJ122: =_xlfn.XLOOKUP($Y122,[1]COUNTRY_INFO!$W$9:$W$131,[1]COUNTRY_INFO!K$9:K$131) -> 3
A123: =IF(INTRO!$E$34<>0,INTRO!$E$34,"") -> Chad | B123: Tandjile | C123: Bologo | D123: 56686 | E123: =IF(INTRO!$E$48="","",ROUND($D123*INTRO!$E$48,0)) -> 9353 | F123: =IF(INTRO!$E$49="","",ROUND($D123*INTRO!$E$49,0)) -> 17204 | G123: =IF(INTRO!$E$50="","",ROUND($D123*INTRO!$E$50,0)) -> 28031 | H123: 1 | I123: 1 | J123: 1 | K123: 2 | M123: =IF(INTRO!$E$38="Endémique", IF($H123>0, IF($H123=4,"Inconnu", IF($H123=99,"Interrompu", $D123)), 0),"Non requis") -> 56686 | N123: =IF(INTRO!$E$40="Endémique", IF($I123>0, IF($I123=4,"Inconnu",IF($I123=99,"Interrompu", $D123)), 0),"Non requis") -> 56686 | O123: =IF(INTRO!$E$42="Endémique", IF(AND($J123>1,$J123<5), IF($J123=4, "Inconnu", E123+F123), 0),"Non requis") -> 0 | P123: =IF(INTRO!$E$44="Endémique", IF(AND($K123>0,$K123<5), IF($K123=4,"Inconnu", IF($K123=1, $F123*0.33, IF($K123=2, $F123*0.5+$G123*0.2, SUM(F123:G123)))), 0),"Non requis") -> 14208.2 | Q123: 1 | R123: 1 | S123: 0 | T123: 1 | U123: MDA1 (IVM+ALB) | V123: T2 (PZQ) | Y123: 10790 | Z123: Bologo | AA123: 10736 | AB123: Kelo | AD123: ='MDA1'!K123 -> 16451 | AE123: ='MDA3'!O123 -> 0 | AF123: ='T1'!M123 -> 0 | AG123: ='T2'!K123 -> 16812 | AJ123: =_xlfn.XLOOKUP($Y123,[1]COUNTRY_INFO!$W$9:$W$131,[1]COUNTRY_INFO!K$9:K$131) -> 2
A124: =IF(INTRO!$E$34<>0,INTRO!$E$34,"") -> Chad | B124: Tandjile | C124: Dafra | D124: 95302 | E124: =IF(INTRO!$E$48="","",ROUND($D124*INTRO!$E$48,0)) -> 15725 | F124: =IF(INTRO!$E$49="","",ROUND($D124*INTRO!$E$49,0)) -> 28924 | G124: =IF(INTRO!$E$50="","",ROUND($D124*INTRO!$E$50,0)) -> 47127 | H124: 1 | I124: 1 | J124: 1 | K124: 2 | M124: =IF(INTRO!$E$38="Endémique", IF($H124>0, IF($H124=4,"Inconnu", IF($H124=99,"Interrompu", $D124)), 0),"Non requis") -> 95302 | N124: =IF(INTRO!$E$40="Endémique", IF($I124>0, IF($I124=4,"Inconnu",IF($I124=99,"Interrompu", $D124)), 0),"Non requis") -> 95302 | O124: =IF(INTRO!$E$42="Endémique", IF(AND($J124>1,$J124<5), IF($J124=4, "Inconnu", E124+F124), 0),"Non requis") -> 0 | P124: =IF(INTRO!$E$44="Endémique", IF(AND($K124>0,$K124<5), IF($K124=4,"Inconnu", IF($K124=1, $F124*0.33, IF($K124=2, $F124*0.5+$G124*0.2, SUM(F124:G124)))), 0),"Non requis") -> 23887.4 | Q124: 1 | R124: 1 | S124: 0 | T124: 1 | U124: MDA1 (IVM+ALB) | V124: T2 (PZQ) | Y124: 10759 | Z124: Dafra | AD124: ='MDA1'!K124 -> 28360 | AE124: ='MDA3'!O124 -> 0 | AF124: ='T1'!M124 -> 0 | AG124: ='T2'!K124 -> 27449 | AJ124: =_xlfn.XLOOKUP($Y124,[1]COUNTRY_INFO!$W$9:$W$131,[1]COUNTRY_INFO!K$9:K$131) -> 2
A125: =IF(INTRO!$E$34<>0,INTRO!$E$34,"") -> Chad | B125: Tandjile | C125: Deressia | D125: 87896 | E125: =IF(INTRO!$E$48="","",ROUND($D125*INTRO!$E$48,0)) -> 14503 | F125: =IF(INTRO!$E$49="","",ROUND($D125*INTRO!$E$49,0)) -> 26676 | G125: =IF(INTRO!$E$50="","",ROUND($D125*INTRO!$E$50,0)) -> 43465 | H125: 1 | I125: 0 | J125: 1 | K125: 3 | M125: =IF(INTRO!$E$38="Endémique", IF($H125>0, IF($H125=4,"Inconnu", IF($H125=99,"Interrompu", $D125)), 0),"Non requis") -> 87896 | N125: =IF(INTRO!$E$40="Endémique", IF($I125>0, IF($I125=4,"Inconnu",IF($I125=99,"Interrompu", $D125)), 0),"Non requis") -> 0 | O125: =IF(INTRO!$E$42="Endémique", IF(AND($J125>1,$J125<5), IF($J125=4, "Inconnu", E125+F125), 0),"Non requis") -> 0 | P125: =IF(INTRO!$E$44="Endémique", IF(AND($K125>0,$K125<5), IF($K125=4,"Inconnu", IF($K125=1, $F125*0.33, IF($K125=2, $F125*0.5+$G125*0.2, SUM(F125:G125)))), 0),"Non requis") -> 70141 | Q125: 1 | R125: 0 | S125: 0 | T125: 1 | U125: MDA1 (IVM+ALB) | V125: T2 (PZQ) | Y125: 10782 | Z125: Deressia | AD125: ='MDA1'!K125 -> 26311 | AE125: ='MDA3'!O125 -> 0 | AF125: ='T1'!M125 -> 0 | AG125: ='T2'!K125 -> 26894 | AJ125: =_xlfn.XLOOKUP($Y125,[1]COUNTRY_INFO!$W$9:$W$131,[1]COUNTRY_INFO!K$9:K$131) -> 3
A126: =IF(INTRO!$E$34<>0,INTRO!$E$34,"") -> Chad | B126: Tandjile | C126: Donamanga | D126: 129750 | E126: =IF(INTRO!$E$48="","",ROUND($D126*INTRO!$E$48,0)) -> 21409 | F126: =IF(INTRO!$E$49="","",ROUND($D126*INTRO!$E$49,0)) -> 39379 | G126: =IF(INTRO!$E$50="","",ROUND($D126*INTRO!$E$50,0)) -> 64161 | H126: 1 | I126: 0 | J126: 1 | K126: 2 | M126: =IF(INTRO!$E$38="Endémique", IF($H126>0, IF($H126=4,"Inconnu", IF($H126=99,"Interrompu", $D126)), 0),"Non requis") -> 129750 | N126: =IF(INTRO!$E$40="Endémique", IF($I126>0, IF($I126=4,"Inconnu",IF($I126=99,"Interrompu", $D126)), 0),"Non requis") -> 0 | O126: =IF(INTRO!$E$42="Endémique", IF(AND($J126>1,$J126<5), IF($J126=4, "Inconnu", E126+F126), 0),"Non requis") -> 0 | P126: =IF(INTRO!$E$44="Endémique", IF(AND($K126>0,$K126<5), IF($K126=4,"Inconnu", IF($K126=1, $F126*0.33, IF($K126=2, $F126*0.5+$G126*0.2, SUM(F126:G126)))), 0),"Non requis") -> 32521.7 | Q126: 1 | R126: 0 | S126: 0 | T126: 1 | U126: MDA1 (IVM+ALB) | V126: T2 (PZQ) | Y126: 10735 | Z126: Donamanga | AD126: ='MDA1'!K126 -> 37676 | AE126: ='MDA3'!O126 -> 0 | AF126: ='T1'!M126 -> 0 | AG126: ='T2'!K126 -> 38814 | AJ126: =_xlfn.XLOOKUP($Y126,[1]COUNTRY_INFO!$W$9:$W$131,[1]COUNTRY_INFO!K$9:K$131) -> 2
A127: =IF(INTRO!$E$34<>0,INTRO!$E$34,"") -> Chad | B127: Tandjile | C127: Guidari | D127: 197994 | E127: =IF(INTRO!$E$48="","",ROUND($D127*INTRO!$E$48,0)) -> 32669 | F127: =IF(INTRO!$E$49="","",ROUND($D127*INTRO!$E$49,0)) -> 60091 | G127: =IF(INTRO!$E$50="","",ROUND($D127*INTRO!$E$50,0)) -> 97908 | H127: 1 | I127: 0 | J127: 1 | K127: 2 | M127: =IF(INTRO!$E$38="Endémique", IF($H127>0, IF($H127=4,"Inconnu", IF($H127=99,"Interrompu", $D127)), 0),"Non requis") -> 197994 | N127: =IF(INTRO!$E$40="Endémique", IF($I127>0, IF($I127=4,"Inconnu",IF($I127=99,"Interrompu", $D127)), 0),"Non requis") -> 0 | O127: =IF(INTRO!$E$42="Endémique", IF(AND($J127>1,$J127<5), IF($J127=4, "Inconnu", E127+F127), 0),"Non requis") -> 0 | P127: =IF(INTRO!$E$44="Endémique", IF(AND($K127>0,$K127<5), IF($K127=4,"Inconnu", IF($K127=1, $F127*0.33, IF($K127=2, $F127*0.5+$G127*0.2, SUM(F127:G127)))), 0),"Non requis") -> 49627.1 | Q127: 1 | R127: 0 | S127: 0 | T127: 1 | U127: MDA1 (IVM+ALB) | V127: T2 (PZQ) | Y127: 10776 | Z127: Guidari | AD127: ='MDA1'!K127 -> 59142 | AE127: ='MDA3'!O127 -> 0 | AF127: ='T1'!M127 -> 0 | AG127: ='T2'!K127 -> 59213 | AJ127: =_xlfn.XLOOKUP($Y127,[1]COUNTRY_INFO!$W$9:$W$131,[1]COUNTRY_INFO!K$9:K$131) -> 2
A128: =IF(INTRO!$E$34<>0,INTRO!$E$34,"") -> Chad | B128: Tandjile | C128: Kelo | D128: 235181 | E128: =IF(INTRO!$E$48="","",ROUND($D128*INTRO!$E$48,0)) -> 38805 | F128: =IF(INTRO!$E$49="","",ROUND($D128*INTRO!$E$49,0)) -> 71377 | G128: =IF(INTRO!$E$50="","",ROUND($D128*INTRO!$E$50,0)) -> 116297 | H128: 1 | I128: 1 | J128: 1 | K128: 2 | M128: =IF(INTRO!$E$38="Endémique", IF($H128>0, IF($H128=4,"Inconnu", IF($H128=99,"Interrompu", $D128)), 0),"Non requis") -> 235181 | N128: =IF(INTRO!$E$40="Endémique", IF($I128>0, IF($I128=4,"Inconnu",IF($I128=99,"Interrompu", $D128)), 0),"Non requis") -> 235181 | O128: =IF(INTRO!$E$42="Endémique", IF(AND($J128>1,$J128<5), IF($J128=4, "Inconnu", E128+F128), 0),"Non requis") -> 0 | P128: =IF(INTRO!$E$44="Endémique", IF(AND($K128>0,$K128<5), IF($K128=4,"Inconnu", IF($K128=1, $F128*0.33, IF($K128=2, $F128*0.5+$G128*0.2, SUM(F128:G128)))), 0),"Non requis") -> 58947.9 | Q128: 1 | R128: 1 | S128: 0 | T128: 1 | U128: MDA1 (IVM+ALB) | V128: T2 (PZQ) | Y128: 10736 | Z128: Kelo | AD128: ='MDA1'!K128 -> 68470 | AE128: ='MDA3'!O128 -> 0 | AF128: ='T1'!M128 -> 0 | AG128: ='T2'!K128 -> 69443 | AJ128: =_xlfn.XLOOKUP($Y128,[1]COUNTRY_INFO!$W$9:$W$131,[1]COUNTRY_INFO!K$9:K$131) -> 2
A129: =IF(INTRO!$E$34<>0,INTRO!$E$34,"") -> Chad | B129: Tandjile | C129: Kolon | D129: 84848 | E129: =IF(INTRO!$E$48="","",ROUND($D129*INTRO!$E$48,0)) -> 14000 | F129: =IF(INTRO!$E$49="","",ROUND($D129*INTRO!$E$49,0)) -> 25751 | G129: =IF(INTRO!$E$50="","",ROUND($D129*INTRO!$E$50,0)) -> 41957 | H129: 1 | I129: 1 | J129: 1 | K129: 3 | M129: =IF(INTRO!$E$38="Endémique", IF($H129>0, IF($H129=4,"Inconnu", IF($H129=99,"Interrompu", $D129)), 0),"Non requis") -> 84848 | N129: =IF(INTRO!$E$40="Endémique", IF($I129>0, IF($I129=4,"Inconnu",IF($I129=99,"Interrompu", $D129)), 0),"Non requis") -> 84848 | O129: =IF(INTRO!$E$42="Endémique", IF(AND($J129>1,$J129<5), IF($J129=4, "Inconnu", E129+F129), 0),"Non requis") -> 0 | P129: =IF(INTRO!$E$44="Endémique", IF(AND($K129>0,$K129<5), IF($K129=4,"Inconnu", IF($K129=1, $F129*0.33, IF($K129=2, $F129*0.5+$G129*0.2, SUM(F129:G129)))), 0),"Non requis") -> 67708 | Q129: 1 | R129: 1 | S129: 0 | T129: 1 | U129: MDA1 (IVM+ALB) | V129: T2 (PZQ) | Y129: 10777 | Z129: Kolon | AD129: ='MDA1'!K129 -> 23602 | AE129: ='MDA3'!O129 -> 0 | AF129: ='T1'!M129 -> 0 | AG129: ='T2'!K129 -> 24478 | AJ129: =_xlfn.XLOOKUP($Y129,[1]COUNTRY_INFO!$W$9:$W$131,[1]COUNTRY_INFO!K$9:K$131) -> 3
A130: =IF(INTRO!$E$34<>0,INTRO!$E$34,"") -> Chad | B130: Tandjile | C130: Lai | D130: 109771 | E130: =IF(INTRO!$E$48="","",ROUND($D130*INTRO!$E$48,0)) -> 18112 | F130: =IF(INTRO!$E$49="","",ROUND($D130*INTRO!$E$49,0)) -> 33315 | G130: =IF(INTRO!$E$50="","",ROUND($D130*INTRO!$E$50,0)) -> 54282 | H130: 1 | I130: 0 | J130: 1 | K130: 2 | M130: =IF(INTRO!$E$38="Endémique", IF($H130>0, IF($H130=4,"Inconnu", IF($H130=99,"Interrompu", $D130)), 0),"Non requis") -> 109771 | N130: =IF(INTRO!$E$40="Endémique", IF($I130>0, IF($I130=4,"Inconnu",IF($I130=99,"Interrompu", $D130)), 0),"Non requis") -> 0 | O130: =IF(INTRO!$E$42="Endémique", IF(AND($J130>1,$J130<5), IF($J130=4, "Inconnu", E130+F130), 0),"Non requis") -> 0 | P130: =IF(INTRO!$E$44="Endémique", IF(AND($K130>0,$K130<5), IF($K130=4,"Inconnu", IF($K130=1, $F130*0.33, IF($K130=2, $F130*0.5+$G130*0.2, SUM(F130:G130)))), 0),"Non requis") -> 27513.9 | Q130: 1 | R130: 0 | S130: 0 | T130: 1 | U130: MDA1 (IVM+ALB) | V130: T2 (PZQ) | Y130: 10737 | Z130: Lai | AD130: ='MDA1'!K130 -> 33211 | AE130: ='MDA3'!O130 -> 0 | AF130: ='T1'!M130 -> 0 | AG130: ='T2'!K130 -> 33118 | AJ130: =_xlfn.XLOOKUP($Y130,[1]COUNTRY_INFO!$W$9:$W$131,[1]COUNTRY_INFO!K$9:K$131) -> 2
A131: =IF(INTRO!$E$34<>0,INTRO!$E$34,"") -> Chad | B131: Tibesti | C131: Bardaï | D131: 22574 | E131: =IF(INTRO!$E$48="","",ROUND($D131*INTRO!$E$48,0)) -> 3725 | F131: =IF(INTRO!$E$49="","",ROUND($D131*INTRO!$E$49,0)) -> 6851 | G131: =IF(INTRO!$E$50="","",ROUND($D131*INTRO!$E$50,0)) -> 11163 | H131: 0 | I131: 0 | J131: 0 | K131: 0 | M131: =IF(INTRO!$E$38="Endémique", IF($H131>0, IF($H131=4,"Inconnu", IF($H131=99,"Interrompu", $D131)), 0),"Non requis") -> 0 | N131: =IF(INTRO!$E$40="Endémique", IF($I131>0, IF($I131=4,"Inconnu",IF($I131=99,"Interrompu", $D131)), 0),"Non requis") -> 0 | O131: =IF(INTRO!$E$42="Endémique", IF(AND($J131>1,$J131<5), IF($J131=4, "Inconnu", E131+F131), 0),"Non requis") -> 0 | P131: =IF(INTRO!$E$44="Endémique", IF(AND($K131>0,$K131<5), IF($K131=4,"Inconnu", IF($K131=1, $F131*0.33, IF($K131=2, $F131*0.5+$G131*0.2, SUM(F131:G131)))), 0),"Non requis") -> 0 | Q131: 0 | R131: 0 | S131: 0 | T131: 0 | Y131: 10738 | Z131: Bardaï | AD131: ='MDA1'!K131 -> 0 | AE131: ='MDA3'!O131 -> 0 | AF131: ='T1'!M131 -> 0 | AG131: ='T2'!K131 -> 0 | AJ131: =_xlfn.XLOOKUP($Y131,[1]COUNTRY_INFO!$W$9:$W$131,[1]COUNTRY_INFO!K$9:K$131) -> 0
A132: =IF(INTRO!$E$34<>0,INTRO!$E$34,"") -> Chad | B132: Tibesti | C132: Zouar | D132: 17410 | E132: =IF(INTRO!$E$48="","",ROUND($D132*INTRO!$E$48,0)) -> 2873 | F132: =IF(INTRO!$E$49="","",ROUND($D132*INTRO!$E$49,0)) -> 5284 | G132: =IF(INTRO!$E$50="","",ROUND($D132*INTRO!$E$50,0)) -> 8609 | H132: 0 | I132: 0 | J132: 0 | K132: 0 | M132: =IF(INTRO!$E$38="Endémique", IF($H132>0, IF($H132=4,"Inconnu", IF($H132=99,"Interrompu", $D132)), 0),"Non requis") -> 0 | N132: =IF(INTRO!$E$40="Endémique", IF($I132>0, IF($I132=4,"Inconnu",IF($I132=99,"Interrompu", $D132)), 0),"Non requis") -> 0 | O132: =IF(INTRO!$E$42="Endémique", IF(AND($J132>1,$J132<5), IF($J132=4, "Inconnu", E132+F132), 0),"Non requis") -> 0 | P132: =IF(INTRO!$E$44="Endémique", IF(AND($K132>0,$K132<5), IF($K132=4,"Inconnu", IF($K132=1, $F132*0.33, IF($K132=2, $F132*0.5+$G132*0.2, SUM(F132:G132)))), 0),"Non requis") -> 0 | Q132: 0 | R132: 0 | S132: 0 | T132: 0 | Y132: 10760 | Z132: Zouar | AD132: ='MDA1'!K132 -> 0 | AE132: ='MDA3'!O132 -> 0 | AF132: ='T1'!M132 -> 0 | AG132: ='T2'!K132 -> 0 | AJ132: =_xlfn.XLOOKUP($Y132,[1]COUNTRY_INFO!$W$9:$W$131,[1]COUNTRY_INFO!K$9:K$131) -> 0
A133: =IF(INTRO!$E$34<>0,INTRO!$E$34,"") -> Chad | B133: Wadi Fira | C133: amzoer | D133: 59832 | E133: =IF(INTRO!$E$48="","",ROUND($D133*INTRO!$E$48,0)) -> 9872 | F133: =IF(INTRO!$E$49="","",ROUND($D133*INTRO!$E$49,0)) -> 18159 | G133: =IF(INTRO!$E$50="","",ROUND($D133*INTRO!$E$50,0)) -> 29587 | H133: 0 | I133: 0 | J133: 1 | K133: 1 | M133: =IF(INTRO!$E$38="Endémique", IF($H133>0, IF($H133=4,"Inconnu", IF($H133=99,"Interrompu", $D133)), 0),"Non requis") -> 0 | N133: =IF(INTRO!$E$40="Endémique", IF($I133>0, IF($I133=4,"Inconnu",IF($I133=99,"Interrompu", $D133)), 0),"Non requis") -> 0 | O133: =IF(INTRO!$E$42="Endémique", IF(AND($J133>1,$J133<5), IF($J133=4, "Inconnu", E133+F133), 0),"Non requis") -> 0 | P133: =IF(INTRO!$E$44="Endémique", IF(AND($K133>0,$K133<5), IF($K133=4,"Inconnu", IF($K133=1, $F133*0.33, IF($K133=2, $F133*0.5+$G133*0.2, SUM(F133:G133)))), 0),"Non requis") -> 5992.47 | Q133: 0 | R133: 0 | S133: 0 | T133: 0 | Y133: 10778 | Z133: amzoer | AD133: ='MDA1'!K133 -> 0 | AE133: ='MDA3'!O133 -> 0 | AF133: ='T1'!M133 -> 0 | AG133: ='T2'!K133 -> 0 | AJ133: =_xlfn.XLOOKUP($Y133,[1]COUNTRY_INFO!$W$9:$W$131,[1]COUNTRY_INFO!K$9:K$131) -> 1
A134: =IF(INTRO!$E$34<>0,INTRO!$E$34,"") -> Chad | B134: Wadi Fira | C134: Arada | D134: 42381 | E134: =IF(INTRO!$E$48="","",ROUND($D134*INTRO!$E$48,0)) -> 6993 | F134: =IF(INTRO!$E$49="","",ROUND($D134*INTRO!$E$49,0)) -> 12863 | G134: =IF(INTRO!$E$50="","",ROUND($D134*INTRO!$E$50,0)) -> 20957 | H134: 0 | I134: 0 | J134: 1 | K134: 1 | M134: =IF(INTRO!$E$38="Endémique", IF($H134>0, IF($H134=4,"Inconnu", IF($H134=99,"Interrompu", $D134)), 0),"Non requis") -> 0 | N134: =IF(INTRO!$E$40="Endémique", IF($I134>0, IF($I134=4,"Inconnu",IF($I134=99,"Interrompu", $D134)), 0),"Non requis") -> 0 | O134: =IF(INTRO!$E$42="Endémique", IF(AND($J134>1,$J134<5), IF($J134=4, "Inconnu", E134+F134), 0),"Non requis") -> 0 | P134: =IF(INTRO!$E$44="Endémique", IF(AND($K134>0,$K134<5), IF($K134=4,"Inconnu", IF($K134=1, $F134*0.33, IF($K134=2, $F134*0.5+$G134*0.2, SUM(F134:G134)))), 0),"Non requis") -> 4244.79 | Q134: 0 | R134: 0 | S134: 0 | T134: 0 | Y134: 10779 | Z134: Arada | AD134: ='MDA1'!K134 -> 0 | AE134: ='MDA3'!O134 -> 0 | AF134: ='T1'!M134 -> 0 | AG134: ='T2'!K134 -> 0 | AJ134: =_xlfn.XLOOKUP($Y134,[1]COUNTRY_INFO!$W$9:$W$131,[1]COUNTRY_INFO!K$9:K$131) -> 1
A135: =IF(INTRO!$E$34<>0,INTRO!$E$34,"") -> Chad | B135: Wadi Fira | C135: Biltine | D135: 147086 | E135: =IF(INTRO!$E$48="","",ROUND($D135*INTRO!$E$48,0)) -> 24269 | F135: =IF(INTRO!$E$49="","",ROUND($D135*INTRO!$E$49,0)) -> 44641 | G135: =IF(INTRO!$E$50="","",ROUND($D135*INTRO!$E$50,0)) -> 72734 | H135: 0 | I135: 0 | J135: 1 | K135: 1 | M135: =IF(INTRO!$E$38="Endémique", IF($H135>0, IF($H135=4,"Inconnu", IF($H135=99,"Interrompu", $D135)), 0),"Non requis") -> 0 | N135: =IF(INTRO!$E$40="Endémique", IF($I135>0, IF($I135=4,"Inconnu",IF($I135=99,"Interrompu", $D135)), 0),"Non requis") -> 0 | O135: =IF(INTRO!$E$42="Endémique", IF(AND($J135>1,$J135<5), IF($J135=4, "Inconnu", E135+F135), 0),"Non requis") -> 0 | P135: =IF(INTRO!$E$44="Endémique", IF(AND($K135>0,$K135<5), IF($K135=4,"Inconnu", IF($K135=1, $F135*0.33, IF($K135=2, $F135*0.5+$G135*0.2, SUM(F135:G135)))), 0),"Non requis") -> 14731.53 | Q135: 0 | R135: 0 | S135: 0 | T135: 0 | Y135: 10740 | Z135: Biltine | AD135: ='MDA1'!K135 -> 0 | AE135: ='MDA3'!O135 -> 0 | AF135: ='T1'!M135 -> 0 | AG135: ='T2'!K135 -> 0 | AJ135: =_xlfn.XLOOKUP($Y135,[1]COUNTRY_INFO!$W$9:$W$131,[1]COUNTRY_INFO!K$9:K$131) -> 1
A136: =IF(INTRO!$E$34<>0,INTRO!$E$34,"") -> Chad | B136: Wadi Fira | C136: Guéréda | D136: 109493 | E136: =IF(INTRO!$E$48="","",ROUND($D136*INTRO!$E$48,0)) -> 18066 | F136: =IF(INTRO!$E$49="","",ROUND($D136*INTRO!$E$49,0)) -> 33231 | G136: =IF(INTRO!$E$50="","",ROUND($D136*INTRO!$E$50,0)) -> 54144 | H136: 0 | I136: 0 | J136: 1 | K136: 1 | M136: =IF(INTRO!$E$38="Endémique", IF($H136>0, IF($H136=4,"Inconnu", IF($H136=99,"Interrompu", $D136)), 0),"Non requis") -> 0 | N136: =IF(INTRO!$E$40="Endémique", IF($I136>0, IF($I136=4,"Inconnu",IF($I136=99,"Interrompu", $D136)), 0),"Non requis") -> 0 | O136: =IF(INTRO!$E$42="Endémique", IF(AND($J136>1,$J136<5), IF($J136=4, "Inconnu", E136+F136), 0),"Non requis") -> 0 | P136: =IF(INTRO!$E$44="Endémique", IF(AND($K136>0,$K136<5), IF($K136=4,"Inconnu", IF($K136=1, $F136*0.33, IF($K136=2, $F136*0.5+$G136*0.2, SUM(F136:G136)))), 0),"Non requis") -> 10966.23 | Q136: 0 | R136: 0 | S136: 0 | T136: 0 | Y136: 10741 | Z136: Guéréda | AD136: ='MDA1'!K136 -> 0 | AE136: ='MDA3'!O136 -> 0 | AF136: ='T1'!M136 -> 0 | AG136: ='T2'!K136 -> 0 | AJ136: =_xlfn.XLOOKUP($Y136,[1]COUNTRY_INFO!$W$9:$W$131,[1]COUNTRY_INFO!K$9:K$131) -> 1
A137: =IF(INTRO!$E$34<>0,INTRO!$E$34,"") -> Chad | B137: Wadi Fira | C137: Iriba | D137: 96985 | E137: =IF(INTRO!$E$48="","",ROUND($D137*INTRO!$E$48,0)) -> 16003 | F137: =IF(INTRO!$E$49="","",ROUND($D137*INTRO!$E$49,0)) -> 29435 | G137: =IF(INTRO!$E$50="","",ROUND($D137*INTRO!$E$50,0)) -> 47959 | H137: 0 | I137: 0 | J137: 1 | K137: 0 | M137: =IF(INTRO!$E$38="Endémique", IF($H137>0, IF($H137=4,"Inconnu", IF($H137=99,"Interrompu", $D137)), 0),"Non requis") -> 0 | N137: =IF(INTRO!$E$40="Endémique", IF($I137>0, IF($I137=4,"Inconnu",IF($I137=99,"Interrompu", $D137)), 0),"Non requis") -> 0 | O137: =IF(INTRO!$E$42="Endémique", IF(AND($J137>1,$J137<5), IF($J137=4, "Inconnu", E137+F137), 0),"Non requis") -> 0 | P137: =IF(INTRO!$E$44="Endémique", IF(AND($K137>0,$K137<5), IF($K137=4,"Inconnu", IF($K137=1, $F137*0.33, IF($K137=2, $F137*0.5+$G137*0.2, SUM(F137:G137)))), 0),"Non requis") -> 0 | Q137: 0 | R137: 0 | S137: 0 | T137: 0 | Y137: 10742 | Z137: Iriba | AD137: ='MDA1'!K137 -> 0 | AE137: ='MDA3'!O137 -> 0 | AF137: ='T1'!M137 -> 0 | AG137: ='T2'!K137 -> 0 | AJ137: =_xlfn.XLOOKUP($Y137,[1]COUNTRY_INFO!$W$9:$W$131,[1]COUNTRY_INFO!K$9:K$131) -> 0
A138: =IF(INTRO!$E$34<>0,INTRO!$E$34,"") -> Chad | B138: Wadi Fira | C138: Matadjana | D138: 31746 | E138: =IF(INTRO!$E$48="","",ROUND($D138*INTRO!$E$48,0)) -> 5238 | F138: =IF(INTRO!$E$49="","",ROUND($D138*INTRO!$E$49,0)) -> 9635 | G138: =IF(INTRO!$E$50="","",ROUND($D138*INTRO!$E$50,0)) -> 15698 | H138: 0 | I138: 0 | J138: 1 | K138: 1 | M138: =IF(INTRO!$E$38="Endémique", IF($H138>0, IF($H138=4,"Inconnu", IF($H138=99,"Interrompu", $D138)), 0),"Non requis") -> 0 | N138: =IF(INTRO!$E$40="Endémique", IF($I138>0, IF($I138=4,"Inconnu",IF($I138=99,"Interrompu", $D138)), 0),"Non requis") -> 0 | O138: =IF(INTRO!$E$42="Endémique", IF(AND($J138>1,$J138<5), IF($J138=4, "Inconnu", E138+F138), 0),"Non requis") -> 0 | P138: =IF(INTRO!$E$44="Endémique", IF(AND($K138>0,$K138<5), IF($K138=4,"Inconnu", IF($K138=1, $F138*0.33, IF($K138=2, $F138*0.5+$G138*0.2, SUM(F138:G138)))), 0),"Non requis") -> 3179.55 | Q138: 0 | R138: 0 | S138: 0 | T138: 0 | Y138: 10743 | Z138: Matadjana | AD138: ='MDA1'!K138 -> 0 | AE138: ='MDA3'!O138 -> 0 | AF138: ='T1'!M138 -> 0 | AG138: ='T2'!K138 -> 0 | AJ138: =_xlfn.XLOOKUP($Y138,[1]COUNTRY_INFO!$W$9:$W$131,[1]COUNTRY_INFO!K$9:K$131) -> 1

Sheet MDA1
A1: MDA 1 - Ivermectine (IVM) et Albendazole (ALB)
A2: Structure administrative, population nécessitant une chimioprévention par groupe d'âge, population traitée par groupe d'âge et couverture
A4: TOTAL | G4: =SUM(G$9:G$1000) -> 1620412 | H4: =SUM(H$9:H$1000) -> 2680815 | I4: =SUM(I$9:I$1000) -> 4301227 | K4: =SUM(K$9:K$1000) -> 1576097 | L4: =SUM(L$9:L$1000) -> 2614605 | M4: =SUM(M$9:M$1000) -> 4190702 | O4: =IF(G4<>0, IF(K4/G4*100=0, "-", K4/G4*100), " ") -> 97.26520169 | P4: =IF(H4<>0, IF(L4/H4*100=0, "-", L4/H4*100), " ") -> 97.53022868 | Q4: =IF(I4<>0, IF(M4/I4*100=0, "-", M4/I4*100), " ") -> 97.4303844
A6: Structure administrative du pays | D6: Mise en oeuvre de la CP | E6: Date | F6: Population ciblée pour MDA 1 | J6: Population traitée | N6: Couverture du Programme (%)
A7: Pays | B7: Région/Département | C7: District | F7: EAPréS | G7: EAS | H7: Adultes | I7: Total | J7: EAPréS | K7: EAS | L7: Adultes | M7: Total | N7: EAPréS | O7: EAS | P7: Adultes | Q7: Total
A9: =IF(COUNTRY_INFO!A9=0," ",COUNTRY_INFO!A9) -> Chad | B9: =IF(COUNTRY_INFO!B9=0," ",COUNTRY_INFO!B9) -> Bahr El Gazel | C9: =IF(COUNTRY_INFO!C9=0," ",COUNTRY_INFO!C9) -> Chadra | D9: =IF(COUNTRY_INFO!$U$9:$U$1000="MDA1 (IVM+ALB)", COUNTRY_INFO!$U$9:$U$1000, " ") ->  | E9: 0 | G9: 0 | H9: 0 | I9: =SUM(F9:H9) -> 0 | K9: 0 | L9: 0 | M9: =SUM(J9:L9) -> 0 | O9: =IF(G9<>0, IF(K9/G9*100=0, "-", K9/G9*100), " ") ->  | P9: =IF(H9<>0, IF(L9/H9*100=0, "-", L9/H9*100), " ") ->  | R9: =COUNTRY_INFO!Y9 -> 10660
A10: =IF(COUNTRY_INFO!A10=0," ",COUNTRY_INFO!A10) -> Chad | B10: =IF(COUNTRY_INFO!B10=0," ",COUNTRY_INFO!B10) -> Bahr El Gazel | C10: =IF(COUNTRY_INFO!C10=0," ",COUNTRY_INFO!C10) -> Michemire | D10: =IF(COUNTRY_INFO!$U$9:$U$1000="MDA1 (IVM+ALB)", COUNTRY_INFO!$U$9:$U$1000, " ") ->  | E10: 0 | G10: 0 | H10: 0 | I10: =SUM(F10:H10) -> 0 | K10: 0 | L10: 0 | M10: =SUM(J10:L10) -> 0 | O10: =IF(G10<>0, IF(K10/G10*100=0, "-", K10/G10*100), " ") ->  | P10: =IF(H10<>0, IF(L10/H10*100=0, "-", L10/H10*100), " ") ->  | Q10: =IF(I10<>0, IF(M10/I10*100=0, "-", M10/I10*100), " ") ->  | R10: =COUNTRY_INFO!Y10 -> 10670
A11: =IF(COUNTRY_INFO!A11=0," ",COUNTRY_INFO!A11) -> Chad | B11: =IF(COUNTRY_INFO!B11=0," ",COUNTRY_INFO!B11) -> Bahr El Gazel | C11: =IF(COUNTRY_INFO!C11=0," ",COUNTRY_INFO!C11) -> Moussoro | D11: =IF(COUNTRY_INFO!$U$9:$U$1000="MDA1 (IVM+ALB)", COUNTRY_INFO!$U$9:$U$1000, " ") ->  | E11: 0 | G11: 0 | H11: 0 | I11: 0 | K11: 0 | L11: 0 | M11: 0 | R11: =COUNTRY_INFO!Y11 -> 10661
A12: =IF(COUNTRY_INFO!A12=0," ",COUNTRY_INFO!A12) -> Chad | B12: =IF(COUNTRY_INFO!B12=0," ",COUNTRY_INFO!B12) -> Bahr El Gazel | C12: =IF(COUNTRY_INFO!C12=0," ",COUNTRY_INFO!C12) -> Salal | D12: =IF(COUNTRY_INFO!$U$9:$U$1000="MDA1 (IVM+ALB)", COUNTRY_INFO!$U$9:$U$1000, " ") ->  | E12: 0 | G12: 0 | H12: 0 | I12: 0 | K12: 0 | L12: 0 | M12: 0 | R12: =COUNTRY_INFO!Y12 -> 10711
A13: =IF(COUNTRY_INFO!A13=0," ",COUNTRY_INFO!A13) -> Chad | B13: =IF(COUNTRY_INFO!B13=0," ",COUNTRY_INFO!B13) -> Batha | C13: =IF(COUNTRY_INFO!C13=0," ",COUNTRY_INFO!C13) -> Alifa | D13: =IF(COUNTRY_INFO!$U$9:$U$1000="MDA1 (IVM+ALB)", COUNTRY_INFO!$U$9:$U$1000, " ") ->  | E13: 0 | G13: 0 | H13: 0 | I13: 0 | K13: 0 | L13: 0 | M13: 0 | R13: =COUNTRY_INFO!Y13 -> 10739
A14: =IF(COUNTRY_INFO!A14=0," ",COUNTRY_INFO!A14) -> Chad | B14: =IF(COUNTRY_INFO!B14=0," ",COUNTRY_INFO!B14) -> Batha | C14: =IF(COUNTRY_INFO!C14=0," ",COUNTRY_INFO!C14) -> Assinet | D14: =IF(COUNTRY_INFO!$U$9:$U$1000="MDA1 (IVM+ALB)", COUNTRY_INFO!$U$9:$U$1000, " ") ->  | E14: 0 | G14: 0 | H14: 0 | I14: 0 | K14: 0 | L14: 0 | M14: 0 | R14: =COUNTRY_INFO!Y14 -> 10745
A15: =IF(COUNTRY_INFO!A15=0," ",COUNTRY_INFO!A15) -> Chad | B15: =IF(COUNTRY_INFO!B15=0," ",COUNTRY_INFO!B15) -> Batha | C15: =IF(COUNTRY_INFO!C15=0," ",COUNTRY_INFO!C15) -> Ati | D15: =IF(COUNTRY_INFO!$U$9:$U$1000="MDA1 (IVM+ALB)", COUNTRY_INFO!$U$9:$U$1000, " ") ->  | E15: 0 | G15: 0 | H15: 0 | I15: 0 | K15: 0 | L15: 0 | M15: 0 | R15: =COUNTRY_INFO!Y15 -> 10662
A16: =IF(COUNTRY_INFO!A16=0," ",COUNTRY_INFO!A16) -> Chad | B16: =IF(COUNTRY_INFO!B16=0," ",COUNTRY_INFO!B16) -> Batha | C16: =IF(COUNTRY_INFO!C16=0," ",COUNTRY_INFO!C16) -> Djedda | D16: =IF(COUNTRY_INFO!$U$9:$U$1000="MDA1 (IVM+ALB)", COUNTRY_INFO!$U$9:$U$1000, " ") ->  | E16: 0 | G16: 0 | H16: 0 | I16: 0 | K16: 0 | L16: 0 | M16: 0 | R16: =COUNTRY_INFO!Y16 -> 10761
A17: =IF(COUNTRY_INFO!A17=0," ",COUNTRY_INFO!A17) -> Chad | B17: =IF(COUNTRY_INFO!B17=0," ",COUNTRY_INFO!B17) -> Batha | C17: =IF(COUNTRY_INFO!C17=0," ",COUNTRY_INFO!C17) -> Koundjourou | D17: =IF(COUNTRY_INFO!$U$9:$U$1000="MDA1 (IVM+ALB)", COUNTRY_INFO!$U$9:$U$1000, " ") ->  | E17: 0 | G17: 0 | H17: 0 | I17: 0 | K17: 0 | L17: 0 | M17: 0 | R17: =COUNTRY_INFO!Y17 -> 10762
A18: =IF(COUNTRY_INFO!A18=0," ",COUNTRY_INFO!A18) -> Chad | B18: =IF(COUNTRY_INFO!B18=0," ",COUNTRY_INFO!B18) -> Batha | C18: =IF(COUNTRY_INFO!C18=0," ",COUNTRY_INFO!C18) -> Oum-Hadjer | D18: =IF(COUNTRY_INFO!$U$9:$U$1000="MDA1 (IVM+ALB)", COUNTRY_INFO!$U$9:$U$1000, " ") ->  | E18: 0 | G18: 0 | H18: 0 | I18: 0 | K18: 0 | L18: 0 | M18: 0 | R18: =COUNTRY_INFO!Y18 -> 10663
A19: =IF(COUNTRY_INFO!A19=0," ",COUNTRY_INFO!A19) -> Chad | B19: =IF(COUNTRY_INFO!B19=0," ",COUNTRY_INFO!B19) -> Batha | C19: =IF(COUNTRY_INFO!C19=0," ",COUNTRY_INFO!C19) -> Yao | D19: =IF(COUNTRY_INFO!$U$9:$U$1000="MDA1 (IVM+ALB)", COUNTRY_INFO!$U$9:$U$1000, " ") ->  | E19: 0 | G19: 0 | H19: 0 | I19: 0 | K19: 0 | L19: 0 | M19: 0 | R19: =COUNTRY_INFO!Y19 -> 10664
A20: =IF(COUNTRY_INFO!A20=0," ",COUNTRY_INFO!A20) -> Chad | B20: =IF(COUNTRY_INFO!B20=0," ",COUNTRY_INFO!B20) -> Borkou | C20: =IF(COUNTRY_INFO!C20=0," ",COUNTRY_INFO!C20) -> Faya | D20: =IF(COUNTRY_INFO!$U$9:$U$1000="MDA1 (IVM+ALB)", COUNTRY_INFO!$U$9:$U$1000, " ") ->  | E20: 0 | G20: 0 | H20: 0 | I20: 0 | K20: 0 | L20: 0 | M20: 0 | R20: =COUNTRY_INFO!Y20 -> 10666
A21: =IF(COUNTRY_INFO!A21=0," ",COUNTRY_INFO!A21) -> Chad | B21: =IF(COUNTRY_INFO!B21=0," ",COUNTRY_INFO!B21) -> Borkou | C21: =IF(COUNTRY_INFO!C21=0," ",COUNTRY_INFO!C21) -> Kirdimi | D21: =IF(COUNTRY_INFO!$U$9:$U$1000="MDA1 (IVM+ALB)", COUNTRY_INFO!$U$9:$U$1000, " ") ->  | E21: 0 | G21: 0 | H21: 0 | I21: 0 | K21: 0 | L21: 0 | M21: 0 | R21: =COUNTRY_INFO!Y21 -> 10746
A22: =IF(COUNTRY_INFO!A22=0," ",COUNTRY_INFO!A22) -> Chad | B22: =IF(COUNTRY_INFO!B22=0," ",COUNTRY_INFO!B22) -> Borkou | C22: =IF(COUNTRY_INFO!C22=0," ",COUNTRY_INFO!C22) -> Kouba Olanga | D22: =IF(COUNTRY_INFO!$U$9:$U$1000="MDA1 (IVM+ALB)", COUNTRY_INFO!$U$9:$U$1000, " ") ->  | I22: 0 | M22: 0 | R22: =COUNTRY_INFO!Y22 -> 10783
A23: =IF(COUNTRY_INFO!A23=0," ",COUNTRY_INFO!A23) -> Chad | B23: =IF(COUNTRY_INFO!B23=0," ",COUNTRY_INFO!B23) -> Chari Baguirmi | C23: =IF(COUNTRY_INFO!C23=0," ",COUNTRY_INFO!C23) -> Ba-Illi | D23: =IF(COUNTRY_INFO!$U$9:$U$1000="MDA1 (IVM+ALB)", COUNTRY_INFO!$U$9:$U$1000, " ") ->  | E23: 0 | G23: 0 | H23: 0 | I23: 0 | K23: 0 | L23: 0 | M23: 0 | R23: =COUNTRY_INFO!Y23 -> 10667
A24: =IF(COUNTRY_INFO!A24=0," ",COUNTRY_INFO!A24) -> Chad | B24: =IF(COUNTRY_INFO!B24=0," ",COUNTRY_INFO!B24) -> Chari Baguirmi | C24: =IF(COUNTRY_INFO!C24=0," ",COUNTRY_INFO!C24) -> Bousso | D24: =IF(COUNTRY_INFO!$U$9:$U$1000="MDA1 (IVM+ALB)", COUNTRY_INFO!$U$9:$U$1000, " ") ->  | E24: 0 | G24: 0 | H24: 0 | I24: 0 | K24: 0 | L24: 0 | M24: 0 | R24: =COUNTRY_INFO!Y24 -> 10668
A25: =IF(COUNTRY_INFO!A25=0," ",COUNTRY_INFO!A25) -> Chad | B25: =IF(COUNTRY_INFO!B25=0," ",COUNTRY_INFO!B25) -> Chari Baguirmi | C25: =IF(COUNTRY_INFO!C25=0," ",COUNTRY_INFO!C25) -> Dourbali | D25: =IF(COUNTRY_INFO!$U$9:$U$1000="MDA1 (IVM+ALB)", COUNTRY_INFO!$U$9:$U$1000, " ") ->  | E25: 0 | G25: 0 | H25: 0 | I25: 0 | K25: 0 | L25: 0 | M25: 0 | R25: =COUNTRY_INFO!Y25 -> 10669
A26: =IF(COUNTRY_INFO!A26=0," ",COUNTRY_INFO!A26) -> Chad | B26: =IF(COUNTRY_INFO!B26=0," ",COUNTRY_INFO!B26) -> Chari Baguirmi | C26: =IF(COUNTRY_INFO!C26=0," ",COUNTRY_INFO!C26) -> Koulno | D26: =IF(COUNTRY_INFO!$U$9:$U$1000="MDA1 (IVM+ALB)", COUNTRY_INFO!$U$9:$U$1000, " ") ->  | E26: 0 | G26: 0 | H26: 0 | I26: 0 | K26: 0 | L26: 0 | M26: 0 | R26: =COUNTRY_INFO!Y26 -> 10747
A27: =IF(COUNTRY_INFO!A27=0," ",COUNTRY_INFO!A27) -> Chad | B27: =IF(COUNTRY_INFO!B27=0," ",COUNTRY_INFO!B27) -> Chari Baguirmi | C27: =IF(COUNTRY_INFO!C27=0," ",COUNTRY_INFO!C27) -> Mandélia | D27: =IF(COUNTRY_INFO!$U$9:$U$1000="MDA1 (IVM+ALB)", COUNTRY_INFO!$U$9:$U$1000, " ") ->  | E27: 0 | G27: 0 | H27: 0 | I27: 0 | K27: 0 | L27: 0 | M27: 0 | R27: =COUNTRY_INFO!Y27 -> 10671
A28: =IF(COUNTRY_INFO!A28=0," ",COUNTRY_INFO!A28) -> Chad | B28: =IF(COUNTRY_INFO!B28=0," ",COUNTRY_INFO!B28) -> Chari Baguirmi | C28: =IF(COUNTRY_INFO!C28=0," ",COUNTRY_INFO!C28) -> Massenya | D28: =IF(COUNTRY_INFO!$U$9:$U$1000="MDA1 (IVM+ALB)", COUNTRY_INFO!$U$9:$U$1000, " ") ->  | E28: 0 | G28: 0 | H28: 0 | I28: 0 | K28: 0 | L28: 0 | M28: 0 | R28: =COUNTRY_INFO!Y28 -> 10672
A29: =IF(COUNTRY_INFO!A29=0," ",COUNTRY_INFO!A29) -> Chad | B29: =IF(COUNTRY_INFO!B29=0," ",COUNTRY_INFO!B29) -> Ennedi Est | C29: =IF(COUNTRY_INFO!C29=0," ",COUNTRY_INFO!C29) -> Amdjarass | D29: =IF(COUNTRY_INFO!$U$9:$U$1000="MDA1 (IVM+ALB)", COUNTRY_INFO!$U$9:$U$1000, " ") ->  | E29: 0 | G29: 0 | H29: 0 | I29: 0 | K29: 0 | L29: 0 | M29: 0 | R29: =COUNTRY_INFO!Y29 -> 10675
A30: =IF(COUNTRY_INFO!A30=0," ",COUNTRY_INFO!A30) -> Chad | B30: =IF(COUNTRY_INFO!B30=0," ",COUNTRY_INFO!B30) -> Ennedi Est | C30: =IF(COUNTRY_INFO!C30=0," ",COUNTRY_INFO!C30) -> Bahaï | D30: =IF(COUNTRY_INFO!$U$9:$U$1000="MDA1 (IVM+ALB)", COUNTRY_INFO!$U$9:$U$1000, " ") ->  | E30: 0 | G30: 0 | H30: 0 | I30: 0 | K30: 0 | L30: 0 | M30: 0 | R30: =COUNTRY_INFO!Y30 -> 10676
A31: =IF(COUNTRY_INFO!A31=0," ",COUNTRY_INFO!A31) -> Chad | B31: =IF(COUNTRY_INFO!B31=0," ",COUNTRY_INFO!B31) -> Ennedi Est | C31: =IF(COUNTRY_INFO!C31=0," ",COUNTRY_INFO!C31) -> Kaoura | D31: =IF(COUNTRY_INFO!$U$9:$U$1000="MDA1 (IVM+ALB)", COUNTRY_INFO!$U$9:$U$1000, " ") ->  | E31: 0 | G31: 0 | H31: 0 | I31: 0 | K31: 0 | L31: 0 | M31: 0 | R31: =COUNTRY_INFO!Y31 -> 10678
A32: =IF(COUNTRY_INFO!A32=0," ",COUNTRY_INFO!A32) -> Chad | B32: =IF(COUNTRY_INFO!B32=0," ",COUNTRY_INFO!B32) -> Ennedi Est | C32: =IF(COUNTRY_INFO!C32=0," ",COUNTRY_INFO!C32) -> Mourdi | D32: =IF(COUNTRY_INFO!$U$9:$U$1000="MDA1 (IVM+ALB)", COUNTRY_INFO!$U$9:$U$1000, " ") ->  | I32: 0 | M32: 0 | R32: =COUNTRY_INFO!Y32 -> 10784
A33: =IF(COUNTRY_INFO!A33=0," ",COUNTRY_INFO!A33) -> Chad | B33: =IF(COUNTRY_INFO!B33=0," ",COUNTRY_INFO!B33) -> Ennedi Ouest | C33: =IF(COUNTRY_INFO!C33=0," ",COUNTRY_INFO!C33) -> Fada | D33: =IF(COUNTRY_INFO!$U$9:$U$1000="MDA1 (IVM+ALB)", COUNTRY_INFO!$U$9:$U$1000, " ") ->  | E33: 0 | G33: 0 | H33: 0 | I33: 0 | K33: 0 | L33: 0 | M33: 0 | R33: =COUNTRY_INFO!Y33 -> 10665
A34: =IF(COUNTRY_INFO!A34=0," ",COUNTRY_INFO!A34) -> Chad | B34: =IF(COUNTRY_INFO!B34=0," ",COUNTRY_INFO!B34) -> Ennedi Ouest | C34: =IF(COUNTRY_INFO!C34=0," ",COUNTRY_INFO!C34) -> Kalaït | D34: =IF(COUNTRY_INFO!$U$9:$U$1000="MDA1 (IVM+ALB)", COUNTRY_INFO!$U$9:$U$1000, " ") ->  | E34: 0 | G34: 0 | H34: 0 | I34: 0 | K34: 0 | L34: 0 | M34: 0 | R34: =COUNTRY_INFO!Y34 -> 10677
A35: =IF(COUNTRY_INFO!A35=0," ",COUNTRY_INFO!A35) -> Chad | B35: =IF(COUNTRY_INFO!B35=0," ",COUNTRY_INFO!B35) -> Ennedi Ouest | C35: =IF(COUNTRY_INFO!C35=0," ",COUNTRY_INFO!C35) -> Ounianga Kebbir | D35: =IF(COUNTRY_INFO!$U$9:$U$1000="MDA1 (IVM+ALB)", COUNTRY_INFO!$U$9:$U$1000, " ") ->  | I35: 0 | M35: 0 | R35: =COUNTRY_INFO!Y35 -> 10785
A36: =IF(COUNTRY_INFO!A36=0," ",COUNTRY_INFO!A36) -> Chad | B36: =IF(COUNTRY_INFO!B36=0," ",COUNTRY_INFO!B36) -> Guéra | C36: =IF(COUNTRY_INFO!C36=0," ",COUNTRY_INFO!C36) -> Barou | D36: =IF(COUNTRY_INFO!$U$9:$U$1000="MDA1 (IVM+ALB)", COUNTRY_INFO!$U$9:$U$1000, " ") ->  | E36: 0 | G36: 0 | H36: 0 | I36: 0 | K36: 0 | L36: 0 | M36: 0 | R36: =COUNTRY_INFO!Y36 -> 10763
A37: =IF(COUNTRY_INFO!A37=0," ",COUNTRY_INFO!A37) -> Chad | B37: =IF(COUNTRY_INFO!B37=0," ",COUNTRY_INFO!B37) -> Guéra | C37: =IF(COUNTRY_INFO!C37=0," ",COUNTRY_INFO!C37) -> Bitkine | D37: =IF(COUNTRY_INFO!$U$9:$U$1000="MDA1 (IVM+ALB)", COUNTRY_INFO!$U$9:$U$1000, " ") ->  | E37: 0 | G37: 0 | H37: 0 | I37: 0 | K37: 0 | L37: 0 | M37: 0 | R37: =COUNTRY_INFO!Y37 -> 10679
A38: =IF(COUNTRY_INFO!A38=0," ",COUNTRY_INFO!A38) -> Chad | B38: =IF(COUNTRY_INFO!B38=0," ",COUNTRY_INFO!B38) -> Guéra | C38: =IF(COUNTRY_INFO!C38=0," ",COUNTRY_INFO!C38) -> Mangalmé | D38: =IF(COUNTRY_INFO!$U$9:$U$1000="MDA1 (IVM+ALB)", COUNTRY_INFO!$U$9:$U$1000, " ") ->  | E38: 0 | G38: 0 | H38: 0 | I38: 0 | K38: 0 | L38: 0 | M38: 0 | R38: =COUNTRY_INFO!Y38 -> 10680
A39: =IF(COUNTRY_INFO!A39=0," ",COUNTRY_INFO!A39) -> Chad | B39: =IF(COUNTRY_INFO!B39=0," ",COUNTRY_INFO!B39) -> Guéra | C39: =IF(COUNTRY_INFO!C39=0," ",COUNTRY_INFO!C39) -> Melfi | D39: =IF(COUNTRY_INFO!$U$9:$U$1000="MDA1 (IVM+ALB)", COUNTRY_INFO!$U$9:$U$1000, " ") ->  | E39: 0 | G39: 0 | H39: 0 | I39: 0 | K39: 0 | L39: 0 | M39: 0 | R39: =COUNTRY_INFO!Y39 -> 10681
A40: =IF(COUNTRY_INFO!A40=0," ",COUNTRY_INFO!A40) -> Chad | B40: =IF(COUNTRY_INFO!B40=0," ",COUNTRY_INFO!B40) -> Guéra | C40: =IF(COUNTRY_INFO!C40=0," ",COUNTRY_INFO!C40) -> Mongo | D40: =IF(COUNTRY_INFO!$U$9:$U$1000="MDA1 (IVM+ALB)", COUNTRY_INFO!$U$9:$U$1000, " ") ->  | E40: 0 | G40: 0 | H40: 0 | I40: 0 | K40: 0 | L40: 0 | M40: 0 | R40: =COUNTRY_INFO!Y40 -> 10682
A41: =IF(COUNTRY_INFO!A41=0," ",COUNTRY_INFO!A41) -> Chad | B41: =IF(COUNTRY_INFO!B41=0," ",COUNTRY_INFO!B41) -> Hadjer Lamis | C41: =IF(COUNTRY_INFO!C41=0," ",COUNTRY_INFO!C41) -> Bokoro | D41: =IF(COUNTRY_INFO!$U$9:$U$1000="MDA1 (IVM+ALB)", COUNTRY_INFO!$U$9:$U$1000, " ") ->  | E41: 0 | G41: 0 | H41: 0 | I41: 0 | K41: 0 | L41: 0 | M41: 0 | R41: =COUNTRY_INFO!Y41 -> 10683
A42: =IF(COUNTRY_INFO!A42=0," ",COUNTRY_INFO!A42) -> Chad | B42: =IF(COUNTRY_INFO!B42=0," ",COUNTRY_INFO!B42) -> Hadjer Lamis | C42: =IF(COUNTRY_INFO!C42=0," ",COUNTRY_INFO!C42) -> Gama | D42: =IF(COUNTRY_INFO!$U$9:$U$1000="MDA1 (IVM+ALB)", COUNTRY_INFO!$U$9:$U$1000, " ") ->  | E42: 0 | G42: 0 | H42: 0 | I42: 0 | K42: 0 | L42: 0 | M42: 0 | R42: =COUNTRY_INFO!Y42 -> 10748
A43: =IF(COUNTRY_INFO!A43=0," ",COUNTRY_INFO!A43) -> Chad | B43: =IF(COUNTRY_INFO!B43=0," ",COUNTRY_INFO!B43) -> Hadjar Lamis | C43: =IF(COUNTRY_INFO!C43=0," ",COUNTRY_INFO!C43) -> Karal | D43: =IF(COUNTRY_INFO!$U$9:$U$1000="MDA1 (IVM+ALB)", COUNTRY_INFO!$U$9:$U$1000, " ") ->  | I43: 0 | M43: 0 | R43: =COUNTRY_INFO!Y43 -> 10786
A44: =IF(COUNTRY_INFO!A44=0," ",COUNTRY_INFO!A44) -> Chad | B44: =IF(COUNTRY_INFO!B44=0," ",COUNTRY_INFO!B44) -> Hadjer Lamis | C44: =IF(COUNTRY_INFO!C44=0," ",COUNTRY_INFO!C44) -> Mani | D44: =IF(COUNTRY_INFO!$U$9:$U$1000="MDA1 (IVM+ALB)", COUNTRY_INFO!$U$9:$U$1000, " ") ->  | E44: 0 | G44: 0 | H44: 0 | I44: 0 | K44: 0 | L44: 0 | M44: 0 | R44: =COUNTRY_INFO!Y44 -> 10684
A45: =IF(COUNTRY_INFO!A45=0," ",COUNTRY_INFO!A45) -> Chad | B45: =IF(COUNTRY_INFO!B45=0," ",COUNTRY_INFO!B45) -> Hadjer Lamis | C45: =IF(COUNTRY_INFO!C45=0," ",COUNTRY_INFO!C45) -> Massaguet | D45: =IF(COUNTRY_INFO!$U$9:$U$1000="MDA1 (IVM+ALB)", COUNTRY_INFO!$U$9:$U$1000, " ") ->  | E45: 0 | G45: 0 | H45: 0 | I45: 0 | K45: 0 | L45: 0 | M45: 0 | R45: =COUNTRY_INFO!Y45 -> 10685
A46: =IF(COUNTRY_INFO!A46=0," ",COUNTRY_INFO!A46) -> Chad | B46: =IF(COUNTRY_INFO!B46=0," ",COUNTRY_INFO!B46) -> Hadjer Lamis | C46: =IF(COUNTRY_INFO!C46=0," ",COUNTRY_INFO!C46) -> Massakory | D46: =IF(COUNTRY_INFO!$U$9:$U$1000="MDA1 (IVM+ALB)", COUNTRY_INFO!$U$9:$U$1000, " ") ->  | E46: 0 | G46: 0 | H46: 0 | I46: 0 | K46: 0 | L46: 0 | M46: 0 | R46: =COUNTRY_INFO!Y46 -> 10686
A47: =IF(COUNTRY_INFO!A47=0," ",COUNTRY_INFO!A47) -> Chad | B47: =IF(COUNTRY_INFO!B47=0," ",COUNTRY_INFO!B47) -> Kanem | C47: =IF(COUNTRY_INFO!C47=0," ",COUNTRY_INFO!C47) -> Amdoback | D47: =IF(COUNTRY_INFO!$U$9:$U$1000="MDA1 (IVM+ALB)", COUNTRY_INFO!$U$9:$U$1000, " ") ->  | I47: 0 | M47: 0 | R47: =COUNTRY_INFO!Y47 -> 10787
A48: =IF(COUNTRY_INFO!A48=0," ",COUNTRY_INFO!A48) -> Chad | B48: =IF(COUNTRY_INFO!B48=0," ",COUNTRY_INFO!B48) -> Kanem | C48: =IF(COUNTRY_INFO!C48=0," ",COUNTRY_INFO!C48) -> Kekedina | D48: =IF(COUNTRY_INFO!$U$9:$U$1000="MDA1 (IVM+ALB)", COUNTRY_INFO!$U$9:$U$1000, " ") ->  | I48: 0 | M48: 0 | R48: =COUNTRY_INFO!Y48 -> 10788
A49: =IF(COUNTRY_INFO!A49=0," ",COUNTRY_INFO!A49) -> Chad | B49: =IF(COUNTRY_INFO!B49=0," ",COUNTRY_INFO!B49) -> Kanem | C49: =IF(COUNTRY_INFO!C49=0," ",COUNTRY_INFO!C49) -> Mao | D49: =IF(COUNTRY_INFO!$U$9:$U$1000="MDA1 (IVM+ALB)", COUNTRY_INFO!$U$9:$U$1000, " ") ->  | E49: 0 | G49: 0 | H49: 0 | I49: 0 | K49: 0 | L49: 0 | M49: 0 | R49: =COUNTRY_INFO!Y49 -> 10687
A50: =IF(COUNTRY_INFO!A50=0," ",COUNTRY_INFO!A50) -> Chad | B50: =IF(COUNTRY_INFO!B50=0," ",COUNTRY_INFO!B50) -> Kanem | C50: =IF(COUNTRY_INFO!C50=0," ",COUNTRY_INFO!C50) -> Mondo | D50: =IF(COUNTRY_INFO!$U$9:$U$1000="MDA1 (IVM+ALB)", COUNTRY_INFO!$U$9:$U$1000, " ") ->  | E50: 0 | G50: 0 | H50: 0 | I50: 0 | K50: 0 | L50: 0 | M50: 0 | R50: =COUNTRY_INFO!Y50 -> 10688
A51: =IF(COUNTRY_INFO!A51=0," ",COUNTRY_INFO!A51) -> Chad | B51: =IF(COUNTRY_INFO!B51=0," ",COUNTRY_INFO!B51) -> Kanem | C51: =IF(COUNTRY_INFO!C51=0," ",COUNTRY_INFO!C51) -> Nokou | D51: =IF(COUNTRY_INFO!$U$9:$U$1000="MDA1 (IVM+ALB)", COUNTRY_INFO!$U$9:$U$1000, " ") ->  | E51: 0 | G51: 0 | H51: 0 | I51: 0 | K51: 0 | L51: 0 | M51: 0 | R51: =COUNTRY_INFO!Y51 -> 10689
A52: =IF(COUNTRY_INFO!A52=0," ",COUNTRY_INFO!A52) -> Chad | B52: =IF(COUNTRY_INFO!B52=0," ",COUNTRY_INFO!B52) -> Kanem | C52: =IF(COUNTRY_INFO!C52=0," ",COUNTRY_INFO!C52) -> Ntiona | D52: =IF(COUNTRY_INFO!$U$9:$U$1000="MDA1 (IVM+ALB)", COUNTRY_INFO!$U$9:$U$1000, " ") ->  | E52: 0 | G52: 0 | H52: 0 | I52: 0 | K52: 0 | L52: 0 | M52: 0 | R52: =COUNTRY_INFO!Y52 -> 10764
A53: =IF(COUNTRY_INFO!A53=0," ",COUNTRY_INFO!A53) -> Chad | B53: =IF(COUNTRY_INFO!B53=0," ",COUNTRY_INFO!B53) -> Kanem | C53: =IF(COUNTRY_INFO!C53=0," ",COUNTRY_INFO!C53) -> Rig-Rig | D53: =IF(COUNTRY_INFO!$U$9:$U$1000="MDA1 (IVM+ALB)", COUNTRY_INFO!$U$9:$U$1000, " ") ->  | E53: 0 | G53: 0 | H53: 0 | I53: 0 | K53: 0 | L53: 0 | M53: 0 | R53: =COUNTRY_INFO!Y53 -> 10690
A54: =IF(COUNTRY_INFO!A54=0," ",COUNTRY_INFO!A54) -> Chad | B54: =IF(COUNTRY_INFO!B54=0," ",COUNTRY_INFO!B54) -> Lac | C54: =IF(COUNTRY_INFO!C54=0," ",COUNTRY_INFO!C54) -> Bagassola | D54: =IF(COUNTRY_INFO!$U$9:$U$1000="MDA1 (IVM+ALB)", COUNTRY_INFO!$U$9:$U$1000, " ") ->  | E54: 0 | G54: 0 | H54: 0 | I54: 0 | K54: 0 | L54: 0 | M54: 0 | R54: =COUNTRY_INFO!Y54 -> 10691
A55: =IF(COUNTRY_INFO!A55=0," ",COUNTRY_INFO!A55) -> Chad | B55: =IF(COUNTRY_INFO!B55=0," ",COUNTRY_INFO!B55) -> Lac | C55: =IF(COUNTRY_INFO!C55=0," ",COUNTRY_INFO!C55) -> Bol | D55: =IF(COUNTRY_INFO!$U$9:$U$1000="MDA1 (IVM+ALB)", COUNTRY_INFO!$U$9:$U$1000, " ") ->  | E55: 0 | G55: 0 | H55: 0 | I55: 0 | K55: 0 | L55: 0 | M55: 0 | R55: =COUNTRY_INFO!Y55 -> 10692
A56: =IF(COUNTRY_INFO!A56=0," ",COUNTRY_INFO!A56) -> Chad | B56: =IF(COUNTRY_INFO!B56=0," ",COUNTRY_INFO!B56) -> Lac | C56: =IF(COUNTRY_INFO!C56=0," ",COUNTRY_INFO!C56) -> Isserom | D56: =IF(COUNTRY_INFO!$U$9:$U$1000="MDA1 (IVM+ALB)", COUNTRY_INFO!$U$9:$U$1000, " ") ->  | E56: 0 | G56: 0 | H56: 0 | I56: 0 | K56: 0 | L56: 0 | M56: 0 | R56: =COUNTRY_INFO!Y56 -> 10749
A57: =IF(COUNTRY_INFO!A57=0," ",COUNTRY_INFO!A57) -> Chad | B57: =IF(COUNTRY_INFO!B57=0," ",COUNTRY_INFO!B57) -> Lac | C57: =IF(COUNTRY_INFO!C57=0," ",COUNTRY_INFO!C57) -> Kouloudia | D57: =IF(COUNTRY_INFO!$U$9:$U$1000="MDA1 (IVM+ALB)", COUNTRY_INFO!$U$9:$U$1000, " ") ->  | E57: 0 | G57: 0 | H57: 0 | I57: 0 | K57: 0 | L57: 0 | M57: 0 | R57: =COUNTRY_INFO!Y57 -> 10693
A58: =IF(COUNTRY_INFO!A58=0," ",COUNTRY_INFO!A58) -> Chad | B58: =IF(COUNTRY_INFO!B58=0," ",COUNTRY_INFO!B58) -> Lac | C58: =IF(COUNTRY_INFO!C58=0," ",COUNTRY_INFO!C58) -> Liwa | D58: =IF(COUNTRY_INFO!$U$9:$U$1000="MDA1 (IVM+ALB)", COUNTRY_INFO!$U$9:$U$1000, " ") ->  | E58: 0 | G58: 0 | H58: 0 | I58: 0 | K58: 0 | L58: 0 | M58: 0 | R58: =COUNTRY_INFO!Y58 -> 10694
A59: =IF(COUNTRY_INFO!A59=0," ",COUNTRY_INFO!A59) -> Chad | B59: =IF(COUNTRY_INFO!B59=0," ",COUNTRY_INFO!B59) -> Lac | C59: =IF(COUNTRY_INFO!C59=0," ",COUNTRY_INFO!C59) -> Ngouri | D59: =IF(COUNTRY_INFO!$U$9:$U$1000="MDA1 (IVM+ALB)", COUNTRY_INFO!$U$9:$U$1000, " ") ->  | E59: 0 | G59: 0 | H59: 0 | I59: 0 | K59: 0 | L59: 0 | M59: 0 | R59: =COUNTRY_INFO!Y59 -> 10695
A60: =IF(COUNTRY_INFO!A60=0," ",COUNTRY_INFO!A60) -> Chad | B60: =IF(COUNTRY_INFO!B60=0," ",COUNTRY_INFO!B60) -> Logone Occidental | C60: =IF(COUNTRY_INFO!C60=0," ",COUNTRY_INFO!C60) -> Benamar | D60: =IF(COUNTRY_INFO!$U$9:$U$1000="MDA1 (IVM+ALB)", COUNTRY_INFO!$U$9:$U$1000, " ") -> MDA1 (IVM+ALB) | E60: Fevrier 2022 | G60: 42915 | H60: 69922 | I60: 112837 | K60: 41927 | L60: 68814 | M60: 110741 | O60: 97.69777467 | P60: 98.41537713 | Q60: 98.14245327 | R60: =COUNTRY_INFO!Y60 -> 10765 | T60: =COUNTRY_INFO!D60 -> 141400 | U60: =COUNTRY_INFO!E60 -> 23331
A61: =IF(COUNTRY_INFO!A61=0," ",COUNTRY_INFO!A61) -> Chad | B61: =IF(COUNTRY_INFO!B61=0," ",COUNTRY_INFO!B61) -> Logone Occidental | C61: =IF(COUNTRY_INFO!C61=0," ",COUNTRY_INFO!C61) -> Benoye | D61: =IF(COUNTRY_INFO!$U$9:$U$1000="MDA1 (IVM+ALB)", COUNTRY_INFO!$U$9:$U$1000, " ") -> MDA1 (IVM+ALB) | E61: Fevrier 2022 | G61: 81469 | H61: 128461 | I61: 209930 | K61: 78235 | L61: 126447 | M61: 204682 | O61: 96.03039193 | P61: 98.432209 | Q61: 97.50011909 | R61: =COUNTRY_INFO!Y61 -> 10696 | T61: =COUNTRY_INFO!D61 -> 257775 | U61: =COUNTRY_INFO!E61 -> 42533
A62: =IF(COUNTRY_INFO!A62=0," ",COUNTRY_INFO!A62) -> Chad | B62: =IF(COUNTRY_INFO!B62=0," ",COUNTRY_INFO!B62) -> Logone Occidental | C62: =IF(COUNTRY_INFO!C62=0," ",COUNTRY_INFO!C62) -> Laokassy | D62: =IF(COUNTRY_INFO!$U$9:$U$1000="MDA1 (IVM+ALB)", COUNTRY_INFO!$U$9:$U$1000, " ") -> MDA1 (IVM+ALB) | E62: Fevrier 2022 | G62: 63114 | H62: 104516 | I62: 167630 | K62: 59642 | L62: 96036 | M62: 155678 | O62: 94.49884336 | P62: 91.88640974 | Q62: 92.87001133 | R62: =COUNTRY_INFO!Y62 -> 10697 | T62: =COUNTRY_INFO!D62 -> 204860 | U62: =COUNTRY_INFO!E62 -> 33802
A63: =IF(COUNTRY_INFO!A63=0," ",COUNTRY_INFO!A63) -> Chad | B63: =IF(COUNTRY_INFO!B63=0," ",COUNTRY_INFO!B63) -> Logone Occidental | C63: =IF(COUNTRY_INFO!C63=0," ",COUNTRY_INFO!C63) -> Moundou | D63: =IF(COUNTRY_INFO!$U$9:$U$1000="MDA1 (IVM+ALB)", COUNTRY_INFO!$U$9:$U$1000, " ") -> MDA1 (IVM+ALB) | E63: Fevrier 2022 | G63: 108612 | H63: 173648 | I63: 282260 | K63: 107884 | L63: 164123 | M63: 272007 | O63: 99.32972416 | P63: 94.5147655 | Q63: 96.36753348 | R63: =COUNTRY_INFO!Y63 -> 10698 | T63: =COUNTRY_INFO!D63 -> 342222 | U63: =COUNTRY_INFO!E63 -> 56467
A64: =IF(COUNTRY_INFO!A64=0," ",COUNTRY_INFO!A64) -> Chad | B64: =IF(COUNTRY_INFO!B64=0," ",COUNTRY_INFO!B64) -> Logone Orientlal | C64: =IF(COUNTRY_INFO!C64=0," ",COUNTRY_INFO!C64) -> Baibokoum | D64: =IF(COUNTRY_INFO!$U$9:$U$1000="MDA1 (IVM+ALB)", COUNTRY_INFO!$U$9:$U$1000, " ") -> MDA1 (IVM+ALB) | E64: Fevrier 2022 | G64: 23502 | H64: 51862 | I64: 75364 | K64: 22531 | L64: 50862 | M64: 73393 | O64: 95.86843673 | P64: 98.07180595 | Q64: 97.38469296 | R64: =COUNTRY_INFO!Y64 -> 10766 | T64: =COUNTRY_INFO!D64 -> 90514 | U64: =COUNTRY_INFO!E64 -> 14935
A65: =IF(COUNTRY_INFO!A65=0," ",COUNTRY_INFO!A65) -> Chad | B65: =IF(COUNTRY_INFO!B65=0," ",COUNTRY_INFO!B65) -> Logone Orientlal | C65: =IF(COUNTRY_INFO!C65=0," ",COUNTRY_INFO!C65) -> Bebedja | D65: =IF(COUNTRY_INFO!$U$9:$U$1000="MDA1 (IVM+ALB)", COUNTRY_INFO!$U$9:$U$1000, " ") -> MDA1 (IVM+ALB) | E65: Fevrier 2022 | G65: 58660 | H65: 102354 | I65: 161014 | K65: 56156 | L65: 101224 | M65: 157380 | O65: 95.73133311 | P65: 98.89598843 | Q65: 97.7430534 | R65: =COUNTRY_INFO!Y65 -> 10699 | T65: =COUNTRY_INFO!D65 -> 189395 | U65: =COUNTRY_INFO!E65 -> 31250
A66: =IF(COUNTRY_INFO!A66=0," ",COUNTRY_INFO!A66) -> Chad | B66: =IF(COUNTRY_INFO!B66=0," ",COUNTRY_INFO!B66) -> Logone Orientlal | C66: =IF(COUNTRY_INFO!C66=0," ",COUNTRY_INFO!C66) -> Beboto | D66: =IF(COUNTRY_INFO!$U$9:$U$1000="MDA1 (IVM+ALB)", COUNTRY_INFO!$U$9:$U$1000, " ") -> MDA1 (IVM+ALB) | E66: Fevrier 2022 | G66: 32418 | H66: 52843 | I66: 85261 | K66: 30441 | L66: 50662 | M66: 81103 | O66: 93.90153618 | P66: 95.87267945 | Q66: 95.12320991 | R66: =COUNTRY_INFO!Y66 -> 10700 | T66: =COUNTRY_INFO!D66 -> 103640 | U66: =COUNTRY_INFO!E66 -> 17101
A67: =IF(COUNTRY_INFO!A67=0," ",COUNTRY_INFO!A67) -> Chad | B67: =IF(COUNTRY_INFO!B67=0," ",COUNTRY_INFO!B67) -> Logone Orientlal | C67: =IF(COUNTRY_INFO!C67=0," ",COUNTRY_INFO!C67) -> Bessao | D67: =IF(COUNTRY_INFO!$U$9:$U$1000="MDA1 (IVM+ALB)", COUNTRY_INFO!$U$9:$U$1000, " ") -> MDA1 (IVM+ALB) | E67: Fevrier 2022 | G67: 57294 | H67: 92133 | I67: 149427 | K67: 55518 | L67: 89647 | M67: 145165 | O67: 96.90019897 | P67: 97.30172685 | Q67: 97.14777115 | R67: =COUNTRY_INFO!Y67 -> 10701 | T67: =COUNTRY_INFO!D67 -> 182938 | U67: =COUNTRY_INFO!E67 -> 30185
A68: =IF(COUNTRY_INFO!A68=0," ",COUNTRY_INFO!A68) -> Chad | B68: =IF(COUNTRY_INFO!B68=0," ",COUNTRY_INFO!B68) -> Logone Orientlal | C68: =IF(COUNTRY_INFO!C68=0," ",COUNTRY_INFO!C68) -> Bodo | D68: =IF(COUNTRY_INFO!$U$9:$U$1000="MDA1 (IVM+ALB)", COUNTRY_INFO!$U$9:$U$1000, " ") -> MDA1 (IVM+ALB) | E68: Fevrier 2022 | G68: 48022 | H68: 78914 | I68: 126936 | K68: 46257 | L68: 77116 | M68: 123373 | O68: 96.32460122 | P68: 97.72157032 | Q68: 97.19307367 | R68: =COUNTRY_INFO!Y68 -> 10702 | T68: =COUNTRY_INFO!D68 -> 157517 | U68: =COUNTRY_INFO!E68 -> 25990
A69: =IF(COUNTRY_INFO!A69=0," ",COUNTRY_INFO!A69) -> Chad | B69: =IF(COUNTRY_INFO!B69=0," ",COUNTRY_INFO!B69) -> Logone Orientlal | C69: =IF(COUNTRY_INFO!C69=0," ",COUNTRY_INFO!C69) -> Doba | D69: =IF(COUNTRY_INFO!$U$9:$U$1000="MDA1 (IVM+ALB)", COUNTRY_INFO!$U$9:$U$1000, " ") -> MDA1 (IVM+ALB) | E69: Fevrier 2022 | G69: 69829 | H69: 113775 | I69: 183604 | K69: 68241 | L69: 91532 | M69: 159773 | O69: 97.7258732 | P69: 80.45001099 | Q69: 87.02043528 | R69: =COUNTRY_INFO!Y69 -> 10703 | T69: =COUNTRY_INFO!D69 -> 230080 | U69: =COUNTRY_INFO!E69 -> 37963
A70: =IF(COUNTRY_INFO!A70=0," ",COUNTRY_INFO!A70) -> Chad | B70: =IF(COUNTRY_INFO!B70=0," ",COUNTRY_INFO!B70) -> Logone Orientlal | C70: =IF(COUNTRY_INFO!C70=0," ",COUNTRY_INFO!C70) -> DONIA | D70: =IF(COUNTRY_INFO!$U$9:$U$1000="MDA1 (IVM+ALB)", COUNTRY_INFO!$U$9:$U$1000, " ") -> MDA1 (IVM+ALB) | E70: Fevrier 2022 | G70: 27641 | H70: 51459 | I70: 79100 | K70: 26796 | L70: 51712 | M70: 78508 | O70: 96.94294707 | P70: 100.4916535 | Q70: 99.25158028 | R70: =COUNTRY_INFO!Y70 -> 10767 | T70: =COUNTRY_INFO!D70 -> 88245 | U70: =COUNTRY_INFO!E70 -> 14560
A71: =IF(COUNTRY_INFO!A71=0," ",COUNTRY_INFO!A71) -> Chad | B71: =IF(COUNTRY_INFO!B71=0," ",COUNTRY_INFO!B71) -> Logone Orientlal | C71: =IF(COUNTRY_INFO!C71=0," ",COUNTRY_INFO!C71) -> Goré | D71: =IF(COUNTRY_INFO!$U$9:$U$1000="MDA1 (IVM+ALB)", COUNTRY_INFO!$U$9:$U$1000, " ") -> MDA1 (IVM+ALB) | E71: Fevrier 2022 | G71: 52331 | H71: 84121 | I71: 136452 | K71: 51226 | L71: 83226 | M71: 134452 | O71: 97.88844089 | P71: 98.93605639 | Q71: 98.53428312 | R71: =COUNTRY_INFO!Y71 -> 10704 | T71: =COUNTRY_INFO!D71 -> 169285 | U71: =COUNTRY_INFO!E71 -> 27932
A72: =IF(COUNTRY_INFO!A72=0," ",COUNTRY_INFO!A72) -> Chad | B72: =IF(COUNTRY_INFO!B72=0," ",COUNTRY_INFO!B72) -> Logone Orientlal | C72: =IF(COUNTRY_INFO!C72=0," ",COUNTRY_INFO!C72) -> Kara | D72: =IF(COUNTRY_INFO!$U$9:$U$1000="MDA1 (IVM+ALB)", COUNTRY_INFO!$U$9:$U$1000, " ") -> MDA1 (IVM+ALB) | E72: Fevrier 2022 | G72: 19956 | H72: 32515 | I72: 52471 | K72: 18712 | L72: 30182 | M72: 48894 | O72: 93.76628583 | P72: 92.82485007 | Q72: 93.18290103 | R72: =COUNTRY_INFO!Y72 -> 10768 | T72: =COUNTRY_INFO!D72 -> 65754 | U72: =COUNTRY_INFO!E72 -> 10849
A73: =IF(COUNTRY_INFO!A73=0," ",COUNTRY_INFO!A73) -> Chad | B73: =IF(COUNTRY_INFO!B73=0," ",COUNTRY_INFO!B73) -> Logone Orientlal | C73: =IF(COUNTRY_INFO!C73=0," ",COUNTRY_INFO!C73) -> Larmanaye | D73: =IF(COUNTRY_INFO!$U$9:$U$1000="MDA1 (IVM+ALB)", COUNTRY_INFO!$U$9:$U$1000, " ") -> MDA1 (IVM+ALB) | E73: Fevrier 2022 | G73: 25608 | H73: 57016 | I73: 82624 | K73: 20707 | L73: 56516 | M73: 77223 | O73: 80.86144955 | P73: 99.12305318 | Q73: 93.4631584 | R73: =COUNTRY_INFO!Y73 -> 10705 | T73: =COUNTRY_INFO!D73 -> 84376 | U73: =COUNTRY_INFO!E73 -> 13922
A74: =IF(COUNTRY_INFO!A74=0," ",COUNTRY_INFO!A74) -> Chad | B74: =IF(COUNTRY_INFO!B74=0," ",COUNTRY_INFO!B74) -> Mandoul | C74: =IF(COUNTRY_INFO!C74=0," ",COUNTRY_INFO!C74) -> Bedaya | D74: =IF(COUNTRY_INFO!$U$9:$U$1000="MDA1 (IVM+ALB)", COUNTRY_INFO!$U$9:$U$1000, " ") -> MDA1 (IVM+ALB) | E74: Fevrier 2022 | I74: =SUM(F74:H74) -> 0 | K74: 32568 | L74: 52289 | M74: =SUM(J74:L74) -> 84857 | O74: =IF(G74<>0, IF(K74/G74*100=0, "-", K74/G74*100), " ") ->  | P74: =IF(H74<>0, IF(L74/H74*100=0, "-", L74/H74*100), " ") ->  | Q74: =IF(I74<>0, IF(M74/I74*100=0, "-", M74/I74*100), " ") ->  | R74: =COUNTRY_INFO!Y74 -> 10769 | T74: =COUNTRY_INFO!D74 -> 109137 | U74: =COUNTRY_INFO!E74 -> 18008
A75: =IF(COUNTRY_INFO!A75=0," ",COUNTRY_INFO!A75) -> Chad | B75: =IF(COUNTRY_INFO!B75=0," ",COUNTRY_INFO!B75) -> Mandoul | C75: =IF(COUNTRY_INFO!C75=0," ",COUNTRY_INFO!C75) -> Bedjondo | D75: =IF(COUNTRY_INFO!$U$9:$U$1000="MDA1 (IVM+ALB)", COUNTRY_INFO!$U$9:$U$1000, " ") ->  | E75: 0 | G75: 0 | H75: 0 | I75: 0 | K75: 0 | L75: 0 | M75: 0 | R75: =COUNTRY_INFO!Y75 -> 10706
A76: =IF(COUNTRY_INFO!A76=0," ",COUNTRY_INFO!A76) -> Chad | B76: =IF(COUNTRY_INFO!B76=0," ",COUNTRY_INFO!B76) -> Mandoul | C76: =IF(COUNTRY_INFO!C76=0," ",COUNTRY_INFO!C76) -> Bekourou | D76: =IF(COUNTRY_INFO!$U$9:$U$1000="MDA1 (IVM+ALB)", COUNTRY_INFO!$U$9:$U$1000, " ") ->  | E76: 0 | G76: 0 | H76: 0 | I76: 0 | K76: 0 | L76: 0 | M76: 0 | R76: =COUNTRY_INFO!Y76 -> 10770
A77: =IF(COUNTRY_INFO!A77=0," ",COUNTRY_INFO!A77) -> Chad | B77: =IF(COUNTRY_INFO!B77=0," ",COUNTRY_INFO!B77) -> Mandoul | C77: =IF(COUNTRY_INFO!C77=0," ",COUNTRY_INFO!C77) -> Bouna | D77: =IF(COUNTRY_INFO!$U$9:$U$1000="MDA1 (IVM+ALB)", COUNTRY_INFO!$U$9:$U$1000, " ") ->  | E77: 0 | G77: 0 | H77: 0 | I77: 0 | K77: 0 | L77: 0 | M77: 0 | R77: =COUNTRY_INFO!Y77 -> 10707
A78: =IF(COUNTRY_INFO!A78=0," ",COUNTRY_INFO!A78) -> Chad | B78: =IF(COUNTRY_INFO!B78=0," ",COUNTRY_INFO!B78) -> Mandoul | C78: =IF(COUNTRY_INFO!C78=0," ",COUNTRY_INFO!C78) -> Goundi | D78: =IF(COUNTRY_INFO!$U$9:$U$1000="MDA1 (IVM+ALB)", COUNTRY_INFO!$U$9:$U$1000, " ") ->  | E78: 0 | G78: 0 | H78: 0 | I78: 0 | K78: 0 | L78: 0 | M78: 0 | R78: =COUNTRY_INFO!Y78 -> 10708
A79: =IF(COUNTRY_INFO!A79=0," ",COUNTRY_INFO!A79) -> Chad | B79: =IF(COUNTRY_INFO!B79=0," ",COUNTRY_INFO!B79) -> Mandoul | C79: =IF(COUNTRY_INFO!C79=0," ",COUNTRY_INFO!C79) -> Koumra | D79: =IF(COUNTRY_INFO!$U$9:$U$1000="MDA1 (IVM+ALB)", COUNTRY_INFO!$U$9:$U$1000, " ") -> MDA1 (IVM+ALB) | E79: Fevrier 2022 | G79: 74792 | H79: 121861 | I79: 196653 | K79: 72166 | L79: 119545 | M79: 191711 | O79: 96.4889293 | P79: 98.09947399 | Q79: 97.48694401 | R79: =COUNTRY_INFO!Y79 -> 10709 | T79: =COUNTRY_INFO!D79 -> 246432 | U79: =M79-T79 -> -54721 | V79: =U79/T79*100 -> -22.20531424
A80: =IF(COUNTRY_INFO!A80=0," ",COUNTRY_INFO!A80) -> Chad | B80: =IF(COUNTRY_INFO!B80=0," ",COUNTRY_INFO!B80) -> Mandoul | C80: =IF(COUNTRY_INFO!C80=0," ",COUNTRY_INFO!C80) -> Moissala | D80: =IF(COUNTRY_INFO!$U$9:$U$1000="MDA1 (IVM+ALB)", COUNTRY_INFO!$U$9:$U$1000, " ") ->  | E80: 0 | G80: 0 | H80: 0 | I80: 0 | K80: 0 | L80: 0 | M80: 0 | R80: =COUNTRY_INFO!Y80 -> 10710
A81: =IF(COUNTRY_INFO!A81=0," ",COUNTRY_INFO!A81) -> Chad | B81: =IF(COUNTRY_INFO!B81=0," ",COUNTRY_INFO!B81) -> Mayo Kebbi Est | C81: =IF(COUNTRY_INFO!C81=0," ",COUNTRY_INFO!C81) -> Bongor | D81: =IF(COUNTRY_INFO!$U$9:$U$1000="MDA1 (IVM+ALB)", COUNTRY_INFO!$U$9:$U$1000, " ") ->  | E81: 0 | G81: 0 | H81: 0 | I81: 0 | K81: 0 | L81: 0 | M81: 0 | R81: =COUNTRY_INFO!Y81 -> 10753
A82: =IF(COUNTRY_INFO!A82=0," ",COUNTRY_INFO!A82) -> Chad | B82: =IF(COUNTRY_INFO!B82=0," ",COUNTRY_INFO!B82) -> Mayo Kebbi Est | C82: =IF(COUNTRY_INFO!C82=0," ",COUNTRY_INFO!C82) -> Fianga | D82: =IF(COUNTRY_INFO!$U$9:$U$1000="MDA1 (IVM+ALB)", COUNTRY_INFO!$U$9:$U$1000, " ") ->  | E82: 0 | G82: 0 | H82: 0 | I82: 0 | K82: 0 | L82: 0 | M82: 0 | R82: =COUNTRY_INFO!Y82 -> 10712
A83: =IF(COUNTRY_INFO!A83=0," ",COUNTRY_INFO!A83) -> Chad | B83: =IF(COUNTRY_INFO!B83=0," ",COUNTRY_INFO!B83) -> Mayo Kebbi Est | C83: =IF(COUNTRY_INFO!C83=0," ",COUNTRY_INFO!C83) -> Gounou Gaya | D83: =IF(COUNTRY_INFO!$U$9:$U$1000="MDA1 (IVM+ALB)", COUNTRY_INFO!$U$9:$U$1000, " ") ->  | E83: 0 | G83: 0 | H83: 0 | I83: 0 | K83: 0 | L83: 0 | M83: 0 | R83: =COUNTRY_INFO!Y83 -> 10713
A84: =IF(COUNTRY_INFO!A84=0," ",COUNTRY_INFO!A84) -> Chad | B84: =IF(COUNTRY_INFO!B84=0," ",COUNTRY_INFO!B84) -> Mayo Kebbi Est | C84: =IF(COUNTRY_INFO!C84=0," ",COUNTRY_INFO!C84) -> Guelinding | D84: =IF(COUNTRY_INFO!$U$9:$U$1000="MDA1 (IVM+ALB)", COUNTRY_INFO!$U$9:$U$1000, " ") -> MDA1 (IVM+ALB) | E84: Fevrier 2022 | G84: 28912 | H84: 46253 | I84: 75165 | K84: 27121 | L84: 45221 | M84: 72342 | O84: 93.80534034 | P84: 97.76879338 | Q84: 96.24426262 | R84: =COUNTRY_INFO!Y84 -> 10714 | T84: =COUNTRY_INFO!D84 -> 91501 | U84: =M84-T84 -> -19159 | V84: =U84/T84*100 -> -20.93856898
A85: =IF(COUNTRY_INFO!A85=0," ",COUNTRY_INFO!A85) -> Chad | B85: =IF(COUNTRY_INFO!B85=0," ",COUNTRY_INFO!B85) -> Mayo Kebbi Est | C85: =IF(COUNTRY_INFO!C85=0," ",COUNTRY_INFO!C85) -> Moulkou | D85: =IF(COUNTRY_INFO!$U$9:$U$1000="MDA1 (IVM+ALB)", COUNTRY_INFO!$U$9:$U$1000, " ") -> MDA1 (IVM+ALB) | E85: Fevrier 2022 | G85: 38698 | H85: 63052 | I85: 101750 | K85: 37687 | L85: 61227 | M85: 98914 | O85: 97.38746188 | P85: 97.10556366 | Q85: 97.21277641 | R85: =COUNTRY_INFO!Y85 -> 10750 | T85: =COUNTRY_INFO!D85 -> 127507 | U85: -28593 | V85: -22.4246512
A86: =IF(COUNTRY_INFO!A86=0," ",COUNTRY_INFO!A86) -> Chad | B86: =IF(COUNTRY_INFO!B86=0," ",COUNTRY_INFO!B86) -> Mayo Kebbi Est | C86: =IF(COUNTRY_INFO!C86=0," ",COUNTRY_INFO!C86) -> Pont Carol | D86: =IF(COUNTRY_INFO!$U$9:$U$1000="MDA1 (IVM+ALB)", COUNTRY_INFO!$U$9:$U$1000, " ") ->  | E86: 0 | G86: 0 | H86: 0 | I86: 0 | K86: 0 | L86: 0 | M86: 0 | R86: =COUNTRY_INFO!Y86 -> 10751
A87: =IF(COUNTRY_INFO!A87=0," ",COUNTRY_INFO!A87) -> Chad | B87: =IF(COUNTRY_INFO!B87=0," ",COUNTRY_INFO!B87) -> Mayo Kebbi Est | C87: =IF(COUNTRY_INFO!C87=0," ",COUNTRY_INFO!C87) -> Youé | D87: =IF(COUNTRY_INFO!$U$9:$U$1000="MDA1 (IVM+ALB)", COUNTRY_INFO!$U$9:$U$1000, " ") ->  | E87: 0 | G87: 0 | H87: 0 | I87: 0 | K87: 0 | L87: 0 | M87: 0 | R87: =COUNTRY_INFO!Y87 -> 10752
A88: =IF(COUNTRY_INFO!A88=0," ",COUNTRY_INFO!A88) -> Chad | B88: =IF(COUNTRY_INFO!B88=0," ",COUNTRY_INFO!B88) -> Mayo Kebbi Ouest | C88: =IF(COUNTRY_INFO!C88=0," ",COUNTRY_INFO!C88) -> Binder | D88: =IF(COUNTRY_INFO!$U$9:$U$1000="MDA1 (IVM+ALB)", COUNTRY_INFO!$U$9:$U$1000, " ") ->  | E88: 0 | G88: 0 | H88: 0 | I88: 0 | K88: 0 | L88: 0 | M88: 0 | R88: =COUNTRY_INFO!Y88 -> 10754
A89: =IF(COUNTRY_INFO!A89=0," ",COUNTRY_INFO!A89) -> Chad | B89: =IF(COUNTRY_INFO!B89=0," ",COUNTRY_INFO!B89) -> Mayo Kebbi Ouest | C89: =IF(COUNTRY_INFO!C89=0," ",COUNTRY_INFO!C89) -> Gagal | D89: =IF(COUNTRY_INFO!$U$9:$U$1000="MDA1 (IVM+ALB)", COUNTRY_INFO!$U$9:$U$1000, " ") ->  | E89: 0 | G89: 0 | H89: 0 | I89: 0 | K89: 0 | L89: 0 | M89: 0 | R89: =COUNTRY_INFO!Y89 -> 10755
A90: =IF(COUNTRY_INFO!A90=0," ",COUNTRY_INFO!A90) -> Chad | B90: =IF(COUNTRY_INFO!B90=0," ",COUNTRY_INFO!B90) -> Mayo Kebbi Ouest | C90: =IF(COUNTRY_INFO!C90=0," ",COUNTRY_INFO!C90) -> Guegou | D90: =IF(COUNTRY_INFO!$U$9:$U$1000="MDA1 (IVM+ALB)", COUNTRY_INFO!$U$9:$U$1000, " ") ->  | E90: 0 | G90: 0 | H90: 0 | I90: 0 | K90: 0 | L90: 0 | M90: 0 | R90: =COUNTRY_INFO!Y90 -> 10771
A91: =IF(COUNTRY_INFO!A91=0," ",COUNTRY_INFO!A91) -> Chad | B91: =IF(COUNTRY_INFO!B91=0," ",COUNTRY_INFO!B91) -> Mayo Kebbi Ouest | C91: =IF(COUNTRY_INFO!C91=0," ",COUNTRY_INFO!C91) -> GUELO | D91: =IF(COUNTRY_INFO!$U$9:$U$1000="MDA1 (IVM+ALB)", COUNTRY_INFO!$U$9:$U$1000, " ") ->  | E91: 0 | G91: 0 | H91: 0 | I91: 0 | K91: 0 | L91: 0 | M91: 0 | R91: =COUNTRY_INFO!Y91 -> 10772
A92: =IF(COUNTRY_INFO!A92=0," ",COUNTRY_INFO!A92) -> Chad | B92: =IF(COUNTRY_INFO!B92=0," ",COUNTRY_INFO!B92) -> Mayo Kebbi Ouest | C92: =IF(COUNTRY_INFO!C92=0," ",COUNTRY_INFO!C92) -> Lagon | D92: =IF(COUNTRY_INFO!$U$9:$U$1000="MDA1 (IVM+ALB)", COUNTRY_INFO!$U$9:$U$1000, " ") ->  | E92: 0 | G92: 0 | H92: 0 | I92: 0 | K92: 0 | L92: 0 | M92: 0 | R92: =COUNTRY_INFO!Y92 -> 10756
A93: =IF(COUNTRY_INFO!A93=0," ",COUNTRY_INFO!A93) -> Chad | B93: =IF(COUNTRY_INFO!B93=0," ",COUNTRY_INFO!B93) -> Mayo Kebbi Ouest | C93: =IF(COUNTRY_INFO!C93=0," ",COUNTRY_INFO!C93) -> Lamé | D93: =IF(COUNTRY_INFO!$U$9:$U$1000="MDA1 (IVM+ALB)", COUNTRY_INFO!$U$9:$U$1000, " ") ->  | E93: 0 | G93: 0 | H93: 0 | I93: 0 | K93: 0 | L93: 0 | M93: 0 | R93: =COUNTRY_INFO!Y93 -> 10757
A94: =IF(COUNTRY_INFO!A94=0," ",COUNTRY_INFO!A94) -> Chad | B94: =IF(COUNTRY_INFO!B94=0," ",COUNTRY_INFO!B94) -> Mayo Kebbi Ouest | C94: =IF(COUNTRY_INFO!C94=0," ",COUNTRY_INFO!C94) -> Lere | D94: =IF(COUNTRY_INFO!$U$9:$U$1000="MDA1 (IVM+ALB)", COUNTRY_INFO!$U$9:$U$1000, " ") ->  | E94: 0 | G94: 0 | H94: 0 | I94: 0 | K94: 0 | L94: 0 | M94: 0 | R94: =COUNTRY_INFO!Y94 -> 10715
A95: =IF(COUNTRY_INFO!A95=0," ",COUNTRY_INFO!A95) -> Chad | B95: =IF(COUNTRY_INFO!B95=0," ",COUNTRY_INFO!B95) -> Mayo Kebbi Ouest | C95: =IF(COUNTRY_INFO!C95=0," ",COUNTRY_INFO!C95) -> Pala | D95: =IF(COUNTRY_INFO!$U$9:$U$1000="MDA1 (IVM+ALB)", COUNTRY_INFO!$U$9:$U$1000, " ") ->  | E95: 0 | G95: 0 | H95: 0 | I95: 0 | K95: 0 | L95: 0 | M95: 0 | R95: =COUNTRY_INFO!Y95 -> 10716
A96: =IF(COUNTRY_INFO!A96=0," ",COUNTRY_INFO!A96) -> Chad | B96: =IF(COUNTRY_INFO!B96=0," ",COUNTRY_INFO!B96) -> Mayo Kebbi Ouest | C96: =IF(COUNTRY_INFO!C96=0," ",COUNTRY_INFO!C96) -> Torrock | D96: =IF(COUNTRY_INFO!$U$9:$U$1000="MDA1 (IVM+ALB)", COUNTRY_INFO!$U$9:$U$1000, " ") ->  | E96: 0 | G96: 0 | H96: 0 | I96: 0 | K96: 0 | L96: 0 | M96: 0 | R96: =COUNTRY_INFO!Y96 -> 10758
A97: =IF(COUNTRY_INFO!A97=0," ",COUNTRY_INFO!A97) -> Chad | B97: =IF(COUNTRY_INFO!B97=0," ",COUNTRY_INFO!B97) -> Moyen Chari | C97: =IF(COUNTRY_INFO!C97=0," ",COUNTRY_INFO!C97) -> Balimba | D97: =IF(COUNTRY_INFO!$U$9:$U$1000="MDA1 (IVM+ALB)", COUNTRY_INFO!$U$9:$U$1000, " ") -> MDA1 (IVM+ALB) | E97: Fevrier 2022 | G97: 26113 | H97: 43001 | I97: 69114 | K97: 25144 | L97: 41623 | M97: 66767 | O97: 96.28920461 | P97: 96.79542336 | Q97: 96.60416124 | R97: =COUNTRY_INFO!Y97 -> 10780 | T97: =COUNTRY_INFO!D97 -> 85188 | U97: =M97-T97 -> -18421 | V97: =U97/T97*100 -> -21.62393764
A98: =IF(COUNTRY_INFO!A98=0," ",COUNTRY_INFO!A98) -> Chad | B98: =IF(COUNTRY_INFO!B98=0," ",COUNTRY_INFO!B98) -> Moyen Chari | C98: =IF(COUNTRY_INFO!C98=0," ",COUNTRY_INFO!C98) -> Biobe Singako | D98: =IF(COUNTRY_INFO!$U$9:$U$1000="MDA1 (IVM+ALB)", COUNTRY_INFO!$U$9:$U$1000, " ") -> MDA1 (IVM+ALB) | E98: Fevrier 2022 | G98: 27910 | H98: 45475 | I98: 73385 | K98: 27769 | L98: 43945 | M98: 71714 | O98: 99.49480473 | P98: 96.63551402 | Q98: 97.72296791 | R98: =COUNTRY_INFO!Y98 -> 10717 | T98: =COUNTRY_INFO!D98 -> 91962 | U98: -20248 | V98: -22.01778996
A99: =IF(COUNTRY_INFO!A99=0," ",COUNTRY_INFO!A99) -> Chad | B99: =IF(COUNTRY_INFO!B99=0," ",COUNTRY_INFO!B99) -> Moyen Chari | C99: =IF(COUNTRY_INFO!C99=0," ",COUNTRY_INFO!C99) -> Danamadji | D99: =IF(COUNTRY_INFO!$U$9:$U$1000="MDA1 (IVM+ALB)", COUNTRY_INFO!$U$9:$U$1000, " ") -> MDA1 (IVM+ALB) | E99: Fevrier 2022 | G99: 61223 | H99: 99752 | I99: 160975 | K99: 52230 | L99: 89036 | M99: 141266 | O99: 85.3110759 | P99: 89.25735825 | Q99: 87.75648393 | R99: =COUNTRY_INFO!Y99 -> 10718 | T99: =COUNTRY_INFO!D99 -> 201723 | U99: -60457 | V99: -29.97030582
A100: =IF(COUNTRY_INFO!A100=0," ",COUNTRY_INFO!A100) -> Chad | B100: =IF(COUNTRY_INFO!B100=0," ",COUNTRY_INFO!B100) -> Moyen Chari | C100: =IF(COUNTRY_INFO!C100=0," ",COUNTRY_INFO!C100) -> Korbol | D100: =IF(COUNTRY_INFO!$U$9:$U$1000="MDA1 (IVM+ALB)", COUNTRY_INFO!$U$9:$U$1000, " ") -> MDA1 (IVM+ALB) | E100: Fevrier 2022 | G100: 46071 | H100: 75065 | I100: 121136 | K100: 43161 | L100: 72650 | M100: 115811 | O100: 93.68366217 | P100: 96.78278825 | Q100: 95.60411438 | R100: =COUNTRY_INFO!Y100 -> 10773 | T100: =COUNTRY_INFO!D100 -> 151799 | U100: -35988 | V100: -23.70766606
A101: =IF(COUNTRY_INFO!A101=0," ",COUNTRY_INFO!A101) -> Chad | B101: =IF(COUNTRY_INFO!B101=0," ",COUNTRY_INFO!B101) -> Moyen Chari | C101: =IF(COUNTRY_INFO!C101=0," ",COUNTRY_INFO!C101) -> Koumogo | D101: =IF(COUNTRY_INFO!$U$9:$U$1000="MDA1 (IVM+ALB)", COUNTRY_INFO!$U$9:$U$1000, " ") -> MDA1 (IVM+ALB) | E101: Fevrier 2022 | G101: 33102 | H101: 54331 | I101: 87433 | K101: 32009 | L101: 53812 | M101: 85821 | O101: 96.69808471 | P101: 99.04474425 | Q101: 98.15630254 | R101: =COUNTRY_INFO!Y101 -> 10781 | T101: =COUNTRY_INFO!D101 -> 107813 | U101: -21992 | V101: -20.39828221
A102: =IF(COUNTRY_INFO!A102=0," ",COUNTRY_INFO!A102) -> Chad | B102: =IF(COUNTRY_INFO!B102=0," ",COUNTRY_INFO!B102) -> Moyen Chari | C102: =IF(COUNTRY_INFO!C102=0," ",COUNTRY_INFO!C102) -> Kyabe | D102: =IF(COUNTRY_INFO!$U$9:$U$1000="MDA1 (IVM+ALB)", COUNTRY_INFO!$U$9:$U$1000, " ") -> MDA1 (IVM+ALB) | E102: Fevrier 2022 | G102: 38917 | H102: 62008 | I102: 100925 | K102: 37416 | L102: 60478 | M102: 97894 | O102: 96.14307372 | P102: 97.53257644 | Q102: 96.99677979 | R102: =COUNTRY_INFO!Y102 -> 10719 | T102: =COUNTRY_INFO!D102 -> 124364 | U102: -26470 | V102: -21.28429449
A103: =IF(COUNTRY_INFO!A103=0," ",COUNTRY_INFO!A103) -> Chad | B103: =IF(COUNTRY_INFO!B103=0," ",COUNTRY_INFO!B103) -> Moyen Chari | C103: =IF(COUNTRY_INFO!C103=0," ",COUNTRY_INFO!C103) -> Maro | D103: =IF(COUNTRY_INFO!$U$9:$U$1000="MDA1 (IVM+ALB)", COUNTRY_INFO!$U$9:$U$1000, " ") -> MDA1 (IVM+ALB) | E103: Fevrier 2022 | G103: 81181 | H103: 132270 | I103: 213451 | K103: 78444 | L103: 129448 | M103: 207892 | O103: 96.62852145 | P103: 97.86648522 | Q103: 97.39565521 | R103: =COUNTRY_INFO!Y103 -> 10774 | T103: =COUNTRY_INFO!D103 -> 267483 | U103: -59591 | V103: -22.27842517
A104: =IF(COUNTRY_INFO!A104=0," ",COUNTRY_INFO!A104) -> Chad | B104: =IF(COUNTRY_INFO!B104=0," ",COUNTRY_INFO!B104) -> Moyen Chari | C104: =IF(COUNTRY_INFO!C104=0," ",COUNTRY_INFO!C104) -> Sarh | D104: =IF(COUNTRY_INFO!$U$9:$U$1000="MDA1 (IVM+ALB)", COUNTRY_INFO!$U$9:$U$1000, " ") -> MDA1 (IVM+ALB) | E104: Fevrier 2022 | G104: 61973 | H104: 100975 | I104: 162948 | K104: 57361 | L104: 96762 | M104: 154123 | O104: 92.55804947 | P104: 95.82768012 | Q104: 94.58416182 | R104: =COUNTRY_INFO!Y104 -> 10720 | T104: =COUNTRY_INFO!D104 -> 204196 | U104: -50073 | V104: -24.52202786
A105: =IF(COUNTRY_INFO!A105=0," ",COUNTRY_INFO!A105) -> Chad | B105: =IF(COUNTRY_INFO!B105=0," ",COUNTRY_INFO!B105) -> N'Djaména | C105: =IF(COUNTRY_INFO!C105=0," ",COUNTRY_INFO!C105) -> N'Djaména Centre | D105: =IF(COUNTRY_INFO!$U$9:$U$1000="MDA1 (IVM+ALB)", COUNTRY_INFO!$U$9:$U$1000, " ") ->  | E105: 0 | G105: 0 | H105: 0 | I105: 0 | K105: 0 | L105: 0 | M105: 0 | R105: =COUNTRY_INFO!Y105 -> 10721
A106: =IF(COUNTRY_INFO!A106=0," ",COUNTRY_INFO!A106) -> Chad | B106: =IF(COUNTRY_INFO!B106=0," ",COUNTRY_INFO!B106) -> N'Djaména | C106: =IF(COUNTRY_INFO!C106=0," ",COUNTRY_INFO!C106) -> N'Djaména Est | D106: =IF(COUNTRY_INFO!$U$9:$U$1000="MDA1 (IVM+ALB)", COUNTRY_INFO!$U$9:$U$1000, " ") ->  | E106: 0 | G106: 0 | H106: 0 | I106: 0 | K106: 0 | L106: 0 | M106: 0 | R106: =COUNTRY_INFO!Y106 -> 10722
A107: =IF(COUNTRY_INFO!A107=0," ",COUNTRY_INFO!A107) -> Chad | B107: =IF(COUNTRY_INFO!B107=0," ",COUNTRY_INFO!B107) -> N'Djaména | C107: =IF(COUNTRY_INFO!C107=0," ",COUNTRY_INFO!C107) -> N'Djaména Nord | D107: =IF(COUNTRY_INFO!$U$9:$U$1000="MDA1 (IVM+ALB)", COUNTRY_INFO!$U$9:$U$1000, " ") ->  | E107: 0 | G107: 0 | H107: 0 | I107: 0 | K107: 0 | L107: 0 | M107: 0 | R107: =COUNTRY_INFO!Y107 -> 10723
A108: =IF(COUNTRY_INFO!A108=0," ",COUNTRY_INFO!A108) -> Chad | B108: =IF(COUNTRY_INFO!B108=0," ",COUNTRY_INFO!B108) -> N'Djaména | C108: =IF(COUNTRY_INFO!C108=0," ",COUNTRY_INFO!C108) -> N'Djaména Sud | D108: =IF(COUNTRY_INFO!$U$9:$U$1000="MDA1 (IVM+ALB)", COUNTRY_INFO!$U$9:$U$1000, " ") ->  | E108: 0 | G108: 0 | H108: 0 | I108: 0 | K108: 0 | L108: 0 | M108: 0 | R108: =COUNTRY_INFO!Y108 -> 10724
A109: =IF(COUNTRY_INFO!A109=0," ",COUNTRY_INFO!A109) -> Chad | B109: =IF(COUNTRY_INFO!B109=0," ",COUNTRY_INFO!B109) -> N'Djamena | C109: =IF(COUNTRY_INFO!C109=0," ",COUNTRY_INFO!C109) -> 9eme Arrondissement | D109: =IF(COUNTRY_INFO!$U$9:$U$1000="MDA1 (IVM+ALB)", COUNTRY_INFO!$U$9:$U$1000, " ") ->  | I109: 0 | M109: 0 | R109: =COUNTRY_INFO!Y109 -> 10789
A110: =IF(COUNTRY_INFO!A110=0," ",COUNTRY_INFO!A110) -> Chad | B110: =IF(COUNTRY_INFO!B110=0," ",COUNTRY_INFO!B110) -> Ouaddai | C110: =IF(COUNTRY_INFO!C110=0," ",COUNTRY_INFO!C110) -> Abdi | D110: =IF(COUNTRY_INFO!$U$9:$U$1000="MDA1 (IVM+ALB)", COUNTRY_INFO!$U$9:$U$1000, " ") ->  | E110: 0 | G110: 0 | H110: 0 | I110: 0 | K110: 0 | L110: 0 | M110: 0 | R110: =COUNTRY_INFO!Y110 -> 10727
A111: =IF(COUNTRY_INFO!A111=0," ",COUNTRY_INFO!A111) -> Chad | B111: =IF(COUNTRY_INFO!B111=0," ",COUNTRY_INFO!B111) -> Ouaddai | C111: =IF(COUNTRY_INFO!C111=0," ",COUNTRY_INFO!C111) -> Abeche | D111: =IF(COUNTRY_INFO!$U$9:$U$1000="MDA1 (IVM+ALB)", COUNTRY_INFO!$U$9:$U$1000, " ") ->  | E111: 0 | G111: 0 | H111: 0 | I111: 0 | K111: 0 | L111: 0 | M111: 0 | R111: =COUNTRY_INFO!Y111 -> 10728
A112: =IF(COUNTRY_INFO!A112=0," ",COUNTRY_INFO!A112) -> Chad | B112: =IF(COUNTRY_INFO!B112=0," ",COUNTRY_INFO!B112) -> Ouaddai | C112: =IF(COUNTRY_INFO!C112=0," ",COUNTRY_INFO!C112) -> Abougoudam | D112: =IF(COUNTRY_INFO!$U$9:$U$1000="MDA1 (IVM+ALB)", COUNTRY_INFO!$U$9:$U$1000, " ") ->  | E112: 0 | G112: 0 | H112: 0 | I112: 0 | K112: 0 | L112: 0 | M112: 0 | R112: =COUNTRY_INFO!Y112 -> 10729
A113: =IF(COUNTRY_INFO!A113=0," ",COUNTRY_INFO!A113) -> Chad | B113: =IF(COUNTRY_INFO!B113=0," ",COUNTRY_INFO!B113) -> Ouaddai | C113: =IF(COUNTRY_INFO!C113=0," ",COUNTRY_INFO!C113) -> Adré | D113: =IF(COUNTRY_INFO!$U$9:$U$1000="MDA1 (IVM+ALB)", COUNTRY_INFO!$U$9:$U$1000, " ") ->  | E113: 0 | G113: 0 | H113: 0 | I113: 0 | K113: 0 | L113: 0 | M113: 0 | R113: =COUNTRY_INFO!Y113 -> 10730
A114: =IF(COUNTRY_INFO!A114=0," ",COUNTRY_INFO!A114) -> Chad | B114: =IF(COUNTRY_INFO!B114=0," ",COUNTRY_INFO!B114) -> Salamat | C114: =IF(COUNTRY_INFO!C114=0," ",COUNTRY_INFO!C114) -> Aboudeia | D114: =IF(COUNTRY_INFO!$U$9:$U$1000="MDA1 (IVM+ALB)", COUNTRY_INFO!$U$9:$U$1000, " ") ->  | E114: 0 | G114: 0 | H114: 0 | I114: 0 | K114: 0 | L114: 0 | M114: 0 | R114: =COUNTRY_INFO!Y114 -> 10731
A115: =IF(COUNTRY_INFO!A115=0," ",COUNTRY_INFO!A115) -> Chad | B115: =IF(COUNTRY_INFO!B115=0," ",COUNTRY_INFO!B115) -> Salamat | C115: =IF(COUNTRY_INFO!C115=0," ",COUNTRY_INFO!C115) -> Am-Timan | D115: =IF(COUNTRY_INFO!$U$9:$U$1000="MDA1 (IVM+ALB)", COUNTRY_INFO!$U$9:$U$1000, " ") ->  | E115: 0 | G115: 0 | H115: 0 | I115: 0 | K115: 0 | L115: 0 | M115: 0 | R115: =COUNTRY_INFO!Y115 -> 10732
A116: =IF(COUNTRY_INFO!A116=0," ",COUNTRY_INFO!A116) -> Chad | B116: =IF(COUNTRY_INFO!B116=0," ",COUNTRY_INFO!B116) -> Salamat | C116: =IF(COUNTRY_INFO!C116=0," ",COUNTRY_INFO!C116) -> Haraze | D116: =IF(COUNTRY_INFO!$U$9:$U$1000="MDA1 (IVM+ALB)", COUNTRY_INFO!$U$9:$U$1000, " ") ->  | E116: 0 | G116: 0 | H116: 0 | I116: 0 | K116: 0 | L116: 0 | M116: 0 | R116: =COUNTRY_INFO!Y116 -> 10733
A117: =IF(COUNTRY_INFO!A117=0," ",COUNTRY_INFO!A117) -> Chad | B117: =IF(COUNTRY_INFO!B117=0," ",COUNTRY_INFO!B117) -> Sila | C117: =IF(COUNTRY_INFO!C117=0," ",COUNTRY_INFO!C117) -> Am-dam | D117: =IF(COUNTRY_INFO!$U$9:$U$1000="MDA1 (IVM+ALB)", COUNTRY_INFO!$U$9:$U$1000, " ") ->  | E117: 0 | G117: 0 | H117: 0 | I117: 0 | K117: 0 | L117: 0 | M117: 0 | R117: =COUNTRY_INFO!Y117 -> 10725
A118: =IF(COUNTRY_INFO!A118=0," ",COUNTRY_INFO!A118) -> Chad | B118: =IF(COUNTRY_INFO!B118=0," ",COUNTRY_INFO!B118) -> Sila | C118: =IF(COUNTRY_INFO!C118=0," ",COUNTRY_INFO!C118) -> Goz-beida | D118: =IF(COUNTRY_INFO!$U$9:$U$1000="MDA1 (IVM+ALB)", COUNTRY_INFO!$U$9:$U$1000, " ") ->  | E118: 0 | G118: 0 | H118: 0 | I118: 0 | K118: 0 | L118: 0 | M118: 0 | R118: =COUNTRY_INFO!Y118 -> 10726
A119: =IF(COUNTRY_INFO!A119=0," ",COUNTRY_INFO!A119) -> Chad | B119: =IF(COUNTRY_INFO!B119=0," ",COUNTRY_INFO!B119) -> Sila | C119: =IF(COUNTRY_INFO!C119=0," ",COUNTRY_INFO!C119) -> Koukou | D119: =IF(COUNTRY_INFO!$U$9:$U$1000="MDA1 (IVM+ALB)", COUNTRY_INFO!$U$9:$U$1000, " ") ->  | E119: 0 | G119: 0 | H119: 0 | I119: 0 | K119: 0 | L119: 0 | M119: 0 | R119: =COUNTRY_INFO!Y119 -> 10673
A120: =IF(COUNTRY_INFO!A120=0," ",COUNTRY_INFO!A120) -> Chad | B120: =IF(COUNTRY_INFO!B120=0," ",COUNTRY_INFO!B120) -> Sila | C120: =IF(COUNTRY_INFO!C120=0," ",COUNTRY_INFO!C120) -> Tissi | D120: =IF(COUNTRY_INFO!$U$9:$U$1000="MDA1 (IVM+ALB)", COUNTRY_INFO!$U$9:$U$1000, " ") ->  | E120: 0 | G120: 0 | H120: 0 | I120: 0 | K120: 0 | L120: 0 | M120: 0 | R120: =COUNTRY_INFO!Y120 -> 10674
A121: =IF(COUNTRY_INFO!A121=0," ",COUNTRY_INFO!A121) -> Chad | B121: =IF(COUNTRY_INFO!B121=0," ",COUNTRY_INFO!B121) -> Tandjile | C121: =IF(COUNTRY_INFO!C121=0," ",COUNTRY_INFO!C121) -> Batchoro | D121: =IF(COUNTRY_INFO!$U$9:$U$1000="MDA1 (IVM+ALB)", COUNTRY_INFO!$U$9:$U$1000, " ") -> MDA1 (IVM+ALB) | E121: Fevrier 2022 | G121: 30835 | H121: 50241 | I121: 81076 | K121: 29389 | L121: 48055 | M121: 77444 | O121: 95.31052376 | P121: 95.64897196 | Q121: 95.5202526 | R121: =COUNTRY_INFO!Y121 -> 10775 | T121: =COUNTRY_INFO!D121 -> 101599 | U121: =M121-T121 -> -24155 | V121: =U121/T121*100 -> -23.7748403
A122: =IF(COUNTRY_INFO!A122=0," ",COUNTRY_INFO!A122) -> Chad | B122: =IF(COUNTRY_INFO!B122=0," ",COUNTRY_INFO!B122) -> Tandjile | C122: =IF(COUNTRY_INFO!C122=0," ",COUNTRY_INFO!C122) -> Bere | D122: =IF(COUNTRY_INFO!$U$9:$U$1000="MDA1 (IVM+ALB)", COUNTRY_INFO!$U$9:$U$1000, " ") -> MDA1 (IVM+ALB) | E122: Fevrier 2022 | G122: 54254 | H122: 88398 | I122: 142652 | K122: 46136 | L122: 74225 | M122: 120361 | O122: 85.03704796 | P122: 83.96683183 | Q122: 84.37386086 | R122: =COUNTRY_INFO!Y122 -> 10734 | T122: =COUNTRY_INFO!D122 -> 178762 | U122: -58401 | V122: -32.6696949
A123: =IF(COUNTRY_INFO!A123=0," ",COUNTRY_INFO!A123) -> Chad | B123: =IF(COUNTRY_INFO!B123=0," ",COUNTRY_INFO!B123) -> Tandjile | C123: =IF(COUNTRY_INFO!C123=0," ",COUNTRY_INFO!C123) -> Bologo | D123: =IF(COUNTRY_INFO!$U$9:$U$1000="MDA1 (IVM+ALB)", COUNTRY_INFO!$U$9:$U$1000, " ") -> MDA1 (IVM+ALB) | E123: Fevrier 2022 | G123: 17204 | H123: 28032 | I123: 45236 | K123: 16451 | L123: 27019 | M123: 43470 | O123: 95.6231109 | P123: 96.38627283 | Q123: 96.09602971 | R123: =COUNTRY_INFO!Y123 -> 10790 | T123: =COUNTRY_INFO!D123 -> 56686 | U123: -13216 | V123: -23.31439862
A124: =IF(COUNTRY_INFO!A124=0," ",COUNTRY_INFO!A124) -> Chad | B124: =IF(COUNTRY_INFO!B124=0," ",COUNTRY_INFO!B124) -> Tandjile | C124: =IF(COUNTRY_INFO!C124=0," ",COUNTRY_INFO!C124) -> Dafra | D124: =IF(COUNTRY_INFO!$U$9:$U$1000="MDA1 (IVM+ALB)", COUNTRY_INFO!$U$9:$U$1000, " ") -> MDA1 (IVM+ALB) | E124: Fevrier 2022 | G124: 28924 | H124: 47127 | I124: 76051 | K124: 28360 | L124: 44310 | M124: 72670 | O124: 98.05006223 | P124: 94.02253485 | Q124: 95.55429909 | R124: =COUNTRY_INFO!Y124 -> 10759 | T124: =COUNTRY_INFO!D124 -> 95302 | U124: -22632 | V124: -23.74766532
A125: =IF(COUNTRY_INFO!A125=0," ",COUNTRY_INFO!A125) -> Chad | B125: =IF(COUNTRY_INFO!B125=0," ",COUNTRY_INFO!B125) -> Tandjile | C125: =IF(COUNTRY_INFO!C125=0," ",COUNTRY_INFO!C125) -> Deressia | D125: =IF(COUNTRY_INFO!$U$9:$U$1000="MDA1 (IVM+ALB)", COUNTRY_INFO!$U$9:$U$1000, " ") -> MDA1 (IVM+ALB) | E125: Fevrier 2022 | G125: 27676 | H125: 44001 | I125: 71677 | K125: 26311 | L125: 43218 | M125: 69529 | O125: 95.06792889 | P125: 98.22049499 | Q125: 97.00322279 | R125: =COUNTRY_INFO!Y125 -> 10782 | T125: =COUNTRY_INFO!D125 -> 87896 | U125: -18367 | V125: -20.89628652
A126: =IF(COUNTRY_INFO!A126=0," ",COUNTRY_INFO!A126) -> Chad | B126: =IF(COUNTRY_INFO!B126=0," ",COUNTRY_INFO!B126) -> Tandjile | C126: =IF(COUNTRY_INFO!C126=0," ",COUNTRY_INFO!C126) -> Donamanga | D126: =IF(COUNTRY_INFO!$U$9:$U$1000="MDA1 (IVM+ALB)", COUNTRY_INFO!$U$9:$U$1000, " ") -> MDA1 (IVM+ALB) | E126: Fevrier 2022 | G126: 39379 | H126: 64161 | I126: 103540 | K126: 37676 | L126: 61403 | M126: 99079 | O126: 95.67535996 | P126: 95.70143857 | Q126: 95.69152019 | R126: =COUNTRY_INFO!Y126 -> 10735 | T126: =COUNTRY_INFO!D126 -> 129750 | U126: -30671 | V126: -23.63853565
A127: =IF(COUNTRY_INFO!A127=0," ",COUNTRY_INFO!A127) -> Chad | B127: =IF(COUNTRY_INFO!B127=0," ",COUNTRY_INFO!B127) -> Tandjile | C127: =IF(COUNTRY_INFO!C127=0," ",COUNTRY_INFO!C127) -> Guidari | D127: =IF(COUNTRY_INFO!$U$9:$U$1000="MDA1 (IVM+ALB)", COUNTRY_INFO!$U$9:$U$1000, " ") -> MDA1 (IVM+ALB) | E127: Fevrier 2022 | G127: 60091 | H127: 97908 | I127: 157999 | K127: 59142 | L127: 96695 | M127: 155837 | O127: 98.42072856 | P127: 98.76108183 | Q127: 98.63163691 | R127: =COUNTRY_INFO!Y127 -> 10776 | T127: =COUNTRY_INFO!D127 -> 197994 | U127: -42157 | V127: -21.29205936
A128: =IF(COUNTRY_INFO!A128=0," ",COUNTRY_INFO!A128) -> Chad | B128: =IF(COUNTRY_INFO!B128=0," ",COUNTRY_INFO!B128) -> Tandjile | C128: =IF(COUNTRY_INFO!C128=0," ",COUNTRY_INFO!C128) -> Kelo | D128: =IF(COUNTRY_INFO!$U$9:$U$1000="MDA1 (IVM+ALB)", COUNTRY_INFO!$U$9:$U$1000, " ") -> MDA1 (IVM+ALB) | E128: Fevrier 2022 | G128: 71377 | H128: 125776 | I128: 197153 | K128: 68470 | L128: 123354 | M128: 191824 | O128: 95.92725948 | P128: 98.07435441 | Q128: 97.29702312 | R128: =COUNTRY_INFO!Y128 -> 10736 | T128: =COUNTRY_INFO!D128 -> 235181 | U128: -43357 | V128: -18.43558791
A129: =IF(COUNTRY_INFO!A129=0," ",COUNTRY_INFO!A129) -> Chad | B129: =IF(COUNTRY_INFO!B129=0," ",COUNTRY_INFO!B129) -> Tandjile | C129: =IF(COUNTRY_INFO!C129=0," ",COUNTRY_INFO!C129) -> Kolon | D129: =IF(COUNTRY_INFO!$U$9:$U$1000="MDA1 (IVM+ALB)", COUNTRY_INFO!$U$9:$U$1000, " ") -> MDA1 (IVM+ALB) | E129: Fevrier 2022 | G129: 25751 | H129: 41957 | I129: 67708 | K129: 23602 | L129: 38963 | M129: 62565 | O129: 91.65469302 | P129: 92.86412279 | Q129: 92.40414722 | R129: =COUNTRY_INFO!Y129 -> 10777 | T129: =COUNTRY_INFO!D129 -> 84848 | U129: -22283 | V129: -26.26225721
A130: =IF(COUNTRY_INFO!A130=0," ",COUNTRY_INFO!A130) -> Chad | B130: =IF(COUNTRY_INFO!B130=0," ",COUNTRY_INFO!B130) -> Tandjile | C130: =IF(COUNTRY_INFO!C130=0," ",COUNTRY_INFO!C130) -> Lai | D130: =IF(COUNTRY_INFO!$U$9:$U$1000="MDA1 (IVM+ALB)", COUNTRY_INFO!$U$9:$U$1000, " ") -> MDA1 (IVM+ALB) | E130: Fevrier 2022 | G130: 34658 | H130: 55632 | I130: 90290 | K130: 33211 | L130: 53228 | M130: 86439 | O130: 95.82491777 | P130: 95.67874605 | Q130: 95.73485436 | R130: =COUNTRY_INFO!Y130 -> 10737 | T130: =COUNTRY_INFO!D130 -> 109771 | U130: -23332 | V130: -21.25515847
A131: =IF(COUNTRY_INFO!A131=0," ",COUNTRY_INFO!A131) -> Chad | B131: =IF(COUNTRY_INFO!B131=0," ",COUNTRY_INFO!B131) -> Tibesti | C131: =IF(COUNTRY_INFO!C131=0," ",COUNTRY_INFO!C131) -> Bardaï | D131: =IF(COUNTRY_INFO!$U$9:$U$1000="MDA1 (IVM+ALB)", COUNTRY_INFO!$U$9:$U$1000, " ") ->  | E131: 0 | G131: 0 | H131: 0 | I131: 0 | K131: 0 | L131: 0 | M131: 0 | R131: =COUNTRY_INFO!Y131 -> 10738
A132: =IF(COUNTRY_INFO!A132=0," ",COUNTRY_INFO!A132) -> Chad | B132: =IF(COUNTRY_INFO!B132=0," ",COUNTRY_INFO!B132) -> Tibesti | C132: =IF(COUNTRY_INFO!C132=0," ",COUNTRY_INFO!C132) -> Zouar | D132: =IF(COUNTRY_INFO!$U$9:$U$1000="MDA1 (IVM+ALB)", COUNTRY_INFO!$U$9:$U$1000, " ") ->  | E132: 0 | G132: 0 | H132: 0 | I132: 0 | K132: 0 | L132: 0 | M132: 0 | R132: =COUNTRY_INFO!Y132 -> 10760
A133: =IF(COUNTRY_INFO!A133=0," ",COUNTRY_INFO!A133) -> Chad | B133: =IF(COUNTRY_INFO!B133=0," ",COUNTRY_INFO!B133) -> Wadi Fira | C133: =IF(COUNTRY_INFO!C133=0," ",COUNTRY_INFO!C133) -> amzoer | D133: =IF(COUNTRY_INFO!$U$9:$U$1000="MDA1 (IVM+ALB)", COUNTRY_INFO!$U$9:$U$1000, " ") ->  | E133: 0 | G133: 0 | H133: 0 | I133: 0 | K133: 0 | L133: 0 | M133: 0 | R133: =COUNTRY_INFO!Y133 -> 10778
A134: =IF(COUNTRY_INFO!A134=0," ",COUNTRY_INFO!A134) -> Chad | B134: =IF(COUNTRY_INFO!B134=0," ",COUNTRY_INFO!B134) -> Wadi Fira | C134: =IF(COUNTRY_INFO!C134=0," ",COUNTRY_INFO!C134) -> Arada | D134: =IF(COUNTRY_INFO!$U$9:$U$1000="MDA1 (IVM+ALB)", COUNTRY_INFO!$U$9:$U$1000, " ") ->  | E134: 0 | G134: 0 | H134: 0 | I134: 0 | K134: 0 | L134: 0 | M134: 0 | R134: =COUNTRY_INFO!Y134 -> 10779
A135: =IF(COUNTRY_INFO!A135=0," ",COUNTRY_INFO!A135) -> Chad | B135: =IF(COUNTRY_INFO!B135=0," ",COUNTRY_INFO!B135) -> Wadi Fira | C135: =IF(COUNTRY_INFO!C135=0," ",COUNTRY_INFO!C135) -> Biltine | D135: =IF(COUNTRY_INFO!$U$9:$U$1000="MDA1 (IVM+ALB)", COUNTRY_INFO!$U$9:$U$1000, " ") ->  | E135: 0 | G135: 0 | H135: 0 | I135: 0 | K135: 0 | L135: 0 | M135: 0 | R135: =COUNTRY_INFO!Y135 -> 10740
A136: =IF(COUNTRY_INFO!A136=0," ",COUNTRY_INFO!A136) -> Chad | B136: =IF(COUNTRY_INFO!B136=0," ",COUNTRY_INFO!B136) -> Wadi Fira | C136: =IF(COUNTRY_INFO!C136=0," ",COUNTRY_INFO!C136) -> Guéréda | D136: =IF(COUNTRY_INFO!$U$9:$U$1000="MDA1 (IVM+ALB)", COUNTRY_INFO!$U$9:$U$1000, " ") ->  | E136: 0 | G136: 0 | H136: 0 | I136: 0 | K136: 0 | L136: 0 | M136: 0 | R136: =COUNTRY_INFO!Y136 -> 10741
A137: =IF(COUNTRY_INFO!A137=0," ",COUNTRY_INFO!A137) -> Chad | B137: =IF(COUNTRY_INFO!B137=0," ",COUNTRY_INFO!B137) -> Wadi Fira | C137: =IF(COUNTRY_INFO!C137=0," ",COUNTRY_INFO!C137) -> Iriba | D137: =IF(COUNTRY_INFO!$U$9:$U$1000="MDA1 (IVM+ALB)", COUNTRY_INFO!$U$9:$U$1000, " ") ->  | E137: 0 | G137: 0 | H137: 0 | I137: 0 | K137: 0 | L137: 0 | M137: 0 | R137: =COUNTRY_INFO!Y137 -> 10742
A138: =IF(COUNTRY_INFO!A138=0," ",COUNTRY_INFO!A138) -> Chad | B138: =IF(COUNTRY_INFO!B138=0," ",COUNTRY_INFO!B138) -> Wadi Fira | C138: =IF(COUNTRY_INFO!C138=0," ",COUNTRY_INFO!C138) -> Matadjana | D138: =IF(COUNTRY_INFO!$U$9:$U$1000="MDA1 (IVM+ALB)", COUNTRY_INFO!$U$9:$U$1000, " ") ->  | E138: 0 | G138: 0 | H138: 0 | I138: =SUM(F138:H138) -> 0 | K138: 0 | L138: 0 | M138: =SUM(J138:L138) -> 0 | O138: =IF(G138<>0, IF(K138/G138*100=0, "-", K138/G138*100), " ") ->  | P138: =IF(H138<>0, IF(L138/H138*100=0, "-", L138/H138*100), " ") ->  | Q138: =IF(I138<>0, IF(M138/I138*100=0, "-", M138/I138*100), " ") ->  | R138: =COUNTRY_INFO!Y138 -> 10743

Sheet MDA4
A1: MDA 4 - Albendazole (ALB) ou 2 x Albendazole (ALB)
A2: Structure administrative, population nécessitant une chimioprévention par groupe d'âge, population traitée par groupe d'âge et couverture
A4: TOTAL | F4: =SUM(F$9:F$1000) -> 0 | G4: =SUM(G$9:G$1000) -> 0 | H4: 0 | I4: 0 | J4: 0 | K4: 0 | L4: 0 | M4: 0 | N4: 0 | O4: 0 | P4: 0 | Q4: 0 | R4: 0 | S4: 0 | T4: 0 | U4: 0 | V4: =IF(F4<>0, IF(N4/F4*100=0, "-", N4/F4*100), " ") ->  | W4: =IF(G4<>0, IF(O4/G4*100=0, "-", O4/G4*100), " ") ->  | X4: =IF(H4<>0, IF(P4/H4*100=0, "-", P4/H4*100), " ") ->  | Y4: =IF(I4<>0, IF(Q4/I4*100=0, "-", Q4/I4*100), " ") -> 
A6: Structure administrative du pays | D6: Mise en oeuvre de la CP | E6: Date | F6: Population ciblée pour MDA 4 | J6: Population traitée - tournée 1 | N6: Population traitée - tournée 2 | R6: Population traitée | V6: Couverture du Programme (%)
A7: Pays | B7: Région/Département | C7: District | F7: EAPréS | G7: EAS | H7: Adultes | I7: Total | J7: EAPréS | K7: EAS | L7: Adultes | M7: Total | N7: EAPréS | O7: EAS | P7: Adultes | Q7: Total | R7: EAPréS | S7: EAS | T7: Adultes | U7: Total | V7: EAPréS | W7: EAS | X7: Adultes | Y7: Total
A9: =IF(COUNTRY_INFO!A9=0," ",COUNTRY_INFO!A9) -> Chad | B9: =IF(COUNTRY_INFO!B9=0," ",COUNTRY_INFO!B9) -> Bahr El Gazel | C9: =IF(COUNTRY_INFO!C9=0," ",COUNTRY_INFO!C9) -> Chadra | D9: =IF(COUNTRY_INFO!$U$9:$U$1000="MDA4 (ALB/2*ALB)", COUNTRY_INFO!$U$9:$U$1000, " ") ->  | I9: =SUM(F9:H9) -> 0 | M9: =SUM(J9:L9) -> 0 | Q9: =SUM(N9:P9) -> 0 | R9: =MAX(J9,N9) -> 0 | S9: =MAX(K9,O9) -> 0 | T9: =MAX(L9,P9) -> 0 | U9: =SUM(R9:T9) -> 0 | V9: =IF(F9<>0, IF(R9/F9*100=0, "-",R9/F9*100), " ") ->  | W9: =IF(G9<>0, IF(S9/G9*100=0, "-", S9/G9*100), " ") ->  | X9: =IF(H9<>0, IF(T9/H9*100=0, "-", T9/H9*100), " ") ->  | Y9: =IF(I9<>0, IF(U9/I9*100=0, "-", U9/I9*100), " ") -> 
A10: =IF(COUNTRY_INFO!A10=0," ",COUNTRY_INFO!A10) -> Chad | B10: =IF(COUNTRY_INFO!B10=0," ",COUNTRY_INFO!B10) -> Bahr El Gazel | C10: =IF(COUNTRY_INFO!C10=0," ",COUNTRY_INFO!C10) -> Michemire | D10: =IF(COUNTRY_INFO!$U$9:$U$1000="MDA4 (ALB/2*ALB)", COUNTRY_INFO!$U$9:$U$1000, " ") ->  | I10: =SUM(F10:H10) -> 0 | M10: =SUM(J10:L10) -> 0 | Q10: =SUM(N10:P10) -> 0 | R10: 0 | S10: 0 | T10: 0 | U10: 0
A11: =IF(COUNTRY_INFO!A11=0," ",COUNTRY_INFO!A11) -> Chad | B11: =IF(COUNTRY_INFO!B11=0," ",COUNTRY_INFO!B11) -> Bahr El Gazel | C11: =IF(COUNTRY_INFO!C11=0," ",COUNTRY_INFO!C11) -> Moussoro | D11: =IF(COUNTRY_INFO!$U$9:$U$1000="MDA4 (ALB/2*ALB)", COUNTRY_INFO!$U$9:$U$1000, " ") ->  | I11: 0 | M11: 0 | Q11: 0 | R11: 0 | S11: 0 | T11: 0 | U11: 0
A12: =IF(COUNTRY_INFO!A12=0," ",COUNTRY_INFO!A12) -> Chad | B12: =IF(COUNTRY_INFO!B12=0," ",COUNTRY_INFO!B12) -> Bahr El Gazel | C12: =IF(COUNTRY_INFO!C12=0," ",COUNTRY_INFO!C12) -> Salal | D12: =IF(COUNTRY_INFO!$U$9:$U$1000="MDA4 (ALB/2*ALB)", COUNTRY_INFO!$U$9:$U$1000, " ") ->  | I12: 0 | M12: 0 | Q12: 0 | R12: 0 | S12: 0 | T12: 0 | U12: 0
A13: =IF(COUNTRY_INFO!A13=0," ",COUNTRY_INFO!A13) -> Chad | B13: =IF(COUNTRY_INFO!B13=0," ",COUNTRY_INFO!B13) -> Batha | C13: =IF(COUNTRY_INFO!C13=0," ",COUNTRY_INFO!C13) -> Alifa | D13: =IF(COUNTRY_INFO!$U$9:$U$1000="MDA4 (ALB/2*ALB)", COUNTRY_INFO!$U$9:$U$1000, " ") ->  | I13: 0 | M13: 0 | Q13: 0 | R13: 0 | S13: 0 | T13: 0 | U13: 0
A14: =IF(COUNTRY_INFO!A14=0," ",COUNTRY_INFO!A14) -> Chad | B14: =IF(COUNTRY_INFO!B14=0," ",COUNTRY_INFO!B14) -> Batha | C14: =IF(COUNTRY_INFO!C14=0," ",COUNTRY_INFO!C14) -> Assinet | D14: =IF(COUNTRY_INFO!$U$9:$U$1000="MDA4 (ALB/2*ALB)", COUNTRY_INFO!$U$9:$U$1000, " ") ->  | I14: 0 | M14: 0 | Q14: 0 | R14: 0 | S14: 0 | T14: 0 | U14: 0
A15: =IF(COUNTRY_INFO!A15=0," ",COUNTRY_INFO!A15) -> Chad | B15: =IF(COUNTRY_INFO!B15=0," ",COUNTRY_INFO!B15) -> Batha | C15: =IF(COUNTRY_INFO!C15=0," ",COUNTRY_INFO!C15) -> Ati | D15: =IF(COUNTRY_INFO!$U$9:$U$1000="MDA4 (ALB/2*ALB)", COUNTRY_INFO!$U$9:$U$1000, " ") ->  | I15: 0 | M15: 0 | Q15: 0 | R15: 0 | S15: 0 | T15: 0 | U15: 0
A16: =IF(COUNTRY_INFO!A16=0," ",COUNTRY_INFO!A16) -> Chad | B16: =IF(COUNTRY_INFO!B16=0," ",COUNTRY_INFO!B16) -> Batha | C16: =IF(COUNTRY_INFO!C16=0," ",COUNTRY_INFO!C16) -> Djedda | D16: =IF(COUNTRY_INFO!$U$9:$U$1000="MDA4 (ALB/2*ALB)", COUNTRY_INFO!$U$9:$U$1000, " ") ->  | I16: 0 | M16: 0 | Q16: 0 | R16: 0 | S16: 0 | T16: 0 | U16: 0
A17: =IF(COUNTRY_INFO!A17=0," ",COUNTRY_INFO!A17) -> Chad | B17: =IF(COUNTRY_INFO!B17=0," ",COUNTRY_INFO!B17) -> Batha | C17: =IF(COUNTRY_INFO!C17=0," ",COUNTRY_INFO!C17) -> Koundjourou | D17: =IF(COUNTRY_INFO!$U$9:$U$1000="MDA4 (ALB/2*ALB)", COUNTRY_INFO!$U$9:$U$1000, " ") ->  | I17: 0 | M17: 0 | Q17: 0 | R17: 0 | S17: 0 | T17: 0 | U17: 0
A18: =IF(COUNTRY_INFO!A18=0," ",COUNTRY_INFO!A18) -> Chad | B18: =IF(COUNTRY_INFO!B18=0," ",COUNTRY_INFO!B18) -> Batha | C18: =IF(COUNTRY_INFO!C18=0," ",COUNTRY_INFO!C18) -> Oum-Hadjer | D18: =IF(COUNTRY_INFO!$U$9:$U$1000="MDA4 (ALB/2*ALB)", COUNTRY_INFO!$U$9:$U$1000, " ") ->  | I18: 0 | M18: 0 | Q18: 0 | R18: 0 | S18: 0 | T18: 0 | U18: 0
A19: =IF(COUNTRY_INFO!A19=0," ",COUNTRY_INFO!A19) -> Chad | B19: =IF(COUNTRY_INFO!B19=0," ",COUNTRY_INFO!B19) -> Batha | C19: =IF(COUNTRY_INFO!C19=0," ",COUNTRY_INFO!C19) -> Yao | D19: =IF(COUNTRY_INFO!$U$9:$U$1000="MDA4 (ALB/2*ALB)", COUNTRY_INFO!$U$9:$U$1000, " ") ->  | I19: 0 | M19: 0 | Q19: 0 | R19: 0 | S19: 0 | T19: 0 | U19: 0
A20: =IF(COUNTRY_INFO!A20=0," ",COUNTRY_INFO!A20) -> Chad | B20: =IF(COUNTRY_INFO!B20=0," ",COUNTRY_INFO!B20) -> Borkou | C20: =IF(COUNTRY_INFO!C20=0," ",COUNTRY_INFO!C20) -> Faya | D20: =IF(COUNTRY_INFO!$U$9:$U$1000="MDA4 (ALB/2*ALB)", COUNTRY_INFO!$U$9:$U$1000, " ") ->  | I20: 0 | M20: 0 | Q20: 0 | R20: 0 | S20: 0 | T20: 0 | U20: 0
A21: =IF(COUNTRY_INFO!A21=0," ",COUNTRY_INFO!A21) -> Chad | B21: =IF(COUNTRY_INFO!B21=0," ",COUNTRY_INFO!B21) -> Borkou | C21: =IF(COUNTRY_INFO!C21=0," ",COUNTRY_INFO!C21) -> Kirdimi | D21: =IF(COUNTRY_INFO!$U$9:$U$1000="MDA4 (ALB/2*ALB)", COUNTRY_INFO!$U$9:$U$1000, " ") ->  | I21: 0 | M21: 0 | Q21: 0 | R21: 0 | S21: 0 | T21: 0 | U21: 0
A22: =IF(COUNTRY_INFO!A22=0," ",COUNTRY_INFO!A22) -> Chad | B22: =IF(COUNTRY_INFO!B22=0," ",COUNTRY_INFO!B22) -> Borkou | C22: =IF(COUNTRY_INFO!C22=0," ",COUNTRY_INFO!C22) -> Kouba Olanga | D22: =IF(COUNTRY_INFO!$U$9:$U$1000="MDA4 (ALB/2*ALB)", COUNTRY_INFO!$U$9:$U$1000, " ") ->  | I22: 0 | M22: 0 | Q22: 0 | R22: 0 | S22: 0 | T22: 0 | U22: 0
A23: =IF(COUNTRY_INFO!A23=0," ",COUNTRY_INFO!A23) -> Chad | B23: =IF(COUNTRY_INFO!B23=0," ",COUNTRY_INFO!B23) -> Chari Baguirmi | C23: =IF(COUNTRY_INFO!C23=0," ",COUNTRY_INFO!C23) -> Ba-Illi | D23: =IF(COUNTRY_INFO!$U$9:$U$1000="MDA4 (ALB/2*ALB)", COUNTRY_INFO!$U$9:$U$1000, " ") ->  | I23: 0 | M23: 0 | Q23: 0 | R23: 0 | S23: 0 | T23: 0 | U23: 0
A24: =IF(COUNTRY_INFO!A24=0," ",COUNTRY_INFO!A24) -> Chad | B24: =IF(COUNTRY_INFO!B24=0," ",COUNTRY_INFO!B24) -> Chari Baguirmi | C24: =IF(COUNTRY_INFO!C24=0," ",COUNTRY_INFO!C24) -> Bousso | D24: =IF(COUNTRY_INFO!$U$9:$U$1000="MDA4 (ALB/2*ALB)", COUNTRY_INFO!$U$9:$U$1000, " ") ->  | I24: 0 | M24: 0 | Q24: 0 | R24: 0 | S24: 0 | T24: 0 | U24: 0
A25: =IF(COUNTRY_INFO!A25=0," ",COUNTRY_INFO!A25) -> Chad | B25: =IF(COUNTRY_INFO!B25=0," ",COUNTRY_INFO!B25) -> Chari Baguirmi | C25: =IF(COUNTRY_INFO!C25=0," ",COUNTRY_INFO!C25) -> Dourbali | D25: =IF(COUNTRY_INFO!$U$9:$U$1000="MDA4 (ALB/2*ALB)", COUNTRY_INFO!$U$9:$U$1000, " ") ->  | I25: 0 | M25: 0 | Q25: 0 | R25: 0 | S25: 0 | T25: 0 | U25: 0
A26: =IF(COUNTRY_INFO!A26=0," ",COUNTRY_INFO!A26) -> Chad | B26: =IF(COUNTRY_INFO!B26=0," ",COUNTRY_INFO!B26) -> Chari Baguirmi | C26: =IF(COUNTRY_INFO!C26=0," ",COUNTRY_INFO!C26) -> Koulno | D26: =IF(COUNTRY_INFO!$U$9:$U$1000="MDA4 (ALB/2*ALB)", COUNTRY_INFO!$U$9:$U$1000, " ") ->  | I26: 0 | M26: 0 | Q26: 0 | R26: 0 | S26: 0 | T26: 0 | U26: 0
A27: =IF(COUNTRY_INFO!A27=0," ",COUNTRY_INFO!A27) -> Chad | B27: =IF(COUNTRY_INFO!B27=0," ",COUNTRY_INFO!B27) -> Chari Baguirmi | C27: =IF(COUNTRY_INFO!C27=0," ",COUNTRY_INFO!C27) -> Mandélia | D27: =IF(COUNTRY_INFO!$U$9:$U$1000="MDA4 (ALB/2*ALB)", COUNTRY_INFO!$U$9:$U$1000, " ") ->  | I27: 0 | M27: 0 | Q27: 0 | R27: 0 | S27: 0 | T27: 0 | U27: 0
A28: =IF(COUNTRY_INFO!A28=0," ",COUNTRY_INFO!A28) -> Chad | B28: =IF(COUNTRY_INFO!B28=0," ",COUNTRY_INFO!B28) -> Chari Baguirmi | C28: =IF(COUNTRY_INFO!C28=0," ",COUNTRY_INFO!C28) -> Massenya | D28: =IF(COUNTRY_INFO!$U$9:$U$1000="MDA4 (ALB/2*ALB)", COUNTRY_INFO!$U$9:$U$1000, " ") ->  | I28: 0 | M28: 0 | Q28: 0 | R28: 0 | S28: 0 | T28: 0 | U28: 0
A29: =IF(COUNTRY_INFO!A29=0," ",COUNTRY_INFO!A29) -> Chad | B29: =IF(COUNTRY_INFO!B29=0," ",COUNTRY_INFO!B29) -> Ennedi Est | C29: =IF(COUNTRY_INFO!C29=0," ",COUNTRY_INFO!C29) -> Amdjarass | D29: =IF(COUNTRY_INFO!$U$9:$U$1000="MDA4 (ALB/2*ALB)", COUNTRY_INFO!$U$9:$U$1000, " ") ->  | I29: 0 | M29: 0 | Q29: 0 | R29: 0 | S29: 0 | T29: 0 | U29: 0
A30: =IF(COUNTRY_INFO!A30=0," ",COUNTRY_INFO!A30) -> Chad | B30: =IF(COUNTRY_INFO!B30=0," ",COUNTRY_INFO!B30) -> Ennedi Est | C30: =IF(COUNTRY_INFO!C30=0," ",COUNTRY_INFO!C30) -> Bahaï | D30: =IF(COUNTRY_INFO!$U$9:$U$1000="MDA4 (ALB/2*ALB)", COUNTRY_INFO!$U$9:$U$1000, " ") ->  | I30: 0 | M30: 0 | Q30: 0 | R30: 0 | S30: 0 | T30: 0 | U30: 0
A31: =IF(COUNTRY_INFO!A31=0," ",COUNTRY_INFO!A31) -> Chad | B31: =IF(COUNTRY_INFO!B31=0," ",COUNTRY_INFO!B31) -> Ennedi Est | C31: =IF(COUNTRY_INFO!C31=0," ",COUNTRY_INFO!C31) -> Kaoura | D31: =IF(COUNTRY_INFO!$U$9:$U$1000="MDA4 (ALB/2*ALB)", COUNTRY_INFO!$U$9:$U$1000, " ") ->  | I31: 0 | M31: 0 | Q31: 0 | R31: 0 | S31: 0 | T31: 0 | U31: 0
A32: =IF(COUNTRY_INFO!A32=0," ",COUNTRY_INFO!A32) -> Chad | B32: =IF(COUNTRY_INFO!B32=0," ",COUNTRY_INFO!B32) -> Ennedi Est | C32: =IF(COUNTRY_INFO!C32=0," ",COUNTRY_INFO!C32) -> Mourdi | D32: =IF(COUNTRY_INFO!$U$9:$U$1000="MDA4 (ALB/2*ALB)", COUNTRY_INFO!$U$9:$U$1000, " ") ->  | I32: 0 | M32: 0 | Q32: 0 | R32: 0 | S32: 0 | T32: 0 | U32: 0
A33: =IF(COUNTRY_INFO!A33=0," ",COUNTRY_INFO!A33) -> Chad | B33: =IF(COUNTRY_INFO!B33=0," ",COUNTRY_INFO!B33) -> Ennedi Ouest | C33: =IF(COUNTRY_INFO!C33=0," ",COUNTRY_INFO!C33) -> Fada | D33: =IF(COUNTRY_INFO!$U$9:$U$1000="MDA4 (ALB/2*ALB)", COUNTRY_INFO!$U$9:$U$1000, " ") ->  | I33: 0 | M33: 0 | Q33: 0 | R33: 0 | S33: 0 | T33: 0 | U33: 0
A34: =IF(COUNTRY_INFO!A34=0," ",COUNTRY_INFO!A34) -> Chad | B34: =IF(COUNTRY_INFO!B34=0," ",COUNTRY_INFO!B34) -> Ennedi Ouest | C34: =IF(COUNTRY_INFO!C34=0," ",COUNTRY_INFO!C34) -> Kalaït | D34: =IF(COUNTRY_INFO!$U$9:$U$1000="MDA4 (ALB/2*ALB)", COUNTRY_INFO!$U$9:$U$1000, " ") ->  | I34: 0 | M34: 0 | Q34: 0 | R34: 0 | S34: 0 | T34: 0 | U34: 0
A35: =IF(COUNTRY_INFO!A35=0," ",COUNTRY_INFO!A35) -> Chad | B35: =IF(COUNTRY_INFO!B35=0," ",COUNTRY_INFO!B35) -> Ennedi Ouest | C35: =IF(COUNTRY_INFO!C35=0," ",COUNTRY_INFO!C35) -> Ounianga Kebbir | D35: =IF(COUNTRY_INFO!$U$9:$U$1000="MDA4 (ALB/2*ALB)", COUNTRY_INFO!$U$9:$U$1000, " ") ->  | I35: 0 | M35: 0 | Q35: 0 | R35: 0 | S35: 0 | T35: 0 | U35: 0
A36: =IF(COUNTRY_INFO!A36=0," ",COUNTRY_INFO!A36) -> Chad | B36: =IF(COUNTRY_INFO!B36=0," ",COUNTRY_INFO!B36) -> Guéra | C36: =IF(COUNTRY_INFO!C36=0," ",COUNTRY_INFO!C36) -> Barou | D36: =IF(COUNTRY_INFO!$U$9:$U$1000="MDA4 (ALB/2*ALB)", COUNTRY_INFO!$U$9:$U$1000, " ") ->  | I36: 0 | M36: 0 | Q36: 0 | R36: 0 | S36: 0 | T36: 0 | U36: 0
A37: =IF(COUNTRY_INFO!A37=0," ",COUNTRY_INFO!A37) -> Chad | B37: =IF(COUNTRY_INFO!B37=0," ",COUNTRY_INFO!B37) -> Guéra | C37: =IF(COUNTRY_INFO!C37=0," ",COUNTRY_INFO!C37) -> Bitkine | D37: =IF(COUNTRY_INFO!$U$9:$U$1000="MDA4 (ALB/2*ALB)", COUNTRY_INFO!$U$9:$U$1000, " ") ->  | I37: 0 | M37: 0 | Q37: 0 | R37: 0 | S37: 0 | T37: 0 | U37: 0
A38: =IF(COUNTRY_INFO!A38=0," ",COUNTRY_INFO!A38) -> Chad | B38: =IF(COUNTRY_INFO!B38=0," ",COUNTRY_INFO!B38) -> Guéra | C38: =IF(COUNTRY_INFO!C38=0," ",COUNTRY_INFO!C38) -> Mangalmé | D38: =IF(COUNTRY_INFO!$U$9:$U$1000="MDA4 (ALB/2*ALB)", COUNTRY_INFO!$U$9:$U$1000, " ") ->  | I38: 0 | M38: 0 | Q38: 0 | R38: 0 | S38: 0 | T38: 0 | U38: 0
A39: =IF(COUNTRY_INFO!A39=0," ",COUNTRY_INFO!A39) -> Chad | B39: =IF(COUNTRY_INFO!B39=0," ",COUNTRY_INFO!B39) -> Guéra | C39: =IF(COUNTRY_INFO!C39=0," ",COUNTRY_INFO!C39) -> Melfi | D39: =IF(COUNTRY_INFO!$U$9:$U$1000="MDA4 (ALB/2*ALB)", COUNTRY_INFO!$U$9:$U$1000, " ") ->  | I39: 0 | M39: 0 | Q39: 0 | R39: 0 | S39: 0 | T39: 0 | U39: 0
A40: =IF(COUNTRY_INFO!A40=0," ",COUNTRY_INFO!A40) -> Chad | B40: =IF(COUNTRY_INFO!B40=0," ",COUNTRY_INFO!B40) -> Guéra | C40: =IF(COUNTRY_INFO!C40=0," ",COUNTRY_INFO!C40) -> Mongo | D40: =IF(COUNTRY_INFO!$U$9:$U$1000="MDA4 (ALB/2*ALB)", COUNTRY_INFO!$U$9:$U$1000, " ") ->  | I40: 0 | M40: 0 | Q40: 0 | R40: 0 | S40: 0 | T40: 0 | U40: 0
A41: =IF(COUNTRY_INFO!A41=0," ",COUNTRY_INFO!A41) -> Chad | B41: =IF(COUNTRY_INFO!B41=0," ",COUNTRY_INFO!B41) -> Hadjer Lamis | C41: =IF(COUNTRY_INFO!C41=0," ",COUNTRY_INFO!C41) -> Bokoro | D41: =IF(COUNTRY_INFO!$U$9:$U$1000="MDA4 (ALB/2*ALB)", COUNTRY_INFO!$U$9:$U$1000, " ") ->  | I41: 0 | M41: 0 | Q41: 0 | R41: =MAX(J41,N41) -> 0 | S41: =MAX(K41,O41) -> 0 | T41: =MAX(L41,P41) -> 0 | U41: =SUM(R41:T41) -> 0 | V41: =IF(F41<>0, IF(R41/F41*100=0, "-",R41/F41*100), " ") ->  | W41: =IF(G41<>0, IF(S41/G41*100=0, "-", S41/G41*100), " ") ->  | X41: =IF(H41<>0, IF(T41/H41*100=0, "-", T41/H41*100), " ") ->  | Y41: =IF(I41<>0, IF(U41/I41*100=0, "-", U41/I41*100), " ") -> 
A42: =IF(COUNTRY_INFO!A42=0," ",COUNTRY_INFO!A42) -> Chad | B42: =IF(COUNTRY_INFO!B42=0," ",COUNTRY_INFO!B42) -> Hadjer Lamis | C42: =IF(COUNTRY_INFO!C42=0," ",COUNTRY_INFO!C42) -> Gama | D42: =IF(COUNTRY_INFO!$U$9:$U$1000="MDA4 (ALB/2*ALB)", COUNTRY_INFO!$U$9:$U$1000, " ") ->  | I42: 0 | M42: 0 | Q42: 0 | R42: 0 | S42: 0 | T42: 0 | U42: 0
A43: =IF(COUNTRY_INFO!A43=0," ",COUNTRY_INFO!A43) -> Chad | B43: =IF(COUNTRY_INFO!B43=0," ",COUNTRY_INFO!B43) -> Hadjar Lamis | C43: =IF(COUNTRY_INFO!C43=0," ",COUNTRY_INFO!C43) -> Karal | D43: =IF(COUNTRY_INFO!$U$9:$U$1000="MDA4 (ALB/2*ALB)", COUNTRY_INFO!$U$9:$U$1000, " ") ->  | I43: 0 | M43: 0 | Q43: 0 | R43: 0 | S43: 0 | T43: 0 | U43: 0
A44: =IF(COUNTRY_INFO!A44=0," ",COUNTRY_INFO!A44) -> Chad | B44: =IF(COUNTRY_INFO!B44=0," ",COUNTRY_INFO!B44) -> Hadjer Lamis | C44: =IF(COUNTRY_INFO!C44=0," ",COUNTRY_INFO!C44) -> Mani | D44: =IF(COUNTRY_INFO!$U$9:$U$1000="MDA4 (ALB/2*ALB)", COUNTRY_INFO!$U$9:$U$1000, " ") ->  | I44: 0 | M44: 0 | Q44: 0 | R44: 0 | S44: 0 | T44: 0 | U44: 0
A45: =IF(COUNTRY_INFO!A45=0," ",COUNTRY_INFO!A45) -> Chad | B45: =IF(COUNTRY_INFO!B45=0," ",COUNTRY_INFO!B45) -> Hadjer Lamis | C45: =IF(COUNTRY_INFO!C45=0," ",COUNTRY_INFO!C45) -> Massaguet | D45: =IF(COUNTRY_INFO!$U$9:$U$1000="MDA4 (ALB/2*ALB)", COUNTRY_INFO!$U$9:$U$1000, " ") ->  | I45: 0 | M45: 0 | Q45: 0 | R45: 0 | S45: 0 | T45: 0 | U45: 0
A46: =IF(COUNTRY_INFO!A46=0," ",COUNTRY_INFO!A46) -> Chad | B46: =IF(COUNTRY_INFO!B46=0," ",COUNTRY_INFO!B46) -> Hadjer Lamis | C46: =IF(COUNTRY_INFO!C46=0," ",COUNTRY_INFO!C46) -> Massakory | D46: =IF(COUNTRY_INFO!$U$9:$U$1000="MDA4 (ALB/2*ALB)", COUNTRY_INFO!$U$9:$U$1000, " ") ->  | I46: 0 | M46: 0 | Q46: 0 | R46: 0 | S46: 0 | T46: 0 | U46: 0
A47: =IF(COUNTRY_INFO!A47=0," ",COUNTRY_INFO!A47) -> Chad | B47: =IF(COUNTRY_INFO!B47=0," ",COUNTRY_INFO!B47) -> Kanem | C47: =IF(COUNTRY_INFO!C47=0," ",COUNTRY_INFO!C47) -> Amdoback | D47: =IF(COUNTRY_INFO!$U$9:$U$1000="MDA4 (ALB/2*ALB)", COUNTRY_INFO!$U$9:$U$1000, " ") ->  | I47: 0 | M47: 0 | Q47: 0 | R47: 0 | S47: 0 | T47: 0 | U47: 0
A48: =IF(COUNTRY_INFO!A48=0," ",COUNTRY_INFO!A48) -> Chad | B48: =IF(COUNTRY_INFO!B48=0," ",COUNTRY_INFO!B48) -> Kanem | C48: =IF(COUNTRY_INFO!C48=0," ",COUNTRY_INFO!C48) -> Kekedina | D48: =IF(COUNTRY_INFO!$U$9:$U$1000="MDA4 (ALB/2*ALB)", COUNTRY_INFO!$U$9:$U$1000, " ") ->  | I48: 0 | M48: 0 | Q48: 0 | R48: 0 | S48: 0 | T48: 0 | U48: 0
A49: =IF(COUNTRY_INFO!A49=0," ",COUNTRY_INFO!A49) -> Chad | B49: =IF(COUNTRY_INFO!B49=0," ",COUNTRY_INFO!B49) -> Kanem | C49: =IF(COUNTRY_INFO!C49=0," ",COUNTRY_INFO!C49) -> Mao | D49: =IF(COUNTRY_INFO!$U$9:$U$1000="MDA4 (ALB/2*ALB)", COUNTRY_INFO!$U$9:$U$1000, " ") ->  | I49: 0 | M49: 0 | Q49: 0 | R49: 0 | S49: 0 | T49: 0 | U49: 0
A50: =IF(COUNTRY_INFO!A50=0," ",COUNTRY_INFO!A50) -> Chad | B50: =IF(COUNTRY_INFO!B50=0," ",COUNTRY_INFO!B50) -> Kanem | C50: =IF(COUNTRY_INFO!C50=0," ",COUNTRY_INFO!C50) -> Mondo | D50: =IF(COUNTRY_INFO!$U$9:$U$1000="MDA4 (ALB/2*ALB)", COUNTRY_INFO!$U$9:$U$1000, " ") ->  | I50: 0 | M50: 0 | Q50: 0 | R50: 0 | S50: 0 | T50: 0 | U50: 0
A51: =IF(COUNTRY_INFO!A51=0," ",COUNTRY_INFO!A51) -> Chad | B51: =IF(COUNTRY_INFO!B51=0," ",COUNTRY_INFO!B51) -> Kanem | C51: =IF(COUNTRY_INFO!C51=0," ",COUNTRY_INFO!C51) -> Nokou | D51: =IF(COUNTRY_INFO!$U$9:$U$1000="MDA4 (ALB/2*ALB)", COUNTRY_INFO!$U$9:$U$1000, " ") ->  | I51: 0 | M51: 0 | Q51: 0 | R51: 0 | S51: 0 | T51: 0 | U51: 0
A52: =IF(COUNTRY_INFO!A52=0," ",COUNTRY_INFO!A52) -> Chad | B52: =IF(COUNTRY_INFO!B52=0," ",COUNTRY_INFO!B52) -> Kanem | C52: =IF(COUNTRY_INFO!C52=0," ",COUNTRY_INFO!C52) -> Ntiona | D52: =IF(COUNTRY_INFO!$U$9:$U$1000="MDA4 (ALB/2*ALB)", COUNTRY_INFO!$U$9:$U$1000, " ") ->  | I52: 0 | M52: 0 | Q52: 0 | R52: 0 | S52: 0 | T52: 0 | U52: 0
A53: =IF(COUNTRY_INFO!A53=0," ",COUNTRY_INFO!A53) -> Chad | B53: =IF(COUNTRY_INFO!B53=0," ",COUNTRY_INFO!B53) -> Kanem | C53: =IF(COUNTRY_INFO!C53=0," ",COUNTRY_INFO!C53) -> Rig-Rig | D53: =IF(COUNTRY_INFO!$U$9:$U$1000="MDA4 (ALB/2*ALB)", COUNTRY_INFO!$U$9:$U$1000, " ") ->  | I53: 0 | M53: 0 | Q53: 0 | R53: 0 | S53: 0 | T53: 0 | U53: 0
A54: =IF(COUNTRY_INFO!A54=0," ",COUNTRY_INFO!A54) -> Chad | B54: =IF(COUNTRY_INFO!B54=0," ",COUNTRY_INFO!B54) -> Lac | C54: =IF(COUNTRY_INFO!C54=0," ",COUNTRY_INFO!C54) -> Bagassola | D54: =IF(COUNTRY_INFO!$U$9:$U$1000="MDA4 (ALB/2*ALB)", COUNTRY_INFO!$U$9:$U$1000, " ") ->  | I54: 0 | M54: 0 | Q54: 0 | R54: 0 | S54: 0 | T54: 0 | U54: 0
A55: =IF(COUNTRY_INFO!A55=0," ",COUNTRY_INFO!A55) -> Chad | B55: =IF(COUNTRY_INFO!B55=0," ",COUNTRY_INFO!B55) -> Lac | C55: =IF(COUNTRY_INFO!C55=0," ",COUNTRY_INFO!C55) -> Bol | D55: =IF(COUNTRY_INFO!$U$9:$U$1000="MDA4 (ALB/2*ALB)", COUNTRY_INFO!$U$9:$U$1000, " ") ->  | I55: 0 | M55: 0 | Q55: 0 | R55: 0 | S55: 0 | T55: 0 | U55: 0
A56: =IF(COUNTRY_INFO!A56=0," ",COUNTRY_INFO!A56) -> Chad | B56: =IF(COUNTRY_INFO!B56=0," ",COUNTRY_INFO!B56) -> Lac | C56: =IF(COUNTRY_INFO!C56=0," ",COUNTRY_INFO!C56) -> Isserom | D56: =IF(COUNTRY_INFO!$U$9:$U$1000="MDA4 (ALB/2*ALB)", COUNTRY_INFO!$U$9:$U$1000, " ") ->  | I56: 0 | M56: 0 | Q56: 0 | R56: 0 | S56: 0 | T56: 0 | U56: 0
A57: =IF(COUNTRY_INFO!A57=0," ",COUNTRY_INFO!A57) -> Chad | B57: =IF(COUNTRY_INFO!B57=0," ",COUNTRY_INFO!B57) -> Lac | C57: =IF(COUNTRY_INFO!C57=0," ",COUNTRY_INFO!C57) -> Kouloudia | D57: =IF(COUNTRY_INFO!$U$9:$U$1000="MDA4 (ALB/2*ALB)", COUNTRY_INFO!$U$9:$U$1000, " ") ->  | I57: 0 | M57: 0 | Q57: 0 | R57: 0 | S57: 0 | T57: 0 | U57: 0
A58: =IF(COUNTRY_INFO!A58=0," ",COUNTRY_INFO!A58) -> Chad | B58: =IF(COUNTRY_INFO!B58=0," ",COUNTRY_INFO!B58) -> Lac | C58: =IF(COUNTRY_INFO!C58=0," ",COUNTRY_INFO!C58) -> Liwa | D58: =IF(COUNTRY_INFO!$U$9:$U$1000="MDA4 (ALB/2*ALB)", COUNTRY_INFO!$U$9:$U$1000, " ") ->  | I58: 0 | M58: 0 | Q58: 0 | R58: 0 | S58: 0 | T58: 0 | U58: 0
A59: =IF(COUNTRY_INFO!A59=0," ",COUNTRY_INFO!A59) -> Chad | B59: =IF(COUNTRY_INFO!B59=0," ",COUNTRY_INFO!B59) -> Lac | C59: =IF(COUNTRY_INFO!C59=0," ",COUNTRY_INFO!C59) -> Ngouri | D59: =IF(COUNTRY_INFO!$U$9:$U$1000="MDA4 (ALB/2*ALB)", COUNTRY_INFO!$U$9:$U$1000, " ") ->  | I59: 0 | M59: 0 | Q59: 0 | R59: 0 | S59: 0 | T59: 0 | U59: 0
A60: =IF(COUNTRY_INFO!A60=0," ",COUNTRY_INFO!A60) -> Chad | B60: =IF(COUNTRY_INFO!B60=0," ",COUNTRY_INFO!B60) -> Logone Occidental | C60: =IF(COUNTRY_INFO!C60=0," ",COUNTRY_INFO!C60) -> Benamar | D60: =IF(COUNTRY_INFO!$U$9:$U$1000="MDA4 (ALB/2*ALB)", COUNTRY_INFO!$U$9:$U$1000, " ") ->  | I60: 0 | M60: 0 | Q60: 0 | R60: 0 | S60: 0 | T60: 0 | U60: 0
A61: =IF(COUNTRY_INFO!A61=0," ",COUNTRY_INFO!A61) -> Chad | B61: =IF(COUNTRY_INFO!B61=0," ",COUNTRY_INFO!B61) -> Logone Occidental | C61: =IF(COUNTRY_INFO!C61=0," ",COUNTRY_INFO!C61) -> Benoye | D61: =IF(COUNTRY_INFO!$U$9:$U$1000="MDA4 (ALB/2*ALB)", COUNTRY_INFO!$U$9:$U$1000, " ") ->  | I61: 0 | M61: 0 | Q61: 0 | R61: 0 | S61: 0 | T61: 0 | U61: 0
A62: =IF(COUNTRY_INFO!A62=0," ",COUNTRY_INFO!A62) -> Chad | B62: =IF(COUNTRY_INFO!B62=0," ",COUNTRY_INFO!B62) -> Logone Occidental | C62: =IF(COUNTRY_INFO!C62=0," ",COUNTRY_INFO!C62) -> Laokassy | D62: =IF(COUNTRY_INFO!$U$9:$U$1000="MDA4 (ALB/2*ALB)", COUNTRY_INFO!$U$9:$U$1000, " ") ->  | I62: 0 | M62: 0 | Q62: 0 | R62: 0 | S62: 0 | T62: 0 | U62: 0
A63: =IF(COUNTRY_INFO!A63=0," ",COUNTRY_INFO!A63) -> Chad | B63: =IF(COUNTRY_INFO!B63=0," ",COUNTRY_INFO!B63) -> Logone Occidental | C63: =IF(COUNTRY_INFO!C63=0," ",COUNTRY_INFO!C63) -> Moundou | D63: =IF(COUNTRY_INFO!$U$9:$U$1000="MDA4 (ALB/2*ALB)", COUNTRY_INFO!$U$9:$U$1000, " ") ->  | I63: 0 | M63: 0 | Q63: 0 | R63: 0 | S63: 0 | T63: 0 | U63: 0
A64: =IF(COUNTRY_INFO!A64=0," ",COUNTRY_INFO!A64) -> Chad | B64: =IF(COUNTRY_INFO!B64=0," ",COUNTRY_INFO!B64) -> Logone Orientlal | C64: =IF(COUNTRY_INFO!C64=0," ",COUNTRY_INFO!C64) -> Baibokoum | D64: =IF(COUNTRY_INFO!$U$9:$U$1000="MDA4 (ALB/2*ALB)", COUNTRY_INFO!$U$9:$U$1000, " ") ->  | I64: 0 | M64: 0 | Q64: 0 | R64: 0 | S64: 0 | T64: 0 | U64: 0
A65: =IF(COUNTRY_INFO!A65=0," ",COUNTRY_INFO!A65) -> Chad | B65: =IF(COUNTRY_INFO!B65=0," ",COUNTRY_INFO!B65) -> Logone Orientlal | C65: =IF(COUNTRY_INFO!C65=0," ",COUNTRY_INFO!C65) -> Bebedja | D65: =IF(COUNTRY_INFO!$U$9:$U$1000="MDA4 (ALB/2*ALB)", COUNTRY_INFO!$U$9:$U$1000, " ") ->  | I65: 0 | M65: 0 | Q65: 0 | R65: 0 | S65: 0 | T65: 0 | U65: 0
A66: =IF(COUNTRY_INFO!A66=0," ",COUNTRY_INFO!A66) -> Chad | B66: =IF(COUNTRY_INFO!B66=0," ",COUNTRY_INFO!B66) -> Logone Orientlal | C66: =IF(COUNTRY_INFO!C66=0," ",COUNTRY_INFO!C66) -> Beboto | D66: =IF(COUNTRY_INFO!$U$9:$U$1000="MDA4 (ALB/2*ALB)", COUNTRY_INFO!$U$9:$U$1000, " ") ->  | I66: 0 | M66: 0 | Q66: 0 | R66: 0 | S66: 0 | T66: 0 | U66: 0
A67: =IF(COUNTRY_INFO!A67=0," ",COUNTRY_INFO!A67) -> Chad | B67: =IF(COUNTRY_INFO!B67=0," ",COUNTRY_INFO!B67) -> Logone Orientlal | C67: =IF(COUNTRY_INFO!C67=0," ",COUNTRY_INFO!C67) -> Bessao | D67: =IF(COUNTRY_INFO!$U$9:$U$1000="MDA4 (ALB/2*ALB)", COUNTRY_INFO!$U$9:$U$1000, " ") ->  | I67: 0 | M67: 0 | Q67: 0 | R67: 0 | S67: 0 | T67: 0 | U67: 0
A68: =IF(COUNTRY_INFO!A68=0," ",COUNTRY_INFO!A68) -> Chad | B68: =IF(COUNTRY_INFO!B68=0," ",COUNTRY_INFO!B68) -> Logone Orientlal | C68: =IF(COUNTRY_INFO!C68=0," ",COUNTRY_INFO!C68) -> Bodo | D68: =IF(COUNTRY_INFO!$U$9:$U$1000="MDA4 (ALB/2*ALB)", COUNTRY_INFO!$U$9:$U$1000, " ") ->  | I68: 0 | M68: 0 | Q68: 0 | R68: 0 | S68: 0 | T68: 0 | U68: 0
A69: =IF(COUNTRY_INFO!A69=0," ",COUNTRY_INFO!A69) -> Chad | B69: =IF(COUNTRY_INFO!B69=0," ",COUNTRY_INFO!B69) -> Logone Orientlal | C69: =IF(COUNTRY_INFO!C69=0," ",COUNTRY_INFO!C69) -> Doba | D69: =IF(COUNTRY_INFO!$U$9:$U$1000="MDA4 (ALB/2*ALB)", COUNTRY_INFO!$U$9:$U$1000, " ") ->  | I69: 0 | M69: 0 | Q69: 0 | R69: 0 | S69: 0 | T69: 0 | U69: 0
A70: =IF(COUNTRY_INFO!A70=0," ",COUNTRY_INFO!A70) -> Chad | B70: =IF(COUNTRY_INFO!B70=0," ",COUNTRY_INFO!B70) -> Logone Orientlal | C70: =IF(COUNTRY_INFO!C70=0," ",COUNTRY_INFO!C70) -> DONIA | D70: =IF(COUNTRY_INFO!$U$9:$U$1000="MDA4 (ALB/2*ALB)", COUNTRY_INFO!$U$9:$U$1000, " ") ->  | I70: 0 | M70: 0 | Q70: 0 | R70: 0 | S70: 0 | T70: 0 | U70: 0
A71: =IF(COUNTRY_INFO!A71=0," ",COUNTRY_INFO!A71) -> Chad | B71: =IF(COUNTRY_INFO!B71=0," ",COUNTRY_INFO!B71) -> Logone Orientlal | C71: =IF(COUNTRY_INFO!C71=0," ",COUNTRY_INFO!C71) -> Goré | D71: =IF(COUNTRY_INFO!$U$9:$U$1000="MDA4 (ALB/2*ALB)", COUNTRY_INFO!$U$9:$U$1000, " ") ->  | I71: 0 | M71: 0 | Q71: 0 | R71: 0 | S71: 0 | T71: 0 | U71: 0
A72: =IF(COUNTRY_INFO!A72=0," ",COUNTRY_INFO!A72) -> Chad | B72: =IF(COUNTRY_INFO!B72=0," ",COUNTRY_INFO!B72) -> Logone Orientlal | C72: =IF(COUNTRY_INFO!C72=0," ",COUNTRY_INFO!C72) -> Kara | D72: =IF(COUNTRY_INFO!$U$9:$U$1000="MDA4 (ALB/2*ALB)", COUNTRY_INFO!$U$9:$U$1000, " ") ->  | I72: 0 | M72: 0 | Q72: 0 | R72: 0 | S72: 0 | T72: 0 | U72: 0
A73: =IF(COUNTRY_INFO!A73=0," ",COUNTRY_INFO!A73) -> Chad | B73: =IF(COUNTRY_INFO!B73=0," ",COUNTRY_INFO!B73) -> Logone Orientlal | C73: =IF(COUNTRY_INFO!C73=0," ",COUNTRY_INFO!C73) -> Larmanaye | D73: =IF(COUNTRY_INFO!$U$9:$U$1000="MDA4 (ALB/2*ALB)", COUNTRY_INFO!$U$9:$U$1000, " ") ->  | I73: 0 | M73: 0 | Q73: 0 | R73: =MAX(J73,N73) -> 0 | S73: =MAX(K73,O73) -> 0 | T73: =MAX(L73,P73) -> 0 | U73: =SUM(R73:T73) -> 0 | V73: =IF(F73<>0, IF(R73/F73*100=0, "-",R73/F73*100), " ") ->  | W73: =IF(G73<>0, IF(S73/G73*100=0, "-", S73/G73*100), " ") ->  | X73: =IF(H73<>0, IF(T73/H73*100=0, "-", T73/H73*100), " ") ->  | Y73: =IF(I73<>0, IF(U73/I73*100=0, "-", U73/I73*100), " ") -> 
A74: =IF(COUNTRY_INFO!A74=0," ",COUNTRY_INFO!A74) -> Chad | B74: =IF(COUNTRY_INFO!B74=0," ",COUNTRY_INFO!B74) -> Mandoul | C74: =IF(COUNTRY_INFO!C74=0," ",COUNTRY_INFO!C74) -> Bedaya | D74: =IF(COUNTRY_INFO!$U$9:$U$1000="MDA4 (ALB/2*ALB)", COUNTRY_INFO!$U$9:$U$1000, " ") ->  | I74: =SUM(F74:H74) -> 0 | M74: =SUM(J74:L74) -> 0 | Q74: =SUM(N74:P74) -> 0 | R74: 0 | S74: 0 | T74: 0 | U74: 0
A75: =IF(COUNTRY_INFO!A75=0," ",COUNTRY_INFO!A75) -> Chad | B75: =IF(COUNTRY_INFO!B75=0," ",COUNTRY_INFO!B75) -> Mandoul | C75: =IF(COUNTRY_INFO!C75=0," ",COUNTRY_INFO!C75) -> Bedjondo | D75: =IF(COUNTRY_INFO!$U$9:$U$1000="MDA4 (ALB/2*ALB)", COUNTRY_INFO!$U$9:$U$1000, " ") ->  | I75: 0 | M75: 0 | Q75: 0 | R75: 0 | S75: 0 | T75: 0 | U75: 0
A76: =IF(COUNTRY_INFO!A76=0," ",COUNTRY_INFO!A76) -> Chad | B76: =IF(COUNTRY_INFO!B76=0," ",COUNTRY_INFO!B76) -> Mandoul | C76: =IF(COUNTRY_INFO!C76=0," ",COUNTRY_INFO!C76) -> Bekourou | D76: =IF(COUNTRY_INFO!$U$9:$U$1000="MDA4 (ALB/2*ALB)", COUNTRY_INFO!$U$9:$U$1000, " ") ->  | I76: 0 | M76: 0 | Q76: 0 | R76: 0 | S76: 0 | T76: 0 | U76: 0
A77: =IF(COUNTRY_INFO!A77=0," ",COUNTRY_INFO!A77) -> Chad | B77: =IF(COUNTRY_INFO!B77=0," ",COUNTRY_INFO!B77) -> Mandoul | C77: =IF(COUNTRY_INFO!C77=0," ",COUNTRY_INFO!C77) -> Bouna | D77: =IF(COUNTRY_INFO!$U$9:$U$1000="MDA4 (ALB/2*ALB)", COUNTRY_INFO!$U$9:$U$1000, " ") ->  | I77: 0 | M77: 0 | Q77: 0 | R77: 0 | S77: 0 | T77: 0 | U77: 0
A78: =IF(COUNTRY_INFO!A78=0," ",COUNTRY_INFO!A78) -> Chad | B78: =IF(COUNTRY_INFO!B78=0," ",COUNTRY_INFO!B78) -> Mandoul | C78: =IF(COUNTRY_INFO!C78=0," ",COUNTRY_INFO!C78) -> Goundi | D78: =IF(COUNTRY_INFO!$U$9:$U$1000="MDA4 (ALB/2*ALB)", COUNTRY_INFO!$U$9:$U$1000, " ") ->  | I78: 0 | M78: 0 | Q78: 0 | R78: 0 | S78: 0 | T78: 0 | U78: 0
A79: =IF(COUNTRY_INFO!A79=0," ",COUNTRY_INFO!A79) -> Chad | B79: =IF(COUNTRY_INFO!B79=0," ",COUNTRY_INFO!B79) -> Mandoul | C79: =IF(COUNTRY_INFO!C79=0," ",COUNTRY_INFO!C79) -> Koumra | D79: =IF(COUNTRY_INFO!$U$9:$U$1000="MDA4 (ALB/2*ALB)", COUNTRY_INFO!$U$9:$U$1000, " ") ->  | I79: 0 | M79: 0 | Q79: 0 | R79: 0 | S79: 0 | T79: 0 | U79: 0
A80: =IF(COUNTRY_INFO!A80=0," ",COUNTRY_INFO!A80) -> Chad | B80: =IF(COUNTRY_INFO!B80=0," ",COUNTRY_INFO!B80) -> Mandoul | C80: =IF(COUNTRY_INFO!C80=0," ",COUNTRY_INFO!C80) -> Moissala | D80: =IF(COUNTRY_INFO!$U$9:$U$1000="MDA4 (ALB/2*ALB)", COUNTRY_INFO!$U$9:$U$1000, " ") ->  | I80: 0 | M80: 0 | Q80: 0 | R80: 0 | S80: 0 | T80: 0 | U80: 0
A81: =IF(COUNTRY_INFO!A81=0," ",COUNTRY_INFO!A81) -> Chad | B81: =IF(COUNTRY_INFO!B81=0," ",COUNTRY_INFO!B81) -> Mayo Kebbi Est | C81: =IF(COUNTRY_INFO!C81=0," ",COUNTRY_INFO!C81) -> Bongor | D81: =IF(COUNTRY_INFO!$U$9:$U$1000="MDA4 (ALB/2*ALB)", COUNTRY_INFO!$U$9:$U$1000, " ") ->  | I81: 0 | M81: 0 | Q81: 0 | R81: 0 | S81: 0 | T81: 0 | U81: 0
A82: =IF(COUNTRY_INFO!A82=0," ",COUNTRY_INFO!A82) -> Chad | B82: =IF(COUNTRY_INFO!B82=0," ",COUNTRY_INFO!B82) -> Mayo Kebbi Est | C82: =IF(COUNTRY_INFO!C82=0," ",COUNTRY_INFO!C82) -> Fianga | D82: =IF(COUNTRY_INFO!$U$9:$U$1000="MDA4 (ALB/2*ALB)", COUNTRY_INFO!$U$9:$U$1000, " ") ->  | I82: 0 | M82: 0 | Q82: 0 | R82: 0 | S82: 0 | T82: 0 | U82: 0
A83: =IF(COUNTRY_INFO!A83=0," ",COUNTRY_INFO!A83) -> Chad | B83: =IF(COUNTRY_INFO!B83=0," ",COUNTRY_INFO!B83) -> Mayo Kebbi Est | C83: =IF(COUNTRY_INFO!C83=0," ",COUNTRY_INFO!C83) -> Gounou Gaya | D83: =IF(COUNTRY_INFO!$U$9:$U$1000="MDA4 (ALB/2*ALB)", COUNTRY_INFO!$U$9:$U$1000, " ") ->  | I83: 0 | M83: 0 | Q83: 0 | R83: 0 | S83: 0 | T83: 0 | U83: 0
A84: =IF(COUNTRY_INFO!A84=0," ",COUNTRY_INFO!A84) -> Chad | B84: =IF(COUNTRY_INFO!B84=0," ",COUNTRY_INFO!B84) -> Mayo Kebbi Est | C84: =IF(COUNTRY_INFO!C84=0," ",COUNTRY_INFO!C84) -> Guelinding | D84: =IF(COUNTRY_INFO!$U$9:$U$1000="MDA4 (ALB/2*ALB)", COUNTRY_INFO!$U$9:$U$1000, " ") ->  | I84: 0 | M84: 0 | Q84: 0 | R84: 0 | S84: 0 | T84: 0 | U84: 0
A85: =IF(COUNTRY_INFO!A85=0," ",COUNTRY_INFO!A85) -> Chad | B85: =IF(COUNTRY_INFO!B85=0," ",COUNTRY_INFO!B85) -> Mayo Kebbi Est | C85: =IF(COUNTRY_INFO!C85=0," ",COUNTRY_INFO!C85) -> Moulkou | D85: =IF(COUNTRY_INFO!$U$9:$U$1000="MDA4 (ALB/2*ALB)", COUNTRY_INFO!$U$9:$U$1000, " ") ->  | I85: 0 | M85: 0 | Q85: 0 | R85: 0 | S85: 0 | T85: 0 | U85: 0
A86: =IF(COUNTRY_INFO!A86=0," ",COUNTRY_INFO!A86) -> Chad | B86: =IF(COUNTRY_INFO!B86=0," ",COUNTRY_INFO!B86) -> Mayo Kebbi Est | C86: =IF(COUNTRY_INFO!C86=0," ",COUNTRY_INFO!C86) -> Pont Carol | D86: =IF(COUNTRY_INFO!$U$9:$U$1000="MDA4 (ALB/2*ALB)", COUNTRY_INFO!$U$9:$U$1000, " ") ->  | I86: 0 | M86: 0 | Q86: 0 | R86: 0 | S86: 0 | T86: 0 | U86: 0
A87: =IF(COUNTRY_INFO!A87=0," ",COUNTRY_INFO!A87) -> Chad | B87: =IF(COUNTRY_INFO!B87=0," ",COUNTRY_INFO!B87) -> Mayo Kebbi Est | C87: =IF(COUNTRY_INFO!C87=0," ",COUNTRY_INFO!C87) -> Youé | D87: =IF(COUNTRY_INFO!$U$9:$U$1000="MDA4 (ALB/2*ALB)", COUNTRY_INFO!$U$9:$U$1000, " ") ->  | I87: 0 | M87: 0 | Q87: 0 | R87: 0 | S87: 0 | T87: 0 | U87: 0
A88: =IF(COUNTRY_INFO!A88=0," ",COUNTRY_INFO!A88) -> Chad | B88: =IF(COUNTRY_INFO!B88=0," ",COUNTRY_INFO!B88) -> Mayo Kebbi Ouest | C88: =IF(COUNTRY_INFO!C88=0," ",COUNTRY_INFO!C88) -> Binder | D88: =IF(COUNTRY_INFO!$U$9:$U$1000="MDA4 (ALB/2*ALB)", COUNTRY_INFO!$U$9:$U$1000, " ") ->  | I88: 0 | M88: 0 | Q88: 0 | R88: 0 | S88: 0 | T88: 0 | U88: 0
A89: =IF(COUNTRY_INFO!A89=0," ",COUNTRY_INFO!A89) -> Chad | B89: =IF(COUNTRY_INFO!B89=0," ",COUNTRY_INFO!B89) -> Mayo Kebbi Ouest | C89: =IF(COUNTRY_INFO!C89=0," ",COUNTRY_INFO!C89) -> Gagal | D89: =IF(COUNTRY_INFO!$U$9:$U$1000="MDA4 (ALB/2*ALB)", COUNTRY_INFO!$U$9:$U$1000, " ") ->  | I89: 0 | M89: 0 | Q89: 0 | R89: 0 | S89: 0 | T89: 0 | U89: 0
A90: =IF(COUNTRY_INFO!A90=0," ",COUNTRY_INFO!A90) -> Chad | B90: =IF(COUNTRY_INFO!B90=0," ",COUNTRY_INFO!B90) -> Mayo Kebbi Ouest | C90: =IF(COUNTRY_INFO!C90=0," ",COUNTRY_INFO!C90) -> Guegou | D90: =IF(COUNTRY_INFO!$U$9:$U$1000="MDA4 (ALB/2*ALB)", COUNTRY_INFO!$U$9:$U$1000, " ") ->  | I90: 0 | M90: 0 | Q90: 0 | R90: 0 | S90: 0 | T90: 0 | U90: 0
A91: =IF(COUNTRY_INFO!A91=0," ",COUNTRY_INFO!A91) -> Chad | B91: =IF(COUNTRY_INFO!B91=0," ",COUNTRY_INFO!B91) -> Mayo Kebbi Ouest | C91: =IF(COUNTRY_INFO!C91=0," ",COUNTRY_INFO!C91) -> GUELO | D91: =IF(COUNTRY_INFO!$U$9:$U$1000="MDA4 (ALB/2*ALB)", COUNTRY_INFO!$U$9:$U$1000, " ") ->  | I91: 0 | M91: 0 | Q91: 0 | R91: 0 | S91: 0 | T91: 0 | U91: 0
A92: =IF(COUNTRY_INFO!A92=0," ",COUNTRY_INFO!A92) -> Chad | B92: =IF(COUNTRY_INFO!B92=0," ",COUNTRY_INFO!B92) -> Mayo Kebbi Ouest | C92: =IF(COUNTRY_INFO!C92=0," ",COUNTRY_INFO!C92) -> Lagon | D92: =IF(COUNTRY_INFO!$U$9:$U$1000="MDA4 (ALB/2*ALB)", COUNTRY_INFO!$U$9:$U$1000, " ") ->  | I92: 0 | M92: 0 | Q92: 0 | R92: 0 | S92: 0 | T92: 0 | U92: 0
A93: =IF(COUNTRY_INFO!A93=0," ",COUNTRY_INFO!A93) -> Chad | B93: =IF(COUNTRY_INFO!B93=0," ",COUNTRY_INFO!B93) -> Mayo Kebbi Ouest | C93: =IF(COUNTRY_INFO!C93=0," ",COUNTRY_INFO!C93) -> Lamé | D93: =IF(COUNTRY_INFO!$U$9:$U$1000="MDA4 (ALB/2*ALB)", COUNTRY_INFO!$U$9:$U$1000, " ") ->  | I93: 0 | M93: 0 | Q93: 0 | R93: 0 | S93: 0 | T93: 0 | U93: 0
A94: =IF(COUNTRY_INFO!A94=0," ",COUNTRY_INFO!A94) -> Chad | B94: =IF(COUNTRY_INFO!B94=0," ",COUNTRY_INFO!B94) -> Mayo Kebbi Ouest | C94: =IF(COUNTRY_INFO!C94=0," ",COUNTRY_INFO!C94) -> Lere | D94: =IF(COUNTRY_INFO!$U$9:$U$1000="MDA4 (ALB/2*ALB)", COUNTRY_INFO!$U$9:$U$1000, " ") ->  | I94: 0 | M94: 0 | Q94: 0 | R94: 0 | S94: 0 | T94: 0 | U94: 0
A95: =IF(COUNTRY_INFO!A95=0," ",COUNTRY_INFO!A95) -> Chad | B95: =IF(COUNTRY_INFO!B95=0," ",COUNTRY_INFO!B95) -> Mayo Kebbi Ouest | C95: =IF(COUNTRY_INFO!C95=0," ",COUNTRY_INFO!C95) -> Pala | D95: =IF(COUNTRY_INFO!$U$9:$U$1000="MDA4 (ALB/2*ALB)", COUNTRY_INFO!$U$9:$U$1000, " ") ->  | I95: 0 | M95: 0 | Q95: 0 | R95: 0 | S95: 0 | T95: 0 | U95: 0
A96: =IF(COUNTRY_INFO!A96=0," ",COUNTRY_INFO!A96) -> Chad | B96: =IF(COUNTRY_INFO!B96=0," ",COUNTRY_INFO!B96) -> Mayo Kebbi Ouest | C96: =IF(COUNTRY_INFO!C96=0," ",COUNTRY_INFO!C96) -> Torrock | D96: =IF(COUNTRY_INFO!$U$9:$U$1000="MDA4 (ALB/2*ALB)", COUNTRY_INFO!$U$9:$U$1000, " ") ->  | I96: 0 | M96: 0 | Q96: 0 | R96: 0 | S96: 0 | T96: 0 | U96: 0
A97: =IF(COUNTRY_INFO!A97=0," ",COUNTRY_INFO!A97) -> Chad | B97: =IF(COUNTRY_INFO!B97=0," ",COUNTRY_INFO!B97) -> Moyen Chari | C97: =IF(COUNTRY_INFO!C97=0," ",COUNTRY_INFO!C97) -> Balimba | D97: =IF(COUNTRY_INFO!$U$9:$U$1000="MDA4 (ALB/2*ALB)", COUNTRY_INFO!$U$9:$U$1000, " ") ->  | I97: 0 | M97: 0 | Q97: 0 | R97: 0 | S97: 0 | T97: 0 | U97: 0
A98: =IF(COUNTRY_INFO!A98=0," ",COUNTRY_INFO!A98) -> Chad | B98: =IF(COUNTRY_INFO!B98=0," ",COUNTRY_INFO!B98) -> Moyen Chari | C98: =IF(COUNTRY_INFO!C98=0," ",COUNTRY_INFO!C98) -> Biobe Singako | D98: =IF(COUNTRY_INFO!$U$9:$U$1000="MDA4 (ALB/2*ALB)", COUNTRY_INFO!$U$9:$U$1000, " ") ->  | I98: 0 | M98: 0 | Q98: 0 | R98: 0 | S98: 0 | T98: 0 | U98: 0
A99: =IF(COUNTRY_INFO!A99=0," ",COUNTRY_INFO!A99) -> Chad | B99: =IF(COUNTRY_INFO!B99=0," ",COUNTRY_INFO!B99) -> Moyen Chari | C99: =IF(COUNTRY_INFO!C99=0," ",COUNTRY_INFO!C99) -> Danamadji | D99: =IF(COUNTRY_INFO!$U$9:$U$1000="MDA4 (ALB/2*ALB)", COUNTRY_INFO!$U$9:$U$1000, " ") ->  | I99: 0 | M99: 0 | Q99: 0 | R99: 0 | S99: 0 | T99: 0 | U99: 0
A100: =IF(COUNTRY_INFO!A100=0," ",COUNTRY_INFO!A100) -> Chad | B100: =IF(COUNTRY_INFO!B100=0," ",COUNTRY_INFO!B100) -> Moyen Chari | C100: =IF(COUNTRY_INFO!C100=0," ",COUNTRY_INFO!C100) -> Korbol | D100: =IF(COUNTRY_INFO!$U$9:$U$1000="MDA4 (ALB/2*ALB)", COUNTRY_INFO!$U$9:$U$1000, " ") ->  | I100: 0 | M100: 0 | Q100: 0 | R100: 0 | S100: 0 | T100: 0 | U100: 0
A101: =IF(COUNTRY_INFO!A101=0," ",COUNTRY_INFO!A101) -> Chad | B101: =IF(COUNTRY_INFO!B101=0," ",COUNTRY_INFO!B101) -> Moyen Chari | C101: =IF(COUNTRY_INFO!C101=0," ",COUNTRY_INFO!C101) -> Koumogo | D101: =IF(COUNTRY_INFO!$U$9:$U$1000="MDA4 (ALB/2*ALB)", COUNTRY_INFO!$U$9:$U$1000, " ") ->  | I101: 0 | M101: 0 | Q101: 0 | R101: 0 | S101: 0 | T101: 0 | U101: 0
A102: =IF(COUNTRY_INFO!A102=0," ",COUNTRY_INFO!A102) -> Chad | B102: =IF(COUNTRY_INFO!B102=0," ",COUNTRY_INFO!B102) -> Moyen Chari | C102: =IF(COUNTRY_INFO!C102=0," ",COUNTRY_INFO!C102) -> Kyabe | D102: =IF(COUNTRY_INFO!$U$9:$U$1000="MDA4 (ALB/2*ALB)", COUNTRY_INFO!$U$9:$U$1000, " ") ->  | I102: 0 | M102: 0 | Q102: 0 | R102: 0 | S102: 0 | T102: 0 | U102: 0
A103: =IF(COUNTRY_INFO!A103=0," ",COUNTRY_INFO!A103) -> Chad | B103: =IF(COUNTRY_INFO!B103=0," ",COUNTRY_INFO!B103) -> Moyen Chari | C103: =IF(COUNTRY_INFO!C103=0," ",COUNTRY_INFO!C103) -> Maro | D103: =IF(COUNTRY_INFO!$U$9:$U$1000="MDA4 (ALB/2*ALB)", COUNTRY_INFO!$U$9:$U$1000, " ") ->  | I103: 0 | M103: 0 | Q103: 0 | R103: 0 | S103: 0 | T103: 0 | U103: 0
A104: =IF(COUNTRY_INFO!A104=0," ",COUNTRY_INFO!A104) -> Chad | B104: =IF(COUNTRY_INFO!B104=0," ",COUNTRY_INFO!B104) -> Moyen Chari | C104: =IF(COUNTRY_INFO!C104=0," ",COUNTRY_INFO!C104) -> Sarh | D104: =IF(COUNTRY_INFO!$U$9:$U$1000="MDA4 (ALB/2*ALB)", COUNTRY_INFO!$U$9:$U$1000, " ") ->  | I104: 0 | M104: 0 | Q104: 0 | R104: 0 | S104: 0 | T104: 0 | U104: 0
A105: =IF(COUNTRY_INFO!A105=0," ",COUNTRY_INFO!A105) -> Chad | B105: =IF(COUNTRY_INFO!B105=0," ",COUNTRY_INFO!B105) -> N'Djaména | C105: =IF(COUNTRY_INFO!C105=0," ",COUNTRY_INFO!C105) -> N'Djaména Centre | D105: =IF(COUNTRY_INFO!$U$9:$U$1000="MDA4 (ALB/2*ALB)", COUNTRY_INFO!$U$9:$U$1000, " ") ->  | I105: 0 | M105: 0 | Q105: 0 | R105: =MAX(J105,N105) -> 0 | S105: =MAX(K105,O105) -> 0 | T105: =MAX(L105,P105) -> 0 | U105: =SUM(R105:T105) -> 0 | V105: =IF(F105<>0, IF(R105/F105*100=0, "-",R105/F105*100), " ") ->  | W105: =IF(G105<>0, IF(S105/G105*100=0, "-", S105/G105*100), " ") ->  | X105: =IF(H105<>0, IF(T105/H105*100=0, "-", T105/H105*100), " ") ->  | Y105: =IF(I105<>0, IF(U105/I105*100=0, "-", U105/I105*100), " ") -> 
A106: =IF(COUNTRY_INFO!A106=0," ",COUNTRY_INFO!A106) -> Chad | B106: =IF(COUNTRY_INFO!B106=0," ",COUNTRY_INFO!B106) -> N'Djaména | C106: =IF(COUNTRY_INFO!C106=0," ",COUNTRY_INFO!C106) -> N'Djaména Est | D106: =IF(COUNTRY_INFO!$U$9:$U$1000="MDA4 (ALB/2*ALB)", COUNTRY_INFO!$U$9:$U$1000, " ") ->  | I106: 0 | M106: 0 | Q106: 0 | R106: 0 | S106: 0 | T106: 0 | U106: 0
A107: =IF(COUNTRY_INFO!A107=0," ",COUNTRY_INFO!A107) -> Chad | B107: =IF(COUNTRY_INFO!B107=0," ",COUNTRY_INFO!B107) -> N'Djaména | C107: =IF(COUNTRY_INFO!C107=0," ",COUNTRY_INFO!C107) -> N'Djaména Nord | D107: =IF(COUNTRY_INFO!$U$9:$U$1000="MDA4 (ALB/2*ALB)", COUNTRY_INFO!$U$9:$U$1000, " ") ->  | I107: 0 | M107: 0 | Q107: 0 | R107: 0 | S107: 0 | T107: 0 | U107: 0
A108: =IF(COUNTRY_INFO!A108=0," ",COUNTRY_INFO!A108) -> Chad | B108: =IF(COUNTRY_INFO!B108=0," ",COUNTRY_INFO!B108) -> N'Djaména | C108: =IF(COUNTRY_INFO!C108=0," ",COUNTRY_INFO!C108) -> N'Djaména Sud | D108: =IF(COUNTRY_INFO!$U$9:$U$1000="MDA4 (ALB/2*ALB)", COUNTRY_INFO!$U$9:$U$1000, " ") ->  | I108: 0 | M108: 0 | Q108: 0 | R108: 0 | S108: 0 | T108: 0 | U108: 0
A109: =IF(COUNTRY_INFO!A109=0," ",COUNTRY_INFO!A109) -> Chad | B109: =IF(COUNTRY_INFO!B109=0," ",COUNTRY_INFO!B109) -> N'Djamena | C109: =IF(COUNTRY_INFO!C109=0," ",COUNTRY_INFO!C109) -> 9eme Arrondissement | D109: =IF(COUNTRY_INFO!$U$9:$U$1000="MDA4 (ALB/2*ALB)", COUNTRY_INFO!$U$9:$U$1000, " ") ->  | I109: 0 | M109: 0 | Q109: 0 | R109: 0 | S109: 0 | T109: 0 | U109: 0
A110: =IF(COUNTRY_INFO!A110=0," ",COUNTRY_INFO!A110) -> Chad | B110: =IF(COUNTRY_INFO!B110=0," ",COUNTRY_INFO!B110) -> Ouaddai | C110: =IF(COUNTRY_INFO!C110=0," ",COUNTRY_INFO!C110) -> Abdi | D110: =IF(COUNTRY_INFO!$U$9:$U$1000="MDA4 (ALB/2*ALB)", COUNTRY_INFO!$U$9:$U$1000, " ") ->  | I110: 0 | M110: 0 | Q110: 0 | R110: 0 | S110: 0 | T110: 0 | U110: 0
A111: =IF(COUNTRY_INFO!A111=0," ",COUNTRY_INFO!A111) -> Chad | B111: =IF(COUNTRY_INFO!B111=0," ",COUNTRY_INFO!B111) -> Ouaddai | C111: =IF(COUNTRY_INFO!C111=0," ",COUNTRY_INFO!C111) -> Abeche | D111: =IF(COUNTRY_INFO!$U$9:$U$1000="MDA4 (ALB/2*ALB)", COUNTRY_INFO!$U$9:$U$1000, " ") ->  | I111: 0 | M111: 0 | Q111: 0 | R111: 0 | S111: 0 | T111: 0 | U111: 0
A112: =IF(COUNTRY_INFO!A112=0," ",COUNTRY_INFO!A112) -> Chad | B112: =IF(COUNTRY_INFO!B112=0," ",COUNTRY_INFO!B112) -> Ouaddai | C112: =IF(COUNTRY_INFO!C112=0," ",COUNTRY_INFO!C112) -> Abougoudam | D112: =IF(COUNTRY_INFO!$U$9:$U$1000="MDA4 (ALB/2*ALB)", COUNTRY_INFO!$U$9:$U$1000, " ") ->  | I112: 0 | M112: 0 | Q112: 0 | R112: 0 | S112: 0 | T112: 0 | U112: 0
A113: =IF(COUNTRY_INFO!A113=0," ",COUNTRY_INFO!A113) -> Chad | B113: =IF(COUNTRY_INFO!B113=0," ",COUNTRY_INFO!B113) -> Ouaddai | C113: =IF(COUNTRY_INFO!C113=0," ",COUNTRY_INFO!C113) -> Adré | D113: =IF(COUNTRY_INFO!$U$9:$U$1000="MDA4 (ALB/2*ALB)", COUNTRY_INFO!$U$9:$U$1000, " ") ->  | I113: 0 | M113: 0 | Q113: 0 | R113: 0 | S113: 0 | T113: 0 | U113: 0
A114: =IF(COUNTRY_INFO!A114=0," ",COUNTRY_INFO!A114) -> Chad | B114: =IF(COUNTRY_INFO!B114=0," ",COUNTRY_INFO!B114) -> Salamat | C114: =IF(COUNTRY_INFO!C114=0," ",COUNTRY_INFO!C114) -> Aboudeia | D114: =IF(COUNTRY_INFO!$U$9:$U$1000="MDA4 (ALB/2*ALB)", COUNTRY_INFO!$U$9:$U$1000, " ") ->  | I114: 0 | M114: 0 | Q114: 0 | R114: 0 | S114: 0 | T114: 0 | U114: 0
A115: =IF(COUNTRY_INFO!A115=0," ",COUNTRY_INFO!A115) -> Chad | B115: =IF(COUNTRY_INFO!B115=0," ",COUNTRY_INFO!B115) -> Salamat | C115: =IF(COUNTRY_INFO!C115=0," ",COUNTRY_INFO!C115) -> Am-Timan | D115: =IF(COUNTRY_INFO!$U$9:$U$1000="MDA4 (ALB/2*ALB)", COUNTRY_INFO!$U$9:$U$1000, " ") ->  | I115: 0 | M115: 0 | Q115: 0 | R115: 0 | S115: 0 | T115: 0 | U115: 0
A116: =IF(COUNTRY_INFO!A116=0," ",COUNTRY_INFO!A116) -> Chad | B116: =IF(COUNTRY_INFO!B116=0," ",COUNTRY_INFO!B116) -> Salamat | C116: =IF(COUNTRY_INFO!C116=0," ",COUNTRY_INFO!C116) -> Haraze | D116: =IF(COUNTRY_INFO!$U$9:$U$1000="MDA4 (ALB/2*ALB)", COUNTRY_INFO!$U$9:$U$1000, " ") ->  | I116: 0 | M116: 0 | Q116: 0 | R116: 0 | S116: 0 | T116: 0 | U116: 0
A117: =IF(COUNTRY_INFO!A117=0," ",COUNTRY_INFO!A117) -> Chad | B117: =IF(COUNTRY_INFO!B117=0," ",COUNTRY_INFO!B117) -> Sila | C117: =IF(COUNTRY_INFO!C117=0," ",COUNTRY_INFO!C117) -> Am-dam | D117: =IF(COUNTRY_INFO!$U$9:$U$1000="MDA4 (ALB/2*ALB)", COUNTRY_INFO!$U$9:$U$1000, " ") ->  | I117: 0 | M117: 0 | Q117: 0 | R117: 0 | S117: 0 | T117: 0 | U117: 0
A118: =IF(COUNTRY_INFO!A118=0," ",COUNTRY_INFO!A118) -> Chad | B118: =IF(COUNTRY_INFO!B118=0," ",COUNTRY_INFO!B118) -> Sila | C118: =IF(COUNTRY_INFO!C118=0," ",COUNTRY_INFO!C118) -> Goz-beida | D118: =IF(COUNTRY_INFO!$U$9:$U$1000="MDA4 (ALB/2*ALB)", COUNTRY_INFO!$U$9:$U$1000, " ") ->  | I118: 0 | M118: 0 | Q118: 0 | R118: 0 | S118: 0 | T118: 0 | U118: 0
A119: =IF(COUNTRY_INFO!A119=0," ",COUNTRY_INFO!A119) -> Chad | B119: =IF(COUNTRY_INFO!B119=0," ",COUNTRY_INFO!B119) -> Sila | C119: =IF(COUNTRY_INFO!C119=0," ",COUNTRY_INFO!C119) -> Koukou | D119: =IF(COUNTRY_INFO!$U$9:$U$1000="MDA4 (ALB/2*ALB)", COUNTRY_INFO!$U$9:$U$1000, " ") ->  | I119: 0 | M119: 0 | Q119: 0 | R119: 0 | S119: 0 | T119: 0 | U119: 0
A120: =IF(COUNTRY_INFO!A120=0," ",COUNTRY_INFO!A120) -> Chad | B120: =IF(COUNTRY_INFO!B120=0," ",COUNTRY_INFO!B120) -> Sila | C120: =IF(COUNTRY_INFO!C120=0," ",COUNTRY_INFO!C120) -> Tissi | D120: =IF(COUNTRY_INFO!$U$9:$U$1000="MDA4 (ALB/2*ALB)", COUNTRY_INFO!$U$9:$U$1000, " ") ->  | I120: 0 | M120: 0 | Q120: 0 | R120: 0 | S120: 0 | T120: 0 | U120: 0
A121: =IF(COUNTRY_INFO!A121=0," ",COUNTRY_INFO!A121) -> Chad | B121: =IF(COUNTRY_INFO!B121=0," ",COUNTRY_INFO!B121) -> Tandjile | C121: =IF(COUNTRY_INFO!C121=0," ",COUNTRY_INFO!C121) -> Batchoro | D121: =IF(COUNTRY_INFO!$U$9:$U$1000="MDA4 (ALB/2*ALB)", COUNTRY_INFO!$U$9:$U$1000, " ") ->  | I121: 0 | M121: 0 | Q121: 0 | R121: 0 | S121: 0 | T121: 0 | U121: 0
A122: =IF(COUNTRY_INFO!A122=0," ",COUNTRY_INFO!A122) -> Chad | B122: =IF(COUNTRY_INFO!B122=0," ",COUNTRY_INFO!B122) -> Tandjile | C122: =IF(COUNTRY_INFO!C122=0," ",COUNTRY_INFO!C122) -> Bere | D122: =IF(COUNTRY_INFO!$U$9:$U$1000="MDA4 (ALB/2*ALB)", COUNTRY_INFO!$U$9:$U$1000, " ") ->  | I122: 0 | M122: 0 | Q122: 0 | R122: 0 | S122: 0 | T122: 0 | U122: 0
A123: =IF(COUNTRY_INFO!A123=0," ",COUNTRY_INFO!A123) -> Chad | B123: =IF(COUNTRY_INFO!B123=0," ",COUNTRY_INFO!B123) -> Tandjile | C123: =IF(COUNTRY_INFO!C123=0," ",COUNTRY_INFO!C123) -> Bologo | D123: =IF(COUNTRY_INFO!$U$9:$U$1000="MDA4 (ALB/2*ALB)", COUNTRY_INFO!$U$9:$U$1000, " ") ->  | I123: 0 | M123: 0 | Q123: 0 | R123: 0 | S123: 0 | T123: 0 | U123: 0
A124: =IF(COUNTRY_INFO!A124=0," ",COUNTRY_INFO!A124) -> Chad | B124: =IF(COUNTRY_INFO!B124=0," ",COUNTRY_INFO!B124) -> Tandjile | C124: =IF(COUNTRY_INFO!C124=0," ",COUNTRY_INFO!C124) -> Dafra | D124: =IF(COUNTRY_INFO!$U$9:$U$1000="MDA4 (ALB/2*ALB)", COUNTRY_INFO!$U$9:$U$1000, " ") ->  | I124: 0 | M124: 0 | Q124: 0 | R124: 0 | S124: 0 | T124: 0 | U124: 0
A125: =IF(COUNTRY_INFO!A125=0," ",COUNTRY_INFO!A125) -> Chad | B125: =IF(COUNTRY_INFO!B125=0," ",COUNTRY_INFO!B125) -> Tandjile | C125: =IF(COUNTRY_INFO!C125=0," ",COUNTRY_INFO!C125) -> Deressia | D125: =IF(COUNTRY_INFO!$U$9:$U$1000="MDA4 (ALB/2*ALB)", COUNTRY_INFO!$U$9:$U$1000, " ") ->  | I125: 0 | M125: 0 | Q125: 0 | R125: 0 | S125: 0 | T125: 0 | U125: 0
A126: =IF(COUNTRY_INFO!A126=0," ",COUNTRY_INFO!A126) -> Chad | B126: =IF(COUNTRY_INFO!B126=0," ",COUNTRY_INFO!B126) -> Tandjile | C126: =IF(COUNTRY_INFO!C126=0," ",COUNTRY_INFO!C126) -> Donamanga | D126: =IF(COUNTRY_INFO!$U$9:$U$1000="MDA4 (ALB/2*ALB)", COUNTRY_INFO!$U$9:$U$1000, " ") ->  | I126: 0 | M126: 0 | Q126: 0 | R126: 0 | S126: 0 | T126: 0 | U126: 0
A127: =IF(COUNTRY_INFO!A127=0," ",COUNTRY_INFO!A127) -> Chad | B127: =IF(COUNTRY_INFO!B127=0," ",COUNTRY_INFO!B127) -> Tandjile | C127: =IF(COUNTRY_INFO!C127=0," ",COUNTRY_INFO!C127) -> Guidari | D127: =IF(COUNTRY_INFO!$U$9:$U$1000="MDA4 (ALB/2*ALB)", COUNTRY_INFO!$U$9:$U$1000, " ") ->  | I127: 0 | M127: 0 | Q127: 0 | R127: 0 | S127: 0 | T127: 0 | U127: 0
A128: =IF(COUNTRY_INFO!A128=0," ",COUNTRY_INFO!A128) -> Chad | B128: =IF(COUNTRY_INFO!B128=0," ",COUNTRY_INFO!B128) -> Tandjile | C128: =IF(COUNTRY_INFO!C128=0," ",COUNTRY_INFO!C128) -> Kelo | D128: =IF(COUNTRY_INFO!$U$9:$U$1000="MDA4 (ALB/2*ALB)", COUNTRY_INFO!$U$9:$U$1000, " ") ->  | I128: 0 | M128: 0 | Q128: 0 | R128: 0 | S128: 0 | T128: 0 | U128: 0
A129: =IF(COUNTRY_INFO!A129=0," ",COUNTRY_INFO!A129) -> Chad | B129: =IF(COUNTRY_INFO!B129=0," ",COUNTRY_INFO!B129) -> Tandjile | C129: =IF(COUNTRY_INFO!C129=0," ",COUNTRY_INFO!C129) -> Kolon | D129: =IF(COUNTRY_INFO!$U$9:$U$1000="MDA4 (ALB/2*ALB)", COUNTRY_INFO!$U$9:$U$1000, " ") ->  | I129: 0 | M129: 0 | Q129: 0 | R129: 0 | S129: 0 | T129: 0 | U129: 0
A130: =IF(COUNTRY_INFO!A130=0," ",COUNTRY_INFO!A130) -> Chad | B130: =IF(COUNTRY_INFO!B130=0," ",COUNTRY_INFO!B130) -> Tandjile | C130: =IF(COUNTRY_INFO!C130=0," ",COUNTRY_INFO!C130) -> Lai | D130: =IF(COUNTRY_INFO!$U$9:$U$1000="MDA4 (ALB/2*ALB)", COUNTRY_INFO!$U$9:$U$1000, " ") ->  | I130: 0 | M130: 0 | Q130: 0 | R130: 0 | S130: 0 | T130: 0 | U130: 0
A131: =IF(COUNTRY_INFO!A131=0," ",COUNTRY_INFO!A131) -> Chad | B131: =IF(COUNTRY_INFO!B131=0," ",COUNTRY_INFO!B131) -> Tibesti | C131: =IF(COUNTRY_INFO!C131=0," ",COUNTRY_INFO!C131) -> Bardaï | D131: =IF(COUNTRY_INFO!$U$9:$U$1000="MDA4 (ALB/2*ALB)", COUNTRY_INFO!$U$9:$U$1000, " ") ->  | I131: 0 | M131: 0 | Q131: 0 | R131: 0 | S131: 0 | T131: 0 | U131: 0
A132: =IF(COUNTRY_INFO!A132=0," ",COUNTRY_INFO!A132) -> Chad | B132: =IF(COUNTRY_INFO!B132=0," ",COUNTRY_INFO!B132) -> Tibesti | C132: =IF(COUNTRY_INFO!C132=0," ",COUNTRY_INFO!C132) -> Zouar | D132: =IF(COUNTRY_INFO!$U$9:$U$1000="MDA4 (ALB/2*ALB)", COUNTRY_INFO!$U$9:$U$1000, " ") ->  | I132: 0 | M132: 0 | Q132: 0 | R132: 0 | S132: 0 | T132: 0 | U132: 0
A133: =IF(COUNTRY_INFO!A133=0," ",COUNTRY_INFO!A133) -> Chad | B133: =IF(COUNTRY_INFO!B133=0," ",COUNTRY_INFO!B133) -> Wadi Fira | C133: =IF(COUNTRY_INFO!C133=0," ",COUNTRY_INFO!C133) -> amzoer | D133: =IF(COUNTRY_INFO!$U$9:$U$1000="MDA4 (ALB/2*ALB)", COUNTRY_INFO!$U$9:$U$1000, " ") ->  | I133: 0 | M133: 0 | Q133: 0 | R133: 0 | S133: 0 | T133: 0 | U133: 0
A134: =IF(COUNTRY_INFO!A134=0," ",COUNTRY_INFO!A134) -> Chad | B134: =IF(COUNTRY_INFO!B134=0," ",COUNTRY_INFO!B134) -> Wadi Fira | C134: =IF(COUNTRY_INFO!C134=0," ",COUNTRY_INFO!C134) -> Arada | D134: =IF(COUNTRY_INFO!$U$9:$U$1000="MDA4 (ALB/2*ALB)", COUNTRY_INFO!$U$9:$U$1000, " ") ->  | I134: 0 | M134: 0 | Q134: 0 | R134: 0 | S134: 0 | T134: 0 | U134: 0
A135: =IF(COUNTRY_INFO!A135=0," ",COUNTRY_INFO!A135) -> Chad | B135: =IF(COUNTRY_INFO!B135=0," ",COUNTRY_INFO!B135) -> Wadi Fira | C135: =IF(COUNTRY_INFO!C135=0," ",COUNTRY_INFO!C135) -> Biltine | D135: =IF(COUNTRY_INFO!$U$9:$U$1000="MDA4 (ALB/2*ALB)", COUNTRY_INFO!$U$9:$U$1000, " ") ->  | I135: 0 | M135: 0 | Q135: 0 | R135: 0 | S135: 0 | T135: 0 | U135: 0
A136: =IF(COUNTRY_INFO!A136=0," ",COUNTRY_INFO!A136) -> Chad | B136: =IF(COUNTRY_INFO!B136=0," ",COUNTRY_INFO!B136) -> Wadi Fira | C136: =IF(COUNTRY_INFO!C136=0," ",COUNTRY_INFO!C136) -> Guéréda | D136: =IF(COUNTRY_INFO!$U$9:$U$1000="MDA4 (ALB/2*ALB)", COUNTRY_INFO!$U$9:$U$1000, " ") ->  | I136: 0 | M136: 0 | Q136: 0 | R136: 0 | S136: 0 | T136: 0 | U136: 0
A137: =IF(COUNTRY_INFO!A137=0," ",COUNTRY_INFO!A137) -> Chad | B137: =IF(COUNTRY_INFO!B137=0," ",COUNTRY_INFO!B137) -> Wadi Fira | C137: =IF(COUNTRY_INFO!C137=0," ",COUNTRY_INFO!C137) -> Iriba | D137: =IF(COUNTRY_INFO!$U$9:$U$1000="MDA4 (ALB/2*ALB)", COUNTRY_INFO!$U$9:$U$1000, " ") ->  | I137: 0 | M137: 0 | Q137: 0 | R137: 0 | S137: 0 | T137: 0 | U137: =SUM(R137:T137) -> 0
A138: =IF(COUNTRY_INFO!A138=0," ",COUNTRY_INFO!A138) -> Chad | B138: =IF(COUNTRY_INFO!B138=0," ",COUNTRY_INFO!B138) -> Wadi Fira | C138: =IF(COUNTRY_INFO!C138=0," ",COUNTRY_INFO!C138) -> Matadjana | D138: =IF(COUNTRY_INFO!$U$9:$U$1000="MDA4 (ALB/2*ALB)", COUNTRY_INFO!$U$9:$U$1000, " ") ->  | I138: =SUM(F138:H138) -> 0 | M138: =SUM(J138:L138) -> 0 | Q138: =SUM(N138:P138) -> 0 | R138: 0 | S138: 0 | T138: 0 | U138: 0

Sheet MDA3
A1: MDA 3 - Ivermectine (IVM)
A2: Structure administrative, population nécessitant une chimioprévention par groupe d'âge, population traitée par groupe d'âge et couverture
A4: TOTAL | F4: =SUM(F$9:F$1000) -> 573351 | G4: 963596 | H4: 1536947 | I4: 523105 | J4: 920212 | K4: 1443317 | L4: 0 | M4: 0 | N4: 0 | O4: 523105 | P4: 920212 | Q4: 1443317 | R4: =IF(F4<>0, IF(O4/F4*100=0, "-", O4/F4*100), " ") -> 91.23643283 | S4: =IF(G4<>0, IF(P4/G4*100=0, "-", P4/G4*100), " ") -> 95.49769821 | T4: =IF(H4<>0, IF(Q4/H4*100=0, "-", Q4/H4*100), " ") -> 93.90805278
A6: Structure administrative du pays | D6: Mise en oeuvre de la CP | E6: Date | F6: Population ciblée pour MDA 3 | I6: Population traitée - tournée 1 | L6: Population traitée - tournée 2 | O6: Population traitée | R6: Couverture du Programme (%)
A7: Pays | B7: Région/Département | C7: District | F7: EAS | G7: Adultes | H7: Total | I7: EAS | J7: Adultes | K7: Total | L7: EAS | M7: Adultes | N7: Total | O7: EAS | P7: Adultes | Q7: Total | R7: EAS | S7: Adultes | T7: Total | U7: x | V7: x | W7: x | X7: x | Y7: x | Z7: x
A9: =IF(COUNTRY_INFO!A9=0," ",COUNTRY_INFO!A9) -> Chad | B9: =IF(COUNTRY_INFO!B9=0," ",COUNTRY_INFO!B9) -> Bahr El Gazel | C9: =IF(COUNTRY_INFO!C9=0," ",COUNTRY_INFO!C9) -> Chadra | D9: =IF(COUNTRY_INFO!$U$9:$U$1000="MDA3 (IVM)", COUNTRY_INFO!$U$9:$U$1000, " ") ->  | E9: 0 | F9: 0 | G9: 0 | H9: =SUM(F9:G9) -> 0 | I9: 0 | J9: 0 | K9: =SUM(I9:J9) -> 0 | N9: =SUM(L9:M9) -> 0 | O9: =MAX(I9,L9) -> 0 | P9: 0 | Q9: =SUM(O9:P9) -> 0 | R9: =IF(F9<>0, IF(MAX(I9,L9)/F9*100=0, "-", MAX(I9,L9)/F9*100), " ") ->  | T9: =IF(H9<>0, IF((MAX(I9,L9)+MAX(J9,M9))/H9*100=0, "-",(MAX(I9,L9)+MAX(J9,M9))/H9*100), " ") ->  | U9: =COUNTRY_INFO!Y9 -> 10660 | AD9: 0 | AE9: 0
A10: =IF(COUNTRY_INFO!A10=0," ",COUNTRY_INFO!A10) -> Chad | B10: =IF(COUNTRY_INFO!B10=0," ",COUNTRY_INFO!B10) -> Bahr El Gazel | C10: =IF(COUNTRY_INFO!C10=0," ",COUNTRY_INFO!C10) -> Michemire | D10: =IF(COUNTRY_INFO!$U$9:$U$1000="MDA3 (IVM)", COUNTRY_INFO!$U$9:$U$1000, " ") ->  | E10: 0 | F10: 0 | G10: 0 | H10: =SUM(F10:G10) -> 0 | I10: 0 | J10: 0 | K10: =SUM(I10:J10) -> 0 | N10: =SUM(L10:M10) -> 0 | O10: =MAX(I10,L10) -> 0 | P10: =MAX(J10,M10) -> 0 | Q10: =SUM(O10:P10) -> 0 | R10: =IF(F10<>0, IF(MAX(I10,L10)/F10*100=0, "-", MAX(I10,L10)/F10*100), " ") ->  | S10: =IF(G10<>0, IF(MAX(J10,M10)/G10*100=0, "-", MAX(J10,M10)/G10*100), " ") ->  | T10: =IF(H10<>0, IF((MAX(I10,L10)+MAX(J10,M10))/H10*100=0, "-",(MAX(I10,L10)+MAX(J10,M10))/H10*100), " ") ->  | U10: =COUNTRY_INFO!Y10 -> 10670 | AD10: 0 | AE10: 0
A11: =IF(COUNTRY_INFO!A11=0," ",COUNTRY_INFO!A11) -> Chad | B11: =IF(COUNTRY_INFO!B11=0," ",COUNTRY_INFO!B11) -> Bahr El Gazel | C11: =IF(COUNTRY_INFO!C11=0," ",COUNTRY_INFO!C11) -> Moussoro | D11: =IF(COUNTRY_INFO!$U$9:$U$1000="MDA3 (IVM)", COUNTRY_INFO!$U$9:$U$1000, " ") ->  | E11: 0 | F11: 0 | G11: 0 | H11: 0 | I11: 0 | J11: 0 | K11: 0 | N11: 0 | O11: 0 | P11: 0 | Q11: 0 | U11: =COUNTRY_INFO!Y11 -> 10661 | AD11: 0 | AE11: 0
A12: =IF(COUNTRY_INFO!A12=0," ",COUNTRY_INFO!A12) -> Chad | B12: =IF(COUNTRY_INFO!B12=0," ",COUNTRY_INFO!B12) -> Bahr El Gazel | C12: =IF(COUNTRY_INFO!C12=0," ",COUNTRY_INFO!C12) -> Salal | D12: =IF(COUNTRY_INFO!$U$9:$U$1000="MDA3 (IVM)", COUNTRY_INFO!$U$9:$U$1000, " ") ->  | E12: 0 | F12: 0 | G12: 0 | H12: 0 | I12: 0 | J12: 0 | K12: 0 | N12: 0 | O12: 0 | P12: 0 | Q12: 0 | U12: =COUNTRY_INFO!Y12 -> 10711 | AD12: 0 | AE12: 0
A13: =IF(COUNTRY_INFO!A13=0," ",COUNTRY_INFO!A13) -> Chad | B13: =IF(COUNTRY_INFO!B13=0," ",COUNTRY_INFO!B13) -> Batha | C13: =IF(COUNTRY_INFO!C13=0," ",COUNTRY_INFO!C13) -> Alifa | D13: =IF(COUNTRY_INFO!$U$9:$U$1000="MDA3 (IVM)", COUNTRY_INFO!$U$9:$U$1000, " ") ->  | E13: 0 | F13: 0 | G13: 0 | H13: 0 | I13: 0 | J13: 0 | K13: 0 | N13: 0 | O13: 0 | P13: 0 | Q13: 0 | U13: =COUNTRY_INFO!Y13 -> 10739 | AD13: 0 | AE13: 0
A14: =IF(COUNTRY_INFO!A14=0," ",COUNTRY_INFO!A14) -> Chad | B14: =IF(COUNTRY_INFO!B14=0," ",COUNTRY_INFO!B14) -> Batha | C14: =IF(COUNTRY_INFO!C14=0," ",COUNTRY_INFO!C14) -> Assinet | D14: =IF(COUNTRY_INFO!$U$9:$U$1000="MDA3 (IVM)", COUNTRY_INFO!$U$9:$U$1000, " ") ->  | E14: 0 | F14: 0 | G14: 0 | H14: 0 | I14: 0 | J14: 0 | K14: 0 | N14: 0 | O14: 0 | P14: 0 | Q14: 0 | U14: =COUNTRY_INFO!Y14 -> 10745 | AD14: 0 | AE14: 0
A15: =IF(COUNTRY_INFO!A15=0," ",COUNTRY_INFO!A15) -> Chad | B15: =IF(COUNTRY_INFO!B15=0," ",COUNTRY_INFO!B15) -> Batha | C15: =IF(COUNTRY_INFO!C15=0," ",COUNTRY_INFO!C15) -> Ati | D15: =IF(COUNTRY_INFO!$U$9:$U$1000="MDA3 (IVM)", COUNTRY_INFO!$U$9:$U$1000, " ") ->  | E15: 0 | F15: 0 | G15: 0 | H15: 0 | I15: 0 | J15: 0 | K15: 0 | N15: 0 | O15: 0 | P15: 0 | Q15: 0 | U15: =COUNTRY_INFO!Y15 -> 10662 | AD15: 0 | AE15: 0
A16: =IF(COUNTRY_INFO!A16=0," ",COUNTRY_INFO!A16) -> Chad | B16: =IF(COUNTRY_INFO!B16=0," ",COUNTRY_INFO!B16) -> Batha | C16: =IF(COUNTRY_INFO!C16=0," ",COUNTRY_INFO!C16) -> Djedda | D16: =IF(COUNTRY_INFO!$U$9:$U$1000="MDA3 (IVM)", COUNTRY_INFO!$U$9:$U$1000, " ") ->  | E16: 0 | F16: 0 | G16: 0 | H16: 0 | I16: 0 | J16: 0 | K16: 0 | N16: 0 | O16: 0 | P16: 0 | Q16: 0 | U16: =COUNTRY_INFO!Y16 -> 10761 | AD16: 0 | AE16: 0
A17: =IF(COUNTRY_INFO!A17=0," ",COUNTRY_INFO!A17) -> Chad | B17: =IF(COUNTRY_INFO!B17=0," ",COUNTRY_INFO!B17) -> Batha | C17: =IF(COUNTRY_INFO!C17=0," ",COUNTRY_INFO!C17) -> Koundjourou | D17: =IF(COUNTRY_INFO!$U$9:$U$1000="MDA3 (IVM)", COUNTRY_INFO!$U$9:$U$1000, " ") ->  | E17: 0 | F17: 0 | G17: 0 | H17: 0 | I17: 0 | J17: 0 | K17: 0 | N17: 0 | O17: 0 | P17: 0 | Q17: 0 | U17: =COUNTRY_INFO!Y17 -> 10762 | AD17: 0 | AE17: 0
A18: =IF(COUNTRY_INFO!A18=0," ",COUNTRY_INFO!A18) -> Chad | B18: =IF(COUNTRY_INFO!B18=0," ",COUNTRY_INFO!B18) -> Batha | C18: =IF(COUNTRY_INFO!C18=0," ",COUNTRY_INFO!C18) -> Oum-Hadjer | D18: =IF(COUNTRY_INFO!$U$9:$U$1000="MDA3 (IVM)", COUNTRY_INFO!$U$9:$U$1000, " ") ->  | E18: 0 | F18: 0 | G18: 0 | H18: 0 | I18: 0 | J18: 0 | K18: 0 | N18: 0 | O18: 0 | P18: 0 | Q18: 0 | U18: =COUNTRY_INFO!Y18 -> 10663 | AD18: 0 | AE18: 0
A19: =IF(COUNTRY_INFO!A19=0," ",COUNTRY_INFO!A19) -> Chad | B19: =IF(COUNTRY_INFO!B19=0," ",COUNTRY_INFO!B19) -> Batha | C19: =IF(COUNTRY_INFO!C19=0," ",COUNTRY_INFO!C19) -> Yao | D19: =IF(COUNTRY_INFO!$U$9:$U$1000="MDA3 (IVM)", COUNTRY_INFO!$U$9:$U$1000, " ") ->  | E19: 0 | F19: 0 | G19: 0 | H19: 0 | I19: 0 | J19: 0 | K19: 0 | N19: 0 | O19: 0 | P19: 0 | Q19: 0 | U19: =COUNTRY_INFO!Y19 -> 10664 | AD19: 0 | AE19: 0
A20: =IF(COUNTRY_INFO!A20=0," ",COUNTRY_INFO!A20) -> Chad | B20: =IF(COUNTRY_INFO!B20=0," ",COUNTRY_INFO!B20) -> Borkou | C20: =IF(COUNTRY_INFO!C20=0," ",COUNTRY_INFO!C20) -> Faya | D20: =IF(COUNTRY_INFO!$U$9:$U$1000="MDA3 (IVM)", COUNTRY_INFO!$U$9:$U$1000, " ") ->  | E20: 0 | F20: 0 | G20: 0 | H20: 0 | I20: 0 | J20: 0 | K20: 0 | N20: 0 | O20: 0 | P20: 0 | Q20: 0 | U20: =COUNTRY_INFO!Y20 -> 10666 | AD20: 0 | AE20: 0
A21: =IF(COUNTRY_INFO!A21=0," ",COUNTRY_INFO!A21) -> Chad | B21: =IF(COUNTRY_INFO!B21=0," ",COUNTRY_INFO!B21) -> Borkou | C21: =IF(COUNTRY_INFO!C21=0," ",COUNTRY_INFO!C21) -> Kirdimi | D21: =IF(COUNTRY_INFO!$U$9:$U$1000="MDA3 (IVM)", COUNTRY_INFO!$U$9:$U$1000, " ") ->  | E21: 0 | F21: 0 | G21: 0 | H21: 0 | I21: 0 | J21: 0 | K21: 0 | N21: 0 | O21: 0 | P21: 0 | Q21: 0 | U21: =COUNTRY_INFO!Y21 -> 10746 | AD21: 0 | AE21: 0
A22: =IF(COUNTRY_INFO!A22=0," ",COUNTRY_INFO!A22) -> Chad | B22: =IF(COUNTRY_INFO!B22=0," ",COUNTRY_INFO!B22) -> Borkou | C22: =IF(COUNTRY_INFO!C22=0," ",COUNTRY_INFO!C22) -> Kouba Olanga | D22: =IF(COUNTRY_INFO!$U$9:$U$1000="MDA3 (IVM)", COUNTRY_INFO!$U$9:$U$1000, " ") ->  | H22: 0 | K22: 0 | N22: 0 | O22: 0 | P22: 0 | Q22: 0 | U22: =COUNTRY_INFO!Y22 -> 10783
A23: =IF(COUNTRY_INFO!A23=0," ",COUNTRY_INFO!A23) -> Chad | B23: =IF(COUNTRY_INFO!B23=0," ",COUNTRY_INFO!B23) -> Chari Baguirmi | C23: =IF(COUNTRY_INFO!C23=0," ",COUNTRY_INFO!C23) -> Ba-Illi | D23: =IF(COUNTRY_INFO!$U$9:$U$1000="MDA3 (IVM)", COUNTRY_INFO!$U$9:$U$1000, " ") ->  | E23: 0 | F23: 0 | G23: 0 | H23: 0 | I23: 0 | J23: 0 | K23: 0 | N23: 0 | O23: 0 | P23: 0 | Q23: 0 | U23: =COUNTRY_INFO!Y23 -> 10667 | AD23: 0 | AE23: 0
A24: =IF(COUNTRY_INFO!A24=0," ",COUNTRY_INFO!A24) -> Chad | B24: =IF(COUNTRY_INFO!B24=0," ",COUNTRY_INFO!B24) -> Chari Baguirmi | C24: =IF(COUNTRY_INFO!C24=0," ",COUNTRY_INFO!C24) -> Bousso | D24: =IF(COUNTRY_INFO!$U$9:$U$1000="MDA3 (IVM)", COUNTRY_INFO!$U$9:$U$1000, " ") ->  | E24: 0 | F24: 0 | G24: 0 | H24: 0 | I24: 0 | J24: 0 | K24: 0 | N24: 0 | O24: 0 | P24: 0 | Q24: 0 | U24: =COUNTRY_INFO!Y24 -> 10668 | AD24: 0 | AE24: 0
A25: =IF(COUNTRY_INFO!A25=0," ",COUNTRY_INFO!A25) -> Chad | B25: =IF(COUNTRY_INFO!B25=0," ",COUNTRY_INFO!B25) -> Chari Baguirmi | C25: =IF(COUNTRY_INFO!C25=0," ",COUNTRY_INFO!C25) -> Dourbali | D25: =IF(COUNTRY_INFO!$U$9:$U$1000="MDA3 (IVM)", COUNTRY_INFO!$U$9:$U$1000, " ") ->  | E25: 0 | F25: 0 | G25: 0 | H25: 0 | I25: 0 | J25: 0 | K25: 0 | N25: 0 | O25: 0 | P25: 0 | Q25: 0 | U25: =COUNTRY_INFO!Y25 -> 10669 | AD25: 0 | AE25: 0
A26: =IF(COUNTRY_INFO!A26=0," ",COUNTRY_INFO!A26) -> Chad | B26: =IF(COUNTRY_INFO!B26=0," ",COUNTRY_INFO!B26) -> Chari Baguirmi | C26: =IF(COUNTRY_INFO!C26=0," ",COUNTRY_INFO!C26) -> Koulno | D26: =IF(COUNTRY_INFO!$U$9:$U$1000="MDA3 (IVM)", COUNTRY_INFO!$U$9:$U$1000, " ") ->  | E26: 0 | F26: 0 | G26: 0 | H26: 0 | I26: 0 | J26: 0 | K26: 0 | N26: 0 | O26: 0 | P26: 0 | Q26: 0 | U26: =COUNTRY_INFO!Y26 -> 10747 | AD26: 0 | AE26: 0
A27: =IF(COUNTRY_INFO!A27=0," ",COUNTRY_INFO!A27) -> Chad | B27: =IF(COUNTRY_INFO!B27=0," ",COUNTRY_INFO!B27) -> Chari Baguirmi | C27: =IF(COUNTRY_INFO!C27=0," ",COUNTRY_INFO!C27) -> Mandélia | D27: =IF(COUNTRY_INFO!$U$9:$U$1000="MDA3 (IVM)", COUNTRY_INFO!$U$9:$U$1000, " ") ->  | E27: 0 | F27: 0 | G27: 0 | H27: 0 | I27: 0 | J27: 0 | K27: 0 | N27: 0 | O27: 0 | P27: 0 | Q27: 0 | U27: =COUNTRY_INFO!Y27 -> 10671 | AD27: 0 | AE27: 0
A28: =IF(COUNTRY_INFO!A28=0," ",COUNTRY_INFO!A28) -> Chad | B28: =IF(COUNTRY_INFO!B28=0," ",COUNTRY_INFO!B28) -> Chari Baguirmi | C28: =IF(COUNTRY_INFO!C28=0," ",COUNTRY_INFO!C28) -> Massenya | D28: =IF(COUNTRY_INFO!$U$9:$U$1000="MDA3 (IVM)", COUNTRY_INFO!$U$9:$U$1000, " ") ->  | E28: 0 | F28: 0 | G28: 0 | H28: 0 | I28: 0 | J28: 0 | K28: 0 | N28: 0 | O28: 0 | P28: 0 | Q28: 0 | U28: =COUNTRY_INFO!Y28 -> 10672 | AD28: 0 | AE28: 0
A29: =IF(COUNTRY_INFO!A29=0," ",COUNTRY_INFO!A29) -> Chad | B29: =IF(COUNTRY_INFO!B29=0," ",COUNTRY_INFO!B29) -> Ennedi Est | C29: =IF(COUNTRY_INFO!C29=0," ",COUNTRY_INFO!C29) -> Amdjarass | D29: =IF(COUNTRY_INFO!$U$9:$U$1000="MDA3 (IVM)", COUNTRY_INFO!$U$9:$U$1000, " ") ->  | E29: 0 | F29: 0 | G29: 0 | H29: 0 | I29: 0 | J29: 0 | K29: 0 | N29: 0 | O29: 0 | P29: 0 | Q29: 0 | U29: =COUNTRY_INFO!Y29 -> 10675 | AD29: 0 | AE29: 0
A30: =IF(COUNTRY_INFO!A30=0," ",COUNTRY_INFO!A30) -> Chad | B30: =IF(COUNTRY_INFO!B30=0," ",COUNTRY_INFO!B30) -> Ennedi Est | C30: =IF(COUNTRY_INFO!C30=0," ",COUNTRY_INFO!C30) -> Bahaï | D30: =IF(COUNTRY_INFO!$U$9:$U$1000="MDA3 (IVM)", COUNTRY_INFO!$U$9:$U$1000, " ") ->  | E30: 0 | F30: 0 | G30: 0 | H30: 0 | I30: 0 | J30: 0 | K30: 0 | N30: 0 | O30: 0 | P30: 0 | Q30: 0 | U30: =COUNTRY_INFO!Y30 -> 10676 | AD30: 0 | AE30: 0
A31: =IF(COUNTRY_INFO!A31=0," ",COUNTRY_INFO!A31) -> Chad | B31: =IF(COUNTRY_INFO!B31=0," ",COUNTRY_INFO!B31) -> Ennedi Est | C31: =IF(COUNTRY_INFO!C31=0," ",COUNTRY_INFO!C31) -> Kaoura | D31: =IF(COUNTRY_INFO!$U$9:$U$1000="MDA3 (IVM)", COUNTRY_INFO!$U$9:$U$1000, " ") ->  | E31: 0 | F31: 0 | G31: 0 | H31: 0 | I31: 0 | J31: 0 | K31: 0 | N31: 0 | O31: 0 | P31: 0 | Q31: 0 | U31: =COUNTRY_INFO!Y31 -> 10678 | AD31: 0 | AE31: 0
A32: =IF(COUNTRY_INFO!A32=0," ",COUNTRY_INFO!A32) -> Chad | B32: =IF(COUNTRY_INFO!B32=0," ",COUNTRY_INFO!B32) -> Ennedi Est | C32: =IF(COUNTRY_INFO!C32=0," ",COUNTRY_INFO!C32) -> Mourdi | D32: =IF(COUNTRY_INFO!$U$9:$U$1000="MDA3 (IVM)", COUNTRY_INFO!$U$9:$U$1000, " ") ->  | H32: 0 | K32: 0 | N32: 0 | O32: 0 | P32: 0 | Q32: 0 | U32: =COUNTRY_INFO!Y32 -> 10784
A33: =IF(COUNTRY_INFO!A33=0," ",COUNTRY_INFO!A33) -> Chad | B33: =IF(COUNTRY_INFO!B33=0," ",COUNTRY_INFO!B33) -> Ennedi Ouest | C33: =IF(COUNTRY_INFO!C33=0," ",COUNTRY_INFO!C33) -> Fada | D33: =IF(COUNTRY_INFO!$U$9:$U$1000="MDA3 (IVM)", COUNTRY_INFO!$U$9:$U$1000, " ") ->  | E33: 0 | F33: 0 | G33: 0 | H33: 0 | I33: 0 | J33: 0 | K33: 0 | N33: 0 | O33: 0 | P33: 0 | Q33: 0 | U33: =COUNTRY_INFO!Y33 -> 10665 | AD33: 0 | AE33: 0
A34: =IF(COUNTRY_INFO!A34=0," ",COUNTRY_INFO!A34) -> Chad | B34: =IF(COUNTRY_INFO!B34=0," ",COUNTRY_INFO!B34) -> Ennedi Ouest | C34: =IF(COUNTRY_INFO!C34=0," ",COUNTRY_INFO!C34) -> Kalaït | D34: =IF(COUNTRY_INFO!$U$9:$U$1000="MDA3 (IVM)", COUNTRY_INFO!$U$9:$U$1000, " ") ->  | E34: 0 | F34: 0 | G34: 0 | H34: 0 | I34: 0 | J34: 0 | K34: 0 | N34: 0 | O34: 0 | P34: 0 | Q34: 0 | U34: =COUNTRY_INFO!Y34 -> 10677 | AD34: 0 | AE34: 0
A35: =IF(COUNTRY_INFO!A35=0," ",COUNTRY_INFO!A35) -> Chad | B35: =IF(COUNTRY_INFO!B35=0," ",COUNTRY_INFO!B35) -> Ennedi Ouest | C35: =IF(COUNTRY_INFO!C35=0," ",COUNTRY_INFO!C35) -> Ounianga Kebbir | D35: =IF(COUNTRY_INFO!$U$9:$U$1000="MDA3 (IVM)", COUNTRY_INFO!$U$9:$U$1000, " ") ->  | H35: 0 | K35: 0 | N35: 0 | O35: 0 | P35: 0 | Q35: 0 | U35: =COUNTRY_INFO!Y35 -> 10785
A36: =IF(COUNTRY_INFO!A36=0," ",COUNTRY_INFO!A36) -> Chad | B36: =IF(COUNTRY_INFO!B36=0," ",COUNTRY_INFO!B36) -> Guéra | C36: =IF(COUNTRY_INFO!C36=0," ",COUNTRY_INFO!C36) -> Barou | D36: =IF(COUNTRY_INFO!$U$9:$U$1000="MDA3 (IVM)", COUNTRY_INFO!$U$9:$U$1000, " ") ->  | E36: 0 | F36: 0 | G36: 0 | H36: 0 | I36: 0 | J36: 0 | K36: 0 | N36: 0 | O36: 0 | P36: 0 | Q36: 0 | U36: =COUNTRY_INFO!Y36 -> 10763 | AD36: 0 | AE36: 0
A37: =IF(COUNTRY_INFO!A37=0," ",COUNTRY_INFO!A37) -> Chad | B37: =IF(COUNTRY_INFO!B37=0," ",COUNTRY_INFO!B37) -> Guéra | C37: =IF(COUNTRY_INFO!C37=0," ",COUNTRY_INFO!C37) -> Bitkine | D37: =IF(COUNTRY_INFO!$U$9:$U$1000="MDA3 (IVM)", COUNTRY_INFO!$U$9:$U$1000, " ") ->  | E37: 0 | F37: 0 | G37: 0 | H37: 0 | I37: 0 | J37: 0 | K37: 0 | N37: 0 | O37: 0 | P37: 0 | Q37: 0 | U37: =COUNTRY_INFO!Y37 -> 10679 | AD37: 0 | AE37: 0
A38: =IF(COUNTRY_INFO!A38=0," ",COUNTRY_INFO!A38) -> Chad | B38: =IF(COUNTRY_INFO!B38=0," ",COUNTRY_INFO!B38) -> Guéra | C38: =IF(COUNTRY_INFO!C38=0," ",COUNTRY_INFO!C38) -> Mangalmé | D38: =IF(COUNTRY_INFO!$U$9:$U$1000="MDA3 (IVM)", COUNTRY_INFO!$U$9:$U$1000, " ") ->  | E38: 0 | F38: 0 | G38: 0 | H38: 0 | I38: 0 | J38: 0 | K38: 0 | N38: 0 | O38: 0 | P38: 0 | Q38: 0 | U38: =COUNTRY_INFO!Y38 -> 10680 | AD38: 0 | AE38: 0
A39: =IF(COUNTRY_INFO!A39=0," ",COUNTRY_INFO!A39) -> Chad | B39: =IF(COUNTRY_INFO!B39=0," ",COUNTRY_INFO!B39) -> Guéra | C39: =IF(COUNTRY_INFO!C39=0," ",COUNTRY_INFO!C39) -> Melfi | D39: =IF(COUNTRY_INFO!$U$9:$U$1000="MDA3 (IVM)", COUNTRY_INFO!$U$9:$U$1000, " ") ->  | E39: 0 | F39: 0 | G39: 0 | H39: 0 | I39: 0 | J39: 0 | K39: 0 | N39: 0 | O39: 0 | P39: 0 | Q39: 0 | U39: =COUNTRY_INFO!Y39 -> 10681 | AD39: 0 | AE39: 0
A40: =IF(COUNTRY_INFO!A40=0," ",COUNTRY_INFO!A40) -> Chad | B40: =IF(COUNTRY_INFO!B40=0," ",COUNTRY_INFO!B40) -> Guéra | C40: =IF(COUNTRY_INFO!C40=0," ",COUNTRY_INFO!C40) -> Mongo | D40: =IF(COUNTRY_INFO!$U$9:$U$1000="MDA3 (IVM)", COUNTRY_INFO!$U$9:$U$1000, " ") ->  | E40: 0 | F40: 0 | G40: 0 | H40: 0 | I40: 0 | J40: 0 | K40: 0 | N40: 0 | O40: 0 | P40: 0 | Q40: 0 | U40: =COUNTRY_INFO!Y40 -> 10682 | AD40: 0 | AE40: 0
A41: =IF(COUNTRY_INFO!A41=0," ",COUNTRY_INFO!A41) -> Chad | B41: =IF(COUNTRY_INFO!B41=0," ",COUNTRY_INFO!B41) -> Hadjer Lamis | C41: =IF(COUNTRY_INFO!C41=0," ",COUNTRY_INFO!C41) -> Bokoro | D41: =IF(COUNTRY_INFO!$U$9:$U$1000="MDA3 (IVM)", COUNTRY_INFO!$U$9:$U$1000, " ") ->  | E41: 0 | F41: 0 | G41: 0 | H41: 0 | I41: 0 | J41: 0 | K41: 0 | N41: 0 | O41: 0 | P41: 0 | Q41: 0 | U41: =COUNTRY_INFO!Y41 -> 10683 | AD41: 0 | AE41: 0
A42: =IF(COUNTRY_INFO!A42=0," ",COUNTRY_INFO!A42) -> Chad | B42: =IF(COUNTRY_INFO!B42=0," ",COUNTRY_INFO!B42) -> Hadjer Lamis | C42: =IF(COUNTRY_INFO!C42=0," ",COUNTRY_INFO!C42) -> Gama | D42: =IF(COUNTRY_INFO!$U$9:$U$1000="MDA3 (IVM)", COUNTRY_INFO!$U$9:$U$1000, " ") ->  | E42: 0 | F42: 0 | G42: 0 | H42: 0 | I42: 0 | J42: 0 | K42: 0 | N42: 0 | O42: 0 | P42: 0 | Q42: 0 | U42: =COUNTRY_INFO!Y42 -> 10748 | AD42: 0 | AE42: 0
A43: =IF(COUNTRY_INFO!A43=0," ",COUNTRY_INFO!A43) -> Chad | B43: =IF(COUNTRY_INFO!B43=0," ",COUNTRY_INFO!B43) -> Hadjar Lamis | C43: =IF(COUNTRY_INFO!C43=0," ",COUNTRY_INFO!C43) -> Karal | D43: =IF(COUNTRY_INFO!$U$9:$U$1000="MDA3 (IVM)", COUNTRY_INFO!$U$9:$U$1000, " ") ->  | H43: 0 | K43: 0 | N43: 0 | O43: 0 | P43: 0 | Q43: 0 | U43: =COUNTRY_INFO!Y43 -> 10786
A44: =IF(COUNTRY_INFO!A44=0," ",COUNTRY_INFO!A44) -> Chad | B44: =IF(COUNTRY_INFO!B44=0," ",COUNTRY_INFO!B44) -> Hadjer Lamis | C44: =IF(COUNTRY_INFO!C44=0," ",COUNTRY_INFO!C44) -> Mani | D44: =IF(COUNTRY_INFO!$U$9:$U$1000="MDA3 (IVM)", COUNTRY_INFO!$U$9:$U$1000, " ") ->  | E44: 0 | F44: 0 | G44: 0 | H44: 0 | I44: 0 | J44: 0 | K44: 0 | N44: 0 | O44: 0 | P44: 0 | Q44: 0 | U44: =COUNTRY_INFO!Y44 -> 10684 | AD44: 0 | AE44: 0
A45: =IF(COUNTRY_INFO!A45=0," ",COUNTRY_INFO!A45) -> Chad | B45: =IF(COUNTRY_INFO!B45=0," ",COUNTRY_INFO!B45) -> Hadjer Lamis | C45: =IF(COUNTRY_INFO!C45=0," ",COUNTRY_INFO!C45) -> Massaguet | D45: =IF(COUNTRY_INFO!$U$9:$U$1000="MDA3 (IVM)", COUNTRY_INFO!$U$9:$U$1000, " ") ->  | E45: 0 | F45: 0 | G45: 0 | H45: 0 | I45: 0 | J45: 0 | K45: 0 | N45: 0 | O45: 0 | P45: 0 | Q45: 0 | U45: =COUNTRY_INFO!Y45 -> 10685 | AD45: 0 | AE45: 0
A46: =IF(COUNTRY_INFO!A46=0," ",COUNTRY_INFO!A46) -> Chad | B46: =IF(COUNTRY_INFO!B46=0," ",COUNTRY_INFO!B46) -> Hadjer Lamis | C46: =IF(COUNTRY_INFO!C46=0," ",COUNTRY_INFO!C46) -> Massakory | D46: =IF(COUNTRY_INFO!$U$9:$U$1000="MDA3 (IVM)", COUNTRY_INFO!$U$9:$U$1000, " ") ->  | E46: 0 | F46: 0 | G46: 0 | H46: 0 | I46: 0 | J46: 0 | K46: 0 | N46: 0 | O46: 0 | P46: 0 | Q46: 0 | U46: =COUNTRY_INFO!Y46 -> 10686 | AD46: 0 | AE46: 0
A47: =IF(COUNTRY_INFO!A47=0," ",COUNTRY_INFO!A47) -> Chad | B47: =IF(COUNTRY_INFO!B47=0," ",COUNTRY_INFO!B47) -> Kanem | C47: =IF(COUNTRY_INFO!C47=0," ",COUNTRY_INFO!C47) -> Amdoback | D47: =IF(COUNTRY_INFO!$U$9:$U$1000="MDA3 (IVM)", COUNTRY_INFO!$U$9:$U$1000, " ") ->  | H47: 0 | K47: 0 | N47: 0 | O47: 0 | P47: 0 | Q47: 0 | U47: =COUNTRY_INFO!Y47 -> 10787
A48: =IF(COUNTRY_INFO!A48=0," ",COUNTRY_INFO!A48) -> Chad | B48: =IF(COUNTRY_INFO!B48=0," ",COUNTRY_INFO!B48) -> Kanem | C48: =IF(COUNTRY_INFO!C48=0," ",COUNTRY_INFO!C48) -> Kekedina | D48: =IF(COUNTRY_INFO!$U$9:$U$1000="MDA3 (IVM)", COUNTRY_INFO!$U$9:$U$1000, " ") ->  | H48: 0 | K48: 0 | N48: 0 | O48: 0 | P48: 0 | Q48: 0 | U48: =COUNTRY_INFO!Y48 -> 10788
A49: =IF(COUNTRY_INFO!A49=0," ",COUNTRY_INFO!A49) -> Chad | B49: =IF(COUNTRY_INFO!B49=0," ",COUNTRY_INFO!B49) -> Kanem | C49: =IF(COUNTRY_INFO!C49=0," ",COUNTRY_INFO!C49) -> Mao | D49: =IF(COUNTRY_INFO!$U$9:$U$1000="MDA3 (IVM)", COUNTRY_INFO!$U$9:$U$1000, " ") ->  | E49: 0 | F49: 0 | G49: 0 | H49: 0 | I49: 0 | J49: 0 | K49: 0 | N49: 0 | O49: 0 | P49: 0 | Q49: 0 | U49: =COUNTRY_INFO!Y49 -> 10687 | AD49: 0 | AE49: 0
A50: =IF(COUNTRY_INFO!A50=0," ",COUNTRY_INFO!A50) -> Chad | B50: =IF(COUNTRY_INFO!B50=0," ",COUNTRY_INFO!B50) -> Kanem | C50: =IF(COUNTRY_INFO!C50=0," ",COUNTRY_INFO!C50) -> Mondo | D50: =IF(COUNTRY_INFO!$U$9:$U$1000="MDA3 (IVM)", COUNTRY_INFO!$U$9:$U$1000, " ") ->  | E50: 0 | F50: 0 | G50: 0 | H50: 0 | I50: 0 | J50: 0 | K50: 0 | N50: 0 | O50: 0 | P50: 0 | Q50: 0 | U50: =COUNTRY_INFO!Y50 -> 10688 | AD50: 0 | AE50: 0
A51: =IF(COUNTRY_INFO!A51=0," ",COUNTRY_INFO!A51) -> Chad | B51: =IF(COUNTRY_INFO!B51=0," ",COUNTRY_INFO!B51) -> Kanem | C51: =IF(COUNTRY_INFO!C51=0," ",COUNTRY_INFO!C51) -> Nokou | D51: =IF(COUNTRY_INFO!$U$9:$U$1000="MDA3 (IVM)", COUNTRY_INFO!$U$9:$U$1000, " ") ->  | E51: 0 | F51: 0 | G51: 0 | H51: 0 | I51: 0 | J51: 0 | K51: 0 | N51: 0 | O51: 0 | P51: 0 | Q51: 0 | U51: =COUNTRY_INFO!Y51 -> 10689 | AD51: 0 | AE51: 0
A52: =IF(COUNTRY_INFO!A52=0," ",COUNTRY_INFO!A52) -> Chad | B52: =IF(COUNTRY_INFO!B52=0," ",COUNTRY_INFO!B52) -> Kanem | C52: =IF(COUNTRY_INFO!C52=0," ",COUNTRY_INFO!C52) -> Ntiona | D52: =IF(COUNTRY_INFO!$U$9:$U$1000="MDA3 (IVM)", COUNTRY_INFO!$U$9:$U$1000, " ") ->  | E52: 0 | F52: 0 | G52: 0 | H52: 0 | I52: 0 | J52: 0 | K52: 0 | N52: 0 | O52: 0 | P52: 0 | Q52: 0 | U52: =COUNTRY_INFO!Y52 -> 10764 | AD52: 0 | AE52: 0
A53: =IF(COUNTRY_INFO!A53=0," ",COUNTRY_INFO!A53) -> Chad | B53: =IF(COUNTRY_INFO!B53=0," ",COUNTRY_INFO!B53) -> Kanem | C53: =IF(COUNTRY_INFO!C53=0," ",COUNTRY_INFO!C53) -> Rig-Rig | D53: =IF(COUNTRY_INFO!$U$9:$U$1000="MDA3 (IVM)", COUNTRY_INFO!$U$9:$U$1000, " ") ->  | E53: 0 | F53: 0 | G53: 0 | H53: 0 | I53: 0 | J53: 0 | K53: 0 | N53: 0 | O53: 0 | P53: 0 | Q53: 0 | U53: =COUNTRY_INFO!Y53 -> 10690 | AD53: 0 | AE53: 0
A54: =IF(COUNTRY_INFO!A54=0," ",COUNTRY_INFO!A54) -> Chad | B54: =IF(COUNTRY_INFO!B54=0," ",COUNTRY_INFO!B54) -> Lac | C54: =IF(COUNTRY_INFO!C54=0," ",COUNTRY_INFO!C54) -> Bagassola | D54: =IF(COUNTRY_INFO!$U$9:$U$1000="MDA3 (IVM)", COUNTRY_INFO!$U$9:$U$1000, " ") ->  | E54: 0 | F54: 0 | G54: 0 | H54: 0 | I54: 0 | J54: 0 | K54: 0 | N54: 0 | O54: 0 | P54: 0 | Q54: 0 | U54: =COUNTRY_INFO!Y54 -> 10691 | AD54: 0 | AE54: 0
A55: =IF(COUNTRY_INFO!A55=0," ",COUNTRY_INFO!A55) -> Chad | B55: =IF(COUNTRY_INFO!B55=0," ",COUNTRY_INFO!B55) -> Lac | C55: =IF(COUNTRY_INFO!C55=0," ",COUNTRY_INFO!C55) -> Bol | D55: =IF(COUNTRY_INFO!$U$9:$U$1000="MDA3 (IVM)", COUNTRY_INFO!$U$9:$U$1000, " ") ->  | E55: 0 | F55: 0 | G55: 0 | H55: 0 | I55: 0 | J55: 0 | K55: 0 | N55: 0 | O55: 0 | P55: 0 | Q55: 0 | U55: =COUNTRY_INFO!Y55 -> 10692 | AD55: 0 | AE55: 0
A56: =IF(COUNTRY_INFO!A56=0," ",COUNTRY_INFO!A56) -> Chad | B56: =IF(COUNTRY_INFO!B56=0," ",COUNTRY_INFO!B56) -> Lac | C56: =IF(COUNTRY_INFO!C56=0," ",COUNTRY_INFO!C56) -> Isserom | D56: =IF(COUNTRY_INFO!$U$9:$U$1000="MDA3 (IVM)", COUNTRY_INFO!$U$9:$U$1000, " ") ->  | E56: 0 | F56: 0 | G56: 0 | H56: 0 | I56: 0 | J56: 0 | K56: 0 | N56: 0 | O56: 0 | P56: 0 | Q56: 0 | U56: =COUNTRY_INFO!Y56 -> 10749 | AD56: 0 | AE56: 0
A57: =IF(COUNTRY_INFO!A57=0," ",COUNTRY_INFO!A57) -> Chad | B57: =IF(COUNTRY_INFO!B57=0," ",COUNTRY_INFO!B57) -> Lac | C57: =IF(COUNTRY_INFO!C57=0," ",COUNTRY_INFO!C57) -> Kouloudia | D57: =IF(COUNTRY_INFO!$U$9:$U$1000="MDA3 (IVM)", COUNTRY_INFO!$U$9:$U$1000, " ") ->  | E57: 0 | F57: 0 | G57: 0 | H57: 0 | I57: 0 | J57: 0 | K57: 0 | N57: 0 | O57: 0 | P57: 0 | Q57: 0 | U57: =COUNTRY_INFO!Y57 -> 10693 | AD57: 0 | AE57: 0
A58: =IF(COUNTRY_INFO!A58=0," ",COUNTRY_INFO!A58) -> Chad | B58: =IF(COUNTRY_INFO!B58=0," ",COUNTRY_INFO!B58) -> Lac | C58: =IF(COUNTRY_INFO!C58=0," ",COUNTRY_INFO!C58) -> Liwa | D58: =IF(COUNTRY_INFO!$U$9:$U$1000="MDA3 (IVM)", COUNTRY_INFO!$U$9:$U$1000, " ") ->  | E58: 0 | F58: 0 | G58: 0 | H58: 0 | I58: 0 | J58: 0 | K58: 0 | N58: 0 | O58: 0 | P58: 0 | Q58: 0 | U58: =COUNTRY_INFO!Y58 -> 10694 | AD58: 0 | AE58: 0
A59: =IF(COUNTRY_INFO!A59=0," ",COUNTRY_INFO!A59) -> Chad | B59: =IF(COUNTRY_INFO!B59=0," ",COUNTRY_INFO!B59) -> Lac | C59: =IF(COUNTRY_INFO!C59=0," ",COUNTRY_INFO!C59) -> Ngouri | D59: =IF(COUNTRY_INFO!$U$9:$U$1000="MDA3 (IVM)", COUNTRY_INFO!$U$9:$U$1000, " ") ->  | E59: 0 | F59: 0 | G59: 0 | H59: 0 | I59: 0 | J59: 0 | K59: 0 | N59: 0 | O59: 0 | P59: 0 | Q59: 0 | U59: =COUNTRY_INFO!Y59 -> 10695 | AD59: 0 | AE59: 0
A60: =IF(COUNTRY_INFO!A60=0," ",COUNTRY_INFO!A60) -> Chad | B60: =IF(COUNTRY_INFO!B60=0," ",COUNTRY_INFO!B60) -> Logone Occidental | C60: =IF(COUNTRY_INFO!C60=0," ",COUNTRY_INFO!C60) -> Benamar | D60: =IF(COUNTRY_INFO!$U$9:$U$1000="MDA3 (IVM)", COUNTRY_INFO!$U$9:$U$1000, " ") ->  | E60: 0 | F60: 0 | G60: 0 | H60: 0 | I60: 0 | J60: 0 | K60: 0 | N60: 0 | O60: 0 | P60: 0 | Q60: 0 | U60: =COUNTRY_INFO!Y60 -> 10765 | AD60: 0 | AE60: 0
A61: =IF(COUNTRY_INFO!A61=0," ",COUNTRY_INFO!A61) -> Chad | B61: =IF(COUNTRY_INFO!B61=0," ",COUNTRY_INFO!B61) -> Logone Occidental | C61: =IF(COUNTRY_INFO!C61=0," ",COUNTRY_INFO!C61) -> Benoye | D61: =IF(COUNTRY_INFO!$U$9:$U$1000="MDA3 (IVM)", COUNTRY_INFO!$U$9:$U$1000, " ") ->  | E61: 0 | F61: 0 | G61: 0 | H61: 0 | I61: 0 | J61: 0 | K61: 0 | N61: 0 | O61: 0 | P61: 0 | Q61: 0 | U61: =COUNTRY_INFO!Y61 -> 10696 | AD61: 0 | AE61: 0
A62: =IF(COUNTRY_INFO!A62=0," ",COUNTRY_INFO!A62) -> Chad | B62: =IF(COUNTRY_INFO!B62=0," ",COUNTRY_INFO!B62) -> Logone Occidental | C62: =IF(COUNTRY_INFO!C62=0," ",COUNTRY_INFO!C62) -> Laokassy | D62: =IF(COUNTRY_INFO!$U$9:$U$1000="MDA3 (IVM)", COUNTRY_INFO!$U$9:$U$1000, " ") ->  | E62: 0 | F62: 0 | G62: 0 | H62: 0 | I62: 0 | J62: 0 | K62: 0 | N62: 0 | O62: 0 | P62: 0 | Q62: 0 | U62: =COUNTRY_INFO!Y62 -> 10697 | AD62: 0 | AE62: 0
A63: =IF(COUNTRY_INFO!A63=0," ",COUNTRY_INFO!A63) -> Chad | B63: =IF(COUNTRY_INFO!B63=0," ",COUNTRY_INFO!B63) -> Logone Occidental | C63: =IF(COUNTRY_INFO!C63=0," ",COUNTRY_INFO!C63) -> Moundou | D63: =IF(COUNTRY_INFO!$U$9:$U$1000="MDA3 (IVM)", COUNTRY_INFO!$U$9:$U$1000, " ") ->  | E63: 0 | F63: 0 | G63: 0 | H63: 0 | I63: 0 | J63: 0 | K63: 0 | N63: 0 | O63: 0 | P63: 0 | Q63: 0 | U63: =COUNTRY_INFO!Y63 -> 10698 | AD63: 0 | AE63: 0
A64: =IF(COUNTRY_INFO!A64=0," ",COUNTRY_INFO!A64) -> Chad | B64: =IF(COUNTRY_INFO!B64=0," ",COUNTRY_INFO!B64) -> Logone Orientlal | C64: =IF(COUNTRY_INFO!C64=0," ",COUNTRY_INFO!C64) -> Baibokoum | D64: =IF(COUNTRY_INFO!$U$9:$U$1000="MDA3 (IVM)", COUNTRY_INFO!$U$9:$U$1000, " ") ->  | E64: 0 | F64: 0 | G64: 0 | H64: 0 | I64: 0 | J64: 0 | K64: 0 | N64: 0 | O64: 0 | P64: 0 | Q64: 0 | U64: =COUNTRY_INFO!Y64 -> 10766 | AD64: 0 | AE64: 0
A65: =IF(COUNTRY_INFO!A65=0," ",COUNTRY_INFO!A65) -> Chad | B65: =IF(COUNTRY_INFO!B65=0," ",COUNTRY_INFO!B65) -> Logone Orientlal | C65: =IF(COUNTRY_INFO!C65=0," ",COUNTRY_INFO!C65) -> Bebedja | D65: =IF(COUNTRY_INFO!$U$9:$U$1000="MDA3 (IVM)", COUNTRY_INFO!$U$9:$U$1000, " ") ->  | E65: 0 | F65: 0 | G65: 0 | H65: 0 | I65: 0 | J65: 0 | K65: 0 | N65: 0 | O65: 0 | P65: 0 | Q65: 0 | U65: =COUNTRY_INFO!Y65 -> 10699 | AD65: 0 | AE65: 0
A66: =IF(COUNTRY_INFO!A66=0," ",COUNTRY_INFO!A66) -> Chad | B66: =IF(COUNTRY_INFO!B66=0," ",COUNTRY_INFO!B66) -> Logone Orientlal | C66: =IF(COUNTRY_INFO!C66=0," ",COUNTRY_INFO!C66) -> Beboto | D66: =IF(COUNTRY_INFO!$U$9:$U$1000="MDA3 (IVM)", COUNTRY_INFO!$U$9:$U$1000, " ") ->  | E66: 0 | F66: 0 | G66: 0 | H66: 0 | I66: 0 | J66: 0 | K66: 0 | N66: 0 | O66: 0 | P66: 0 | Q66: 0 | U66: =COUNTRY_INFO!Y66 -> 10700 | AD66: 0 | AE66: 0
A67: =IF(COUNTRY_INFO!A67=0," ",COUNTRY_INFO!A67) -> Chad | B67: =IF(COUNTRY_INFO!B67=0," ",COUNTRY_INFO!B67) -> Logone Orientlal | C67: =IF(COUNTRY_INFO!C67=0," ",COUNTRY_INFO!C67) -> Bessao | D67: =IF(COUNTRY_INFO!$U$9:$U$1000="MDA3 (IVM)", COUNTRY_INFO!$U$9:$U$1000, " ") ->  | E67: 0 | F67: 0 | G67: 0 | H67: 0 | I67: 0 | J67: 0 | K67: 0 | N67: 0 | O67: 0 | P67: 0 | Q67: 0 | U67: =COUNTRY_INFO!Y67 -> 10701 | AD67: 0 | AE67: 0
A68: =IF(COUNTRY_INFO!A68=0," ",COUNTRY_INFO!A68) -> Chad | B68: =IF(COUNTRY_INFO!B68=0," ",COUNTRY_INFO!B68) -> Logone Orientlal | C68: =IF(COUNTRY_INFO!C68=0," ",COUNTRY_INFO!C68) -> Bodo | D68: =IF(COUNTRY_INFO!$U$9:$U$1000="MDA3 (IVM)", COUNTRY_INFO!$U$9:$U$1000, " ") ->  | E68: 0 | F68: 0 | G68: 0 | H68: 0 | I68: 0 | J68: 0 | K68: 0 | N68: 0 | O68: 0 | P68: 0 | Q68: 0 | U68: =COUNTRY_INFO!Y68 -> 10702 | AD68: 0 | AE68: 0
A69: =IF(COUNTRY_INFO!A69=0," ",COUNTRY_INFO!A69) -> Chad | B69: =IF(COUNTRY_INFO!B69=0," ",COUNTRY_INFO!B69) -> Logone Orientlal | C69: =IF(COUNTRY_INFO!C69=0," ",COUNTRY_INFO!C69) -> Doba | D69: =IF(COUNTRY_INFO!$U$9:$U$1000="MDA3 (IVM)", COUNTRY_INFO!$U$9:$U$1000, " ") ->  | E69: 0 | F69: 0 | G69: 0 | H69: 0 | I69: 0 | J69: 0 | K69: 0 | N69: 0 | O69: 0 | P69: 0 | Q69: 0 | U69: =COUNTRY_INFO!Y69 -> 10703 | AD69: 0 | AE69: 0
A70: =IF(COUNTRY_INFO!A70=0," ",COUNTRY_INFO!A70) -> Chad | B70: =IF(COUNTRY_INFO!B70=0," ",COUNTRY_INFO!B70) -> Logone Orientlal | C70: =IF(COUNTRY_INFO!C70=0," ",COUNTRY_INFO!C70) -> DONIA | D70: =IF(COUNTRY_INFO!$U$9:$U$1000="MDA3 (IVM)", COUNTRY_INFO!$U$9:$U$1000, " ") ->  | E70: 0 | F70: 0 | G70: 0 | H70: 0 | I70: 0 | J70: 0 | K70: 0 | N70: 0 | O70: 0 | P70: 0 | Q70: 0 | U70: =COUNTRY_INFO!Y70 -> 10767 | AD70: 0 | AE70: 0
A71: =IF(COUNTRY_INFO!A71=0," ",COUNTRY_INFO!A71) -> Chad | B71: =IF(COUNTRY_INFO!B71=0," ",COUNTRY_INFO!B71) -> Logone Orientlal | C71: =IF(COUNTRY_INFO!C71=0," ",COUNTRY_INFO!C71) -> Goré | D71: =IF(COUNTRY_INFO!$U$9:$U$1000="MDA3 (IVM)", COUNTRY_INFO!$U$9:$U$1000, " ") ->  | E71: 0 | F71: 0 | G71: 0 | H71: 0 | I71: 0 | J71: 0 | K71: 0 | N71: 0 | O71: 0 | P71: 0 | Q71: 0 | U71: =COUNTRY_INFO!Y71 -> 10704 | AD71: 0 | AE71: 0
A72: =IF(COUNTRY_INFO!A72=0," ",COUNTRY_INFO!A72) -> Chad | B72: =IF(COUNTRY_INFO!B72=0," ",COUNTRY_INFO!B72) -> Logone Orientlal | C72: =IF(COUNTRY_INFO!C72=0," ",COUNTRY_INFO!C72) -> Kara | D72: =IF(COUNTRY_INFO!$U$9:$U$1000="MDA3 (IVM)", COUNTRY_INFO!$U$9:$U$1000, " ") ->  | E72: 0 | F72: 0 | G72: 0 | H72: 0 | I72: 0 | J72: 0 | K72: 0 | N72: 0 | O72: 0 | P72: 0 | Q72: 0 | U72: =COUNTRY_INFO!Y72 -> 10768 | AD72: 0 | AE72: 0
A73: =IF(COUNTRY_INFO!A73=0," ",COUNTRY_INFO!A73) -> Chad | B73: =IF(COUNTRY_INFO!B73=0," ",COUNTRY_INFO!B73) -> Logone Orientlal | C73: =IF(COUNTRY_INFO!C73=0," ",COUNTRY_INFO!C73) -> Larmanaye | D73: =IF(COUNTRY_INFO!$U$9:$U$1000="MDA3 (IVM)", COUNTRY_INFO!$U$9:$U$1000, " ") ->  | E73: 0 | F73: 0 | G73: 0 | H73: 0 | I73: 0 | J73: 0 | K73: 0 | N73: 0 | O73: 0 | P73: 0 | Q73: 0 | U73: =COUNTRY_INFO!Y73 -> 10705 | AD73: 0 | AE73: 0
A74: =IF(COUNTRY_INFO!A74=0," ",COUNTRY_INFO!A74) -> Chad | B74: =IF(COUNTRY_INFO!B74=0," ",COUNTRY_INFO!B74) -> Mandoul | C74: =IF(COUNTRY_INFO!C74=0," ",COUNTRY_INFO!C74) -> Bedaya | D74: =IF(COUNTRY_INFO!$U$9:$U$1000="MDA3 (IVM)", COUNTRY_INFO!$U$9:$U$1000, " ") ->  | E74: 0 | F74: 0 | G74: 0 | H74: =SUM(F74:G74) -> 0 | I74: 0 | J74: 0 | K74: =SUM(I74:J74) -> 0 | N74: =SUM(L74:M74) -> 0 | O74: =MAX(I74,L74) -> 0 | P74: =MAX(J74,M74) -> 0 | Q74: =SUM(O74:P74) -> 0 | R74: =IF(F74<>0, IF(MAX(I74,L74)/F74*100=0, "-", MAX(I74,L74)/F74*100), " ") ->  | S74: =IF(G74<>0, IF(MAX(J74,M74)/G74*100=0, "-", MAX(J74,M74)/G74*100), " ") ->  | T74: =IF(H74<>0, IF((MAX(I74,L74)+MAX(J74,M74))/H74*100=0, "-",(MAX(I74,L74)+MAX(J74,M74))/H74*100), " ") ->  | U74: =COUNTRY_INFO!Y74 -> 10769 | AD74: 0 | AE74: 0
A75: =IF(COUNTRY_INFO!A75=0," ",COUNTRY_INFO!A75) -> Chad | B75: =IF(COUNTRY_INFO!B75=0," ",COUNTRY_INFO!B75) -> Mandoul | C75: =IF(COUNTRY_INFO!C75=0," ",COUNTRY_INFO!C75) -> Bedjondo | D75: =IF(COUNTRY_INFO!$U$9:$U$1000="MDA3 (IVM)", COUNTRY_INFO!$U$9:$U$1000, " ") -> MDA3 (IVM) | E75: Fevrier 2022 | F75: 39014 | G75: 63119 | H75: 102133 | I75: 38671 | J75: 61443 | K75: 100114 | N75: 0 | O75: 38671 | P75: 61443 | Q75: 100114 | R75: 99.12082842 | S75: 97.34469811 | T75: 98.02316587 | U75: =COUNTRY_INFO!Y75 -> 10706 | V75: =F75/W75*100 -> 101.1301778 | W75: =COUNTRY_INFO!F75 -> 38578 | X75: =COUNTRY_INFO!G75 -> 62856 | Z75: =Q75-COUNTRY_INFO!D75 -> -26997 | AA75: =Z75/COUNTRY_INFO!D75*100 -> -21.23891717 | AD75: 39014 | AE75: 63119
A76: =IF(COUNTRY_INFO!A76=0," ",COUNTRY_INFO!A76) -> Chad | B76: =IF(COUNTRY_INFO!B76=0," ",COUNTRY_INFO!B76) -> Mandoul | C76: =IF(COUNTRY_INFO!C76=0," ",COUNTRY_INFO!C76) -> Bekourou | D76: =IF(COUNTRY_INFO!$U$9:$U$1000="MDA3 (IVM)", COUNTRY_INFO!$U$9:$U$1000, " ") -> MDA3 (IVM) | E76: Fevrier 2022 | F76: 29651 | G76: 46023 | H76: 75674 | I76: 28411 | J76: 45416 | K76: 73827 | N76: 0 | O76: 28411 | P76: 45416 | Q76: 73827 | R76: 95.81801626 | S76: 98.68109424 | T76: 97.55926738 | U76: =COUNTRY_INFO!Y76 -> 10770 | V76: =F76/W76*100 -> 105.2910053 | W76: =COUNTRY_INFO!F76 -> 28161 | X76: =COUNTRY_INFO!G76 -> 45884 | Z76: =Q76-COUNTRY_INFO!D76 -> -18962 | AA76: =Z76/COUNTRY_INFO!D76*100 -> -20.43561198 | AD76: 21928 | AE76: 47228
A77: =IF(COUNTRY_INFO!A77=0," ",COUNTRY_INFO!A77) -> Chad | B77: =IF(COUNTRY_INFO!B77=0," ",COUNTRY_INFO!B77) -> Mandoul | C77: =IF(COUNTRY_INFO!C77=0," ",COUNTRY_INFO!C77) -> Bouna | D77: =IF(COUNTRY_INFO!$U$9:$U$1000="MDA3 (IVM)", COUNTRY_INFO!$U$9:$U$1000, " ") -> MDA3 (IVM) | E77: Fevrier 2022 | F77: 33123 | G77: 53968 | H77: 87091 | I77: 32363 | J77: 53726 | K77: 86089 | N77: 0 | O77: 32363 | P77: 53726 | Q77: 86089 | R77: 97.70552184 | S77: 99.55158613 | T77: 98.84947928 | U77: =COUNTRY_INFO!Y77 -> 10707 | V77: 100 | W77: =COUNTRY_INFO!F77 -> 33123 | X77: =COUNTRY_INFO!G77 -> 53968 | Z77: =Q77-COUNTRY_INFO!D77 -> -23048 | AA77: =Z77/COUNTRY_INFO!D77*100 -> -21.1184108 | AD77: 33123 | AE77: 53968
A78: =IF(COUNTRY_INFO!A78=0," ",COUNTRY_INFO!A78) -> Chad | B78: =IF(COUNTRY_INFO!B78=0," ",COUNTRY_INFO!B78) -> Mandoul | C78: =IF(COUNTRY_INFO!C78=0," ",COUNTRY_INFO!C78) -> Goundi | D78: =IF(COUNTRY_INFO!$U$9:$U$1000="MDA3 (IVM)", COUNTRY_INFO!$U$9:$U$1000, " ") ->  | E78: 0 | H78: 0 | I78: 0 | J78: 0 | K78: 0 | N78: 0 | O78: 0 | P78: 0 | Q78: 0 | U78: =COUNTRY_INFO!Y78 -> 10708 | Z78: =Q78-COUNTRY_INFO!D78 -> -207903 | AA78: =Z78/COUNTRY_INFO!D78*100 -> -100
A79: =IF(COUNTRY_INFO!A79=0," ",COUNTRY_INFO!A79) -> Chad | B79: =IF(COUNTRY_INFO!B79=0," ",COUNTRY_INFO!B79) -> Mandoul | C79: =IF(COUNTRY_INFO!C79=0," ",COUNTRY_INFO!C79) -> Koumra | D79: =IF(COUNTRY_INFO!$U$9:$U$1000="MDA3 (IVM)", COUNTRY_INFO!$U$9:$U$1000, " ") ->  | E79: 0 | H79: 0 | I79: 0 | J79: 0 | K79: 0 | N79: 0 | O79: 0 | P79: 0 | Q79: 0 | U79: =COUNTRY_INFO!Y79 -> 10709 | Z79: =Q79-COUNTRY_INFO!D79 -> -246432 | AA79: =Z79/COUNTRY_INFO!D79*100 -> -100
A80: =IF(COUNTRY_INFO!A80=0," ",COUNTRY_INFO!A80) -> Chad | B80: =IF(COUNTRY_INFO!B80=0," ",COUNTRY_INFO!B80) -> Mandoul | C80: =IF(COUNTRY_INFO!C80=0," ",COUNTRY_INFO!C80) -> Moissala | D80: =IF(COUNTRY_INFO!$U$9:$U$1000="MDA3 (IVM)", COUNTRY_INFO!$U$9:$U$1000, " ") -> MDA3 (IVM) | E80: Fevrier 2022 | F80: 62560 | G80: 101930 | H80: 164490 | I80: 42496 | J80: 90304 | K80: 132800 | N80: 0 | O80: 42496 | P80: 90304 | Q80: 132800 | R80: 67.92838875 | S80: 88.59413323 | T80: 80.73439115 | U80: =COUNTRY_INFO!Y80 -> 10710 | V80: =F80/W80*100 -> 100 | W80: =COUNTRY_INFO!F80 -> 62560 | X80: =COUNTRY_INFO!G80 -> 101930 | Z80: =Q80-COUNTRY_INFO!D80 -> -73327 | AA80: =Z80/COUNTRY_INFO!D80*100 -> -35.57369971 | AD80: 62560 | AE80: 101930
A81: =IF(COUNTRY_INFO!A81=0," ",COUNTRY_INFO!A81) -> Chad | B81: =IF(COUNTRY_INFO!B81=0," ",COUNTRY_INFO!B81) -> Mayo Kebbi Est | C81: =IF(COUNTRY_INFO!C81=0," ",COUNTRY_INFO!C81) -> Bongor | D81: =IF(COUNTRY_INFO!$U$9:$U$1000="MDA3 (IVM)", COUNTRY_INFO!$U$9:$U$1000, " ") ->  | E81: 0 | H81: 0 | I81: 0 | J81: 0 | K81: 0 | N81: 0 | O81: 0 | P81: 0 | Q81: 0 | U81: =COUNTRY_INFO!Y81 -> 10753 | Z81: =Q81-COUNTRY_INFO!D81 -> -166884 | AA81: =Z81/COUNTRY_INFO!D81*100 -> -100
A82: =IF(COUNTRY_INFO!A82=0," ",COUNTRY_INFO!A82) -> Chad | B82: =IF(COUNTRY_INFO!B82=0," ",COUNTRY_INFO!B82) -> Mayo Kebbi Est | C82: =IF(COUNTRY_INFO!C82=0," ",COUNTRY_INFO!C82) -> Fianga | D82: =IF(COUNTRY_INFO!$U$9:$U$1000="MDA3 (IVM)", COUNTRY_INFO!$U$9:$U$1000, " ") -> MDA3 (IVM) | E82: Fevrier 2022 | F82: 46012 | G82: 75223 | H82: 121235 | I82: 45002 | J82: 73826 | K82: 118828 | N82: 0 | O82: 45002 | P82: 73826 | Q82: 118828 | R82: 97.80492046 | S82: 98.14285524 | T82: 98.01459974 | U82: =COUNTRY_INFO!Y82 -> 10712 | V82: =F82/W82*100 -> 100.0369605 | W82: =COUNTRY_INFO!F82 -> 45995 | X82: =COUNTRY_INFO!G82 -> 74941 | Z82: =Q82-COUNTRY_INFO!D82 -> -32721 | AA82: =Z82/COUNTRY_INFO!D82*100 -> -21.59103656 | AD82: 69059 | AE82: 111079
A83: =IF(COUNTRY_INFO!A83=0," ",COUNTRY_INFO!A83) -> Chad | B83: =IF(COUNTRY_INFO!B83=0," ",COUNTRY_INFO!B83) -> Mayo Kebbi Est | C83: =IF(COUNTRY_INFO!C83=0," ",COUNTRY_INFO!C83) -> Gounou Gaya | D83: =IF(COUNTRY_INFO!$U$9:$U$1000="MDA3 (IVM)", COUNTRY_INFO!$U$9:$U$1000, " ") -> MDA3 (IVM) | E83: Fevrier 2022 | F83: 39847 | G83: 65211 | H83: 105058 | I83: 38742 | J83: 64011 | K83: 102753 | N83: 0 | O83: 38742 | P83: 64011 | Q83: 102753 | R83: 97.22689287 | S83: 98.15981966 | T83: 97.80597384 | U83: =COUNTRY_INFO!Y83 -> 10713 | V83: 101.2090117 | W83: =COUNTRY_INFO!F83 -> 39371 | X83: =COUNTRY_INFO!G83 -> 64149 | Z83: =Q83-COUNTRY_INFO!D83 -> -26971 | AA83: =Z83/COUNTRY_INFO!D83*100 -> -20.79106411 | AD83: 70975 | AE83: 114161
A84: =IF(COUNTRY_INFO!A84=0," ",COUNTRY_INFO!A84) -> Chad | B84: =IF(COUNTRY_INFO!B84=0," ",COUNTRY_INFO!B84) -> Mayo Kebbi Est | C84: =IF(COUNTRY_INFO!C84=0," ",COUNTRY_INFO!C84) -> Guelinding | D84: =IF(COUNTRY_INFO!$U$9:$U$1000="MDA3 (IVM)", COUNTRY_INFO!$U$9:$U$1000, " ") ->  | E84: 0 | H84: 0 | I84: 0 | J84: 0 | K84: 0 | N84: 0 | O84: 0 | P84: 0 | Q84: 0 | U84: =COUNTRY_INFO!Y84 -> 10714 | Z84: =Q84-COUNTRY_INFO!D84 -> -91501 | AA84: =Z84/COUNTRY_INFO!D84*100 -> -100
A85: =IF(COUNTRY_INFO!A85=0," ",COUNTRY_INFO!A85) -> Chad | B85: =IF(COUNTRY_INFO!B85=0," ",COUNTRY_INFO!B85) -> Mayo Kebbi Est | C85: =IF(COUNTRY_INFO!C85=0," ",COUNTRY_INFO!C85) -> Moulkou | D85: =IF(COUNTRY_INFO!$U$9:$U$1000="MDA3 (IVM)", COUNTRY_INFO!$U$9:$U$1000, " ") ->  | E85: 0 | H85: 0 | I85: 0 | J85: 0 | K85: 0 | N85: 0 | O85: 0 | P85: 0 | Q85: 0 | U85: =COUNTRY_INFO!Y85 -> 10750 | Z85: =Q85-COUNTRY_INFO!D85 -> -127507 | AA85: =Z85/COUNTRY_INFO!D85*100 -> -100
A86: =IF(COUNTRY_INFO!A86=0," ",COUNTRY_INFO!A86) -> Chad | B86: =IF(COUNTRY_INFO!B86=0," ",COUNTRY_INFO!B86) -> Mayo Kebbi Est | C86: =IF(COUNTRY_INFO!C86=0," ",COUNTRY_INFO!C86) -> Pont Carol | D86: =IF(COUNTRY_INFO!$U$9:$U$1000="MDA3 (IVM)", COUNTRY_INFO!$U$9:$U$1000, " ") -> MDA3 (IVM) | E86: Fevrier 2022 | F86: 25770 | G86: 41988 | H86: 67758 | I86: 24567 | J86: 40976 | K86: 65543 | N86: 0 | O86: 24567 | P86: 40976 | Q86: 65543 | R86: 95.33178114 | S86: 97.58978756 | T86: 96.73101331 | U86: =COUNTRY_INFO!Y86 -> 10751 | V86: =F86/W86*100 -> 100 | W86: =COUNTRY_INFO!F86 -> 25770 | X86: =COUNTRY_INFO!G86 -> 41988 | Z86: =Q86-COUNTRY_INFO!D86 -> -19366 | AA86: =Z86/COUNTRY_INFO!D86*100 -> -22.80794733 | AD86: 25770 | AE86: 41988
A87: =IF(COUNTRY_INFO!A87=0," ",COUNTRY_INFO!A87) -> Chad | B87: =IF(COUNTRY_INFO!B87=0," ",COUNTRY_INFO!B87) -> Mayo Kebbi Est | C87: =IF(COUNTRY_INFO!C87=0," ",COUNTRY_INFO!C87) -> Youé | D87: =IF(COUNTRY_INFO!$U$9:$U$1000="MDA3 (IVM)", COUNTRY_INFO!$U$9:$U$1000, " ") -> MDA3 (IVM) | E87: Fevrier 2022 | F87: 22014 | G87: 34238 | H87: 56252 | I87: 21026 | J87: 33043 | K87: 54069 | N87: 0 | O87: 21026 | P87: 33043 | Q87: 54069 | R87: 95.51194694 | S87: 96.50972604 | T87: 96.11924909 | U87: =COUNTRY_INFO!Y87 -> 10752 | V87: 104.7587323 | W87: =COUNTRY_INFO!F87 -> 21014 | X87: =COUNTRY_INFO!G87 -> 34238 | Z87: =Q87-COUNTRY_INFO!D87 -> -15169 | AA87: =Z87/COUNTRY_INFO!D87*100 -> -21.90848956 | AD87: 22014 | AE87: 34238
A88: =IF(COUNTRY_INFO!A88=0," ",COUNTRY_INFO!A88) -> Chad | B88: =IF(COUNTRY_INFO!B88=0," ",COUNTRY_INFO!B88) -> Mayo Kebbi Ouest | C88: =IF(COUNTRY_INFO!C88=0," ",COUNTRY_INFO!C88) -> Binder | D88: =IF(COUNTRY_INFO!$U$9:$U$1000="MDA3 (IVM)", COUNTRY_INFO!$U$9:$U$1000, " ") -> MDA3 (IVM) | E88: Fevrier 2022 | F88: 25360 | G88: 47320 | H88: 72680 | I88: 23939 | J88: 45221 | K88: 69160 | N88: 0 | O88: 23939 | P88: 45221 | Q88: 69160 | R88: 94.3966877 | S88: 95.56424345 | T88: 95.15685195 | U88: =COUNTRY_INFO!Y88 -> 10754 | V88: 100 | W88: =COUNTRY_INFO!F88 -> 25360 | X88: =COUNTRY_INFO!G88 -> 41320 | Z88: =Q88-COUNTRY_INFO!D88 -> -14399 | AA88: =Z88/COUNTRY_INFO!D88*100 -> -17.23213538 | AD88: 25360 | AE88: 47320
A89: =IF(COUNTRY_INFO!A89=0," ",COUNTRY_INFO!A89) -> Chad | B89: =IF(COUNTRY_INFO!B89=0," ",COUNTRY_INFO!B89) -> Mayo Kebbi Ouest | C89: =IF(COUNTRY_INFO!C89=0," ",COUNTRY_INFO!C89) -> Gagal | D89: =IF(COUNTRY_INFO!$U$9:$U$1000="MDA3 (IVM)", COUNTRY_INFO!$U$9:$U$1000, " ") -> MDA3 (IVM) | E89: Fevrier 2022 | F89: 45929 | G89: 91349 | H89: 137278 | I89: 44699 | J89: 86256 | K89: 130955 | N89: 0 | O89: 44699 | P89: 86256 | Q89: 130955 | R89: 97.32195345 | S89: 94.42467898 | T89: 95.39401798 | U89: =COUNTRY_INFO!Y89 -> 10755 | V89: 100 | W89: =COUNTRY_INFO!F89 -> 45929 | X89: =COUNTRY_INFO!G89 -> 74833 | Z89: =Q89-COUNTRY_INFO!D89 -> -20376 | AA89: =Z89/COUNTRY_INFO!D89*100 -> -13.46452478 | AD89: 45929 | AE89: 91349
A90: =IF(COUNTRY_INFO!A90=0," ",COUNTRY_INFO!A90) -> Chad | B90: =IF(COUNTRY_INFO!B90=0," ",COUNTRY_INFO!B90) -> Mayo Kebbi Ouest | C90: =IF(COUNTRY_INFO!C90=0," ",COUNTRY_INFO!C90) -> Guegou | D90: =IF(COUNTRY_INFO!$U$9:$U$1000="MDA3 (IVM)", COUNTRY_INFO!$U$9:$U$1000, " ") -> MDA3 (IVM) | E90: Fevrier 2022 | F90: 12749 | G90: 21633 | H90: 34382 | I90: 11812 | J90: 19663 | K90: 31475 | N90: 0 | O90: 11812 | P90: 19663 | Q90: 31475 | R90: 92.65040395 | S90: 90.89354227 | T90: 91.54499447 | U90: =COUNTRY_INFO!Y90 -> 10771 | V90: 99.59378174 | W90: =COUNTRY_INFO!F90 -> 12801 | X90: =COUNTRY_INFO!G90 -> 20857 | Z90: =Q90-COUNTRY_INFO!D90 -> -10702 | AA90: =Z90/COUNTRY_INFO!D90*100 -> -25.37401902 | AD90: 22956 | AE90: 38839
